Workbook

Sheet Control
A1: State Inventory Tool - CH4 and N2O Emissions from Stationary Combustion Module
A2: State | C2: Year | N2: 1
A3: 1. Choose a State | N3: 2
A4: This is very important - it selects the correct default variables for your state. | N4: 3
N5: 4
A6: 2. Complete the Bulk Data Energy Consumption Worksheet
A8: 3.-6. Fill In the emission factors that are used throughout the module and then proceed to the corresponding sector worksheet to input activity data. | N8: 5
A9: Enter the emission factors in the boxes below or check the boxes to use default values | N9: 6
A10: The default GWPs used in this module are from the IPCC Fourth Assessment Report (AR4) but can be adjusted in the Constants tab to reflect other sources.
N11: 7
N12: 14
A14: 3. Residential Emission Factors
B15: N2O Emission Factors (metric tons N2O gas/Billion BTU) | H15: CH4 Emission Factors (metric tons CH4 gas/BBTU)
A16: Fuel Type | B16: Default N2O Emission Factors | D16: N2O Emission Factor Used | F16: Use the Default? (Check for Yes) | H16: Default CH4 Emission Factors | J16: CH4 Emission Factor Used | L16: Use the Default? (Check for Yes)
A17: Coal | B17: 0.0015 | H17: 0.30069
A18: Distillate Fuel | B18: 0.0006 | H18: 0.01002
A19: Kerosene | B19: 0.0006 | H19: 0.01002
A20: LPG | B20: 0.0006 | H20: 0.01002
A21: Natural Gas | B21: 9e-05 | H21: 0.00475
A22: Wood | B22: 0.0038 | H22: 0.28487
A23: Other | B23: NA | H23: NA
A25: 4. Commercial Emission Factors
B26: N2O Emission Factors (metric tons N2O gas/BBTU) | H26: CH4 Emission Factors (metric tons CH4 gas/BBTU)
A27: Fuel Type | B27: Default N2O Emission Factors | D27: N2O Emission Factor Used | F27: Use the Default? (Check for Yes) | H27: Default CH4 Emission Factors | J27: CH4 Emission Factor Used | L27: Use the Default? (Check for Yes)
A28: Coal | B28: 0.0015 | H28: 0.01002
A29: Distillate Fuel | B29: 0.0006 | H29: 0.01002
A30: Kerosene | B30: 0.0006 | H30: 0.01002
A31: LPG | B31: 0.0006 | H31: 0.01002
A32: Motor Gasoline | B32: 0.0006 | H32: 0.01002
A33: Residual Fuel | B33: 0.0006 | H33: 0.01002
A34: Natural Gas | B34: 9e-05 | H34: 0.00475
A35: Wood | B35: 0.0038 | H35: 0.28487
A36: Other | B36: NA | H36: NA
A38: 5. Electric Power Emission Factors | N38: 27
B39: N2O Emission Factors (metric tons N2O gas/BBTU) | H39: CH4 Emission Factors (metric tons CH4 gas/BBTU) | N39: 28
A40: Fuel Type | B40: Default N2O Emission Factors | D40: N2O Emission Factor Used | F40: Use the Default? (Check for Yes) | H40: Default CH4 Emission Factors | J40: CH4 Emission Factor Used | L40: Use the Default? (Check for Yes) | N40: 29
A41: Coal | B41: 0.0015 | H41: 0.001 | N41: 30
A42: Distillate Fuel | B42: 0.0006 | H42: 0.00301 | N42: 31
A43: Petroleum Coke | B43: 0.0006 | H43: 0.00301 | N43: 32
A44: Residual Fuel | B44: 0.0006 | H44: 0.00301 | N44: 33
A45: Natural Gas | B45: 9e-05 | H45: 0.00095 | N45: 34
A46: Wood | B46: 0.0038 | H46: 0.02849
A47: Other | B47: NA | H47: NA | N47: 36
N48: 37
A49: 6. Industrial Emission Factors
B50: N2O Emission Factors (metric tons N2O gas/BBTU) | H50: CH4 Emission Factors (metric tons CH4 gas/BBTU)
A51: Fuel Type | B51: Default N2O Emission Factors | D51: N2O Emission Factor Used | F51: Use the Default? (Check for Yes) | H51: Default CH4 Emission Factors | J51: CH4 Emission Factor Used | L51: Use the Default? (Check for Yes)
A52: Coking Coal | B52: 0.0015 | H52: 0.01002
A53: Independent Power Coal | B53: 0.0015 | H53: 0.01002
A54: Other Coal | B54: 0.0015 | H54: 0.01002
A55: Asphalt and Road Oil | B55: 0.0006 | H55: 0.00301
A56: Aviation Gasoline Blending Components | B56: 0.0006 | H56: 0.00301
A57: Crude Oil | B57: 0.0006 | H57: 0.00301
A58: Distillate Fuel | B58: 0.0006 | H58: 0.00301
A59: Feedstocks, Naphtha less than 401 F | B59: 0.0006 | H59: 0.00301
A60: Feedstocks, Other Oils greater than 401 F | B60: 0.0006 | H60: 0.00301
A61: Kerosene | B61: 0.0006 | H61: 0.00301
A62: LPG | B62: 0.0006 | H62: 0.00301
A63: Lubricants | B63: 0.0006 | H63: 0.00301
A64: Motor Gasoline | B64: 0.0006 | H64: 0.00301
A65: Motor Gasoline Blending Components | B65: 0.0006 | H65: 0.00301
A66: Misc. Petro Products | B66: 0.0006 | H66: 0.00301
A67: Pentanes Plus | B67: 0.0006 | H67: 0.00301
A68: Petroleum Coke | B68: 0.0006 | H68: 0.00301
A69: Residual Fuel | B69: 0.0006 | H69: 0.00301
A70: Still Gas | B70: 0.0006 | H70: 0.00301
A71: Special Naphthas | B71: 0.0006 | H71: 0.00301
A72: Unfinished Oils | B72: 0.0006 | H72: 0.00301
A73: Waxes | B73: 0.0006 | H73: 0.00301
A74: Natural Gas | B74: 9e-05 | H74: 0.00095
A75: Wood | B75: 0.0038 | H75: 0.02849
A76: Other | B76: NA | H76: NA
N78: 38
A81: ="7. Go to the Summary Worksheets for " &Constants!G2 -> 7. Go to the Summary Worksheets for Select a State . . . | N81: 39
N82: 40
N83: 41
N86: 44
A88: 8. Export the results for use in the Synthesis Tool. | N88: 45

Sheet Default State Energy Data Table
B1: ="Default Energy Consumption in "&StateName&", billion btu (Bbtu)" -> Default Energy Consumption in Select a State . . ., billion btu (Bbtu) | N1: Industrial N2O
B5: Sector and Fuel | C5: 1990 | D5: 1991 | E5: 1992 | F5: 1993 | G5: 1994 | H5: 1995 | I5: 1996 | J5: 1997 | K5: 1998 | L5: 1999 | M5: 2000 | N5: 2001 | O5: 2002 | P5: 2003 | Q5: 2004 | R5: 2005 | S5: 2006 | T5: 2007 | U5: 2008 | V5: 2009 | W5: 2010 | X5: 2011 | Y5: 2012 | Z5: 2013 | AA5: 2014 | AB5: 2015 | AC5: 2016 | AD5: 2017 | AE5: 2018 | AF5: 2019 | AG5: 2020
A6: =StateID&" "&B6 -> xx Commercial Coal | B6: Commercial Coal | C6: =VLOOKUP(StateID&" "&$B6,ConsumeBlock,C$5-1988,FALSE) ->  | T6: =VLOOKUP(StateID&" "&$B6,ConsumeBlock,T$5-1988,FALSE) -> 
A7: xx Commercial Distillate Fuel | B7: Commercial Distillate Fuel
A8: xx Commercial Kerosene | B8: Commercial Kerosene
A9: xx Commercial Hydrocarbon Gas Liquids | B9: Commercial Hydrocarbon Gas Liquids
A10: xx Commercial Motor Gasoline | B10: Commercial Motor Gasoline | C10: =VLOOKUP(StateID&" "&$B10,ConsumeBlock,C$5-1988,FALSE)-VLOOKUP(StateID,CommercialEthanol,C$5-1988,FALSE) -> 
A11: xx Commercial Natural Gas | B11: Commercial Natural Gas
A12: xx Commercial Residual Fuel | B12: Commercial Residual Fuel
A13: xx Commercial Wood | B13: Commercial Wood
A14: xx Commercial Other | B14: Commercial Other
A15: xx Electric Power Coal | B15: Electric Power Coal
A16: xx Electric Power Distillate Fuel | B16: Electric Power Distillate Fuel
A17: xx Electric Power Natural Gas | B17: Electric Power Natural Gas
A18: xx Electric Power Petroleum Coke | B18: Electric Power Petroleum Coke
A19: xx Electric Power Residual Fuel | B19: Electric Power Residual Fuel
A20: xx Electric Power Wood | B20: Electric Power Wood | P20: =VLOOKUP(StateID&" "&$B20,ConsumeBlock,P$5-1988,FALSE) ->  | Q20: =VLOOKUP(StateID&" "&$B20,ConsumeBlock,Q$5-1988,FALSE) ->  | R20: =VLOOKUP(StateID&" "&$B20,ConsumeBlock,R$5-1988,FALSE) -> 
A21: xx Electric Power Other | B21: Electric Power Other
A22: xx Industrial Asphalt and Road Oil | B22: Industrial Asphalt and Road Oil
A23: xx Industrial Aviation Gasoline Blending Components | B23: Industrial Aviation Gasoline Blending Components
A24: xx Industrial Coal | B24: Industrial Coal | C24: =VLOOKUP(StateID&" "&$B24,ConsumeBlock,C$5-1988,FALSE) ->  | T24: =VLOOKUP(StateID&" "&$B24,ConsumeBlock,T$5-1988,FALSE) -> 
A25: =StateID&" "&B25 -> xx Industrial Coking Coal | B25: Industrial Coking Coal | O25: =VLOOKUP(StateID&" "&$B25,ConsumeBlock,O$5-1988,FALSE) ->  | P25: =VLOOKUP(StateID&" "&$B25,ConsumeBlock,P$5-1988,FALSE) ->  | Q25: =VLOOKUP(StateID&" "&$B25,ConsumeBlock,Q$5-1988,FALSE) ->  | R25: =VLOOKUP(StateID&" "&$B25,ConsumeBlock,R$5-1988,FALSE) ->  | S25: =VLOOKUP(StateID&" "&$B25,ConsumeBlock,S$5-1988,FALSE) -> 
A26: xx Industrial Crude Oil | B26: Industrial Crude Oil
A27: xx Industrial Distillate Fuel | B27: Industrial Distillate Fuel
A28: xx Industrial Feedstocks, Naphtha less than 401 F | B28: Industrial Feedstocks, Naphtha less than 401 F
A29: xx Industrial Feedstocks, Other Oils greater than 401 F | B29: Industrial Feedstocks, Other Oils greater than 401 F
A30: xx Industrial Kerosene | B30: Industrial Kerosene
A31: xx Industrial LPG | B31: Industrial LPG
A32: xx Industrial Lubricants | B32: Industrial Lubricants
A33: xx Industrial Misc. Petro Products | B33: Industrial Misc. Petro Products
A34: xx Industrial Motor Gasoline | B34: Industrial Motor Gasoline | C34: =VLOOKUP(StateID&" "&$B34,ConsumeBlock,C$5-1988,FALSE)-VLOOKUP(StateID,IndustrialEthanol,C$5-1988,FALSE) -> 
A35: xx Industrial Motor Gasoline Blending Components | B35: Industrial Motor Gasoline Blending Components
A36: xx Industrial Natural Gas | B36: Industrial Natural Gas
A37: xx Industrial Pentanes Plus | B37: Industrial Pentanes Plus
A38: xx Industrial Petroleum Coke | B38: Industrial Petroleum Coke
A39: xx Industrial Residual Fuel | B39: Industrial Residual Fuel
A40: xx Industrial Special Naphthas | B40: Industrial Special Naphthas
A41: =StateID&" "&B41 -> xx Industrial Still Gas | B41: Industrial Still Gas | C41: =VLOOKUP(StateID&" "&$B41,ConsumeBlock,C$5-1988,FALSE) ->  | T41: =VLOOKUP(StateID&" "&$B41,ConsumeBlock,T$5-1988,FALSE) -> 
A42: xx Industrial Unfinished Oils | B42: Industrial Unfinished Oils
A43: xx Industrial Waxes | B43: Industrial Waxes
A44: xx Industrial Wood | B44: Industrial Wood
A45: xx Industrial Other Coal | B45: Industrial Other Coal
A46: xx Industrial Other | B46: Industrial Other
A47: xx Residential Coal | B47: Residential Coal
A48: xx Residential Distillate Fuel | B48: Residential Distillate Fuel
A49: =StateID&" "&B49 -> xx Residential Kerosene | B49: Residential Kerosene
A50: xx Residential Hydrocarbon Gas Liquids | B50: Residential Hydrocarbon Gas Liquids
A51: xx Residential Natural Gas | B51: Residential Natural Gas
A52: xx Residential Wood | B52: Residential Wood
A53: xx Residential Other | B53: Residential Other
B56: Commercial Coal | C56: =VLOOKUP(StateID&" "&$B56,ConsumeBlock,C$5-1988,FALSE) ->  | S56: =VLOOKUP(StateID&" "&$B56,ConsumeBlock,S$5-1988,FALSE) -> 
B57: Commercial Distillate Fuel
B58: Commercial Kerosene
B59: Commercial LPG
B60: Commercial Motor Gasoline | C60: =VLOOKUP(StateID&" "&$B60,ConsumeBlock,C$5-1988,FALSE)-VLOOKUP(StateID,CommercialEthanol,C$5-1988,FALSE) -> 
B61: Commercial Natural Gas
B62: Commercial Residual Fuel
B63: Commercial Wood
B64: Commercial Other
B65: Electric Power Coal
B66: Electric Power Distillate Fuel
B67: Electric Power Natural Gas
B68: Electric Power Petroleum Coke
B69: Electric Power Residual Fuel
B70: Electric Power Wood | P70: =VLOOKUP(StateID&" "&$B70,ConsumeBlock,P$5-1988,FALSE) ->  | Q70: =VLOOKUP(StateID&" "&$B70,ConsumeBlock,Q$5-1988,FALSE) ->  | R70: =VLOOKUP(StateID&" "&$B70,ConsumeBlock,R$5-1988,FALSE) -> 
B71: Electric Power Other
B72: Industrial Asphalt and Road Oil
B73: Industrial Aviation Gasoline Blending Components
B74: Industrial Coal | C74: =VLOOKUP(StateID&" "&$B74,ConsumeBlock,C$5-1988,FALSE) ->  | T74: =VLOOKUP(StateID&" "&$B74,ConsumeBlock,T$5-1988,FALSE) -> 
B75: Industrial Coking Coal | O75: =VLOOKUP(StateID&" "&$B75,ConsumeBlock,O$5-1988,FALSE) ->  | P75: =VLOOKUP(StateID&" "&$B75,ConsumeBlock,P$5-1988,FALSE) ->  | Q75: =VLOOKUP(StateID&" "&$B75,ConsumeBlock,Q$5-1988,FALSE) ->  | R75: =VLOOKUP(StateID&" "&$B75,ConsumeBlock,R$5-1988,FALSE) ->  | S75: =VLOOKUP(StateID&" "&$B75,ConsumeBlock,S$5-1988,FALSE) -> 
B76: Industrial Crude Oil
B77: Industrial Distillate Fuel
B78: Industrial Feedstocks, Naphtha less than 401 F
B79: Industrial Feedstocks, Other Oils greater than 401 F
B80: Industrial Kerosene
B81: Industrial LPG
B82: Industrial Lubricants
B83: Industrial Misc. Petro Products
B84: Industrial Motor Gasoline | C84: =VLOOKUP(StateID&" "&$B84,ConsumeBlock,C$5-1988,FALSE)-VLOOKUP(StateID,IndustrialEthanol,C$5-1988,FALSE) -> 
B85: Industrial Motor Gasoline Blending Components
B86: Industrial Natural Gas
B87: Industrial Pentanes Plus
B88: Industrial Petroleum Coke
B89: Industrial Residual Fuel
B90: Industrial Special Naphthas
B91: Industrial Still Gas | C91: =VLOOKUP(StateID&" "&$B91,ConsumeBlock,C$5-1988,FALSE) ->  | T91: =VLOOKUP(StateID&" "&$B91,ConsumeBlock,T$5-1988,FALSE) -> 
B92: Industrial Unfinished Oils
B93: Industrial Waxes
B94: Industrial Wood
B95: Industrial Other Coal
B96: Industrial Other
B97: Residential Coal
B98: Residential Distillate Fuel
B99: Residential Kerosene
B100: Residential LPG
B101: Residential Natural Gas
B102: Residential Wood
B103: Residential Other
B104: Transportation Aviation Gasoline
B105: Transportation Distillate Fuel
B106: Transportation Ethanol
B107: Transportation Jet Fuel, Kerosene
B108: Transportation Jet Fuel, Naphtha | P108: =VLOOKUP(StateID&" "&$B108,ConsumeBlock,P$5-1988,FALSE) ->  | Q108: =VLOOKUP(StateID&" "&$B108,ConsumeBlock,Q$5-1988,FALSE) ->  | R108: =VLOOKUP(StateID&" "&$B108,ConsumeBlock,R$5-1988,FALSE) -> 
B109: Transportation LPG | C109: =VLOOKUP(StateID&" "&$B109,ConsumeBlock,C$5-1988,FALSE) ->  | T109: =VLOOKUP(StateID&" "&$B109,ConsumeBlock,T$5-1988,FALSE) -> 
B110: Transportation Lubricants
B111: Transportation Motor Gasoline | C111: =VLOOKUP(StateID&" "&$B111,ConsumeBlock,C$5-1988,FALSE)-VLOOKUP(StateID,Ethanol,C$5-1988,FALSE) -> 
B112: Transportation Natural Gas
B113: Transportation Residual Fuel
B114: Transportation Other
B115: Bunker Fuels Distillate Fuel | C115: =VLOOKUP(StateID&" "&$B115,ConsumeBlock,C$5-1988,FALSE) -> 
B116: Bunker Fuels Residual Fuel | C116: =VLOOKUP(StateID&" "&$B116,ConsumeBlock,C$5-1988,FALSE) ->  | R116: =VLOOKUP(StateID&" "&$B116,ConsumeBlock,R$5-1988,FALSE) -> 
B117: Bunker Fuels Jet Fuel, Kerosene | C117: =VLOOKUP(StateID&" "&$B117,ConsumeBlock,C$5-1988,FALSE) ->  | D117: =VLOOKUP(StateID&" "&$B117,ConsumeBlock,D$5-1988,FALSE) ->  | R117: =VLOOKUP(StateID&" "&$B117,ConsumeBlock,R$5-1988,FALSE) -> 

Sheet Residential N2O
A1: ="2. Residential Consumption and N2O emissions in "&Constants!G2 -> 2. Residential Consumption and N2O emissions in Select a State . . .
A2: =Constants!H2 -> xx | B2: Residential | C2: =" " -> 
A3: Residential Sector N20 | D3: 1990
B5: Consumption | D5: Emission Factor | F5: Emissions | H5: GWP | J5: Emissions | L5: Emissions
A6: Fuel Type | B6: (Billion Btu) | D6: (metric tons N2O/BBtu) | F6: (metric tons N2O) | J6: (MMTCE) | L6: (MMTCO2E)
A7: Coal | B7: =VLOOKUP($A$2&$C$2&$B$2&$C$2&$A7,ConsumeBlock3,3,FALSE) ->  | C7: x | D7: =CoalNEFres -> 0 | E7: = | F7: =B7*D7 ->  | G7: x | H7: =GWPN2O -> 298 | I7: = | J7: =F7*H7*CO2_C/(10^6) ->  | K7: = | L7: =J7/CO2_C -> 
A8: Distillate Fuel | C8: x | D8: =DistillNEFres -> 0 | E8: = | F8: =B8*D8 ->  | G8: x | H8: 298 | I8: = | K8: =
A9: Kerosene | C9: x | D9: =KeroNEFres -> 0 | E9: = | G9: x | H9: 298 | I9: = | K9: =
A10: Hydrocarbon Gas Liquids | C10: x | D10: =LPGNEFres -> 0 | E10: = | G10: x | H10: 298 | I10: = | K10: =
A11: Natural Gas | C11: x | D11: =NatGasNEFres -> 0 | E11: = | G11: x | H11: 298 | I11: = | K11: =
A12: Wood | C12: x | D12: =WoodNEFres -> 0 | E12: = | G12: x | H12: 298 | I12: = | K12: =
A13: Other | B13: =VLOOKUP($A$2&$C$2&$B$2&$C$2&$A13,ConsumeBlock3,D3-1987,FALSE) -> 0 | C13: x | D13: =OtherNEFres -> 0 | E13: = | F13: 0 | G13: x | H13: 298 | I13: = | J13: 0 | K13: = | L13: 0
H14: Total | I14: = | J14: =SUM(J7:J13) ->  | K14: =
A16: Residential Sector N20 | D16: 1991
B18: Consumption | D18: Emission Factor | F18: Emissions | H18: GWP | J18: Emissions | L18: Emissions
A19: Fuel Type | B19: (Billion Btu) | D19: (metric tons N2O/BBtu) | F19: (metric tons N2O) | J19: (MMTCE) | L19: (MMTCO2E)
A20: Coal | B20: =VLOOKUP($A$2&$C$2&$B$2&$C$2&$A20,ConsumeBlock3,4,FALSE) ->  | C20: x | D20: =CoalNEFres -> 0 | E20: = | F20: =B20*D20 ->  | G20: x | H20: =GWPN2O -> 298 | I20: = | J20: =F20*H20*CO2_C/(10^6) ->  | K20: = | L20: =J20/CO2_C -> 
A21: Distillate Fuel | C21: x | D21: =DistillNEFres -> 0 | E21: = | F21: =B21*D21 ->  | G21: x | H21: 298 | I21: = | K21: =
A22: Kerosene | C22: x | D22: =KeroNEFres -> 0 | E22: = | G22: x | H22: 298 | I22: = | K22: =
A23: Hydrocarbon Gas Liquids | C23: x | D23: =LPGNEFres -> 0 | E23: = | G23: x | H23: 298 | I23: = | K23: =
A24: Natural Gas | C24: x | D24: =NatGasNEFres -> 0 | E24: = | G24: x | H24: 298 | I24: = | K24: =
A25: Wood | C25: x | D25: =WoodNEFres -> 0 | E25: = | G25: x | H25: 298 | I25: = | K25: =
A26: Other | B26: =VLOOKUP($A$2&$C$2&$B$2&$C$2&$A26,ConsumeBlock3,D16-1987,FALSE) -> 0 | C26: x | D26: =OtherNEFres -> 0 | E26: = | F26: 0 | G26: x | H26: 298 | I26: = | J26: 0 | K26: = | L26: 0
H27: Total | I27: = | J27: =SUM(J20:J26) ->  | K27: =
A29: Residential Sector N20 | D29: 1992
B31: Consumption | D31: Emission Factor | F31: Emissions | H31: GWP | J31: Emissions | L31: Emissions
A32: Fuel Type | B32: (Billion Btu) | D32: (metric tons N2O/BBtu) | F32: (metric tons N2O) | J32: (MMTCE) | L32: (MMTCO2E)
A33: Coal | B33: =VLOOKUP($A$2&$C$2&$B$2&$C$2&$A33,ConsumeBlock3,5,FALSE) ->  | C33: x | D33: =CoalNEFres -> 0 | E33: = | F33: =B33*D33 ->  | G33: x | H33: =GWPN2O -> 298 | I33: = | J33: =F33*H33*CO2_C/(10^6) ->  | K33: = | L33: =J33/CO2_C -> 
A34: Distillate Fuel | C34: x | D34: =DistillNEFres -> 0 | E34: = | F34: =B34*D34 ->  | G34: x | H34: 298 | I34: = | K34: =
A35: Kerosene | C35: x | D35: =KeroNEFres -> 0 | E35: = | G35: x | H35: 298 | I35: = | K35: =
A36: Hydrocarbon Gas Liquids | C36: x | D36: =LPGNEFres -> 0 | E36: = | G36: x | H36: 298 | I36: = | K36: =
A37: Natural Gas | C37: x | D37: =NatGasNEFres -> 0 | E37: = | G37: x | H37: 298 | I37: = | K37: =
A38: Wood | C38: x | D38: =WoodNEFres -> 0 | E38: = | G38: x | H38: 298 | I38: = | K38: =
A39: Other | B39: =VLOOKUP($A$2&$C$2&$B$2&$C$2&$A39,ConsumeBlock3,D29-1987,FALSE) -> 0 | C39: x | D39: =OtherNEFres -> 0 | E39: = | F39: 0 | G39: x | H39: 298 | I39: = | J39: 0 | K39: = | L39: 0
H40: Total | I40: = | J40: =SUM(J33:J39) ->  | K40: =
A42: Residential Sector N20 | D42: 1993
B44: Consumption | D44: Emission Factor | F44: Emissions | H44: GWP | J44: Emissions | L44: Emissions
A45: Fuel Type | B45: (Billion Btu) | D45: (metric tons N2O/BBtu) | F45: (metric tons N2O) | J45: (MMTCE) | L45: (MMTCO2E)
A46: Coal | B46: =VLOOKUP($A$2&$C$2&$B$2&$C$2&$A46,ConsumeBlock3,6,FALSE) ->  | C46: x | D46: =CoalNEFres -> 0 | E46: = | F46: =B46*D46 ->  | G46: x | H46: =GWPN2O -> 298 | I46: = | J46: =F46*H46*CO2_C/(10^6) ->  | K46: = | L46: =J46/CO2_C -> 
A47: Distillate Fuel | C47: x | D47: =DistillNEFres -> 0 | E47: = | F47: =B47*D47 ->  | G47: x | H47: 298 | I47: = | K47: =
A48: Kerosene | C48: x | D48: =KeroNEFres -> 0 | E48: = | G48: x | H48: 298 | I48: = | K48: =
A49: Hydrocarbon Gas Liquids | C49: x | D49: =LPGNEFres -> 0 | E49: = | G49: x | H49: 298 | I49: = | K49: =
A50: Natural Gas | C50: x | D50: =NatGasNEFres -> 0 | E50: = | G50: x | H50: 298 | I50: = | K50: =
A51: Wood | C51: x | D51: =WoodNEFres -> 0 | E51: = | G51: x | H51: 298 | I51: = | K51: =
A52: Other | B52: =VLOOKUP($A$2&$C$2&$B$2&$C$2&$A52,ConsumeBlock3,D42-1987,FALSE) -> 0 | C52: x | D52: =OtherNEFres -> 0 | E52: = | F52: 0 | G52: x | H52: 298 | I52: = | J52: 0 | K52: = | L52: 0
H53: Total | I53: = | J53: =SUM(J46:J52) ->  | K53: =
A55: Residential Sector N20 | D55: 1994
B57: Consumption | D57: Emission Factor | F57: Emissions | H57: GWP | J57: Emissions | L57: Emissions
A58: Fuel Type | B58: (Billion Btu) | D58: (metric tons N2O/BBtu) | F58: (metric tons N2O) | J58: (MMTCE) | L58: (MMTCO2E)
A59: Coal | B59: =VLOOKUP($A$2&$C$2&$B$2&$C$2&$A59,ConsumeBlock3,7,FALSE) ->  | C59: x | D59: =CoalNEFres -> 0 | E59: = | F59: =B59*D59 ->  | G59: x | H59: =GWPN2O -> 298 | I59: = | J59: =F59*H59*CO2_C/(10^6) ->  | K59: = | L59: =J59/CO2_C -> 
A60: Distillate Fuel | C60: x | D60: =DistillNEFres -> 0 | E60: = | F60: =B60*D60 ->  | G60: x | H60: 298 | I60: = | K60: =
A61: Kerosene | C61: x | D61: =KeroNEFres -> 0 | E61: = | G61: x | H61: 298 | I61: = | K61: =
A62: Hydrocarbon Gas Liquids | C62: x | D62: =LPGNEFres -> 0 | E62: = | G62: x | H62: 298 | I62: = | K62: =
A63: Natural Gas | C63: x | D63: =NatGasNEFres -> 0 | E63: = | G63: x | H63: 298 | I63: = | K63: =
A64: Wood | C64: x | D64: =WoodNEFres -> 0 | E64: = | G64: x | H64: 298 | I64: = | K64: =
A65: Other | B65: =VLOOKUP($A$2&$C$2&$B$2&$C$2&$A65,ConsumeBlock3,D55-1987,FALSE) -> 0 | C65: x | D65: =OtherNEFres -> 0 | E65: = | F65: 0 | G65: x | H65: 298 | I65: = | J65: 0 | K65: = | L65: 0
H66: Total | I66: = | J66: =SUM(J59:J65) ->  | K66: =
A68: Residential Sector N20 | D68: 1995
B70: Consumption | D70: Emission Factor | F70: Emissions | H70: GWP | J70: Emissions | L70: Emissions
A71: Fuel Type | B71: (Billion Btu) | D71: (metric tons N2O/BBtu) | F71: (metric tons N2O) | J71: (MMTCE) | L71: (MMTCO2E)
A72: Coal | B72: =VLOOKUP($A$2&$C$2&$B$2&$C$2&$A72,ConsumeBlock3,8,FALSE) ->  | C72: x | D72: =CoalNEFres -> 0 | E72: = | F72: =B72*D72 ->  | G72: x | H72: =GWPN2O -> 298 | I72: = | J72: =F72*H72*CO2_C/(10^6) ->  | K72: = | L72: =J72/CO2_C -> 
A73: Distillate Fuel | C73: x | D73: =DistillNEFres -> 0 | E73: = | F73: =B73*D73 ->  | G73: x | H73: 298 | I73: = | K73: =
A74: Kerosene | C74: x | D74: =KeroNEFres -> 0 | E74: = | G74: x | H74: 298 | I74: = | K74: =
A75: Hydrocarbon Gas Liquids | C75: x | D75: =LPGNEFres -> 0 | E75: = | G75: x | H75: 298 | I75: = | K75: =
A76: Natural Gas | C76: x | D76: =NatGasNEFres -> 0 | E76: = | G76: x | H76: 298 | I76: = | K76: =
A77: Wood | C77: x | D77: =WoodNEFres -> 0 | E77: = | G77: x | H77: 298 | I77: = | K77: =
A78: Other | B78: =VLOOKUP($A$2&$C$2&$B$2&$C$2&$A78,ConsumeBlock3,D68-1987,FALSE) -> 0 | C78: x | D78: =OtherNEFres -> 0 | E78: = | F78: 0 | G78: x | H78: 298 | I78: = | J78: 0 | K78: = | L78: 0
H79: Total | I79: = | J79: =SUM(J72:J78) ->  | K79: =
A81: Residential Sector N20 | D81: 1996
B83: Consumption | D83: Emission Factor | F83: Emissions | H83: GWP | J83: Emissions | L83: Emissions
A84: Fuel Type | B84: (Billion Btu) | D84: (metric tons N2O/BBtu) | F84: (metric tons N2O) | J84: (MMTCE) | L84: (MMTCO2E)
A85: Coal | B85: =VLOOKUP($A$2&$C$2&$B$2&$C$2&$A85,ConsumeBlock3,9,FALSE) ->  | C85: x | D85: =CoalNEFres -> 0 | E85: = | F85: =B85*D85 ->  | G85: x | H85: =GWPN2O -> 298 | I85: = | J85: =F85*H85*CO2_C/(10^6) ->  | K85: = | L85: =J85/CO2_C -> 
A86: Distillate Fuel | C86: x | D86: =DistillNEFres -> 0 | E86: = | F86: =B86*D86 ->  | G86: x | H86: 298 | I86: = | K86: =
A87: Kerosene | C87: x | D87: =KeroNEFres -> 0 | E87: = | G87: x | H87: 298 | I87: = | K87: =
A88: Hydrocarbon Gas Liquids | C88: x | D88: =LPGNEFres -> 0 | E88: = | G88: x | H88: 298 | I88: = | K88: =
A89: Natural Gas | C89: x | D89: =NatGasNEFres -> 0 | E89: = | G89: x | H89: 298 | I89: = | K89: =
A90: Wood | C90: x | D90: =WoodNEFres -> 0 | E90: = | G90: x | H90: 298 | I90: = | K90: =
A91: Other | B91: =VLOOKUP($A$2&$C$2&$B$2&$C$2&$A91,ConsumeBlock3,D81-1987,FALSE) -> 0 | C91: x | D91: =OtherNEFres -> 0 | E91: = | F91: 0 | G91: x | H91: 298 | I91: = | J91: 0 | K91: = | L91: 0
H92: Total | I92: = | J92: =SUM(J85:J91) ->  | K92: =
A94: Residential Sector N20 | D94: 1997
B96: Consumption | D96: Emission Factor | F96: Emissions | H96: GWP | J96: Emissions | L96: Emissions
A97: Fuel Type | B97: (Billion Btu) | D97: (metric tons N2O/BBtu) | F97: (metric tons N2O) | J97: (MMTCE) | L97: (MMTCO2E)
A98: Coal | B98: =VLOOKUP($A$2&$C$2&$B$2&$C$2&$A98,ConsumeBlock3,10,FALSE) ->  | C98: x | D98: =CoalNEFres -> 0 | E98: = | F98: =B98*D98 ->  | G98: x | H98: =GWPN2O -> 298 | I98: = | J98: =F98*H98*CO2_C/(10^6) ->  | K98: = | L98: =J98/CO2_C -> 
A99: Distillate Fuel | C99: x | D99: =DistillNEFres -> 0 | E99: = | F99: =B99*D99 ->  | G99: x | H99: 298 | I99: = | K99: =
A100: Kerosene | C100: x | D100: =KeroNEFres -> 0 | E100: = | G100: x | H100: 298 | I100: = | K100: =
A101: Hydrocarbon Gas Liquids | C101: x | D101: =LPGNEFres -> 0 | E101: = | G101: x | H101: 298 | I101: = | K101: =
A102: Natural Gas | C102: x | D102: =NatGasNEFres -> 0 | E102: = | G102: x | H102: 298 | I102: = | K102: =
A103: Wood | C103: x | D103: =WoodNEFres -> 0 | E103: = | G103: x | H103: 298 | I103: = | K103: =
A104: Other | B104: =VLOOKUP($A$2&$C$2&$B$2&$C$2&$A104,ConsumeBlock3,D94-1987,FALSE) -> 0 | C104: x | D104: =OtherNEFres -> 0 | E104: = | F104: 0 | G104: x | H104: 298 | I104: = | J104: 0 | K104: = | L104: 0
H105: Total | I105: = | J105: =SUM(J98:J104) ->  | K105: =
A107: Residential Sector N20 | D107: 1998
B109: Consumption | D109: Emission Factor | F109: Emissions | H109: GWP | J109: Emissions | L109: Emissions
A110: Fuel Type | B110: (Billion Btu) | D110: (metric tons N2O/BBtu) | F110: (metric tons N2O) | J110: (MMTCE) | L110: (MMTCO2E)
A111: Coal | B111: =VLOOKUP($A$2&$C$2&$B$2&$C$2&$A111,ConsumeBlock3,11,FALSE) ->  | C111: x | D111: =CoalNEFres -> 0 | E111: = | F111: =B111*D111 ->  | G111: x | H111: =GWPN2O -> 298 | I111: = | J111: =F111*H111*CO2_C/(10^6) ->  | K111: = | L111: =J111/CO2_C -> 
A112: Distillate Fuel | C112: x | D112: =DistillNEFres -> 0 | E112: = | F112: =B112*D112 ->  | G112: x | H112: 298 | I112: = | K112: =
A113: Kerosene | C113: x | D113: =KeroNEFres -> 0 | E113: = | G113: x | H113: 298 | I113: = | K113: =
A114: Hydrocarbon Gas Liquids | C114: x | D114: =LPGNEFres -> 0 | E114: = | G114: x | H114: 298 | I114: = | K114: =
A115: Natural Gas | C115: x | D115: =NatGasNEFres -> 0 | E115: = | G115: x | H115: 298 | I115: = | K115: =
A116: Wood | C116: x | D116: =WoodNEFres -> 0 | E116: = | G116: x | H116: 298 | I116: = | K116: =
A117: Other | B117: =VLOOKUP($A$2&$C$2&$B$2&$C$2&$A117,ConsumeBlock3,D107-1987,FALSE) -> 0 | C117: x | D117: =OtherNEFres -> 0 | E117: = | F117: 0 | G117: x | H117: 298 | I117: = | J117: 0 | K117: = | L117: 0
H118: Total | I118: = | J118: =SUM(J111:J117) ->  | K118: =
A120: Residential Sector N20 | D120: 1999
B122: Consumption | D122: Emission Factor | F122: Emissions | H122: GWP | J122: Emissions | L122: Emissions
A123: Fuel Type | B123: (Billion Btu) | D123: (metric tons N2O/BBtu) | F123: (metric tons N2O) | J123: (MMTCE) | L123: (MMTCO2E)
A124: Coal | B124: =VLOOKUP($A$2&$C$2&$B$2&$C$2&$A124,ConsumeBlock3,12,FALSE) ->  | C124: x | D124: =CoalNEFres -> 0 | E124: = | F124: =B124*D124 ->  | G124: x | H124: =GWPN2O -> 298 | I124: = | J124: =F124*H124*CO2_C/(10^6) ->  | K124: = | L124: =J124/CO2_C -> 
A125: Distillate Fuel | C125: x | D125: =DistillNEFres -> 0 | E125: = | F125: =B125*D125 ->  | G125: x | H125: 298 | I125: = | K125: =
A126: Kerosene | C126: x | D126: =KeroNEFres -> 0 | E126: = | G126: x | H126: 298 | I126: = | K126: =
A127: Hydrocarbon Gas Liquids | C127: x | D127: =LPGNEFres -> 0 | E127: = | G127: x | H127: 298 | I127: = | K127: =
A128: Natural Gas | C128: x | D128: =NatGasNEFres -> 0 | E128: = | G128: x | H128: 298 | I128: = | K128: =
A129: Wood | C129: x | D129: =WoodNEFres -> 0 | E129: = | G129: x | H129: 298 | I129: = | K129: =
A130: Other | B130: =VLOOKUP($A$2&$C$2&$B$2&$C$2&$A130,ConsumeBlock3,D120-1987,FALSE) -> 0 | C130: x | D130: =OtherNEFres -> 0 | E130: = | F130: 0 | G130: x | H130: 298 | I130: = | J130: 0 | K130: = | L130: 0
H131: Total | I131: = | J131: =SUM(J124:J130) ->  | K131: =
A133: Residential Sector N20 | D133: 2000
B135: Consumption | D135: Emission Factor | F135: Emissions | H135: GWP | J135: Emissions | L135: Emissions
A136: Fuel Type | B136: (Billion Btu) | D136: (metric tons N2O/BBtu) | F136: (metric tons N2O) | J136: (MMTCE) | L136: (MMTCO2E)
A137: Coal | B137: =VLOOKUP($A$2&$C$2&$B$2&$C$2&$A137,ConsumeBlock3,13,FALSE) ->  | C137: x | D137: =CoalNEFres -> 0 | E137: = | F137: =B137*D137 ->  | G137: x | H137: =GWPN2O -> 298 | I137: = | J137: =F137*H137*CO2_C/(10^6) ->  | K137: = | L137: =J137/CO2_C -> 
A138: Distillate Fuel | C138: x | D138: =DistillNEFres -> 0 | E138: = | F138: =B138*D138 ->  | G138: x | H138: 298 | I138: = | K138: =
A139: Kerosene | C139: x | D139: =KeroNEFres -> 0 | E139: = | G139: x | H139: 298 | I139: = | K139: =
A140: Hydrocarbon Gas Liquids | C140: x | D140: =LPGNEFres -> 0 | E140: = | G140: x | H140: 298 | I140: = | K140: =
A141: Natural Gas | C141: x | D141: =NatGasNEFres -> 0 | E141: = | G141: x | H141: 298 | I141: = | K141: =
A142: Wood | C142: x | D142: =WoodNEFres -> 0 | E142: = | G142: x | H142: 298 | I142: = | K142: =
A143: Other | B143: =VLOOKUP($A$2&$C$2&$B$2&$C$2&$A143,ConsumeBlock3,D133-1987,FALSE) -> 0 | C143: x | D143: =OtherNEFres -> 0 | E143: = | F143: 0 | G143: x | H143: 298 | I143: = | J143: 0 | K143: = | L143: 0
H144: Total | I144: = | J144: =SUM(J137:J143) ->  | K144: =
A146: Residential Sector N20 | D146: 2001
B148: Consumption | D148: Emission Factor | F148: Emissions | H148: GWP | J148: Emissions | L148: Emissions
A149: Fuel Type | B149: (Billion Btu) | D149: (metric tons N2O/BBtu) | F149: (metric tons N2O) | J149: (MMTCE) | L149: (MMTCO2E)
A150: Coal | B150: =VLOOKUP($A$2&$C$2&$B$2&$C$2&$A150,ConsumeBlock3,14,FALSE) ->  | C150: x | D150: =CoalNEFres -> 0 | E150: = | F150: =B150*D150 ->  | G150: x | H150: =GWPN2O -> 298 | I150: = | J150: =F150*H150*CO2_C/(10^6) ->  | K150: = | L150: =J150/CO2_C -> 
A151: Distillate Fuel | C151: x | D151: =DistillNEFres -> 0 | E151: = | F151: =B151*D151 ->  | G151: x | H151: 298 | I151: = | K151: =
A152: Kerosene | C152: x | D152: =KeroNEFres -> 0 | E152: = | G152: x | H152: 298 | I152: = | K152: =
A153: Hydrocarbon Gas Liquids | C153: x | D153: =LPGNEFres -> 0 | E153: = | G153: x | H153: 298 | I153: = | K153: =
A154: Natural Gas | C154: x | D154: =NatGasNEFres -> 0 | E154: = | G154: x | H154: 298 | I154: = | K154: =
A155: Wood | C155: x | D155: =WoodNEFres -> 0 | E155: = | G155: x | H155: 298 | I155: = | K155: =
A156: Other | B156: =VLOOKUP($A$2&$C$2&$B$2&$C$2&$A156,ConsumeBlock3,D146-1987,FALSE) -> 0 | C156: x | D156: =OtherNEFres -> 0 | E156: = | F156: 0 | G156: x | H156: 298 | I156: = | J156: 0 | K156: = | L156: 0
H157: Total | I157: = | J157: =SUM(J150:J156) ->  | K157: =
A159: Residential Sector N20 | D159: 2002
B161: Consumption | D161: Emission Factor | F161: Emissions | H161: GWP | J161: Emissions | L161: Emissions
A162: Fuel Type | B162: (Billion Btu) | D162: (metric tons N2O/BBtu) | F162: (metric tons N2O) | J162: (MMTCE) | L162: (MMTCO2E)
A163: Coal | B163: =VLOOKUP($A$2&$C$2&$B$2&$C$2&$A163,ConsumeBlock3,15,FALSE) ->  | C163: x | D163: =CoalNEFres -> 0 | E163: = | F163: =B163*D163 ->  | G163: x | H163: =GWPN2O -> 298 | I163: = | J163: =F163*H163*CO2_C/(10^6) ->  | K163: = | L163: =J163/CO2_C -> 
A164: Distillate Fuel | C164: x | D164: =DistillNEFres -> 0 | E164: = | F164: =B164*D164 ->  | G164: x | H164: 298 | I164: = | K164: =
A165: Kerosene | C165: x | D165: =KeroNEFres -> 0 | E165: = | G165: x | H165: 298 | I165: = | K165: =
A166: Hydrocarbon Gas Liquids | C166: x | D166: =LPGNEFres -> 0 | E166: = | G166: x | H166: 298 | I166: = | K166: =
A167: Natural Gas | C167: x | D167: =NatGasNEFres -> 0 | E167: = | G167: x | H167: 298 | I167: = | K167: =
A168: Wood | C168: x | D168: =WoodNEFres -> 0 | E168: = | G168: x | H168: 298 | I168: = | K168: =
A169: Other | B169: =VLOOKUP($A$2&$C$2&$B$2&$C$2&$A169,ConsumeBlock3,D159-1987,FALSE) -> 0 | C169: x | D169: =OtherNEFres -> 0 | E169: = | F169: 0 | G169: x | H169: 298 | I169: = | J169: 0 | K169: = | L169: 0
H170: Total | I170: = | J170: =SUM(J163:J169) ->  | K170: =
A172: Residential Sector N20 | D172: 2003
B174: Consumption | D174: Emission Factor | F174: Emissions | H174: GWP | J174: Emissions | L174: Emissions
A175: Fuel Type | B175: (Billion Btu) | D175: (metric tons N2O/BBtu) | F175: (metric tons N2O) | J175: (MMTCE) | L175: (MMTCO2E)
A176: Coal | B176: =VLOOKUP($A$2&$C$2&$B$2&$C$2&$A176,ConsumeBlock3,16,FALSE) ->  | C176: x | D176: =CoalNEFres -> 0 | E176: = | F176: =B176*D176 ->  | G176: x | H176: =GWPN2O -> 298 | I176: = | J176: =F176*H176*CO2_C/(10^6) ->  | K176: = | L176: =J176/CO2_C -> 
A177: Distillate Fuel | C177: x | D177: =DistillNEFres -> 0 | E177: = | F177: =B177*D177 ->  | G177: x | H177: 298 | I177: = | K177: =
A178: Kerosene | C178: x | D178: =KeroNEFres -> 0 | E178: = | G178: x | H178: 298 | I178: = | K178: =
A179: Hydrocarbon Gas Liquids | C179: x | D179: =LPGNEFres -> 0 | E179: = | G179: x | H179: 298 | I179: = | K179: =
A180: Natural Gas | C180: x | D180: =NatGasNEFres -> 0 | E180: = | G180: x | H180: 298 | I180: = | K180: =
A181: Wood | C181: x | D181: =WoodNEFres -> 0 | E181: = | G181: x | H181: 298 | I181: = | K181: =
A182: Other | B182: =VLOOKUP($A$2&$C$2&$B$2&$C$2&$A182,ConsumeBlock3,D172-1987,FALSE) -> 0 | C182: x | D182: =OtherNEFres -> 0 | E182: = | F182: 0 | G182: x | H182: 298 | I182: = | J182: 0 | K182: = | L182: 0
H183: Total | I183: = | J183: =SUM(J176:J182) ->  | K183: =
A185: Residential Sector N20 | D185: 2004
B187: Consumption | D187: Emission Factor | F187: Emissions | H187: GWP | J187: Emissions | L187: Emissions
A188: Fuel Type | B188: (Billion Btu) | D188: (metric tons N2O/BBtu) | F188: (metric tons N2O) | J188: (MMTCE) | L188: (MMTCO2E)
A189: Coal | B189: =VLOOKUP($A$2&$C$2&$B$2&$C$2&$A189,ConsumeBlock3,17,FALSE) ->  | C189: x | D189: =CoalNEFres -> 0 | E189: = | F189: =B189*D189 ->  | G189: x | H189: =GWPN2O -> 298 | I189: = | J189: =F189*H189*CO2_C/(10^6) ->  | K189: = | L189: =J189/CO2_C -> 
A190: Distillate Fuel | C190: x | D190: =DistillNEFres -> 0 | E190: = | F190: =B190*D190 ->  | G190: x | H190: 298 | I190: = | K190: =
A191: Kerosene | C191: x | D191: =KeroNEFres -> 0 | E191: = | G191: x | H191: 298 | I191: = | K191: =
A192: Hydrocarbon Gas Liquids | C192: x | D192: =LPGNEFres -> 0 | E192: = | G192: x | H192: 298 | I192: = | K192: =
A193: Natural Gas | C193: x | D193: =NatGasNEFres -> 0 | E193: = | G193: x | H193: 298 | I193: = | K193: =
A194: Wood | C194: x | D194: =WoodNEFres -> 0 | E194: = | G194: x | H194: 298 | I194: = | K194: =
A195: Other | B195: =VLOOKUP($A$2&$C$2&$B$2&$C$2&$A195,ConsumeBlock3,D185-1987,FALSE) -> 0 | C195: x | D195: =OtherNEFres -> 0 | E195: = | F195: 0 | G195: x | H195: 298 | I195: = | J195: 0 | K195: = | L195: 0
H196: Total | I196: = | J196: =SUM(J189:J195) ->  | K196: =
A198: Residential Sector N20 | D198: =D185+1 -> 2005
B200: Consumption | D200: Emission Factor | F200: Emissions | H200: GWP | J200: Emissions | L200: Emissions
A201: Fuel Type | B201: (Billion Btu) | D201: (metric tons N2O/BBtu) | F201: (metric tons N2O) | J201: (MMTCE) | L201: (MMTCO2E)
A202: Coal | B202: =VLOOKUP($A$2&$C$2&$B$2&$C$2&$A202,ConsumeBlock3,18,FALSE) ->  | C202: x | D202: =CoalNEFres -> 0 | E202: = | F202: =B202*D202 ->  | G202: x | H202: =GWPN2O -> 298 | I202: = | J202: =F202*H202*CO2_C/(10^6) ->  | K202: = | L202: =J202/CO2_C -> 
A203: Distillate Fuel | C203: x | D203: =DistillNEFres -> 0 | E203: = | F203: =B203*D203 ->  | G203: x | H203: 298 | I203: = | K203: =
A204: Kerosene | C204: x | D204: =KeroNEFres -> 0 | E204: = | G204: x | H204: 298 | I204: = | K204: =
A205: Hydrocarbon Gas Liquids | C205: x | D205: =LPGNEFres -> 0 | E205: = | G205: x | H205: 298 | I205: = | K205: =
A206: Natural Gas | C206: x | D206: =NatGasNEFres -> 0 | E206: = | G206: x | H206: 298 | I206: = | K206: =
A207: Wood | C207: x | D207: =WoodNEFres -> 0 | E207: = | G207: x | H207: 298 | I207: = | K207: =
A208: Other | B208: =VLOOKUP($A$2&$C$2&$B$2&$C$2&$A208,ConsumeBlock3,D198-1987,FALSE) -> 0 | C208: x | D208: =OtherNEFres -> 0 | E208: = | F208: 0 | G208: x | H208: 298 | I208: = | J208: 0 | K208: = | L208: 0
H209: Total | I209: = | J209: =SUM(J202:J208) ->  | K209: =
A211: Residential Sector N20 | D211: =D198+1 -> 2006
B213: Consumption | D213: Emission Factor | F213: Emissions | H213: GWP | J213: Emissions | L213: Emissions
A214: Fuel Type | B214: (Billion Btu) | D214: (metric tons N2O/BBtu) | F214: (metric tons N2O) | J214: (MMTCE) | L214: (MMTCO2E)
A215: Coal | B215: =VLOOKUP($A$2&$C$2&$B$2&$C$2&$A215,ConsumeBlock3,19,FALSE) ->  | C215: x | D215: =CoalNEFres -> 0 | E215: = | F215: =B215*D215 ->  | G215: x | H215: =GWPN2O -> 298 | I215: = | J215: =F215*H215*CO2_C/(10^6) ->  | K215: = | L215: =J215/CO2_C -> 
A216: Distillate Fuel | C216: x | D216: =DistillNEFres -> 0 | E216: = | F216: =B216*D216 ->  | G216: x | H216: 298 | I216: = | K216: =
A217: Kerosene | C217: x | D217: =KeroNEFres -> 0 | E217: = | G217: x | H217: 298 | I217: = | K217: =
A218: Hydrocarbon Gas Liquids | C218: x | D218: =LPGNEFres -> 0 | E218: = | G218: x | H218: 298 | I218: = | K218: =
A219: Natural Gas | C219: x | D219: =NatGasNEFres -> 0 | E219: = | G219: x | H219: 298 | I219: = | K219: =
A220: Wood | C220: x | D220: =WoodNEFres -> 0 | E220: = | G220: x | H220: 298 | I220: = | K220: =
A221: Other | B221: =VLOOKUP($A$2&$C$2&$B$2&$C$2&$A221,ConsumeBlock3,D211-1987,FALSE) -> 0 | C221: x | D221: =OtherNEFres -> 0 | E221: = | F221: 0 | G221: x | H221: 298 | I221: = | J221: 0 | K221: = | L221: 0
H222: Total | I222: = | J222: =SUM(J215:J221) ->  | K222: =
A224: Residential Sector N20 | D224: =D211+1 -> 2007
B226: Consumption | D226: Emission Factor | F226: Emissions | H226: GWP | J226: Emissions | L226: Emissions
A227: Fuel Type | B227: (Billion Btu) | D227: (metric tons N2O/BBtu) | F227: (metric tons N2O) | J227: (MMTCE) | L227: (MMTCO2E)
A228: Coal | B228: =VLOOKUP($A$2&$C$2&$B$2&$C$2&$A228,ConsumeBlock3,20,FALSE) ->  | C228: x | D228: =CoalNEFres -> 0 | E228: = | F228: =B228*D228 ->  | G228: x | H228: =GWPN2O -> 298 | I228: = | J228: =F228*H228*CO2_C/(10^6) ->  | K228: = | L228: =J228/CO2_C -> 
A229: Distillate Fuel | C229: x | D229: =DistillNEFres -> 0 | E229: = | F229: =B229*D229 ->  | G229: x | H229: 298 | I229: = | K229: =
A230: Kerosene | C230: x | D230: =KeroNEFres -> 0 | E230: = | G230: x | H230: 298 | I230: = | K230: =
A231: Hydrocarbon Gas Liquids | C231: x | D231: =LPGNEFres -> 0 | E231: = | G231: x | H231: 298 | I231: = | K231: =
A232: Natural Gas | C232: x | D232: =NatGasNEFres -> 0 | E232: = | G232: x | H232: 298 | I232: = | K232: =
A233: Wood | C233: x | D233: =WoodNEFres -> 0 | E233: = | G233: x | H233: 298 | I233: = | K233: =
A234: Other | B234: =VLOOKUP($A$2&$C$2&$B$2&$C$2&$A234,ConsumeBlock3,D224-1987,FALSE) -> 0 | C234: x | D234: =OtherNEFres -> 0 | E234: = | F234: 0 | G234: x | H234: 298 | I234: = | J234: 0 | K234: = | L234: 0
H235: Total | I235: = | J235: =SUM(J228:J234) ->  | K235: =
... 143 more rows

Sheet Residential CH4
A1: ="2. Residential Consumption and CH4 emissions in "&Constants!G2 -> 2. Residential Consumption and CH4 emissions in Select a State . . .
A2: =Constants!H2 -> xx | B2: Residential | C2: =" " -> 
A3: Residential Sector CH4 | D3: 1990
B5: Consumption | D5: Emission Factor | F5: Emissions | H5: GWP | J5: Emissions | L5: Emissions
A6: Fuel Type | B6: (Billion Btu) | D6: (metric tons CH4 /BBtu) | F6: (metric tons CH4) | J6: (MMTCE) | L6: (MMTCO2E)
A7: Coal | B7: ='Residential N2O'!B7 ->  | C7: x | D7: =CoalCEFres -> 0 | E7: = | F7: =B7*D7 ->  | G7: x | H7: =GWPCH4 -> 25 | I7: = | J7: =F7*H7*CO2_C/(10^6) ->  | K7: = | L7: =J7/CO2_C -> 
A8: Distillate Fuel | B8: ='Residential N2O'!B8 ->  | C8: x | D8: =DistillCEFres -> 0 | E8: = | F8: =B8*D8 ->  | G8: x | H8: 25 | I8: = | K8: =
A9: Kerosene | B9: ='Residential N2O'!B9 ->  | C9: x | D9: =KeroCEFres -> 0 | E9: = | G9: x | H9: 25 | I9: = | K9: =
A10: Hydrocarbon Gas Liquids | B10: ='Residential N2O'!B10 ->  | C10: x | D10: =LPGCEFres -> 0 | E10: = | G10: x | H10: 25 | I10: = | K10: =
A11: Natural Gas | B11: ='Residential N2O'!B11 ->  | C11: x | D11: =NatGasCEFres -> 0 | E11: = | G11: x | H11: 25 | I11: = | K11: =
A12: Wood | B12: ='Residential N2O'!B12 ->  | C12: x | D12: =WoodCEFres -> 0 | E12: = | G12: x | H12: 25 | I12: = | K12: =
A13: Other | B13: ='Residential N2O'!B13 -> 0 | C13: x | D13: =OtherCEFres -> 0 | E13: = | F13: 0 | G13: x | H13: 25 | I13: = | J13: 0 | K13: = | L13: 0
H14: Total | I14: = | J14: =SUM(J7:J13) -> 
A16: Residential Sector CH4 | D16: =D3+1 -> 1991
B18: Consumption | D18: Emission Factor | F18: Emissions | H18: GWP | J18: Emissions | L18: Emissions
A19: Fuel Type | B19: (Billion Btu) | D19: (metric tons CH4 /BBtu) | F19: (metric tons CH4) | J19: (MMTCE) | L19: (MMTCO2E)
A20: Coal | B20: ='Residential N2O'!B20 ->  | C20: x | D20: =CoalCEFres -> 0 | E20: = | F20: =B20*D20 ->  | G20: x | H20: =GWPCH4 -> 25 | I20: = | J20: =F20*H20*CO2_C/(10^6) ->  | K20: = | L20: =J20/CO2_C -> 
A21: Distillate Fuel | B21: ='Residential N2O'!B21 ->  | C21: x | D21: =DistillCEFres -> 0 | E21: = | F21: =B21*D21 ->  | G21: x | H21: 25 | I21: = | K21: =
A22: Kerosene | B22: ='Residential N2O'!B22 ->  | C22: x | D22: =KeroCEFres -> 0 | E22: = | G22: x | H22: 25 | I22: = | K22: =
A23: Hydrocarbon Gas Liquids | B23: ='Residential N2O'!B23 ->  | C23: x | D23: =LPGCEFres -> 0 | E23: = | G23: x | H23: 25 | I23: = | K23: =
A24: Natural Gas | B24: ='Residential N2O'!B24 ->  | C24: x | D24: =NatGasCEFres -> 0 | E24: = | G24: x | H24: 25 | I24: = | K24: =
A25: Wood | B25: ='Residential N2O'!B25 ->  | C25: x | D25: =WoodCEFres -> 0 | E25: = | G25: x | H25: 25 | I25: = | K25: =
A26: Other | B26: ='Residential N2O'!B26 -> 0 | C26: x | D26: =OtherCEFres -> 0 | E26: = | F26: 0 | G26: x | H26: 25 | I26: = | J26: 0 | K26: = | L26: 0
H27: Total | I27: = | J27: =SUM(J20:J26) -> 
A29: Residential Sector CH4 | D29: =D16+1 -> 1992
B31: Consumption | D31: Emission Factor | F31: Emissions | H31: GWP | J31: Emissions | L31: Emissions
A32: Fuel Type | B32: (Billion Btu) | D32: (metric tons CH4 /BBtu) | F32: (metric tons CH4) | J32: (MMTCE) | L32: (MMTCO2E)
A33: Coal | B33: ='Residential N2O'!B33 ->  | C33: x | D33: =CoalCEFres -> 0 | E33: = | F33: =B33*D33 ->  | G33: x | H33: =GWPCH4 -> 25 | I33: = | J33: =F33*H33*CO2_C/(10^6) ->  | K33: = | L33: =J33/CO2_C -> 
A34: Distillate Fuel | B34: ='Residential N2O'!B34 ->  | C34: x | D34: =DistillCEFres -> 0 | E34: = | F34: =B34*D34 ->  | G34: x | H34: 25 | I34: = | K34: =
A35: Kerosene | B35: ='Residential N2O'!B35 ->  | C35: x | D35: =KeroCEFres -> 0 | E35: = | G35: x | H35: 25 | I35: = | K35: =
A36: Hydrocarbon Gas Liquids | B36: ='Residential N2O'!B36 ->  | C36: x | D36: =LPGCEFres -> 0 | E36: = | G36: x | H36: 25 | I36: = | K36: =
A37: Natural Gas | B37: ='Residential N2O'!B37 ->  | C37: x | D37: =NatGasCEFres -> 0 | E37: = | G37: x | H37: 25 | I37: = | K37: =
A38: Wood | B38: ='Residential N2O'!B38 ->  | C38: x | D38: =WoodCEFres -> 0 | E38: = | G38: x | H38: 25 | I38: = | K38: =
A39: Other | B39: ='Residential N2O'!B39 -> 0 | C39: x | D39: =OtherCEFres -> 0 | E39: = | F39: 0 | G39: x | H39: 25 | I39: = | J39: 0 | K39: = | L39: 0
H40: Total | I40: = | J40: =SUM(J33:J39) -> 
A42: Residential Sector CH4 | D42: =D29+1 -> 1993
B44: Consumption | D44: Emission Factor | F44: Emissions | H44: GWP | J44: Emissions | L44: Emissions
A45: Fuel Type | B45: (Billion Btu) | D45: (metric tons CH4 /BBtu) | F45: (metric tons CH4) | J45: (MMTCE) | L45: (MMTCO2E)
A46: Coal | B46: ='Residential N2O'!B46 ->  | C46: x | D46: =CoalCEFres -> 0 | E46: = | F46: =B46*D46 ->  | G46: x | H46: =GWPCH4 -> 25 | I46: = | J46: =F46*H46*CO2_C/(10^6) ->  | K46: = | L46: =J46/CO2_C -> 
A47: Distillate Fuel | B47: ='Residential N2O'!B47 ->  | C47: x | D47: =DistillCEFres -> 0 | E47: = | F47: =B47*D47 ->  | G47: x | H47: 25 | I47: = | K47: =
A48: Kerosene | B48: ='Residential N2O'!B48 ->  | C48: x | D48: =KeroCEFres -> 0 | E48: = | G48: x | H48: 25 | I48: = | K48: =
A49: Hydrocarbon Gas Liquids | B49: ='Residential N2O'!B49 ->  | C49: x | D49: =LPGCEFres -> 0 | E49: = | G49: x | H49: 25 | I49: = | K49: =
A50: Natural Gas | B50: ='Residential N2O'!B50 ->  | C50: x | D50: =NatGasCEFres -> 0 | E50: = | G50: x | H50: 25 | I50: = | K50: =
A51: Wood | B51: ='Residential N2O'!B51 ->  | C51: x | D51: =WoodCEFres -> 0 | E51: = | G51: x | H51: 25 | I51: = | K51: =
A52: Other | B52: ='Residential N2O'!B52 -> 0 | C52: x | D52: =OtherCEFres -> 0 | E52: = | F52: 0 | G52: x | H52: 25 | I52: = | J52: 0 | K52: = | L52: 0
H53: Total | I53: = | J53: =SUM(J46:J52) -> 
A55: Residential Sector CH4 | D55: =D42+1 -> 1994
B57: Consumption | D57: Emission Factor | F57: Emissions | H57: GWP | J57: Emissions | L57: Emissions
A58: Fuel Type | B58: (Billion Btu) | D58: (metric tons CH4 /BBtu) | F58: (metric tons CH4) | J58: (MMTCE) | L58: (MMTCO2E)
A59: Coal | B59: ='Residential N2O'!B59 ->  | C59: x | D59: =CoalCEFres -> 0 | E59: = | F59: =B59*D59 ->  | G59: x | H59: =GWPCH4 -> 25 | I59: = | J59: =F59*H59*CO2_C/(10^6) ->  | K59: = | L59: =J59/CO2_C -> 
A60: Distillate Fuel | B60: ='Residential N2O'!B60 ->  | C60: x | D60: =DistillCEFres -> 0 | E60: = | F60: =B60*D60 ->  | G60: x | H60: 25 | I60: = | K60: =
A61: Kerosene | B61: ='Residential N2O'!B61 ->  | C61: x | D61: =KeroCEFres -> 0 | E61: = | G61: x | H61: 25 | I61: = | K61: =
A62: Hydrocarbon Gas Liquids | B62: ='Residential N2O'!B62 ->  | C62: x | D62: =LPGCEFres -> 0 | E62: = | G62: x | H62: 25 | I62: = | K62: =
A63: Natural Gas | B63: ='Residential N2O'!B63 ->  | C63: x | D63: =NatGasCEFres -> 0 | E63: = | G63: x | H63: 25 | I63: = | K63: =
A64: Wood | B64: ='Residential N2O'!B64 ->  | C64: x | D64: =WoodCEFres -> 0 | E64: = | G64: x | H64: 25 | I64: = | K64: =
A65: Other | B65: ='Residential N2O'!B65 -> 0 | C65: x | D65: =OtherCEFres -> 0 | E65: = | F65: 0 | G65: x | H65: 25 | I65: = | J65: 0 | K65: = | L65: 0
H66: Total | I66: = | J66: =SUM(J59:J65) -> 
A68: Residential Sector CH4 | D68: =D55+1 -> 1995
B70: Consumption | D70: Emission Factor | F70: Emissions | H70: GWP | J70: Emissions | L70: Emissions
A71: Fuel Type | B71: (Billion Btu) | D71: (metric tons CH4 /BBtu) | F71: (metric tons CH4) | J71: (MMTCE) | L71: (MMTCO2E)
A72: Coal | B72: ='Residential N2O'!B72 ->  | C72: x | D72: =CoalCEFres -> 0 | E72: = | F72: =B72*D72 ->  | G72: x | H72: =GWPCH4 -> 25 | I72: = | J72: =F72*H72*CO2_C/(10^6) ->  | K72: = | L72: =J72/CO2_C -> 
A73: Distillate Fuel | B73: ='Residential N2O'!B73 ->  | C73: x | D73: =DistillCEFres -> 0 | E73: = | F73: =B73*D73 ->  | G73: x | H73: 25 | I73: = | K73: =
A74: Kerosene | B74: ='Residential N2O'!B74 ->  | C74: x | D74: =KeroCEFres -> 0 | E74: = | G74: x | H74: 25 | I74: = | K74: =
A75: Hydrocarbon Gas Liquids | B75: ='Residential N2O'!B75 ->  | C75: x | D75: =LPGCEFres -> 0 | E75: = | G75: x | H75: 25 | I75: = | K75: =
A76: Natural Gas | B76: ='Residential N2O'!B76 ->  | C76: x | D76: =NatGasCEFres -> 0 | E76: = | G76: x | H76: 25 | I76: = | K76: =
A77: Wood | B77: ='Residential N2O'!B77 ->  | C77: x | D77: =WoodCEFres -> 0 | E77: = | G77: x | H77: 25 | I77: = | K77: =
A78: Other | B78: ='Residential N2O'!B78 -> 0 | C78: x | D78: =OtherCEFres -> 0 | E78: = | F78: 0 | G78: x | H78: 25 | I78: = | J78: 0 | K78: = | L78: 0
H79: Total | I79: = | J79: =SUM(J72:J78) -> 
A81: Residential Sector CH4 | D81: =D68+1 -> 1996
B83: Consumption | D83: Emission Factor | F83: Emissions | H83: GWP | J83: Emissions | L83: Emissions
A84: Fuel Type | B84: (Billion Btu) | D84: (metric tons CH4 /BBtu) | F84: (metric tons CH4) | J84: (MMTCE) | L84: (MMTCO2E)
A85: Coal | B85: ='Residential N2O'!B85 ->  | C85: x | D85: =CoalCEFres -> 0 | E85: = | F85: =B85*D85 ->  | G85: x | H85: =GWPCH4 -> 25 | I85: = | J85: =F85*H85*CO2_C/(10^6) ->  | K85: = | L85: =J85/CO2_C -> 
A86: Distillate Fuel | B86: ='Residential N2O'!B86 ->  | C86: x | D86: =DistillCEFres -> 0 | E86: = | F86: =B86*D86 ->  | G86: x | H86: 25 | I86: = | K86: =
A87: Kerosene | B87: ='Residential N2O'!B87 ->  | C87: x | D87: =KeroCEFres -> 0 | E87: = | G87: x | H87: 25 | I87: = | K87: =
A88: Hydrocarbon Gas Liquids | B88: ='Residential N2O'!B88 ->  | C88: x | D88: =LPGCEFres -> 0 | E88: = | G88: x | H88: 25 | I88: = | K88: =
A89: Natural Gas | B89: ='Residential N2O'!B89 ->  | C89: x | D89: =NatGasCEFres -> 0 | E89: = | G89: x | H89: 25 | I89: = | K89: =
A90: Wood | B90: ='Residential N2O'!B90 ->  | C90: x | D90: =WoodCEFres -> 0 | E90: = | G90: x | H90: 25 | I90: = | K90: =
A91: Other | B91: ='Residential N2O'!B91 -> 0 | C91: x | D91: =OtherCEFres -> 0 | E91: = | F91: 0 | G91: x | H91: 25 | I91: = | J91: 0 | K91: = | L91: 0
H92: Total | I92: = | J92: =SUM(J85:J91) -> 
A94: Residential Sector CH4 | D94: =D81+1 -> 1997
B96: Consumption | D96: Emission Factor | F96: Emissions | H96: GWP | J96: Emissions | L96: Emissions
A97: Fuel Type | B97: (Billion Btu) | D97: (metric tons CH4 /BBtu) | F97: (metric tons CH4) | J97: (MMTCE) | L97: (MMTCO2E)
A98: Coal | B98: ='Residential N2O'!B98 ->  | C98: x | D98: =CoalCEFres -> 0 | E98: = | F98: =B98*D98 ->  | G98: x | H98: =GWPCH4 -> 25 | I98: = | J98: =F98*H98*CO2_C/(10^6) ->  | K98: = | L98: =J98/CO2_C -> 
A99: Distillate Fuel | B99: ='Residential N2O'!B99 ->  | C99: x | D99: =DistillCEFres -> 0 | E99: = | F99: =B99*D99 ->  | G99: x | H99: 25 | I99: = | K99: =
A100: Kerosene | B100: ='Residential N2O'!B100 ->  | C100: x | D100: =KeroCEFres -> 0 | E100: = | G100: x | H100: 25 | I100: = | K100: =
A101: Hydrocarbon Gas Liquids | B101: ='Residential N2O'!B101 ->  | C101: x | D101: =LPGCEFres -> 0 | E101: = | G101: x | H101: 25 | I101: = | K101: =
A102: Natural Gas | B102: ='Residential N2O'!B102 ->  | C102: x | D102: =NatGasCEFres -> 0 | E102: = | G102: x | H102: 25 | I102: = | K102: =
A103: Wood | B103: ='Residential N2O'!B103 ->  | C103: x | D103: =WoodCEFres -> 0 | E103: = | G103: x | H103: 25 | I103: = | K103: =
A104: Other | B104: ='Residential N2O'!B104 -> 0 | C104: x | D104: =OtherCEFres -> 0 | E104: = | F104: 0 | G104: x | H104: 25 | I104: = | J104: 0 | K104: = | L104: 0
H105: Total | I105: = | J105: =SUM(J98:J104) -> 
A107: Residential Sector CH4 | D107: =D94+1 -> 1998
B109: Consumption | D109: Emission Factor | F109: Emissions | H109: GWP | J109: Emissions | L109: Emissions
A110: Fuel Type | B110: (Billion Btu) | D110: (metric tons CH4 /BBtu) | F110: (metric tons CH4) | J110: (MMTCE) | L110: (MMTCO2E)
A111: Coal | B111: ='Residential N2O'!B111 ->  | C111: x | D111: =CoalCEFres -> 0 | E111: = | F111: =B111*D111 ->  | G111: x | H111: =GWPCH4 -> 25 | I111: = | J111: =F111*H111*CO2_C/(10^6) ->  | K111: = | L111: =J111/CO2_C -> 
A112: Distillate Fuel | B112: ='Residential N2O'!B112 ->  | C112: x | D112: =DistillCEFres -> 0 | E112: = | F112: =B112*D112 ->  | G112: x | H112: 25 | I112: = | K112: =
A113: Kerosene | B113: ='Residential N2O'!B113 ->  | C113: x | D113: =KeroCEFres -> 0 | E113: = | G113: x | H113: 25 | I113: = | K113: =
A114: Hydrocarbon Gas Liquids | B114: ='Residential N2O'!B114 ->  | C114: x | D114: =LPGCEFres -> 0 | E114: = | G114: x | H114: 25 | I114: = | K114: =
A115: Natural Gas | B115: ='Residential N2O'!B115 ->  | C115: x | D115: =NatGasCEFres -> 0 | E115: = | G115: x | H115: 25 | I115: = | K115: =
A116: Wood | B116: ='Residential N2O'!B116 ->  | C116: x | D116: =WoodCEFres -> 0 | E116: = | G116: x | H116: 25 | I116: = | K116: =
A117: Other | B117: ='Residential N2O'!B117 -> 0 | C117: x | D117: =OtherCEFres -> 0 | E117: = | F117: 0 | G117: x | H117: 25 | I117: = | J117: 0 | K117: = | L117: 0
H118: Total | I118: = | J118: =SUM(J111:J117) -> 
A120: Residential Sector CH4 | D120: =D107+1 -> 1999
B122: Consumption | D122: Emission Factor | F122: Emissions | H122: GWP | J122: Emissions | L122: Emissions
A123: Fuel Type | B123: (Billion Btu) | D123: (metric tons CH4 /BBtu) | F123: (metric tons CH4) | J123: (MMTCE) | L123: (MMTCO2E)
A124: Coal | B124: ='Residential N2O'!B124 ->  | C124: x | D124: =CoalCEFres -> 0 | E124: = | F124: =B124*D124 ->  | G124: x | H124: =GWPCH4 -> 25 | I124: = | J124: =F124*H124*CO2_C/(10^6) ->  | K124: = | L124: =J124/CO2_C -> 
A125: Distillate Fuel | B125: ='Residential N2O'!B125 ->  | C125: x | D125: =DistillCEFres -> 0 | E125: = | F125: =B125*D125 ->  | G125: x | H125: 25 | I125: = | K125: =
A126: Kerosene | B126: ='Residential N2O'!B126 ->  | C126: x | D126: =KeroCEFres -> 0 | E126: = | G126: x | H126: 25 | I126: = | K126: =
A127: Hydrocarbon Gas Liquids | B127: ='Residential N2O'!B127 ->  | C127: x | D127: =LPGCEFres -> 0 | E127: = | G127: x | H127: 25 | I127: = | K127: =
A128: Natural Gas | B128: ='Residential N2O'!B128 ->  | C128: x | D128: =NatGasCEFres -> 0 | E128: = | G128: x | H128: 25 | I128: = | K128: =
A129: Wood | B129: ='Residential N2O'!B129 ->  | C129: x | D129: =WoodCEFres -> 0 | E129: = | G129: x | H129: 25 | I129: = | K129: =
A130: Other | B130: ='Residential N2O'!B130 -> 0 | C130: x | D130: =OtherCEFres -> 0 | E130: = | F130: 0 | G130: x | H130: 25 | I130: = | J130: 0 | K130: = | L130: 0
H131: Total | I131: = | J131: =SUM(J124:J130) -> 
A133: Residential Sector CH4 | D133: =D120+1 -> 2000
B135: Consumption | D135: Emission Factor | F135: Emissions | H135: GWP | J135: Emissions | L135: Emissions
A136: Fuel Type | B136: (Billion Btu) | D136: (metric tons CH4 /BBtu) | F136: (metric tons CH4) | J136: (MMTCE) | L136: (MMTCO2E)
A137: Coal | B137: ='Residential N2O'!B137 ->  | C137: x | D137: =CoalCEFres -> 0 | E137: = | F137: =B137*D137 ->  | G137: x | H137: =GWPCH4 -> 25 | I137: = | J137: =F137*H137*CO2_C/(10^6) ->  | K137: = | L137: =J137/CO2_C -> 
A138: Distillate Fuel | B138: ='Residential N2O'!B138 ->  | C138: x | D138: =DistillCEFres -> 0 | E138: = | F138: =B138*D138 ->  | G138: x | H138: 25 | I138: = | K138: =
A139: Kerosene | B139: ='Residential N2O'!B139 ->  | C139: x | D139: =KeroCEFres -> 0 | E139: = | G139: x | H139: 25 | I139: = | K139: =
A140: Hydrocarbon Gas Liquids | B140: ='Residential N2O'!B140 ->  | C140: x | D140: =LPGCEFres -> 0 | E140: = | G140: x | H140: 25 | I140: = | K140: =
A141: Natural Gas | B141: ='Residential N2O'!B141 ->  | C141: x | D141: =NatGasCEFres -> 0 | E141: = | G141: x | H141: 25 | I141: = | K141: =
A142: Wood | B142: ='Residential N2O'!B142 ->  | C142: x | D142: =WoodCEFres -> 0 | E142: = | G142: x | H142: 25 | I142: = | K142: =
A143: Other | B143: ='Residential N2O'!B143 -> 0 | C143: x | D143: =OtherCEFres -> 0 | E143: = | F143: 0 | G143: x | H143: 25 | I143: = | J143: 0 | K143: = | L143: 0
H144: Total | I144: = | J144: =SUM(J137:J143) -> 
A146: Residential Sector CH4 | D146: =D133+1 -> 2001
B148: Consumption | D148: Emission Factor | F148: Emissions | H148: GWP | J148: Emissions | L148: Emissions
A149: Fuel Type | B149: (Billion Btu) | D149: (metric tons CH4 /BBtu) | F149: (metric tons CH4) | J149: (MMTCE) | L149: (MMTCO2E)
A150: Coal | B150: ='Residential N2O'!B150 ->  | C150: x | D150: =CoalCEFres -> 0 | E150: = | F150: =B150*D150 ->  | G150: x | H150: =GWPCH4 -> 25 | I150: = | J150: =F150*H150*CO2_C/(10^6) ->  | K150: = | L150: =J150/CO2_C -> 
A151: Distillate Fuel | B151: ='Residential N2O'!B151 ->  | C151: x | D151: =DistillCEFres -> 0 | E151: = | F151: =B151*D151 ->  | G151: x | H151: 25 | I151: = | K151: =
A152: Kerosene | B152: ='Residential N2O'!B152 ->  | C152: x | D152: =KeroCEFres -> 0 | E152: = | G152: x | H152: 25 | I152: = | K152: =
A153: Hydrocarbon Gas Liquids | B153: ='Residential N2O'!B153 ->  | C153: x | D153: =LPGCEFres -> 0 | E153: = | G153: x | H153: 25 | I153: = | K153: =
A154: Natural Gas | B154: ='Residential N2O'!B154 ->  | C154: x | D154: =NatGasCEFres -> 0 | E154: = | G154: x | H154: 25 | I154: = | K154: =
A155: Wood | B155: ='Residential N2O'!B155 ->  | C155: x | D155: =WoodCEFres -> 0 | E155: = | G155: x | H155: 25 | I155: = | K155: =
A156: Other | B156: ='Residential N2O'!B156 -> 0 | C156: x | D156: =OtherCEFres -> 0 | E156: = | F156: 0 | G156: x | H156: 25 | I156: = | J156: 0 | K156: = | L156: 0
H157: Total | I157: = | J157: =SUM(J150:J156) -> 
A159: Residential Sector CH4 | D159: =D146+1 -> 2002
B161: Consumption | D161: Emission Factor | F161: Emissions | H161: GWP | J161: Emissions | L161: Emissions
A162: Fuel Type | B162: (Billion Btu) | D162: (metric tons CH4 /BBtu) | F162: (metric tons CH4) | J162: (MMTCE) | L162: (MMTCO2E)
A163: Coal | B163: ='Residential N2O'!B163 ->  | C163: x | D163: =CoalCEFres -> 0 | E163: = | F163: =B163*D163 ->  | G163: x | H163: =GWPCH4 -> 25 | I163: = | J163: =F163*H163*CO2_C/(10^6) ->  | K163: = | L163: =J163/CO2_C -> 
A164: Distillate Fuel | B164: ='Residential N2O'!B164 ->  | C164: x | D164: =DistillCEFres -> 0 | E164: = | F164: =B164*D164 ->  | G164: x | H164: 25 | I164: = | K164: =
A165: Kerosene | B165: ='Residential N2O'!B165 ->  | C165: x | D165: =KeroCEFres -> 0 | E165: = | G165: x | H165: 25 | I165: = | K165: =
A166: Hydrocarbon Gas Liquids | B166: ='Residential N2O'!B166 ->  | C166: x | D166: =LPGCEFres -> 0 | E166: = | G166: x | H166: 25 | I166: = | K166: =
A167: Natural Gas | B167: ='Residential N2O'!B167 ->  | C167: x | D167: =NatGasCEFres -> 0 | E167: = | G167: x | H167: 25 | I167: = | K167: =
A168: Wood | B168: ='Residential N2O'!B168 ->  | C168: x | D168: =WoodCEFres -> 0 | E168: = | G168: x | H168: 25 | I168: = | K168: =
A169: Other | B169: ='Residential N2O'!B169 -> 0 | C169: x | D169: =OtherCEFres -> 0 | E169: = | F169: 0 | G169: x | H169: 25 | I169: = | J169: 0 | K169: = | L169: 0
H170: Total | I170: = | J170: =SUM(J163:J169) -> 
A172: Residential Sector CH4 | D172: =D159+1 -> 2003
B174: Consumption | D174: Emission Factor | F174: Emissions | H174: GWP | J174: Emissions | L174: Emissions
A175: Fuel Type | B175: (Billion Btu) | D175: (metric tons CH4 /BBtu) | F175: (metric tons CH4) | J175: (MMTCE) | L175: (MMTCO2E)
A176: Coal | B176: ='Residential N2O'!B176 ->  | C176: x | D176: =CoalCEFres -> 0 | E176: = | F176: =B176*D176 ->  | G176: x | H176: =GWPCH4 -> 25 | I176: = | J176: =F176*H176*CO2_C/(10^6) ->  | K176: = | L176: =J176/CO2_C -> 
A177: Distillate Fuel | B177: ='Residential N2O'!B177 ->  | C177: x | D177: =DistillCEFres -> 0 | E177: = | F177: =B177*D177 ->  | G177: x | H177: 25 | I177: = | K177: =
A178: Kerosene | B178: ='Residential N2O'!B178 ->  | C178: x | D178: =KeroCEFres -> 0 | E178: = | G178: x | H178: 25 | I178: = | K178: =
A179: Hydrocarbon Gas Liquids | B179: ='Residential N2O'!B179 ->  | C179: x | D179: =LPGCEFres -> 0 | E179: = | G179: x | H179: 25 | I179: = | K179: =
A180: Natural Gas | B180: ='Residential N2O'!B180 ->  | C180: x | D180: =NatGasCEFres -> 0 | E180: = | G180: x | H180: 25 | I180: = | K180: =
A181: Wood | B181: ='Residential N2O'!B181 ->  | C181: x | D181: =WoodCEFres -> 0 | E181: = | G181: x | H181: 25 | I181: = | K181: =
A182: Other | B182: ='Residential N2O'!B182 -> 0 | C182: x | D182: =OtherCEFres -> 0 | E182: = | F182: 0 | G182: x | H182: 25 | I182: = | J182: 0 | K182: = | L182: 0
H183: Total | I183: = | J183: =SUM(J176:J182) -> 
A185: Residential Sector CH4 | D185: =D172+1 -> 2004
B187: Consumption | D187: Emission Factor | F187: Emissions | H187: GWP | J187: Emissions | L187: Emissions
A188: Fuel Type | B188: (Billion Btu) | D188: (metric tons CH4 /BBtu) | F188: (metric tons CH4) | J188: (MMTCE) | L188: (MMTCO2E)
A189: Coal | B189: ='Residential N2O'!B189 ->  | C189: x | D189: =CoalCEFres -> 0 | E189: = | F189: =B189*D189 ->  | G189: x | H189: =GWPCH4 -> 25 | I189: = | J189: =F189*H189*CO2_C/(10^6) ->  | K189: = | L189: =J189/CO2_C -> 
A190: Distillate Fuel | B190: ='Residential N2O'!B190 ->  | C190: x | D190: =DistillCEFres -> 0 | E190: = | F190: =B190*D190 ->  | G190: x | H190: 25 | I190: = | K190: =
A191: Kerosene | B191: ='Residential N2O'!B191 ->  | C191: x | D191: =KeroCEFres -> 0 | E191: = | G191: x | H191: 25 | I191: = | K191: =
A192: Hydrocarbon Gas Liquids | B192: ='Residential N2O'!B192 ->  | C192: x | D192: =LPGCEFres -> 0 | E192: = | G192: x | H192: 25 | I192: = | K192: =
A193: Natural Gas | B193: ='Residential N2O'!B193 ->  | C193: x | D193: =NatGasCEFres -> 0 | E193: = | G193: x | H193: 25 | I193: = | K193: =
A194: Wood | B194: ='Residential N2O'!B194 ->  | C194: x | D194: =WoodCEFres -> 0 | E194: = | G194: x | H194: 25 | I194: = | K194: =
A195: Other | B195: ='Residential N2O'!B195 -> 0 | C195: x | D195: =OtherCEFres -> 0 | E195: = | F195: 0 | G195: x | H195: 25 | I195: = | J195: 0 | K195: = | L195: 0
H196: Total | I196: = | J196: =SUM(J189:J195) -> 
A198: Residential Sector CH4 | D198: =D185+1 -> 2005
B200: Consumption | D200: Emission Factor | F200: Emissions | H200: GWP | J200: Emissions | L200: Emissions
A201: Fuel Type | B201: (Billion Btu) | D201: (metric tons CH4 /BBtu) | F201: (metric tons CH4) | J201: (MMTCE) | L201: (MMTCO2E)
A202: Coal | B202: ='Residential N2O'!B202 ->  | C202: x | D202: =CoalCEFres -> 0 | E202: = | F202: =B202*D202 ->  | G202: x | H202: =GWPCH4 -> 25 | I202: = | J202: =F202*H202*CO2_C/(10^6) ->  | K202: = | L202: =J202/CO2_C -> 
A203: Distillate Fuel | B203: ='Residential N2O'!B203 ->  | C203: x | D203: =DistillCEFres -> 0 | E203: = | F203: =B203*D203 ->  | G203: x | H203: 25 | I203: = | K203: =
A204: Kerosene | B204: ='Residential N2O'!B204 ->  | C204: x | D204: =KeroCEFres -> 0 | E204: = | G204: x | H204: 25 | I204: = | K204: =
A205: Hydrocarbon Gas Liquids | B205: ='Residential N2O'!B205 ->  | C205: x | D205: =LPGCEFres -> 0 | E205: = | G205: x | H205: 25 | I205: = | K205: =
A206: Natural Gas | B206: ='Residential N2O'!B206 ->  | C206: x | D206: =NatGasCEFres -> 0 | E206: = | G206: x | H206: 25 | I206: = | K206: =
A207: Wood | B207: ='Residential N2O'!B207 ->  | C207: x | D207: =WoodCEFres -> 0 | E207: = | G207: x | H207: 25 | I207: = | K207: =
A208: Other | B208: ='Residential N2O'!B208 -> 0 | C208: x | D208: =OtherCEFres -> 0 | E208: = | F208: 0 | G208: x | H208: 25 | I208: = | J208: 0 | K208: = | L208: 0
H209: Total | I209: = | J209: =SUM(J202:J208) -> 
A211: Residential Sector CH4 | D211: =D198+1 -> 2006
B213: Consumption | D213: Emission Factor | F213: Emissions | H213: GWP | J213: Emissions | L213: Emissions
A214: Fuel Type | B214: (Billion Btu) | D214: (metric tons CH4 /BBtu) | F214: (metric tons CH4) | J214: (MMTCE) | L214: (MMTCO2E)
A215: Coal | B215: ='Residential N2O'!B215 ->  | C215: x | D215: =CoalCEFres -> 0 | E215: = | F215: =B215*D215 ->  | G215: x | H215: =GWPCH4 -> 25 | I215: = | J215: =F215*H215*CO2_C/(10^6) ->  | K215: = | L215: =J215/CO2_C -> 
A216: Distillate Fuel | B216: ='Residential N2O'!B216 ->  | C216: x | D216: =DistillCEFres -> 0 | E216: = | F216: =B216*D216 ->  | G216: x | H216: 25 | I216: = | K216: =
A217: Kerosene | B217: ='Residential N2O'!B217 ->  | C217: x | D217: =KeroCEFres -> 0 | E217: = | G217: x | H217: 25 | I217: = | K217: =
A218: Hydrocarbon Gas Liquids | B218: ='Residential N2O'!B218 ->  | C218: x | D218: =LPGCEFres -> 0 | E218: = | G218: x | H218: 25 | I218: = | K218: =
A219: Natural Gas | B219: ='Residential N2O'!B219 ->  | C219: x | D219: =NatGasCEFres -> 0 | E219: = | G219: x | H219: 25 | I219: = | K219: =
A220: Wood | B220: ='Residential N2O'!B220 ->  | C220: x | D220: =WoodCEFres -> 0 | E220: = | G220: x | H220: 25 | I220: = | K220: =
A221: Other | B221: ='Residential N2O'!B221 -> 0 | C221: x | D221: =OtherCEFres -> 0 | E221: = | F221: 0 | G221: x | H221: 25 | I221: = | J221: 0 | K221: = | L221: 0
H222: Total | I222: = | J222: =SUM(J215:J221) -> 
A224: Residential Sector CH4 | D224: =D211+1 -> 2007
B226: Consumption | D226: Emission Factor | F226: Emissions | H226: GWP | J226: Emissions | L226: Emissions
A227: Fuel Type | B227: (Billion Btu) | D227: (metric tons CH4 /BBtu) | F227: (metric tons CH4) | J227: (MMTCE) | L227: (MMTCO2E)
A228: Coal | B228: ='Residential N2O'!B228 ->  | C228: x | D228: =CoalCEFres -> 0 | E228: = | F228: =B228*D228 ->  | G228: x | H228: =GWPCH4 -> 25 | I228: = | J228: =F228*H228*CO2_C/(10^6) ->  | K228: = | L228: =J228/CO2_C -> 
A229: Distillate Fuel | B229: ='Residential N2O'!B229 ->  | C229: x | D229: =DistillCEFres -> 0 | E229: = | F229: =B229*D229 ->  | G229: x | H229: 25 | I229: = | K229: =
A230: Kerosene | B230: ='Residential N2O'!B230 ->  | C230: x | D230: =KeroCEFres -> 0 | E230: = | G230: x | H230: 25 | I230: = | K230: =
A231: Hydrocarbon Gas Liquids | B231: ='Residential N2O'!B231 ->  | C231: x | D231: =LPGCEFres -> 0 | E231: = | G231: x | H231: 25 | I231: = | K231: =
A232: Natural Gas | B232: ='Residential N2O'!B232 ->  | C232: x | D232: =NatGasCEFres -> 0 | E232: = | G232: x | H232: 25 | I232: = | K232: =
A233: Wood | B233: ='Residential N2O'!B233 ->  | C233: x | D233: =WoodCEFres -> 0 | E233: = | G233: x | H233: 25 | I233: = | K233: =
A234: Other | B234: ='Residential N2O'!B234 -> 0 | C234: x | D234: =OtherCEFres -> 0 | E234: = | F234: 0 | G234: x | H234: 25 | I234: = | J234: 0 | K234: = | L234: 0
H235: Total | I235: = | J235: =SUM(J228:J234) -> 
... 143 more rows

Sheet Commercial N2O
A1: ="3. Commercial Consumption and N2O emissions in "&Constants!G2 -> 3. Commercial Consumption and N2O emissions in Select a State . . .
A2: =Constants!H2 -> xx | B2: Commercial | C2: =" " -> 
A3: Commercial Sector N2O | D3: 1990
B5: Consumption | D5: Emission Factor | F5: Emissions | H5: GWP | J5: Emissions | L5: Emissions
A6: Fuel Type | B6: (Billion Btu) | D6: (metric tons N2O/BBtu) | F6: (metric tons N2O) | J6: (MMTCE) | L6: (MMTCO2E)
A7: Coal | B7: =VLOOKUP($A$2&$C$2&$B$2&$C$2&$A7,ConsumeBlock3,3,FALSE) ->  | C7: x | D7: =CoalNEFcom -> 0 | E7: = | F7: =B7*D7 ->  | G7: x | H7: =GWPN2O -> 298 | I7: = | J7: =F7*H7*CO2_C/(10^6) ->  | K7: = | L7: =J7/CO2_C -> 
A8: Distillate Fuel | C8: x | D8: =DistillNEFcom -> 0 | E8: = | F8: =B8*D8 ->  | G8: x | H8: =GWPN2O -> 298 | I8: = | J8: =F8*H8*CO2_C/(10^6) ->  | K8: =
A9: Kerosene | C9: x | D9: =KeroNEFcom -> 0 | E9: = | G9: x | H9: 298 | I9: = | K9: =
A10: Hydrocarbon Gas Liquids | C10: x | D10: =LPGNEFcom -> 0 | E10: = | G10: x | H10: 298 | I10: = | K10: =
A11: Motor Gasoline | C11: x | D11: =MotorGasNEFcom -> 0 | E11: = | G11: x | H11: 298 | I11: = | K11: =
A12: Residual Fuel | C12: x | D12: =ResidNEFcom -> 0 | E12: = | G12: x | H12: 298 | I12: = | K12: =
A13: Natural Gas | C13: x | D13: =NatGasNEFcom -> 0 | E13: = | G13: x | H13: 298 | I13: = | K13: =
A14: Wood | C14: x | D14: =WoodNEFcom -> 0 | E14: = | G14: x | H14: 298 | I14: = | K14: =
A15: Other | B15: =VLOOKUP($A$2&$C$2&$B$2&$C$2&$A15,ConsumeBlock3,D3-1987,FALSE) -> 0 | C15: x | D15: =OtherNEFcom -> 0 | E15: = | F15: 0 | G15: x | H15: 298 | I15: = | J15: 0 | K15: = | L15: 0
H16: Total | I16: = | J16: =SUM(J7:J15) ->  | K16: =
A18: Commercial Sector N2O | D18: =D3+1 -> 1991
B20: Consumption | D20: Emission Factor | F20: Emissions | H20: GWP | J20: Emissions | L20: Emissions
A21: Fuel Type | B21: (Billion Btu) | D21: (metric tons N2O/BBtu) | F21: (metric tons N2O) | J21: (MMTCE) | L21: (MMTCO2E)
A22: Coal | B22: =VLOOKUP($A$2&$C$2&$B$2&$C$2&$A22,ConsumeBlock3,4,FALSE) ->  | C22: x | D22: =CoalNEFcom -> 0 | E22: = | F22: =B22*D22 ->  | G22: x | H22: =GWPN2O -> 298 | I22: = | J22: =F22*H22*CO2_C/(10^6) ->  | K22: = | L22: =J22/CO2_C -> 
A23: Distillate Fuel | C23: x | D23: =DistillNEFcom -> 0 | E23: = | F23: =B23*D23 ->  | G23: x | H23: =GWPN2O -> 298 | I23: = | J23: =F23*H23*CO2_C/(10^6) ->  | K23: =
A24: Kerosene | C24: x | D24: =KeroNEFcom -> 0 | E24: = | G24: x | H24: 298 | I24: = | K24: =
A25: Hydrocarbon Gas Liquids | C25: x | D25: =LPGNEFcom -> 0 | E25: = | G25: x | H25: 298 | I25: = | K25: =
A26: Motor Gasoline | C26: x | D26: =MotorGasNEFcom -> 0 | E26: = | G26: x | H26: 298 | I26: = | K26: =
A27: Residual Fuel | C27: x | D27: =ResidNEFcom -> 0 | E27: = | G27: x | H27: 298 | I27: = | K27: =
A28: Natural Gas | C28: x | D28: =NatGasNEFcom -> 0 | E28: = | G28: x | H28: 298 | I28: = | K28: =
A29: Wood | C29: x | D29: =WoodNEFcom -> 0 | E29: = | G29: x | H29: 298 | I29: = | K29: =
A30: Other | B30: =VLOOKUP($A$2&$C$2&$B$2&$C$2&$A30,ConsumeBlock3,D18-1987,FALSE) -> 0 | C30: x | D30: =OtherNEFcom -> 0 | E30: = | F30: 0 | G30: x | H30: 298 | I30: = | J30: 0 | K30: = | L30: 0
H31: Total | I31: = | J31: =SUM(J22:J30) ->  | K31: =
A33: Commercial Sector N2O | D33: =D18+1 -> 1992
B35: Consumption | D35: Emission Factor | F35: Emissions | H35: GWP | J35: Emissions | L35: Emissions
A36: Fuel Type | B36: (Billion Btu) | D36: (metric tons N2O/BBtu) | F36: (metric tons N2O) | J36: (MMTCE) | L36: (MMTCO2E)
A37: Coal | B37: =VLOOKUP($A$2&$C$2&$B$2&$C$2&$A37,ConsumeBlock3,5,FALSE) ->  | C37: x | D37: =CoalNEFcom -> 0 | E37: = | F37: =B37*D37 ->  | G37: x | H37: =GWPN2O -> 298 | I37: = | J37: =F37*H37*CO2_C/(10^6) ->  | K37: = | L37: =J37/CO2_C -> 
A38: Distillate Fuel | C38: x | D38: =DistillNEFcom -> 0 | E38: = | F38: =B38*D38 ->  | G38: x | H38: =GWPN2O -> 298 | I38: = | J38: =F38*H38*CO2_C/(10^6) ->  | K38: =
A39: Kerosene | C39: x | D39: =KeroNEFcom -> 0 | E39: = | G39: x | H39: 298 | I39: = | K39: =
A40: Hydrocarbon Gas Liquids | C40: x | D40: =LPGNEFcom -> 0 | E40: = | G40: x | H40: 298 | I40: = | K40: =
A41: Motor Gasoline | C41: x | D41: =MotorGasNEFcom -> 0 | E41: = | G41: x | H41: 298 | I41: = | K41: =
A42: Residual Fuel | C42: x | D42: =ResidNEFcom -> 0 | E42: = | G42: x | H42: 298 | I42: = | K42: =
A43: Natural Gas | C43: x | D43: =NatGasNEFcom -> 0 | E43: = | G43: x | H43: 298 | I43: = | K43: =
A44: Wood | C44: x | D44: =WoodNEFcom -> 0 | E44: = | G44: x | H44: 298 | I44: = | K44: =
A45: Other | B45: =VLOOKUP($A$2&$C$2&$B$2&$C$2&$A45,ConsumeBlock3,D33-1987,FALSE) -> 0 | C45: x | D45: =OtherNEFcom -> 0 | E45: = | F45: 0 | G45: x | H45: 298 | I45: = | J45: 0 | K45: = | L45: 0
H46: Total | I46: = | J46: =SUM(J37:J45) ->  | K46: =
A48: Commercial Sector N2O | D48: =D33+1 -> 1993
B50: Consumption | D50: Emission Factor | F50: Emissions | H50: GWP | J50: Emissions | L50: Emissions
A51: Fuel Type | B51: (Billion Btu) | D51: (metric tons N2O/BBtu) | F51: (metric tons N2O) | J51: (MMTCE) | L51: (MMTCO2E)
A52: Coal | B52: =VLOOKUP($A$2&$C$2&$B$2&$C$2&$A52,ConsumeBlock3,6,FALSE) ->  | C52: x | D52: =CoalNEFcom -> 0 | E52: = | F52: =B52*D52 ->  | G52: x | H52: =GWPN2O -> 298 | I52: = | J52: =F52*H52*CO2_C/(10^6) ->  | K52: = | L52: =J52/CO2_C -> 
A53: Distillate Fuel | C53: x | D53: =DistillNEFcom -> 0 | E53: = | F53: =B53*D53 ->  | G53: x | H53: =GWPN2O -> 298 | I53: = | J53: =F53*H53*CO2_C/(10^6) ->  | K53: =
A54: Kerosene | C54: x | D54: =KeroNEFcom -> 0 | E54: = | G54: x | H54: 298 | I54: = | K54: =
A55: Hydrocarbon Gas Liquids | C55: x | D55: =LPGNEFcom -> 0 | E55: = | G55: x | H55: 298 | I55: = | K55: =
A56: Motor Gasoline | C56: x | D56: =MotorGasNEFcom -> 0 | E56: = | G56: x | H56: 298 | I56: = | K56: =
A57: Residual Fuel | C57: x | D57: =ResidNEFcom -> 0 | E57: = | G57: x | H57: 298 | I57: = | K57: =
A58: Natural Gas | C58: x | D58: =NatGasNEFcom -> 0 | E58: = | G58: x | H58: 298 | I58: = | K58: =
A59: Wood | C59: x | D59: =WoodNEFcom -> 0 | E59: = | G59: x | H59: 298 | I59: = | K59: =
A60: Other | B60: =VLOOKUP($A$2&$C$2&$B$2&$C$2&$A60,ConsumeBlock3,D48-1987,FALSE) -> 0 | C60: x | D60: =OtherNEFcom -> 0 | E60: = | F60: 0 | G60: x | H60: 298 | I60: = | J60: 0 | K60: = | L60: 0
H61: Total | I61: = | J61: =SUM(J52:J60) ->  | K61: =
A63: Commercial Sector N2O | D63: =D48+1 -> 1994
B65: Consumption | D65: Emission Factor | F65: Emissions | H65: GWP | J65: Emissions | L65: Emissions
A66: Fuel Type | B66: (Billion Btu) | D66: (metric tons N2O/BBtu) | F66: (metric tons N2O) | J66: (MMTCE) | L66: (MMTCO2E)
A67: Coal | B67: =VLOOKUP($A$2&$C$2&$B$2&$C$2&$A67,ConsumeBlock3,7,FALSE) ->  | C67: x | D67: =CoalNEFcom -> 0 | E67: = | F67: =B67*D67 ->  | G67: x | H67: =GWPN2O -> 298 | I67: = | J67: =F67*H67*CO2_C/(10^6) ->  | K67: = | L67: =J67/CO2_C -> 
A68: Distillate Fuel | C68: x | D68: =DistillNEFcom -> 0 | E68: = | F68: =B68*D68 ->  | G68: x | H68: =GWPN2O -> 298 | I68: = | J68: =F68*H68*CO2_C/(10^6) ->  | K68: =
A69: Kerosene | C69: x | D69: =KeroNEFcom -> 0 | E69: = | G69: x | H69: 298 | I69: = | K69: =
A70: Hydrocarbon Gas Liquids | C70: x | D70: =LPGNEFcom -> 0 | E70: = | G70: x | H70: 298 | I70: = | K70: =
A71: Motor Gasoline | C71: x | D71: =MotorGasNEFcom -> 0 | E71: = | G71: x | H71: 298 | I71: = | K71: =
A72: Residual Fuel | C72: x | D72: =ResidNEFcom -> 0 | E72: = | G72: x | H72: 298 | I72: = | K72: =
A73: Natural Gas | C73: x | D73: =NatGasNEFcom -> 0 | E73: = | G73: x | H73: 298 | I73: = | K73: =
A74: Wood | C74: x | D74: =WoodNEFcom -> 0 | E74: = | G74: x | H74: 298 | I74: = | K74: =
A75: Other | B75: =VLOOKUP($A$2&$C$2&$B$2&$C$2&$A75,ConsumeBlock3,D63-1987,FALSE) -> 0 | C75: x | D75: =OtherNEFcom -> 0 | E75: = | F75: 0 | G75: x | H75: 298 | I75: = | J75: 0 | K75: = | L75: 0
H76: Total | I76: = | J76: =SUM(J67:J75) ->  | K76: =
A78: Commercial Sector N2O | D78: =D63+1 -> 1995
B80: Consumption | D80: Emission Factor | F80: Emissions | H80: GWP | J80: Emissions | L80: Emissions
A81: Fuel Type | B81: (Billion Btu) | D81: (metric tons N2O/BBtu) | F81: (metric tons N2O) | J81: (MMTCE) | L81: (MMTCO2E)
A82: Coal | B82: =VLOOKUP($A$2&$C$2&$B$2&$C$2&$A82,ConsumeBlock3,8,FALSE) ->  | C82: x | D82: =CoalNEFcom -> 0 | E82: = | F82: =B82*D82 ->  | G82: x | H82: =GWPN2O -> 298 | I82: = | J82: =F82*H82*CO2_C/(10^6) ->  | K82: = | L82: =J82/CO2_C -> 
A83: Distillate Fuel | C83: x | D83: =DistillNEFcom -> 0 | E83: = | F83: =B83*D83 ->  | G83: x | H83: =GWPN2O -> 298 | I83: = | J83: =F83*H83*CO2_C/(10^6) ->  | K83: =
A84: Kerosene | C84: x | D84: =KeroNEFcom -> 0 | E84: = | G84: x | H84: 298 | I84: = | K84: =
A85: Hydrocarbon Gas Liquids | C85: x | D85: =LPGNEFcom -> 0 | E85: = | G85: x | H85: 298 | I85: = | K85: =
A86: Motor Gasoline | C86: x | D86: =MotorGasNEFcom -> 0 | E86: = | G86: x | H86: 298 | I86: = | K86: =
A87: Residual Fuel | C87: x | D87: =ResidNEFcom -> 0 | E87: = | G87: x | H87: 298 | I87: = | K87: =
A88: Natural Gas | C88: x | D88: =NatGasNEFcom -> 0 | E88: = | G88: x | H88: 298 | I88: = | K88: =
A89: Wood | C89: x | D89: =WoodNEFcom -> 0 | E89: = | G89: x | H89: 298 | I89: = | K89: =
A90: Other | B90: =VLOOKUP($A$2&$C$2&$B$2&$C$2&$A90,ConsumeBlock3,D78-1987,FALSE) -> 0 | C90: x | D90: =OtherNEFcom -> 0 | E90: = | F90: 0 | G90: x | H90: 298 | I90: = | J90: 0 | K90: = | L90: 0
H91: Total | I91: = | J91: =SUM(J82:J90) ->  | K91: =
A93: Commercial Sector N2O | D93: =D78+1 -> 1996
B95: Consumption | D95: Emission Factor | F95: Emissions | H95: GWP | J95: Emissions | L95: Emissions
A96: Fuel Type | B96: (Billion Btu) | D96: (metric tons N2O/BBtu) | F96: (metric tons N2O) | J96: (MMTCE) | L96: (MMTCO2E)
A97: Coal | B97: =VLOOKUP($A$2&$C$2&$B$2&$C$2&$A97,ConsumeBlock3,9,FALSE) ->  | C97: x | D97: =CoalNEFcom -> 0 | E97: = | F97: =B97*D97 ->  | G97: x | H97: =GWPN2O -> 298 | I97: = | J97: =F97*H97*CO2_C/(10^6) ->  | K97: = | L97: =J97/CO2_C -> 
A98: Distillate Fuel | C98: x | D98: =DistillNEFcom -> 0 | E98: = | F98: =B98*D98 ->  | G98: x | H98: =GWPN2O -> 298 | I98: = | J98: =F98*H98*CO2_C/(10^6) ->  | K98: =
A99: Kerosene | C99: x | D99: =KeroNEFcom -> 0 | E99: = | G99: x | H99: 298 | I99: = | K99: =
A100: Hydrocarbon Gas Liquids | C100: x | D100: =LPGNEFcom -> 0 | E100: = | G100: x | H100: 298 | I100: = | K100: =
A101: Motor Gasoline | C101: x | D101: =MotorGasNEFcom -> 0 | E101: = | G101: x | H101: 298 | I101: = | K101: =
A102: Residual Fuel | C102: x | D102: =ResidNEFcom -> 0 | E102: = | G102: x | H102: 298 | I102: = | K102: =
A103: Natural Gas | C103: x | D103: =NatGasNEFcom -> 0 | E103: = | G103: x | H103: 298 | I103: = | K103: =
A104: Wood | C104: x | D104: =WoodNEFcom -> 0 | E104: = | G104: x | H104: 298 | I104: = | K104: =
A105: Other | B105: =VLOOKUP($A$2&$C$2&$B$2&$C$2&$A105,ConsumeBlock3,D93-1987,FALSE) -> 0 | C105: x | D105: =OtherNEFcom -> 0 | E105: = | F105: 0 | G105: x | H105: 298 | I105: = | J105: 0 | K105: = | L105: 0
H106: Total | I106: = | J106: =SUM(J97:J105) ->  | K106: =
A108: Commercial Sector N2O | D108: =D93+1 -> 1997
B110: Consumption | D110: Emission Factor | F110: Emissions | H110: GWP | J110: Emissions | L110: Emissions
A111: Fuel Type | B111: (Billion Btu) | D111: (metric tons N2O/BBtu) | F111: (metric tons N2O) | J111: (MMTCE) | L111: (MMTCO2E)
A112: Coal | B112: =VLOOKUP($A$2&$C$2&$B$2&$C$2&$A112,ConsumeBlock3,10,FALSE) ->  | C112: x | D112: =CoalNEFcom -> 0 | E112: = | F112: =B112*D112 ->  | G112: x | H112: =GWPN2O -> 298 | I112: = | J112: =F112*H112*CO2_C/(10^6) ->  | K112: = | L112: =J112/CO2_C -> 
A113: Distillate Fuel | C113: x | D113: =DistillNEFcom -> 0 | E113: = | F113: =B113*D113 ->  | G113: x | H113: =GWPN2O -> 298 | I113: = | J113: =F113*H113*CO2_C/(10^6) ->  | K113: =
A114: Kerosene | C114: x | D114: =KeroNEFcom -> 0 | E114: = | G114: x | H114: 298 | I114: = | K114: =
A115: Hydrocarbon Gas Liquids | C115: x | D115: =LPGNEFcom -> 0 | E115: = | G115: x | H115: 298 | I115: = | K115: =
A116: Motor Gasoline | C116: x | D116: =MotorGasNEFcom -> 0 | E116: = | G116: x | H116: 298 | I116: = | K116: =
A117: Residual Fuel | C117: x | D117: =ResidNEFcom -> 0 | E117: = | G117: x | H117: 298 | I117: = | K117: =
A118: Natural Gas | C118: x | D118: =NatGasNEFcom -> 0 | E118: = | G118: x | H118: 298 | I118: = | K118: =
A119: Wood | C119: x | D119: =WoodNEFcom -> 0 | E119: = | G119: x | H119: 298 | I119: = | K119: =
A120: Other | B120: =VLOOKUP($A$2&$C$2&$B$2&$C$2&$A120,ConsumeBlock3,D108-1987,FALSE) -> 0 | C120: x | D120: =OtherNEFcom -> 0 | E120: = | F120: 0 | G120: x | H120: 298 | I120: = | J120: 0 | K120: = | L120: 0
H121: Total | I121: = | J121: =SUM(J112:J120) ->  | K121: =
A123: Commercial Sector N2O | D123: =D108+1 -> 1998
B125: Consumption | D125: Emission Factor | F125: Emissions | H125: GWP | J125: Emissions | L125: Emissions
A126: Fuel Type | B126: (Billion Btu) | D126: (metric tons N2O/BBtu) | F126: (metric tons N2O) | J126: (MMTCE) | L126: (MMTCO2E)
A127: Coal | B127: =VLOOKUP($A$2&$C$2&$B$2&$C$2&$A127,ConsumeBlock3,11,FALSE) ->  | C127: x | D127: =CoalNEFcom -> 0 | E127: = | F127: =B127*D127 ->  | G127: x | H127: =GWPN2O -> 298 | I127: = | J127: =F127*H127*CO2_C/(10^6) ->  | K127: = | L127: =J127/CO2_C -> 
A128: Distillate Fuel | C128: x | D128: =DistillNEFcom -> 0 | E128: = | F128: =B128*D128 ->  | G128: x | H128: =GWPN2O -> 298 | I128: = | J128: =F128*H128*CO2_C/(10^6) ->  | K128: =
A129: Kerosene | C129: x | D129: =KeroNEFcom -> 0 | E129: = | G129: x | H129: 298 | I129: = | K129: =
A130: Hydrocarbon Gas Liquids | C130: x | D130: =LPGNEFcom -> 0 | E130: = | G130: x | H130: 298 | I130: = | K130: =
A131: Motor Gasoline | C131: x | D131: =MotorGasNEFcom -> 0 | E131: = | G131: x | H131: 298 | I131: = | K131: =
A132: Residual Fuel | C132: x | D132: =ResidNEFcom -> 0 | E132: = | G132: x | H132: 298 | I132: = | K132: =
A133: Natural Gas | C133: x | D133: =NatGasNEFcom -> 0 | E133: = | G133: x | H133: 298 | I133: = | K133: =
A134: Wood | C134: x | D134: =WoodNEFcom -> 0 | E134: = | G134: x | H134: 298 | I134: = | K134: =
A135: Other | B135: =VLOOKUP($A$2&$C$2&$B$2&$C$2&$A135,ConsumeBlock3,D123-1987,FALSE) -> 0 | C135: x | D135: =OtherNEFcom -> 0 | E135: = | F135: 0 | G135: x | H135: 298 | I135: = | J135: 0 | K135: = | L135: 0
H136: Total | I136: = | J136: =SUM(J127:J135) ->  | K136: =
A138: Commercial Sector N2O | D138: =D123+1 -> 1999
B140: Consumption | D140: Emission Factor | F140: Emissions | H140: GWP | J140: Emissions | L140: Emissions
A141: Fuel Type | B141: (Billion Btu) | D141: (metric tons N2O/BBtu) | F141: (metric tons N2O) | J141: (MMTCE) | L141: (MMTCO2E)
A142: Coal | B142: =VLOOKUP($A$2&$C$2&$B$2&$C$2&$A142,ConsumeBlock3,12,FALSE) ->  | C142: x | D142: =CoalNEFcom -> 0 | E142: = | F142: =B142*D142 ->  | G142: x | H142: =GWPN2O -> 298 | I142: = | J142: =F142*H142*CO2_C/(10^6) ->  | K142: = | L142: =J142/CO2_C -> 
A143: Distillate Fuel | C143: x | D143: =DistillNEFcom -> 0 | E143: = | F143: =B143*D143 ->  | G143: x | H143: =GWPN2O -> 298 | I143: = | J143: =F143*H143*CO2_C/(10^6) ->  | K143: =
A144: Kerosene | C144: x | D144: =KeroNEFcom -> 0 | E144: = | G144: x | H144: 298 | I144: = | K144: =
A145: Hydrocarbon Gas Liquids | C145: x | D145: =LPGNEFcom -> 0 | E145: = | G145: x | H145: 298 | I145: = | K145: =
A146: Motor Gasoline | C146: x | D146: =MotorGasNEFcom -> 0 | E146: = | G146: x | H146: 298 | I146: = | K146: =
A147: Residual Fuel | C147: x | D147: =ResidNEFcom -> 0 | E147: = | G147: x | H147: 298 | I147: = | K147: =
A148: Natural Gas | C148: x | D148: =NatGasNEFcom -> 0 | E148: = | G148: x | H148: 298 | I148: = | K148: =
A149: Wood | C149: x | D149: =WoodNEFcom -> 0 | E149: = | G149: x | H149: 298 | I149: = | K149: =
A150: Other | B150: =VLOOKUP($A$2&$C$2&$B$2&$C$2&$A150,ConsumeBlock3,D138-1987,FALSE) -> 0 | C150: x | D150: =OtherNEFcom -> 0 | E150: = | F150: 0 | G150: x | H150: 298 | I150: = | J150: 0 | K150: = | L150: 0
H151: Total | I151: = | J151: =SUM(J142:J150) ->  | K151: =
A153: Commercial Sector N2O | D153: =D138+1 -> 2000
B155: Consumption | D155: Emission Factor | F155: Emissions | H155: GWP | J155: Emissions | L155: Emissions
A156: Fuel Type | B156: (Billion Btu) | D156: (metric tons N2O/BBtu) | F156: (metric tons N2O) | J156: (MMTCE) | L156: (MMTCO2E)
A157: Coal | B157: =VLOOKUP($A$2&$C$2&$B$2&$C$2&$A157,ConsumeBlock3,13,FALSE) ->  | C157: x | D157: =CoalNEFcom -> 0 | E157: = | F157: =B157*D157 ->  | G157: x | H157: =GWPN2O -> 298 | I157: = | J157: =F157*H157*CO2_C/(10^6) ->  | K157: = | L157: =J157/CO2_C -> 
A158: Distillate Fuel | C158: x | D158: =DistillNEFcom -> 0 | E158: = | F158: =B158*D158 ->  | G158: x | H158: =GWPN2O -> 298 | I158: = | J158: =F158*H158*CO2_C/(10^6) ->  | K158: =
A159: Kerosene | C159: x | D159: =KeroNEFcom -> 0 | E159: = | G159: x | H159: 298 | I159: = | K159: =
A160: Hydrocarbon Gas Liquids | C160: x | D160: =LPGNEFcom -> 0 | E160: = | G160: x | H160: 298 | I160: = | K160: =
A161: Motor Gasoline | C161: x | D161: =MotorGasNEFcom -> 0 | E161: = | G161: x | H161: 298 | I161: = | K161: =
A162: Residual Fuel | C162: x | D162: =ResidNEFcom -> 0 | E162: = | G162: x | H162: 298 | I162: = | K162: =
A163: Natural Gas | C163: x | D163: =NatGasNEFcom -> 0 | E163: = | G163: x | H163: 298 | I163: = | K163: =
A164: Wood | C164: x | D164: =WoodNEFcom -> 0 | E164: = | G164: x | H164: 298 | I164: = | K164: =
A165: Other | B165: =VLOOKUP($A$2&$C$2&$B$2&$C$2&$A165,ConsumeBlock3,D153-1987,FALSE) -> 0 | C165: x | D165: =OtherNEFcom -> 0 | E165: = | F165: 0 | G165: x | H165: 298 | I165: = | J165: 0 | K165: = | L165: 0
H166: Total | I166: = | J166: =SUM(J157:J165) ->  | K166: =
A168: Commercial Sector N2O | D168: =D153+1 -> 2001
B170: Consumption | D170: Emission Factor | F170: Emissions | H170: GWP | J170: Emissions | L170: Emissions
A171: Fuel Type | B171: (Billion Btu) | D171: (metric tons N2O/BBtu) | F171: (metric tons N2O) | J171: (MMTCE) | L171: (MMTCO2E)
A172: Coal | B172: =VLOOKUP($A$2&$C$2&$B$2&$C$2&$A172,ConsumeBlock3,14,FALSE) ->  | C172: x | D172: =CoalNEFcom -> 0 | E172: = | F172: =B172*D172 ->  | G172: x | H172: =GWPN2O -> 298 | I172: = | J172: =F172*H172*CO2_C/(10^6) ->  | K172: = | L172: =J172/CO2_C -> 
A173: Distillate Fuel | C173: x | D173: =DistillNEFcom -> 0 | E173: = | F173: =B173*D173 ->  | G173: x | H173: =GWPN2O -> 298 | I173: = | J173: =F173*H173*CO2_C/(10^6) ->  | K173: =
A174: Kerosene | C174: x | D174: =KeroNEFcom -> 0 | E174: = | G174: x | H174: 298 | I174: = | K174: =
A175: Hydrocarbon Gas Liquids | C175: x | D175: =LPGNEFcom -> 0 | E175: = | G175: x | H175: 298 | I175: = | K175: =
A176: Motor Gasoline | C176: x | D176: =MotorGasNEFcom -> 0 | E176: = | G176: x | H176: 298 | I176: = | K176: =
A177: Residual Fuel | C177: x | D177: =ResidNEFcom -> 0 | E177: = | G177: x | H177: 298 | I177: = | K177: =
A178: Natural Gas | C178: x | D178: =NatGasNEFcom -> 0 | E178: = | G178: x | H178: 298 | I178: = | K178: =
A179: Wood | C179: x | D179: =WoodNEFcom -> 0 | E179: = | G179: x | H179: 298 | I179: = | K179: =
A180: Other | B180: =VLOOKUP($A$2&$C$2&$B$2&$C$2&$A180,ConsumeBlock3,D168-1987,FALSE) -> 0 | C180: x | D180: =OtherNEFcom -> 0 | E180: = | F180: 0 | G180: x | H180: 298 | I180: = | J180: 0 | K180: = | L180: 0
H181: Total | I181: = | J181: =SUM(J172:J180) ->  | K181: =
A183: Commercial Sector N2O | D183: =D168+1 -> 2002
B185: Consumption | D185: Emission Factor | F185: Emissions | H185: GWP | J185: Emissions | L185: Emissions
A186: Fuel Type | B186: (Billion Btu) | D186: (metric tons N2O/BBtu) | F186: (metric tons N2O) | J186: (MMTCE) | L186: (MMTCO2E)
A187: Coal | B187: =VLOOKUP($A$2&$C$2&$B$2&$C$2&$A187,ConsumeBlock3,15,FALSE) ->  | C187: x | D187: =CoalNEFcom -> 0 | E187: = | F187: =B187*D187 ->  | G187: x | H187: =GWPN2O -> 298 | I187: = | J187: =F187*H187*CO2_C/(10^6) ->  | K187: = | L187: =J187/CO2_C -> 
A188: Distillate Fuel | C188: x | D188: =DistillNEFcom -> 0 | E188: = | F188: =B188*D188 ->  | G188: x | H188: =GWPN2O -> 298 | I188: = | J188: =F188*H188*CO2_C/(10^6) ->  | K188: =
A189: Kerosene | C189: x | D189: =KeroNEFcom -> 0 | E189: = | G189: x | H189: 298 | I189: = | K189: =
A190: Hydrocarbon Gas Liquids | C190: x | D190: =LPGNEFcom -> 0 | E190: = | G190: x | H190: 298 | I190: = | K190: =
A191: Motor Gasoline | C191: x | D191: =MotorGasNEFcom -> 0 | E191: = | G191: x | H191: 298 | I191: = | K191: =
A192: Residual Fuel | C192: x | D192: =ResidNEFcom -> 0 | E192: = | G192: x | H192: 298 | I192: = | K192: =
A193: Natural Gas | C193: x | D193: =NatGasNEFcom -> 0 | E193: = | G193: x | H193: 298 | I193: = | K193: =
A194: Wood | C194: x | D194: =WoodNEFcom -> 0 | E194: = | G194: x | H194: 298 | I194: = | K194: =
A195: Other | B195: =VLOOKUP($A$2&$C$2&$B$2&$C$2&$A195,ConsumeBlock3,D183-1987,FALSE) -> 0 | C195: x | D195: =OtherNEFcom -> 0 | E195: = | F195: 0 | G195: x | H195: 298 | I195: = | J195: 0 | K195: = | L195: 0
H196: Total | I196: = | J196: =SUM(J187:J195) ->  | K196: =
A198: Commercial Sector N2O | D198: =D183+1 -> 2003
B200: Consumption | D200: Emission Factor | F200: Emissions | H200: GWP | J200: Emissions | L200: Emissions
A201: Fuel Type | B201: (Billion Btu) | D201: (metric tons N2O/BBtu) | F201: (metric tons N2O) | J201: (MMTCE) | L201: (MMTCO2E)
A202: Coal | B202: =VLOOKUP($A$2&$C$2&$B$2&$C$2&$A202,ConsumeBlock3,16,FALSE) ->  | C202: x | D202: =CoalNEFcom -> 0 | E202: = | F202: =B202*D202 ->  | G202: x | H202: =GWPN2O -> 298 | I202: = | J202: =F202*H202*CO2_C/(10^6) ->  | K202: = | L202: =J202/CO2_C -> 
A203: Distillate Fuel | C203: x | D203: =DistillNEFcom -> 0 | E203: = | F203: =B203*D203 ->  | G203: x | H203: =GWPN2O -> 298 | I203: = | J203: =F203*H203*CO2_C/(10^6) ->  | K203: =
A204: Kerosene | C204: x | D204: =KeroNEFcom -> 0 | E204: = | G204: x | H204: 298 | I204: = | K204: =
A205: Hydrocarbon Gas Liquids | C205: x | D205: =LPGNEFcom -> 0 | E205: = | G205: x | H205: 298 | I205: = | K205: =
A206: Motor Gasoline | C206: x | D206: =MotorGasNEFcom -> 0 | E206: = | G206: x | H206: 298 | I206: = | K206: =
A207: Residual Fuel | C207: x | D207: =ResidNEFcom -> 0 | E207: = | G207: x | H207: 298 | I207: = | K207: =
A208: Natural Gas | C208: x | D208: =NatGasNEFcom -> 0 | E208: = | G208: x | H208: 298 | I208: = | K208: =
A209: Wood | C209: x | D209: =WoodNEFcom -> 0 | E209: = | G209: x | H209: 298 | I209: = | K209: =
A210: Other | B210: =VLOOKUP($A$2&$C$2&$B$2&$C$2&$A210,ConsumeBlock3,D198-1987,FALSE) -> 0 | C210: x | D210: =OtherNEFcom -> 0 | E210: = | F210: 0 | G210: x | H210: 298 | I210: = | J210: 0 | K210: = | L210: 0
H211: Total | I211: = | J211: =SUM(J202:J210) ->  | K211: =
A213: Commercial Sector N2O | D213: =D198+1 -> 2004
B215: Consumption | D215: Emission Factor | F215: Emissions | H215: GWP | J215: Emissions | L215: Emissions
A216: Fuel Type | B216: (Billion Btu) | D216: (metric tons N2O/BBtu) | F216: (metric tons N2O) | J216: (MMTCE) | L216: (MMTCO2E)
A217: Coal | B217: =VLOOKUP($A$2&$C$2&$B$2&$C$2&$A217,ConsumeBlock3,17,FALSE) ->  | C217: x | D217: =CoalNEFcom -> 0 | E217: = | F217: =B217*D217 ->  | G217: x | H217: =GWPN2O -> 298 | I217: = | J217: =F217*H217*CO2_C/(10^6) ->  | K217: = | L217: =J217/CO2_C -> 
A218: Distillate Fuel | C218: x | D218: =DistillNEFcom -> 0 | E218: = | F218: =B218*D218 ->  | G218: x | H218: =GWPN2O -> 298 | I218: = | J218: =F218*H218*CO2_C/(10^6) ->  | K218: =
A219: Kerosene | C219: x | D219: =KeroNEFcom -> 0 | E219: = | G219: x | H219: 298 | I219: = | K219: =
A220: Hydrocarbon Gas Liquids | C220: x | D220: =LPGNEFcom -> 0 | E220: = | G220: x | H220: 298 | I220: = | K220: =
A221: Motor Gasoline | C221: x | D221: =MotorGasNEFcom -> 0 | E221: = | G221: x | H221: 298 | I221: = | K221: =
A222: Residual Fuel | C222: x | D222: =ResidNEFcom -> 0 | E222: = | G222: x | H222: 298 | I222: = | K222: =
A223: Natural Gas | C223: x | D223: =NatGasNEFcom -> 0 | E223: = | G223: x | H223: 298 | I223: = | K223: =
A224: Wood | C224: x | D224: =WoodNEFcom -> 0 | E224: = | G224: x | H224: 298 | I224: = | K224: =
A225: Other | B225: =VLOOKUP($A$2&$C$2&$B$2&$C$2&$A225,ConsumeBlock3,D213-1987,FALSE) -> 0 | C225: x | D225: =OtherNEFcom -> 0 | E225: = | F225: 0 | G225: x | H225: 298 | I225: = | J225: 0 | K225: = | L225: 0
H226: Total | I226: = | J226: =SUM(J217:J225) ->  | K226: =
A228: Commercial Sector N2O | D228: =D213+1 -> 2005
B230: Consumption | D230: Emission Factor | F230: Emissions | H230: GWP | J230: Emissions | L230: Emissions
A231: Fuel Type | B231: (Billion Btu) | D231: (metric tons N2O/BBtu) | F231: (metric tons N2O) | J231: (MMTCE) | L231: (MMTCO2E)
... 205 more rows

Sheet Commercial CH4
A1: ="3. Commercial Consumption and CH4 emissions in "&Constants!G2 -> 3. Commercial Consumption and CH4 emissions in Select a State . . .
A2: =Constants!H2 -> xx | B2: Commercial | C2: =" " -> 
A3: Commercial Sector CH4 | D3: 1990
B5: Consumption | D5: Emission Factor | F5: Emissions | H5: GWP | J5: Emissions | L5: Emissions
A6: Fuel Type | B6: (Billion Btu) | D6: (metric tons CH4 /BBtu) | F6: (metric tons CH4) | J6: (MMTCE) | L6: (MMTCO2E)
A7: Coal | B7: ='Commercial N2O'!B7 ->  | C7: x | D7: =CoalCEFcom -> 0 | E7: = | F7: =B7*D7 ->  | G7: x | H7: =GWPCH4 -> 25 | I7: = | J7: =F7*H7*CO2_C/(10^6) ->  | K7: = | L7: =J7/CO2_C -> 
A8: Distillate Fuel | B8: ='Commercial N2O'!B8 ->  | C8: x | D8: =DistillCEFcom -> 0 | E8: = | F8: =B8*D8 ->  | G8: x | H8: =GWPCH4 -> 25 | I8: = | J8: =F8*H8*CO2_C/(10^6) ->  | K8: =
A9: Kerosene | B9: ='Commercial N2O'!B9 ->  | C9: x | D9: =KeroCEFcom -> 0 | E9: = | G9: x | H9: 25 | I9: = | K9: =
A10: Hydrocarbon Gas Liquids | B10: ='Commercial N2O'!B10 ->  | C10: x | D10: =LPGCEFcom -> 0 | E10: = | G10: x | H10: 25 | I10: = | K10: =
A11: Motor Gasoline | B11: ='Commercial N2O'!B11 ->  | C11: x | D11: =MotorGasCEFcom -> 0 | E11: = | G11: x | H11: 25 | I11: = | K11: =
A12: Residual Fuel | B12: ='Commercial N2O'!B12 ->  | C12: x | D12: =ResidCEFcom -> 0 | E12: = | G12: x | H12: 25 | I12: = | K12: =
A13: Natural Gas | B13: ='Commercial N2O'!B13 ->  | C13: x | D13: =NatGasCEFcom -> 0 | E13: = | G13: x | H13: 25 | I13: = | K13: =
A14: Wood | B14: ='Commercial N2O'!B14 ->  | C14: x | D14: =WoodCEFcom -> 0 | E14: = | G14: x | H14: 25 | I14: = | K14: =
A15: Other | B15: ='Commercial N2O'!B15 -> 0 | C15: x | D15: =OtherCEFcom -> 0 | E15: = | F15: 0 | G15: x | H15: 25 | I15: = | J15: 0 | K15: = | L15: 0
H16: Total | I16: = | J16: =SUM(J7:J15) ->  | K16: =
A18: Commercial Sector CH4 | D18: =D3+1 -> 1991
B20: Consumption | D20: Emission Factor | F20: Emissions | H20: GWP | J20: Emissions | L20: Emissions
A21: Fuel Type | B21: (Billion Btu) | D21: (metric tons CH4 /BBtu) | F21: (metric tons CH4) | J21: (MMTCE) | L21: (MMTCO2E)
A22: Coal | B22: ='Commercial N2O'!B22 ->  | C22: x | D22: =CoalCEFcom -> 0 | E22: = | F22: =B22*D22 ->  | G22: x | H22: =GWPCH4 -> 25 | I22: = | J22: =F22*H22*CO2_C/(10^6) ->  | K22: = | L22: =J22/CO2_C -> 
A23: Distillate Fuel | B23: ='Commercial N2O'!B23 ->  | C23: x | D23: =DistillCEFcom -> 0 | E23: = | F23: =B23*D23 ->  | G23: x | H23: =GWPCH4 -> 25 | I23: = | J23: =F23*H23*CO2_C/(10^6) ->  | K23: =
A24: Kerosene | B24: ='Commercial N2O'!B24 ->  | C24: x | D24: =KeroCEFcom -> 0 | E24: = | G24: x | H24: 25 | I24: = | K24: =
A25: Hydrocarbon Gas Liquids | B25: ='Commercial N2O'!B25 ->  | C25: x | D25: =LPGCEFcom -> 0 | E25: = | G25: x | H25: 25 | I25: = | K25: =
A26: Motor Gasoline | B26: ='Commercial N2O'!B26 ->  | C26: x | D26: =MotorGasCEFcom -> 0 | E26: = | G26: x | H26: 25 | I26: = | K26: =
A27: Residual Fuel | B27: ='Commercial N2O'!B27 ->  | C27: x | D27: =ResidCEFcom -> 0 | E27: = | G27: x | H27: 25 | I27: = | K27: =
A28: Natural Gas | B28: ='Commercial N2O'!B28 ->  | C28: x | D28: =NatGasCEFcom -> 0 | E28: = | G28: x | H28: 25 | I28: = | K28: =
A29: Wood | B29: ='Commercial N2O'!B29 ->  | C29: x | D29: =WoodCEFcom -> 0 | E29: = | G29: x | H29: 25 | I29: = | K29: =
A30: Other | B30: ='Commercial N2O'!B30 -> 0 | C30: x | D30: =OtherCEFcom -> 0 | E30: = | F30: 0 | G30: x | H30: 25 | I30: = | J30: 0 | K30: = | L30: 0
H31: Total | I31: = | J31: =SUM(J22:J30) ->  | K31: =
A33: Commercial Sector CH4 | D33: =D18+1 -> 1992
B35: Consumption | D35: Emission Factor | F35: Emissions | H35: GWP | J35: Emissions | L35: Emissions
A36: Fuel Type | B36: (Billion Btu) | D36: (metric tons CH4 /BBtu) | F36: (metric tons CH4) | J36: (MMTCE) | L36: (MMTCO2E)
A37: Coal | B37: ='Commercial N2O'!B37 ->  | C37: x | D37: =CoalCEFcom -> 0 | E37: = | F37: =B37*D37 ->  | G37: x | H37: =GWPCH4 -> 25 | I37: = | J37: =F37*H37*CO2_C/(10^6) ->  | K37: = | L37: =J37/CO2_C -> 
A38: Distillate Fuel | B38: ='Commercial N2O'!B38 ->  | C38: x | D38: =DistillCEFcom -> 0 | E38: = | F38: =B38*D38 ->  | G38: x | H38: =GWPCH4 -> 25 | I38: = | J38: =F38*H38*CO2_C/(10^6) ->  | K38: =
A39: Kerosene | B39: ='Commercial N2O'!B39 ->  | C39: x | D39: =KeroCEFcom -> 0 | E39: = | G39: x | H39: 25 | I39: = | K39: =
A40: Hydrocarbon Gas Liquids | B40: ='Commercial N2O'!B40 ->  | C40: x | D40: =LPGCEFcom -> 0 | E40: = | G40: x | H40: 25 | I40: = | K40: =
A41: Motor Gasoline | B41: ='Commercial N2O'!B41 ->  | C41: x | D41: =MotorGasCEFcom -> 0 | E41: = | G41: x | H41: 25 | I41: = | K41: =
A42: Residual Fuel | B42: ='Commercial N2O'!B42 ->  | C42: x | D42: =ResidCEFcom -> 0 | E42: = | G42: x | H42: 25 | I42: = | K42: =
A43: Natural Gas | B43: ='Commercial N2O'!B43 ->  | C43: x | D43: =NatGasCEFcom -> 0 | E43: = | G43: x | H43: 25 | I43: = | K43: =
A44: Wood | B44: ='Commercial N2O'!B44 ->  | C44: x | D44: =WoodCEFcom -> 0 | E44: = | G44: x | H44: 25 | I44: = | K44: =
A45: Other | B45: ='Commercial N2O'!B45 -> 0 | C45: x | D45: =OtherCEFcom -> 0 | E45: = | F45: 0 | G45: x | H45: 25 | I45: = | J45: 0 | K45: = | L45: 0
H46: Total | I46: = | J46: =SUM(J37:J45) ->  | K46: =
A48: Commercial Sector CH4 | D48: =D33+1 -> 1993
B50: Consumption | D50: Emission Factor | F50: Emissions | H50: GWP | J50: Emissions | L50: Emissions
A51: Fuel Type | B51: (Billion Btu) | D51: (metric tons CH4 /BBtu) | F51: (metric tons CH4) | J51: (MMTCE) | L51: (MMTCO2E)
A52: Coal | B52: ='Commercial N2O'!B52 ->  | C52: x | D52: =CoalCEFcom -> 0 | E52: = | F52: =B52*D52 ->  | G52: x | H52: =GWPCH4 -> 25 | I52: = | J52: =F52*H52*CO2_C/(10^6) ->  | K52: = | L52: =J52/CO2_C -> 
A53: Distillate Fuel | B53: ='Commercial N2O'!B53 ->  | C53: x | D53: =DistillCEFcom -> 0 | E53: = | F53: =B53*D53 ->  | G53: x | H53: =GWPCH4 -> 25 | I53: = | J53: =F53*H53*CO2_C/(10^6) ->  | K53: =
A54: Kerosene | B54: ='Commercial N2O'!B54 ->  | C54: x | D54: =KeroCEFcom -> 0 | E54: = | G54: x | H54: 25 | I54: = | K54: =
A55: Hydrocarbon Gas Liquids | B55: ='Commercial N2O'!B55 ->  | C55: x | D55: =LPGCEFcom -> 0 | E55: = | G55: x | H55: 25 | I55: = | K55: =
A56: Motor Gasoline | B56: ='Commercial N2O'!B56 ->  | C56: x | D56: =MotorGasCEFcom -> 0 | E56: = | G56: x | H56: 25 | I56: = | K56: =
A57: Residual Fuel | B57: ='Commercial N2O'!B57 ->  | C57: x | D57: =ResidCEFcom -> 0 | E57: = | G57: x | H57: 25 | I57: = | K57: =
A58: Natural Gas | B58: ='Commercial N2O'!B58 ->  | C58: x | D58: =NatGasCEFcom -> 0 | E58: = | G58: x | H58: 25 | I58: = | K58: =
A59: Wood | B59: ='Commercial N2O'!B59 ->  | C59: x | D59: =WoodCEFcom -> 0 | E59: = | G59: x | H59: 25 | I59: = | K59: =
A60: Other | B60: ='Commercial N2O'!B60 -> 0 | C60: x | D60: =OtherCEFcom -> 0 | E60: = | F60: 0 | G60: x | H60: 25 | I60: = | J60: 0 | K60: = | L60: 0
H61: Total | I61: = | J61: =SUM(J52:J60) ->  | K61: =
A63: Commercial Sector CH4 | D63: =D48+1 -> 1994
B65: Consumption | D65: Emission Factor | F65: Emissions | H65: GWP | J65: Emissions | L65: Emissions
A66: Fuel Type | B66: (Billion Btu) | D66: (metric tons CH4 /BBtu) | F66: (metric tons CH4) | J66: (MMTCE) | L66: (MMTCO2E)
A67: Coal | B67: ='Commercial N2O'!B67 ->  | C67: x | D67: =CoalCEFcom -> 0 | E67: = | F67: =B67*D67 ->  | G67: x | H67: =GWPCH4 -> 25 | I67: = | J67: =F67*H67*CO2_C/(10^6) ->  | K67: = | L67: =J67/CO2_C -> 
A68: Distillate Fuel | B68: ='Commercial N2O'!B68 ->  | C68: x | D68: =DistillCEFcom -> 0 | E68: = | F68: =B68*D68 ->  | G68: x | H68: =GWPCH4 -> 25 | I68: = | J68: =F68*H68*CO2_C/(10^6) ->  | K68: =
A69: Kerosene | B69: ='Commercial N2O'!B69 ->  | C69: x | D69: =KeroCEFcom -> 0 | E69: = | G69: x | H69: 25 | I69: = | K69: =
A70: Hydrocarbon Gas Liquids | B70: ='Commercial N2O'!B70 ->  | C70: x | D70: =LPGCEFcom -> 0 | E70: = | G70: x | H70: 25 | I70: = | K70: =
A71: Motor Gasoline | B71: ='Commercial N2O'!B71 ->  | C71: x | D71: =MotorGasCEFcom -> 0 | E71: = | G71: x | H71: 25 | I71: = | K71: =
A72: Residual Fuel | B72: ='Commercial N2O'!B72 ->  | C72: x | D72: =ResidCEFcom -> 0 | E72: = | G72: x | H72: 25 | I72: = | K72: =
A73: Natural Gas | B73: ='Commercial N2O'!B73 ->  | C73: x | D73: =NatGasCEFcom -> 0 | E73: = | G73: x | H73: 25 | I73: = | K73: =
A74: Wood | B74: ='Commercial N2O'!B74 ->  | C74: x | D74: =WoodCEFcom -> 0 | E74: = | G74: x | H74: 25 | I74: = | K74: =
A75: Other | B75: ='Commercial N2O'!B75 -> 0 | C75: x | D75: =OtherCEFcom -> 0 | E75: = | F75: 0 | G75: x | H75: 25 | I75: = | J75: 0 | K75: = | L75: 0
H76: Total | I76: = | J76: =SUM(J67:J75) ->  | K76: =
A78: Commercial Sector CH4 | D78: =D63+1 -> 1995
B80: Consumption | D80: Emission Factor | F80: Emissions | H80: GWP | J80: Emissions | L80: Emissions
A81: Fuel Type | B81: (Billion Btu) | D81: (metric tons CH4 /BBtu) | F81: (metric tons CH4) | J81: (MMTCE) | L81: (MMTCO2E)
A82: Coal | B82: ='Commercial N2O'!B82 ->  | C82: x | D82: =CoalCEFcom -> 0 | E82: = | F82: =B82*D82 ->  | G82: x | H82: =GWPCH4 -> 25 | I82: = | J82: =F82*H82*CO2_C/(10^6) ->  | K82: = | L82: =J82/CO2_C -> 
A83: Distillate Fuel | B83: ='Commercial N2O'!B83 ->  | C83: x | D83: =DistillCEFcom -> 0 | E83: = | F83: =B83*D83 ->  | G83: x | H83: =GWPCH4 -> 25 | I83: = | J83: =F83*H83*CO2_C/(10^6) ->  | K83: =
A84: Kerosene | B84: ='Commercial N2O'!B84 ->  | C84: x | D84: =KeroCEFcom -> 0 | E84: = | G84: x | H84: 25 | I84: = | K84: =
A85: Hydrocarbon Gas Liquids | B85: ='Commercial N2O'!B85 ->  | C85: x | D85: =LPGCEFcom -> 0 | E85: = | G85: x | H85: 25 | I85: = | K85: =
A86: Motor Gasoline | B86: ='Commercial N2O'!B86 ->  | C86: x | D86: =MotorGasCEFcom -> 0 | E86: = | G86: x | H86: 25 | I86: = | K86: =
A87: Residual Fuel | B87: ='Commercial N2O'!B87 ->  | C87: x | D87: =ResidCEFcom -> 0 | E87: = | G87: x | H87: 25 | I87: = | K87: =
A88: Natural Gas | B88: ='Commercial N2O'!B88 ->  | C88: x | D88: =NatGasCEFcom -> 0 | E88: = | G88: x | H88: 25 | I88: = | K88: =
A89: Wood | B89: ='Commercial N2O'!B89 ->  | C89: x | D89: =WoodCEFcom -> 0 | E89: = | G89: x | H89: 25 | I89: = | K89: =
A90: Other | B90: ='Commercial N2O'!B90 -> 0 | C90: x | D90: =OtherCEFcom -> 0 | E90: = | F90: 0 | G90: x | H90: 25 | I90: = | J90: 0 | K90: = | L90: 0
H91: Total | I91: = | J91: =SUM(J82:J90) ->  | K91: =
A93: Commercial Sector CH4 | D93: =D78+1 -> 1996
B95: Consumption | D95: Emission Factor | F95: Emissions | H95: GWP | J95: Emissions | L95: Emissions
A96: Fuel Type | B96: (Billion Btu) | D96: (metric tons CH4 /BBtu) | F96: (metric tons CH4) | J96: (MMTCE) | L96: (MMTCO2E)
A97: Coal | B97: ='Commercial N2O'!B97 ->  | C97: x | D97: =CoalCEFcom -> 0 | E97: = | F97: =B97*D97 ->  | G97: x | H97: =GWPCH4 -> 25 | I97: = | J97: =F97*H97*CO2_C/(10^6) ->  | K97: = | L97: =J97/CO2_C -> 
A98: Distillate Fuel | B98: ='Commercial N2O'!B98 ->  | C98: x | D98: =DistillCEFcom -> 0 | E98: = | F98: =B98*D98 ->  | G98: x | H98: =GWPCH4 -> 25 | I98: = | J98: =F98*H98*CO2_C/(10^6) ->  | K98: =
A99: Kerosene | B99: ='Commercial N2O'!B99 ->  | C99: x | D99: =KeroCEFcom -> 0 | E99: = | G99: x | H99: 25 | I99: = | K99: =
A100: Hydrocarbon Gas Liquids | B100: ='Commercial N2O'!B100 ->  | C100: x | D100: =LPGCEFcom -> 0 | E100: = | G100: x | H100: 25 | I100: = | K100: =
A101: Motor Gasoline | B101: ='Commercial N2O'!B101 ->  | C101: x | D101: =MotorGasCEFcom -> 0 | E101: = | G101: x | H101: 25 | I101: = | K101: =
A102: Residual Fuel | B102: ='Commercial N2O'!B102 ->  | C102: x | D102: =ResidCEFcom -> 0 | E102: = | G102: x | H102: 25 | I102: = | K102: =
A103: Natural Gas | B103: ='Commercial N2O'!B103 ->  | C103: x | D103: =NatGasCEFcom -> 0 | E103: = | G103: x | H103: 25 | I103: = | K103: =
A104: Wood | B104: ='Commercial N2O'!B104 ->  | C104: x | D104: =WoodCEFcom -> 0 | E104: = | G104: x | H104: 25 | I104: = | K104: =
A105: Other | B105: ='Commercial N2O'!B105 -> 0 | C105: x | D105: =OtherCEFcom -> 0 | E105: = | F105: 0 | G105: x | H105: 25 | I105: = | J105: 0 | K105: = | L105: 0
H106: Total | I106: = | J106: =SUM(J97:J105) ->  | K106: =
A108: Commercial Sector CH4 | D108: =D93+1 -> 1997
B110: Consumption | D110: Emission Factor | F110: Emissions | H110: GWP | J110: Emissions | L110: Emissions
A111: Fuel Type | B111: (Billion Btu) | D111: (metric tons CH4 /BBtu) | F111: (metric tons CH4) | J111: (MMTCE) | L111: (MMTCO2E)
A112: Coal | B112: ='Commercial N2O'!B112 ->  | C112: x | D112: =CoalCEFcom -> 0 | E112: = | F112: =B112*D112 ->  | G112: x | H112: =GWPCH4 -> 25 | I112: = | J112: =F112*H112*CO2_C/(10^6) ->  | K112: = | L112: =J112/CO2_C -> 
A113: Distillate Fuel | B113: ='Commercial N2O'!B113 ->  | C113: x | D113: =DistillCEFcom -> 0 | E113: = | F113: =B113*D113 ->  | G113: x | H113: =GWPCH4 -> 25 | I113: = | J113: =F113*H113*CO2_C/(10^6) ->  | K113: =
A114: Kerosene | B114: ='Commercial N2O'!B114 ->  | C114: x | D114: =KeroCEFcom -> 0 | E114: = | G114: x | H114: 25 | I114: = | K114: =
A115: Hydrocarbon Gas Liquids | B115: ='Commercial N2O'!B115 ->  | C115: x | D115: =LPGCEFcom -> 0 | E115: = | G115: x | H115: 25 | I115: = | K115: =
A116: Motor Gasoline | B116: ='Commercial N2O'!B116 ->  | C116: x | D116: =MotorGasCEFcom -> 0 | E116: = | G116: x | H116: 25 | I116: = | K116: =
A117: Residual Fuel | B117: ='Commercial N2O'!B117 ->  | C117: x | D117: =ResidCEFcom -> 0 | E117: = | G117: x | H117: 25 | I117: = | K117: =
A118: Natural Gas | B118: ='Commercial N2O'!B118 ->  | C118: x | D118: =NatGasCEFcom -> 0 | E118: = | G118: x | H118: 25 | I118: = | K118: =
A119: Wood | B119: ='Commercial N2O'!B119 ->  | C119: x | D119: =WoodCEFcom -> 0 | E119: = | G119: x | H119: 25 | I119: = | K119: =
A120: Other | B120: ='Commercial N2O'!B120 -> 0 | C120: x | D120: =OtherCEFcom -> 0 | E120: = | F120: 0 | G120: x | H120: 25 | I120: = | J120: 0 | K120: = | L120: 0
H121: Total | I121: = | J121: =SUM(J112:J120) ->  | K121: =
A123: Commercial Sector CH4 | D123: =D108+1 -> 1998
B125: Consumption | D125: Emission Factor | F125: Emissions | H125: GWP | J125: Emissions | L125: Emissions
A126: Fuel Type | B126: (Billion Btu) | D126: (metric tons CH4 /BBtu) | F126: (metric tons CH4) | J126: (MMTCE) | L126: (MMTCO2E)
A127: Coal | B127: ='Commercial N2O'!B127 ->  | C127: x | D127: =CoalCEFcom -> 0 | E127: = | F127: =B127*D127 ->  | G127: x | H127: =GWPCH4 -> 25 | I127: = | J127: =F127*H127*CO2_C/(10^6) ->  | K127: = | L127: =J127/CO2_C -> 
A128: Distillate Fuel | B128: ='Commercial N2O'!B128 ->  | C128: x | D128: =DistillCEFcom -> 0 | E128: = | F128: =B128*D128 ->  | G128: x | H128: =GWPCH4 -> 25 | I128: = | J128: =F128*H128*CO2_C/(10^6) ->  | K128: =
A129: Kerosene | B129: ='Commercial N2O'!B129 ->  | C129: x | D129: =KeroCEFcom -> 0 | E129: = | G129: x | H129: 25 | I129: = | K129: =
A130: Hydrocarbon Gas Liquids | B130: ='Commercial N2O'!B130 ->  | C130: x | D130: =LPGCEFcom -> 0 | E130: = | G130: x | H130: 25 | I130: = | K130: =
A131: Motor Gasoline | B131: ='Commercial N2O'!B131 ->  | C131: x | D131: =MotorGasCEFcom -> 0 | E131: = | G131: x | H131: 25 | I131: = | K131: =
A132: Residual Fuel | B132: ='Commercial N2O'!B132 ->  | C132: x | D132: =ResidCEFcom -> 0 | E132: = | G132: x | H132: 25 | I132: = | K132: =
A133: Natural Gas | B133: ='Commercial N2O'!B133 ->  | C133: x | D133: =NatGasCEFcom -> 0 | E133: = | G133: x | H133: 25 | I133: = | K133: =
A134: Wood | B134: ='Commercial N2O'!B134 ->  | C134: x | D134: =WoodCEFcom -> 0 | E134: = | G134: x | H134: 25 | I134: = | K134: =
A135: Other | B135: ='Commercial N2O'!B135 -> 0 | C135: x | D135: =OtherCEFcom -> 0 | E135: = | F135: 0 | G135: x | H135: 25 | I135: = | J135: 0 | K135: = | L135: 0
H136: Total | I136: = | J136: =SUM(J127:J135) ->  | K136: =
A138: Commercial Sector CH4 | D138: =D123+1 -> 1999
B140: Consumption | D140: Emission Factor | F140: Emissions | H140: GWP | J140: Emissions | L140: Emissions
A141: Fuel Type | B141: (Billion Btu) | D141: (metric tons CH4 /BBtu) | F141: (metric tons CH4) | J141: (MMTCE) | L141: (MMTCO2E)
A142: Coal | B142: ='Commercial N2O'!B142 ->  | C142: x | D142: =CoalCEFcom -> 0 | E142: = | F142: =B142*D142 ->  | G142: x | H142: =GWPCH4 -> 25 | I142: = | J142: =F142*H142*CO2_C/(10^6) ->  | K142: = | L142: =J142/CO2_C -> 
A143: Distillate Fuel | B143: ='Commercial N2O'!B143 ->  | C143: x | D143: =DistillCEFcom -> 0 | E143: = | F143: =B143*D143 ->  | G143: x | H143: =GWPCH4 -> 25 | I143: = | J143: =F143*H143*CO2_C/(10^6) ->  | K143: =
A144: Kerosene | B144: ='Commercial N2O'!B144 ->  | C144: x | D144: =KeroCEFcom -> 0 | E144: = | G144: x | H144: 25 | I144: = | K144: =
A145: Hydrocarbon Gas Liquids | B145: ='Commercial N2O'!B145 ->  | C145: x | D145: =LPGCEFcom -> 0 | E145: = | G145: x | H145: 25 | I145: = | K145: =
A146: Motor Gasoline | B146: ='Commercial N2O'!B146 ->  | C146: x | D146: =MotorGasCEFcom -> 0 | E146: = | G146: x | H146: 25 | I146: = | K146: =
A147: Residual Fuel | B147: ='Commercial N2O'!B147 ->  | C147: x | D147: =ResidCEFcom -> 0 | E147: = | G147: x | H147: 25 | I147: = | K147: =
A148: Natural Gas | B148: ='Commercial N2O'!B148 ->  | C148: x | D148: =NatGasCEFcom -> 0 | E148: = | G148: x | H148: 25 | I148: = | K148: =
A149: Wood | B149: ='Commercial N2O'!B149 ->  | C149: x | D149: =WoodCEFcom -> 0 | E149: = | G149: x | H149: 25 | I149: = | K149: =
A150: Other | B150: ='Commercial N2O'!B150 -> 0 | C150: x | D150: =OtherCEFcom -> 0 | E150: = | F150: 0 | G150: x | H150: 25 | I150: = | J150: 0 | K150: = | L150: 0
H151: Total | I151: = | J151: =SUM(J142:J150) ->  | K151: =
A153: Commercial Sector CH4 | D153: =D138+1 -> 2000
B155: Consumption | D155: Emission Factor | F155: Emissions | H155: GWP | J155: Emissions | L155: Emissions
A156: Fuel Type | B156: (Billion Btu) | D156: (metric tons CH4 /BBtu) | F156: (metric tons CH4) | J156: (MMTCE) | L156: (MMTCO2E)
A157: Coal | B157: ='Commercial N2O'!B157 ->  | C157: x | D157: =CoalCEFcom -> 0 | E157: = | F157: =B157*D157 ->  | G157: x | H157: =GWPCH4 -> 25 | I157: = | J157: =F157*H157*CO2_C/(10^6) ->  | K157: = | L157: =J157/CO2_C -> 
A158: Distillate Fuel | B158: ='Commercial N2O'!B158 ->  | C158: x | D158: =DistillCEFcom -> 0 | E158: = | F158: =B158*D158 ->  | G158: x | H158: =GWPCH4 -> 25 | I158: = | J158: =F158*H158*CO2_C/(10^6) ->  | K158: =
A159: Kerosene | B159: ='Commercial N2O'!B159 ->  | C159: x | D159: =KeroCEFcom -> 0 | E159: = | G159: x | H159: 25 | I159: = | K159: =
A160: Hydrocarbon Gas Liquids | B160: ='Commercial N2O'!B160 ->  | C160: x | D160: =LPGCEFcom -> 0 | E160: = | G160: x | H160: 25 | I160: = | K160: =
A161: Motor Gasoline | B161: ='Commercial N2O'!B161 ->  | C161: x | D161: =MotorGasCEFcom -> 0 | E161: = | G161: x | H161: 25 | I161: = | K161: =
A162: Residual Fuel | B162: ='Commercial N2O'!B162 ->  | C162: x | D162: =ResidCEFcom -> 0 | E162: = | G162: x | H162: 25 | I162: = | K162: =
A163: Natural Gas | B163: ='Commercial N2O'!B163 ->  | C163: x | D163: =NatGasCEFcom -> 0 | E163: = | G163: x | H163: 25 | I163: = | K163: =
A164: Wood | B164: ='Commercial N2O'!B164 ->  | C164: x | D164: =WoodCEFcom -> 0 | E164: = | G164: x | H164: 25 | I164: = | K164: =
A165: Other | B165: ='Commercial N2O'!B165 -> 0 | C165: x | D165: =OtherCEFcom -> 0 | E165: = | F165: 0 | G165: x | H165: 25 | I165: = | J165: 0 | K165: = | L165: 0
H166: Total | I166: = | J166: =SUM(J157:J165) ->  | K166: =
A168: Commercial Sector CH4 | D168: =D153+1 -> 2001
B170: Consumption | D170: Emission Factor | F170: Emissions | H170: GWP | J170: Emissions | L170: Emissions
A171: Fuel Type | B171: (Billion Btu) | D171: (metric tons CH4 /BBtu) | F171: (metric tons CH4) | J171: (MMTCE) | L171: (MMTCO2E)
A172: Coal | B172: ='Commercial N2O'!B172 ->  | C172: x | D172: =CoalCEFcom -> 0 | E172: = | F172: =B172*D172 ->  | G172: x | H172: =GWPCH4 -> 25 | I172: = | J172: =F172*H172*CO2_C/(10^6) ->  | K172: = | L172: =J172/CO2_C -> 
A173: Distillate Fuel | B173: ='Commercial N2O'!B173 ->  | C173: x | D173: =DistillCEFcom -> 0 | E173: = | F173: =B173*D173 ->  | G173: x | H173: =GWPCH4 -> 25 | I173: = | J173: =F173*H173*CO2_C/(10^6) ->  | K173: =
A174: Kerosene | B174: ='Commercial N2O'!B174 ->  | C174: x | D174: =KeroCEFcom -> 0 | E174: = | G174: x | H174: 25 | I174: = | K174: =
A175: Hydrocarbon Gas Liquids | B175: ='Commercial N2O'!B175 ->  | C175: x | D175: =LPGCEFcom -> 0 | E175: = | G175: x | H175: 25 | I175: = | K175: =
A176: Motor Gasoline | B176: ='Commercial N2O'!B176 ->  | C176: x | D176: =MotorGasCEFcom -> 0 | E176: = | G176: x | H176: 25 | I176: = | K176: =
A177: Residual Fuel | B177: ='Commercial N2O'!B177 ->  | C177: x | D177: =ResidCEFcom -> 0 | E177: = | G177: x | H177: 25 | I177: = | K177: =
A178: Natural Gas | B178: ='Commercial N2O'!B178 ->  | C178: x | D178: =NatGasCEFcom -> 0 | E178: = | G178: x | H178: 25 | I178: = | K178: =
A179: Wood | B179: ='Commercial N2O'!B179 ->  | C179: x | D179: =WoodCEFcom -> 0 | E179: = | G179: x | H179: 25 | I179: = | K179: =
A180: Other | B180: ='Commercial N2O'!B180 -> 0 | C180: x | D180: =OtherCEFcom -> 0 | E180: = | F180: 0 | G180: x | H180: 25 | I180: = | J180: 0 | K180: = | L180: 0
H181: Total | I181: = | J181: =SUM(J172:J180) ->  | K181: =
A183: Commercial Sector CH4 | D183: =D168+1 -> 2002
B185: Consumption | D185: Emission Factor | F185: Emissions | H185: GWP | J185: Emissions | L185: Emissions
A186: Fuel Type | B186: (Billion Btu) | D186: (metric tons CH4 /BBtu) | F186: (metric tons CH4) | J186: (MMTCE) | L186: (MMTCO2E)
A187: Coal | B187: ='Commercial N2O'!B187 ->  | C187: x | D187: =CoalCEFcom -> 0 | E187: = | F187: =B187*D187 ->  | G187: x | H187: =GWPCH4 -> 25 | I187: = | J187: =F187*H187*CO2_C/(10^6) ->  | K187: = | L187: =J187/CO2_C -> 
A188: Distillate Fuel | B188: ='Commercial N2O'!B188 ->  | C188: x | D188: =DistillCEFcom -> 0 | E188: = | F188: =B188*D188 ->  | G188: x | H188: =GWPCH4 -> 25 | I188: = | J188: =F188*H188*CO2_C/(10^6) ->  | K188: =
A189: Kerosene | B189: ='Commercial N2O'!B189 ->  | C189: x | D189: =KeroCEFcom -> 0 | E189: = | G189: x | H189: 25 | I189: = | K189: =
A190: Hydrocarbon Gas Liquids | B190: ='Commercial N2O'!B190 ->  | C190: x | D190: =LPGCEFcom -> 0 | E190: = | G190: x | H190: 25 | I190: = | K190: =
A191: Motor Gasoline | B191: ='Commercial N2O'!B191 ->  | C191: x | D191: =MotorGasCEFcom -> 0 | E191: = | G191: x | H191: 25 | I191: = | K191: =
A192: Residual Fuel | B192: ='Commercial N2O'!B192 ->  | C192: x | D192: =ResidCEFcom -> 0 | E192: = | G192: x | H192: 25 | I192: = | K192: =
A193: Natural Gas | B193: ='Commercial N2O'!B193 ->  | C193: x | D193: =NatGasCEFcom -> 0 | E193: = | G193: x | H193: 25 | I193: = | K193: =
A194: Wood | B194: ='Commercial N2O'!B194 ->  | C194: x | D194: =WoodCEFcom -> 0 | E194: = | G194: x | H194: 25 | I194: = | K194: =
A195: Other | B195: ='Commercial N2O'!B195 -> 0 | C195: x | D195: =OtherCEFcom -> 0 | E195: = | F195: 0 | G195: x | H195: 25 | I195: = | J195: 0 | K195: = | L195: 0
H196: Total | I196: = | J196: =SUM(J187:J195) ->  | K196: =
A198: Commercial Sector CH4 | D198: =D183+1 -> 2003
B200: Consumption | D200: Emission Factor | F200: Emissions | H200: GWP | J200: Emissions | L200: Emissions
A201: Fuel Type | B201: (Billion Btu) | D201: (metric tons CH4 /BBtu) | F201: (metric tons CH4) | J201: (MMTCE) | L201: (MMTCO2E)
A202: Coal | B202: ='Commercial N2O'!B202 ->  | C202: x | D202: =CoalCEFcom -> 0 | E202: = | F202: =B202*D202 ->  | G202: x | H202: =GWPCH4 -> 25 | I202: = | J202: =F202*H202*CO2_C/(10^6) ->  | K202: = | L202: =J202/CO2_C -> 
A203: Distillate Fuel | B203: ='Commercial N2O'!B203 ->  | C203: x | D203: =DistillCEFcom -> 0 | E203: = | F203: =B203*D203 ->  | G203: x | H203: =GWPCH4 -> 25 | I203: = | J203: =F203*H203*CO2_C/(10^6) ->  | K203: =
A204: Kerosene | B204: ='Commercial N2O'!B204 ->  | C204: x | D204: =KeroCEFcom -> 0 | E204: = | G204: x | H204: 25 | I204: = | K204: =
A205: Hydrocarbon Gas Liquids | B205: ='Commercial N2O'!B205 ->  | C205: x | D205: =LPGCEFcom -> 0 | E205: = | G205: x | H205: 25 | I205: = | K205: =
A206: Motor Gasoline | B206: ='Commercial N2O'!B206 ->  | C206: x | D206: =MotorGasCEFcom -> 0 | E206: = | G206: x | H206: 25 | I206: = | K206: =
A207: Residual Fuel | B207: ='Commercial N2O'!B207 ->  | C207: x | D207: =ResidCEFcom -> 0 | E207: = | G207: x | H207: 25 | I207: = | K207: =
A208: Natural Gas | B208: ='Commercial N2O'!B208 ->  | C208: x | D208: =NatGasCEFcom -> 0 | E208: = | G208: x | H208: 25 | I208: = | K208: =
A209: Wood | B209: ='Commercial N2O'!B209 ->  | C209: x | D209: =WoodCEFcom -> 0 | E209: = | G209: x | H209: 25 | I209: = | K209: =
A210: Other | B210: ='Commercial N2O'!B210 -> 0 | C210: x | D210: =OtherCEFcom -> 0 | E210: = | F210: 0 | G210: x | H210: 25 | I210: = | J210: 0 | K210: = | L210: 0
H211: Total | I211: = | J211: =SUM(J202:J210) ->  | K211: =
A213: Commercial Sector CH4 | D213: =D198+1 -> 2004
B215: Consumption | D215: Emission Factor | F215: Emissions | H215: GWP | J215: Emissions | L215: Emissions
A216: Fuel Type | B216: (Billion Btu) | D216: (metric tons CH4 /BBtu) | F216: (metric tons CH4) | J216: (MMTCE) | L216: (MMTCO2E)
A217: Coal | B217: ='Commercial N2O'!B217 ->  | C217: x | D217: =CoalCEFcom -> 0 | E217: = | F217: =B217*D217 ->  | G217: x | H217: =GWPCH4 -> 25 | I217: = | J217: =F217*H217*CO2_C/(10^6) ->  | K217: = | L217: =J217/CO2_C -> 
A218: Distillate Fuel | B218: ='Commercial N2O'!B218 ->  | C218: x | D218: =DistillCEFcom -> 0 | E218: = | F218: =B218*D218 ->  | G218: x | H218: =GWPCH4 -> 25 | I218: = | J218: =F218*H218*CO2_C/(10^6) ->  | K218: =
A219: Kerosene | B219: ='Commercial N2O'!B219 ->  | C219: x | D219: =KeroCEFcom -> 0 | E219: = | G219: x | H219: 25 | I219: = | K219: =
A220: Hydrocarbon Gas Liquids | B220: ='Commercial N2O'!B220 ->  | C220: x | D220: =LPGCEFcom -> 0 | E220: = | G220: x | H220: 25 | I220: = | K220: =
A221: Motor Gasoline | B221: ='Commercial N2O'!B221 ->  | C221: x | D221: =MotorGasCEFcom -> 0 | E221: = | G221: x | H221: 25 | I221: = | K221: =
A222: Residual Fuel | B222: ='Commercial N2O'!B222 ->  | C222: x | D222: =ResidCEFcom -> 0 | E222: = | G222: x | H222: 25 | I222: = | K222: =
A223: Natural Gas | B223: ='Commercial N2O'!B223 ->  | C223: x | D223: =NatGasCEFcom -> 0 | E223: = | G223: x | H223: 25 | I223: = | K223: =
A224: Wood | B224: ='Commercial N2O'!B224 ->  | C224: x | D224: =WoodCEFcom -> 0 | E224: = | G224: x | H224: 25 | I224: = | K224: =
A225: Other | B225: ='Commercial N2O'!B225 -> 0 | C225: x | D225: =OtherCEFcom -> 0 | E225: = | F225: 0 | G225: x | H225: 25 | I225: = | J225: 0 | K225: = | L225: 0
H226: Total | I226: = | J226: =SUM(J217:J225) ->  | K226: =
A228: Commercial Sector CH4 | D228: =D213+1 -> 2005
B230: Consumption | D230: Emission Factor | F230: Emissions | H230: GWP | J230: Emissions | L230: Emissions
A231: Fuel Type | B231: (Billion Btu) | D231: (metric tons CH4 /BBtu) | F231: (metric tons CH4) | J231: (MMTCE) | L231: (MMTCO2E)
... 205 more rows

Sheet Electric Power N2O
A1: ="4. Electric Power Sector Consumption and N2O emissions in "&Constants!G2 -> 4. Electric Power Sector Consumption and N2O emissions in Select a State . . .
A2: =Constants!H2 -> xx | B2: Electric Power | C2: =" " -> 
A3: Electric Power Sector N2O | D3: 1990
B5: Consumption | D5: Emission Factor | F5: Emissions | H5: GWP | J5: Emissions | L5: Emissions
A6: Fuel Type | B6: (Billion Btu) | D6: (metric tons N2O/BBtu) | F6: (metric tons N2O) | J6: (MMTCE) | L6: (MMTCO2E)
A7: Coal | B7: =VLOOKUP($A$2&$C$2&$B$2&$C$2&$A7,ConsumeBlock3,3,FALSE) ->  | C7: x | D7: =CoalNEFutil -> 0 | E7: = | F7: =B7*D7 ->  | G7: x | H7: =GWPN2O -> 298 | I7: = | J7: =F7*H7*CO2_C/(10^6) ->  | K7: = | L7: =J7/CO2_C -> 
A8: Distillate Fuel | C8: x | D8: =DistillNEFutil -> 0 | E8: = | F8: =B8*D8 ->  | G8: x | H8: 298 | I8: = | J8: =F8*H8*CO2_C/(10^6) ->  | K8: =
A9: Petroleum Coke | C9: x | D9: =PetCokeNEFutil -> 0 | E9: = | G9: x | H9: 298 | I9: = | K9: =
A10: Residual Fuel | C10: x | D10: =ResidNEFutil -> 0 | E10: = | G10: x | H10: 298 | I10: = | K10: =
A11: Natural Gas | C11: x | D11: =NatGasNEFutil -> 0 | E11: = | G11: x | H11: 298 | I11: = | K11: =
A12: Wood | C12: x | D12: =WoodNEFutil -> 0 | E12: = | G12: x | H12: 298 | I12: = | J12: =F12*H12*CO2_C/(10^6) ->  | K12: =
A13: Other | B13: =VLOOKUP($A$2&$C$2&$B$2&$C$2&$A13,ConsumeBlock3,D3-1987,FALSE) -> 0 | C13: x | D13: =OtherNEFutil -> 0 | E13: = | F13: 0 | G13: x | H13: 298 | I13: = | J13: 0 | K13: = | L13: 0
H14: Total | I14: = | J14: =SUM(J7:J13) ->  | K14: =
A16: Electric Power Sector N2O | D16: =D3+1 -> 1991
B18: Consumption | D18: Emission Factor | F18: Emissions | H18: GWP | J18: Emissions | L18: Emissions
A19: Fuel Type | B19: (Billion Btu) | D19: (metric tons N2O/BBtu) | F19: (metric tons N2O) | J19: (MMTCE) | L19: (MMTCO2E)
A20: Coal | B20: =VLOOKUP($A$2&$C$2&$B$2&$C$2&$A20,ConsumeBlock3,4,FALSE) ->  | C20: x | D20: =CoalNEFutil -> 0 | E20: = | F20: =B20*D20 ->  | G20: x | H20: =GWPN2O -> 298 | I20: = | J20: =F20*H20*CO2_C/(10^6) ->  | K20: = | L20: =J20/CO2_C -> 
A21: Distillate Fuel | C21: x | D21: =DistillNEFutil -> 0 | E21: = | F21: =B21*D21 ->  | G21: x | H21: 298 | I21: = | K21: =
A22: Petroleum Coke | C22: x | D22: =PetCokeNEFutil -> 0 | E22: = | G22: x | H22: 298 | I22: = | K22: =
A23: Residual Fuel | C23: x | D23: =ResidNEFutil -> 0 | E23: = | G23: x | H23: 298 | I23: = | K23: =
A24: Natural Gas | C24: x | D24: =NatGasNEFutil -> 0 | E24: = | G24: x | H24: 298 | I24: = | K24: =
A25: Wood | C25: x | D25: =WoodNEFutil -> 0 | E25: = | G25: x | H25: 298 | I25: = | K25: =
A26: Other | B26: =VLOOKUP($A$2&$C$2&$B$2&$C$2&$A26,ConsumeBlock3,D16-1987,FALSE) -> 0 | C26: x | D26: =OtherNEFutil -> 0 | E26: = | F26: 0 | G26: x | H26: 298 | I26: = | J26: 0 | K26: = | L26: 0
H27: Total | I27: = | J27: =SUM(J20:J26) ->  | K27: =
A29: Electric Power Sector N2O | D29: =D16+1 -> 1992
B31: Consumption | D31: Emission Factor | F31: Emissions | H31: GWP | J31: Emissions | L31: Emissions
A32: Fuel Type | B32: (Billion Btu) | D32: (metric tons N2O/BBtu) | F32: (metric tons N2O) | J32: (MMTCE) | L32: (MMTCO2E)
A33: Coal | B33: =VLOOKUP($A$2&$C$2&$B$2&$C$2&$A33,ConsumeBlock3,5,FALSE) ->  | C33: x | D33: =CoalNEFutil -> 0 | E33: = | F33: =B33*D33 ->  | G33: x | H33: =GWPN2O -> 298 | I33: = | J33: =F33*H33*CO2_C/(10^6) ->  | K33: = | L33: =J33/CO2_C -> 
A34: Distillate Fuel | C34: x | D34: =DistillNEFutil -> 0 | E34: = | F34: =B34*D34 ->  | G34: x | H34: 298 | I34: = | K34: =
A35: Petroleum Coke | C35: x | D35: =PetCokeNEFutil -> 0 | E35: = | G35: x | H35: 298 | I35: = | K35: =
A36: Residual Fuel | C36: x | D36: =ResidNEFutil -> 0 | E36: = | G36: x | H36: 298 | I36: = | K36: =
A37: Natural Gas | C37: x | D37: =NatGasNEFutil -> 0 | E37: = | G37: x | H37: 298 | I37: = | K37: =
A38: Wood | C38: x | D38: =WoodNEFutil -> 0 | E38: = | G38: x | H38: 298 | I38: = | K38: =
A39: Other | B39: =VLOOKUP($A$2&$C$2&$B$2&$C$2&$A39,ConsumeBlock3,D29-1987,FALSE) -> 0 | C39: x | D39: =OtherNEFutil -> 0 | E39: = | F39: 0 | G39: x | H39: 298 | I39: = | J39: 0 | K39: = | L39: 0
H40: Total | I40: = | J40: =SUM(J33:J39) ->  | K40: =
A42: Electric Power Sector N2O | D42: =D29+1 -> 1993
B44: Consumption | D44: Emission Factor | F44: Emissions | H44: GWP | J44: Emissions | L44: Emissions
A45: Fuel Type | B45: (Billion Btu) | D45: (metric tons N2O/BBtu) | F45: (metric tons N2O) | J45: (MMTCE) | L45: (MMTCO2E)
A46: Coal | B46: =VLOOKUP($A$2&$C$2&$B$2&$C$2&$A46,ConsumeBlock3,6,FALSE) ->  | C46: x | D46: =CoalNEFutil -> 0 | E46: = | F46: =B46*D46 ->  | G46: x | H46: =GWPN2O -> 298 | I46: = | J46: =F46*H46*CO2_C/(10^6) ->  | K46: = | L46: =J46/CO2_C -> 
A47: Distillate Fuel | C47: x | D47: =DistillNEFutil -> 0 | E47: = | F47: =B47*D47 ->  | G47: x | H47: 298 | I47: = | K47: =
A48: Petroleum Coke | C48: x | D48: =PetCokeNEFutil -> 0 | E48: = | G48: x | H48: 298 | I48: = | K48: =
A49: Residual Fuel | C49: x | D49: =ResidNEFutil -> 0 | E49: = | G49: x | H49: 298 | I49: = | K49: =
A50: Natural Gas | C50: x | D50: =NatGasNEFutil -> 0 | E50: = | G50: x | H50: 298 | I50: = | K50: =
A51: Wood | C51: x | D51: =WoodNEFutil -> 0 | E51: = | G51: x | H51: 298 | I51: = | K51: =
A52: Other | B52: =VLOOKUP($A$2&$C$2&$B$2&$C$2&$A52,ConsumeBlock3,D42-1987,FALSE) -> 0 | C52: x | D52: =OtherNEFutil -> 0 | E52: = | F52: 0 | G52: x | H52: 298 | I52: = | J52: 0 | K52: = | L52: 0
H53: Total | I53: = | J53: =SUM(J46:J52) ->  | K53: =
A55: Electric Power Sector N2O | D55: =D42+1 -> 1994
B57: Consumption | D57: Emission Factor | F57: Emissions | H57: GWP | J57: Emissions | L57: Emissions
A58: Fuel Type | B58: (Billion Btu) | D58: (metric tons N2O/BBtu) | F58: (metric tons N2O) | J58: (MMTCE) | L58: (MMTCO2E)
A59: Coal | B59: =VLOOKUP($A$2&$C$2&$B$2&$C$2&$A59,ConsumeBlock3,7,FALSE) ->  | C59: x | D59: =CoalNEFutil -> 0 | E59: = | F59: =B59*D59 ->  | G59: x | H59: =GWPN2O -> 298 | I59: = | J59: =F59*H59*CO2_C/(10^6) ->  | K59: = | L59: =J59/CO2_C -> 
A60: Distillate Fuel | C60: x | D60: =DistillNEFutil -> 0 | E60: = | F60: =B60*D60 ->  | G60: x | H60: 298 | I60: = | K60: =
A61: Petroleum Coke | C61: x | D61: =PetCokeNEFutil -> 0 | E61: = | G61: x | H61: 298 | I61: = | K61: =
A62: Residual Fuel | C62: x | D62: =ResidNEFutil -> 0 | E62: = | G62: x | H62: 298 | I62: = | K62: =
A63: Natural Gas | C63: x | D63: =NatGasNEFutil -> 0 | E63: = | G63: x | H63: 298 | I63: = | K63: =
A64: Wood | C64: x | D64: =WoodNEFutil -> 0 | E64: = | G64: x | H64: 298 | I64: = | K64: =
A65: Other | B65: =VLOOKUP($A$2&$C$2&$B$2&$C$2&$A65,ConsumeBlock3,D55-1987,FALSE) -> 0 | C65: x | D65: =OtherNEFutil -> 0 | E65: = | F65: 0 | G65: x | H65: 298 | I65: = | J65: 0 | K65: = | L65: 0
H66: Total | I66: = | J66: =SUM(J59:J65) ->  | K66: =
A68: Electric Power Sector N2O | D68: =D55+1 -> 1995
B70: Consumption | D70: Emission Factor | F70: Emissions | H70: GWP | J70: Emissions | L70: Emissions
A71: Fuel Type | B71: (Billion Btu) | D71: (metric tons N2O/BBtu) | F71: (metric tons N2O) | J71: (MMTCE) | L71: (MMTCO2E)
A72: Coal | B72: =VLOOKUP($A$2&$C$2&$B$2&$C$2&$A72,ConsumeBlock3,8,FALSE) ->  | C72: x | D72: =CoalNEFutil -> 0 | E72: = | F72: =B72*D72 ->  | G72: x | H72: =GWPN2O -> 298 | I72: = | J72: =F72*H72*CO2_C/(10^6) ->  | K72: = | L72: =J72/CO2_C -> 
A73: Distillate Fuel | C73: x | D73: =DistillNEFutil -> 0 | E73: = | F73: =B73*D73 ->  | G73: x | H73: 298 | I73: = | K73: =
A74: Petroleum Coke | C74: x | D74: =PetCokeNEFutil -> 0 | E74: = | G74: x | H74: 298 | I74: = | K74: =
A75: Residual Fuel | C75: x | D75: =ResidNEFutil -> 0 | E75: = | G75: x | H75: 298 | I75: = | K75: =
A76: Natural Gas | C76: x | D76: =NatGasNEFutil -> 0 | E76: = | G76: x | H76: 298 | I76: = | K76: =
A77: Wood | C77: x | D77: =WoodNEFutil -> 0 | E77: = | G77: x | H77: 298 | I77: = | K77: =
A78: Other | B78: =VLOOKUP($A$2&$C$2&$B$2&$C$2&$A78,ConsumeBlock3,D68-1987,FALSE) -> 0 | C78: x | D78: =OtherNEFutil -> 0 | E78: = | F78: 0 | G78: x | H78: 298 | I78: = | J78: 0 | K78: = | L78: 0
H79: Total | I79: = | J79: =SUM(J72:J78) ->  | K79: =
A81: Electric Power Sector N2O | D81: =D68+1 -> 1996
B83: Consumption | D83: Emission Factor | F83: Emissions | H83: GWP | J83: Emissions | L83: Emissions
A84: Fuel Type | B84: (Billion Btu) | D84: (metric tons N2O/BBtu) | F84: (metric tons N2O) | J84: (MMTCE) | L84: (MMTCO2E)
A85: Coal | B85: =VLOOKUP($A$2&$C$2&$B$2&$C$2&$A85,ConsumeBlock3,9,FALSE) ->  | C85: x | D85: =CoalNEFutil -> 0 | E85: = | F85: =B85*D85 ->  | G85: x | H85: =GWPN2O -> 298 | I85: = | J85: =F85*H85*CO2_C/(10^6) ->  | K85: = | L85: =J85/CO2_C -> 
A86: Distillate Fuel | C86: x | D86: =DistillNEFutil -> 0 | E86: = | F86: =B86*D86 ->  | G86: x | H86: 298 | I86: = | K86: =
A87: Petroleum Coke | C87: x | D87: =PetCokeNEFutil -> 0 | E87: = | G87: x | H87: 298 | I87: = | K87: =
A88: Residual Fuel | C88: x | D88: =ResidNEFutil -> 0 | E88: = | G88: x | H88: 298 | I88: = | K88: =
A89: Natural Gas | C89: x | D89: =NatGasNEFutil -> 0 | E89: = | G89: x | H89: 298 | I89: = | K89: =
A90: Wood | C90: x | D90: =WoodNEFutil -> 0 | E90: = | G90: x | H90: 298 | I90: = | K90: =
A91: Other | B91: =VLOOKUP($A$2&$C$2&$B$2&$C$2&$A91,ConsumeBlock3,D81-1987,FALSE) -> 0 | C91: x | D91: =OtherNEFutil -> 0 | E91: = | F91: 0 | G91: x | H91: 298 | I91: = | J91: 0 | K91: = | L91: 0
H92: Total | I92: = | J92: =SUM(J85:J91) ->  | K92: =
A94: Electric Power Sector N2O | D94: =D81+1 -> 1997
B96: Consumption | D96: Emission Factor | F96: Emissions | H96: GWP | J96: Emissions | L96: Emissions
A97: Fuel Type | B97: (Billion Btu) | D97: (metric tons N2O/BBtu) | F97: (metric tons N2O) | J97: (MMTCE) | L97: (MMTCO2E)
A98: Coal | B98: =VLOOKUP($A$2&$C$2&$B$2&$C$2&$A98,ConsumeBlock3,10,FALSE) ->  | C98: x | D98: =CoalNEFutil -> 0 | E98: = | F98: =B98*D98 ->  | G98: x | H98: =GWPN2O -> 298 | I98: = | J98: =F98*H98*CO2_C/(10^6) ->  | K98: = | L98: =J98/CO2_C -> 
A99: Distillate Fuel | C99: x | D99: =DistillNEFutil -> 0 | E99: = | F99: =B99*D99 ->  | G99: x | H99: 298 | I99: = | K99: =
A100: Petroleum Coke | C100: x | D100: =PetCokeNEFutil -> 0 | E100: = | G100: x | H100: 298 | I100: = | K100: =
A101: Residual Fuel | C101: x | D101: =ResidNEFutil -> 0 | E101: = | G101: x | H101: 298 | I101: = | K101: =
A102: Natural Gas | C102: x | D102: =NatGasNEFutil -> 0 | E102: = | G102: x | H102: 298 | I102: = | K102: =
A103: Wood | C103: x | D103: =WoodNEFutil -> 0 | E103: = | G103: x | H103: 298 | I103: = | K103: =
A104: Other | B104: =VLOOKUP($A$2&$C$2&$B$2&$C$2&$A104,ConsumeBlock3,D94-1987,FALSE) -> 0 | C104: x | D104: =OtherNEFutil -> 0 | E104: = | F104: 0 | G104: x | H104: 298 | I104: = | J104: 0 | K104: = | L104: 0
H105: Total | I105: = | J105: =SUM(J98:J104) ->  | K105: =
A107: Electric Power Sector N2O | D107: =D94+1 -> 1998
B109: Consumption | D109: Emission Factor | F109: Emissions | H109: GWP | J109: Emissions | L109: Emissions
A110: Fuel Type | B110: (Billion Btu) | D110: (metric tons N2O/BBtu) | F110: (metric tons N2O) | J110: (MMTCE) | L110: (MMTCO2E)
A111: Coal | B111: =VLOOKUP($A$2&$C$2&$B$2&$C$2&$A111,ConsumeBlock3,11,FALSE) ->  | C111: x | D111: =CoalNEFutil -> 0 | E111: = | F111: =B111*D111 ->  | G111: x | H111: =GWPN2O -> 298 | I111: = | J111: =F111*H111*CO2_C/(10^6) ->  | K111: = | L111: =J111/CO2_C -> 
A112: Distillate Fuel | C112: x | D112: =DistillNEFutil -> 0 | E112: = | F112: =B112*D112 ->  | G112: x | H112: 298 | I112: = | K112: =
A113: Petroleum Coke | C113: x | D113: =PetCokeNEFutil -> 0 | E113: = | G113: x | H113: 298 | I113: = | K113: =
A114: Residual Fuel | C114: x | D114: =ResidNEFutil -> 0 | E114: = | G114: x | H114: 298 | I114: = | K114: =
A115: Natural Gas | C115: x | D115: =NatGasNEFutil -> 0 | E115: = | G115: x | H115: 298 | I115: = | K115: =
A116: Wood | C116: x | D116: =WoodNEFutil -> 0 | E116: = | G116: x | H116: 298 | I116: = | K116: =
A117: Other | B117: =VLOOKUP($A$2&$C$2&$B$2&$C$2&$A117,ConsumeBlock3,D107-1987,FALSE) -> 0 | C117: x | D117: =OtherNEFutil -> 0 | E117: = | F117: 0 | G117: x | H117: 298 | I117: = | J117: 0 | K117: = | L117: 0
H118: Total | I118: = | J118: =SUM(J111:J117) ->  | K118: =
A120: Electric Power Sector N2O | D120: =D107+1 -> 1999
B122: Consumption | D122: Emission Factor | F122: Emissions | H122: GWP | J122: Emissions | L122: Emissions
A123: Fuel Type | B123: (Billion Btu) | D123: (metric tons N2O/BBtu) | F123: (metric tons N2O) | J123: (MMTCE) | L123: (MMTCO2E)
A124: Coal | B124: =VLOOKUP($A$2&$C$2&$B$2&$C$2&$A124,ConsumeBlock3,12,FALSE) ->  | C124: x | D124: =CoalNEFutil -> 0 | E124: = | F124: =B124*D124 ->  | G124: x | H124: =GWPN2O -> 298 | I124: = | J124: =F124*H124*CO2_C/(10^6) ->  | K124: = | L124: =J124/CO2_C -> 
A125: Distillate Fuel | C125: x | D125: =DistillNEFutil -> 0 | E125: = | F125: =B125*D125 ->  | G125: x | H125: 298 | I125: = | K125: =
A126: Petroleum Coke | C126: x | D126: =PetCokeNEFutil -> 0 | E126: = | G126: x | H126: 298 | I126: = | K126: =
A127: Residual Fuel | C127: x | D127: =ResidNEFutil -> 0 | E127: = | G127: x | H127: 298 | I127: = | K127: =
A128: Natural Gas | C128: x | D128: =NatGasNEFutil -> 0 | E128: = | G128: x | H128: 298 | I128: = | K128: =
A129: Wood | C129: x | D129: =WoodNEFutil -> 0 | E129: = | G129: x | H129: 298 | I129: = | K129: =
A130: Other | B130: =VLOOKUP($A$2&$C$2&$B$2&$C$2&$A130,ConsumeBlock3,D120-1987,FALSE) -> 0 | C130: x | D130: =OtherNEFutil -> 0 | E130: = | F130: 0 | G130: x | H130: 298 | I130: = | J130: 0 | K130: = | L130: 0
H131: Total | I131: = | J131: =SUM(J124:J130) ->  | K131: =
A133: Electric Power Sector N2O | D133: =D120+1 -> 2000
B135: Consumption | D135: Emission Factor | F135: Emissions | H135: GWP | J135: Emissions | L135: Emissions
A136: Fuel Type | B136: (Billion Btu) | D136: (metric tons N2O/BBtu) | F136: (metric tons N2O) | J136: (MMTCE) | L136: (MMTCO2E)
A137: Coal | B137: =VLOOKUP($A$2&$C$2&$B$2&$C$2&$A137,ConsumeBlock3,13,FALSE) ->  | C137: x | D137: =CoalNEFutil -> 0 | E137: = | F137: =B137*D137 ->  | G137: x | H137: =GWPN2O -> 298 | I137: = | J137: =F137*H137*CO2_C/(10^6) ->  | K137: = | L137: =J137/CO2_C -> 
A138: Distillate Fuel | C138: x | D138: =DistillNEFutil -> 0 | E138: = | F138: =B138*D138 ->  | G138: x | H138: 298 | I138: = | K138: =
A139: Petroleum Coke | C139: x | D139: =PetCokeNEFutil -> 0 | E139: = | G139: x | H139: 298 | I139: = | K139: =
A140: Residual Fuel | C140: x | D140: =ResidNEFutil -> 0 | E140: = | G140: x | H140: 298 | I140: = | K140: =
A141: Natural Gas | C141: x | D141: =NatGasNEFutil -> 0 | E141: = | G141: x | H141: 298 | I141: = | K141: =
A142: Wood | C142: x | D142: =WoodNEFutil -> 0 | E142: = | G142: x | H142: 298 | I142: = | K142: =
A143: Other | B143: =VLOOKUP($A$2&$C$2&$B$2&$C$2&$A143,ConsumeBlock3,D133-1987,FALSE) -> 0 | C143: x | D143: =OtherNEFutil -> 0 | E143: = | F143: 0 | G143: x | H143: 298 | I143: = | J143: 0 | K143: = | L143: 0
H144: Total | I144: = | J144: =SUM(J137:J143) ->  | K144: =
A146: Electric Power Sector N2O | D146: =D133+1 -> 2001
B148: Consumption | D148: Emission Factor | F148: Emissions | H148: GWP | J148: Emissions | L148: Emissions
A149: Fuel Type | B149: (Billion Btu) | D149: (metric tons N2O/BBtu) | F149: (metric tons N2O) | J149: (MMTCE) | L149: (MMTCO2E)
A150: Coal | B150: =VLOOKUP($A$2&$C$2&$B$2&$C$2&$A150,ConsumeBlock3,14,FALSE) ->  | C150: x | D150: =CoalNEFutil -> 0 | E150: = | F150: =B150*D150 ->  | G150: x | H150: =GWPN2O -> 298 | I150: = | J150: =F150*H150*CO2_C/(10^6) ->  | K150: = | L150: =J150/CO2_C -> 
A151: Distillate Fuel | C151: x | D151: =DistillNEFutil -> 0 | E151: = | F151: =B151*D151 ->  | G151: x | H151: 298 | I151: = | K151: =
A152: Petroleum Coke | C152: x | D152: =PetCokeNEFutil -> 0 | E152: = | G152: x | H152: 298 | I152: = | K152: =
A153: Residual Fuel | C153: x | D153: =ResidNEFutil -> 0 | E153: = | G153: x | H153: 298 | I153: = | K153: =
A154: Natural Gas | C154: x | D154: =NatGasNEFutil -> 0 | E154: = | G154: x | H154: 298 | I154: = | K154: =
A155: Wood | C155: x | D155: =WoodNEFutil -> 0 | E155: = | G155: x | H155: 298 | I155: = | K155: =
A156: Other | B156: =VLOOKUP($A$2&$C$2&$B$2&$C$2&$A156,ConsumeBlock3,D146-1987,FALSE) -> 0 | C156: x | D156: =OtherNEFutil -> 0 | E156: = | F156: 0 | G156: x | H156: 298 | I156: = | J156: 0 | K156: = | L156: 0
H157: Total | I157: = | J157: =SUM(J150:J156) ->  | K157: =
A159: Electric Power Sector N2O | D159: =D146+1 -> 2002
B161: Consumption | D161: Emission Factor | F161: Emissions | H161: GWP | J161: Emissions | L161: Emissions
A162: Fuel Type | B162: (Billion Btu) | D162: (metric tons N2O/BBtu) | F162: (metric tons N2O) | J162: (MMTCE) | L162: (MMTCO2E)
A163: Coal | B163: =VLOOKUP($A$2&$C$2&$B$2&$C$2&$A163,ConsumeBlock3,15,FALSE) ->  | C163: x | D163: =CoalNEFutil -> 0 | E163: = | F163: =B163*D163 ->  | G163: x | H163: =GWPN2O -> 298 | I163: = | J163: =F163*H163*CO2_C/(10^6) ->  | K163: = | L163: =J163/CO2_C -> 
A164: Distillate Fuel | C164: x | D164: =DistillNEFutil -> 0 | E164: = | F164: =B164*D164 ->  | G164: x | H164: 298 | I164: = | K164: =
A165: Petroleum Coke | C165: x | D165: =PetCokeNEFutil -> 0 | E165: = | G165: x | H165: 298 | I165: = | K165: =
A166: Residual Fuel | C166: x | D166: =ResidNEFutil -> 0 | E166: = | G166: x | H166: 298 | I166: = | K166: =
A167: Natural Gas | C167: x | D167: =NatGasNEFutil -> 0 | E167: = | G167: x | H167: 298 | I167: = | K167: =
A168: Wood | C168: x | D168: =WoodNEFutil -> 0 | E168: = | G168: x | H168: 298 | I168: = | K168: =
A169: Other | B169: =VLOOKUP($A$2&$C$2&$B$2&$C$2&$A169,ConsumeBlock3,D159-1987,FALSE) -> 0 | C169: x | D169: =OtherNEFutil -> 0 | E169: = | F169: 0 | G169: x | H169: 298 | I169: = | J169: 0 | K169: = | L169: 0
H170: Total | I170: = | J170: =SUM(J163:J169) ->  | K170: =
A172: Electric Power Sector N2O | D172: =D159+1 -> 2003
B174: Consumption | D174: Emission Factor | F174: Emissions | H174: GWP | J174: Emissions | L174: Emissions
A175: Fuel Type | B175: (Billion Btu) | D175: (metric tons N2O/BBtu) | F175: (metric tons N2O) | J175: (MMTCE) | L175: (MMTCO2E)
A176: Coal | B176: =VLOOKUP($A$2&$C$2&$B$2&$C$2&$A176,ConsumeBlock3,16,FALSE) ->  | C176: x | D176: =CoalNEFutil -> 0 | E176: = | F176: =B176*D176 ->  | G176: x | H176: =GWPN2O -> 298 | I176: = | J176: =F176*H176*CO2_C/(10^6) ->  | K176: = | L176: =J176/CO2_C -> 
A177: Distillate Fuel | C177: x | D177: =DistillNEFutil -> 0 | E177: = | F177: =B177*D177 ->  | G177: x | H177: 298 | I177: = | K177: =
A178: Petroleum Coke | C178: x | D178: =PetCokeNEFutil -> 0 | E178: = | G178: x | H178: 298 | I178: = | K178: =
A179: Residual Fuel | C179: x | D179: =ResidNEFutil -> 0 | E179: = | G179: x | H179: 298 | I179: = | K179: =
A180: Natural Gas | C180: x | D180: =NatGasNEFutil -> 0 | E180: = | G180: x | H180: 298 | I180: = | K180: =
A181: Wood | C181: x | D181: =WoodNEFutil -> 0 | E181: = | G181: x | H181: 298 | I181: = | K181: =
A182: Other | B182: =VLOOKUP($A$2&$C$2&$B$2&$C$2&$A182,ConsumeBlock3,D172-1987,FALSE) -> 0 | C182: x | D182: =OtherNEFutil -> 0 | E182: = | F182: 0 | G182: x | H182: 298 | I182: = | J182: 0 | K182: = | L182: 0
H183: Total | I183: = | J183: =SUM(J176:J182) ->  | K183: =
A185: Electric Power Sector N2O | D185: =D172+1 -> 2004
B187: Consumption | D187: Emission Factor | F187: Emissions | H187: GWP | J187: Emissions | L187: Emissions
A188: Fuel Type | B188: (Billion Btu) | D188: (metric tons N2O/BBtu) | F188: (metric tons N2O) | J188: (MMTCE) | L188: (MMTCO2E)
A189: Coal | B189: =VLOOKUP($A$2&$C$2&$B$2&$C$2&$A189,ConsumeBlock3,17,FALSE) ->  | C189: x | D189: =CoalNEFutil -> 0 | E189: = | F189: =B189*D189 ->  | G189: x | H189: =GWPN2O -> 298 | I189: = | J189: =F189*H189*CO2_C/(10^6) ->  | K189: = | L189: =J189/CO2_C -> 
A190: Distillate Fuel | C190: x | D190: =DistillNEFutil -> 0 | E190: = | F190: =B190*D190 ->  | G190: x | H190: 298 | I190: = | K190: =
A191: Petroleum Coke | C191: x | D191: =PetCokeNEFutil -> 0 | E191: = | G191: x | H191: 298 | I191: = | K191: =
A192: Residual Fuel | C192: x | D192: =ResidNEFutil -> 0 | E192: = | G192: x | H192: 298 | I192: = | K192: =
A193: Natural Gas | C193: x | D193: =NatGasNEFutil -> 0 | E193: = | G193: x | H193: 298 | I193: = | K193: =
A194: Wood | C194: x | D194: =WoodNEFutil -> 0 | E194: = | G194: x | H194: 298 | I194: = | K194: =
A195: Other | B195: =VLOOKUP($A$2&$C$2&$B$2&$C$2&$A195,ConsumeBlock3,D185-1987,FALSE) -> 0 | C195: x | D195: =OtherNEFutil -> 0 | E195: = | F195: 0 | G195: x | H195: 298 | I195: = | J195: 0 | K195: = | L195: 0
H196: Total | I196: = | J196: =SUM(J189:J195) ->  | K196: =
A198: Electric Power Sector N2O | D198: =D185+1 -> 2005
B200: Consumption | D200: Emission Factor | F200: Emissions | H200: GWP | J200: Emissions | L200: Emissions
A201: Fuel Type | B201: (Billion Btu) | D201: (metric tons N2O/BBtu) | F201: (metric tons N2O) | J201: (MMTCE) | L201: (MMTCO2E)
A202: Coal | B202: =VLOOKUP($A$2&$C$2&$B$2&$C$2&$A202,ConsumeBlock3,18,FALSE) ->  | C202: x | D202: =CoalNEFutil -> 0 | E202: = | F202: =B202*D202 ->  | G202: x | H202: =GWPN2O -> 298 | I202: = | J202: =F202*H202*CO2_C/(10^6) ->  | K202: = | L202: =J202/CO2_C -> 
A203: Distillate Fuel | C203: x | D203: =DistillNEFutil -> 0 | E203: = | F203: =B203*D203 ->  | G203: x | H203: 298 | I203: = | K203: =
A204: Petroleum Coke | C204: x | D204: =PetCokeNEFutil -> 0 | E204: = | G204: x | H204: 298 | I204: = | K204: =
A205: Residual Fuel | C205: x | D205: =ResidNEFutil -> 0 | E205: = | G205: x | H205: 298 | I205: = | K205: =
A206: Natural Gas | C206: x | D206: =NatGasNEFutil -> 0 | E206: = | G206: x | H206: 298 | I206: = | K206: =
A207: Wood | C207: x | D207: =WoodNEFutil -> 0 | E207: = | G207: x | H207: 298 | I207: = | K207: =
A208: Other | B208: =VLOOKUP($A$2&$C$2&$B$2&$C$2&$A208,ConsumeBlock3,D198-1987,FALSE) -> 0 | C208: x | D208: =OtherNEFutil -> 0 | E208: = | F208: 0 | G208: x | H208: 298 | I208: = | J208: 0 | K208: = | L208: 0
H209: Total | I209: = | J209: =SUM(J202:J208) ->  | K209: =
A211: Electric Power Sector N2O | D211: =D198+1 -> 2006
B213: Consumption | D213: Emission Factor | F213: Emissions | H213: GWP | J213: Emissions | L213: Emissions
A214: Fuel Type | B214: (Billion Btu) | D214: (metric tons N2O/BBtu) | F214: (metric tons N2O) | J214: (MMTCE) | L214: (MMTCO2E)
A215: Coal | B215: =VLOOKUP($A$2&$C$2&$B$2&$C$2&$A215,ConsumeBlock3,19,FALSE) ->  | C215: x | D215: =CoalNEFutil -> 0 | E215: = | F215: =B215*D215 ->  | G215: x | H215: =GWPN2O -> 298 | I215: = | J215: =F215*H215*CO2_C/(10^6) ->  | K215: = | L215: =J215/CO2_C -> 
A216: Distillate Fuel | C216: x | D216: =DistillNEFutil -> 0 | E216: = | F216: =B216*D216 ->  | G216: x | H216: 298 | I216: = | K216: =
A217: Petroleum Coke | C217: x | D217: =PetCokeNEFutil -> 0 | E217: = | G217: x | H217: 298 | I217: = | K217: =
A218: Residual Fuel | C218: x | D218: =ResidNEFutil -> 0 | E218: = | G218: x | H218: 298 | I218: = | K218: =
A219: Natural Gas | C219: x | D219: =NatGasNEFutil -> 0 | E219: = | G219: x | H219: 298 | I219: = | K219: =
A220: Wood | C220: x | D220: =WoodNEFutil -> 0 | E220: = | G220: x | H220: 298 | I220: = | K220: =
A221: Other | B221: =VLOOKUP($A$2&$C$2&$B$2&$C$2&$A221,ConsumeBlock3,D211-1987,FALSE) -> 0 | C221: x | D221: =OtherNEFutil -> 0 | E221: = | F221: 0 | G221: x | H221: 298 | I221: = | J221: 0 | K221: = | L221: 0
H222: Total | I222: = | J222: =SUM(J215:J221) ->  | K222: =
A224: Electric Power Sector N2O | D224: =D211+1 -> 2007
B226: Consumption | D226: Emission Factor | F226: Emissions | H226: GWP | J226: Emissions | L226: Emissions
A227: Fuel Type | B227: (Billion Btu) | D227: (metric tons N2O/BBtu) | F227: (metric tons N2O) | J227: (MMTCE) | L227: (MMTCO2E)
A228: Coal | B228: =VLOOKUP($A$2&$C$2&$B$2&$C$2&$A228,ConsumeBlock3,20,FALSE) ->  | C228: x | D228: =CoalNEFutil -> 0 | E228: = | F228: =B228*D228 ->  | G228: x | H228: =GWPN2O -> 298 | I228: = | J228: =F228*H228*CO2_C/(10^6) ->  | K228: = | L228: =J228/CO2_C -> 
A229: Distillate Fuel | C229: x | D229: =DistillNEFutil -> 0 | E229: = | F229: =B229*D229 ->  | G229: x | H229: 298 | I229: = | K229: =
A230: Petroleum Coke | C230: x | D230: =PetCokeNEFutil -> 0 | E230: = | G230: x | H230: 298 | I230: = | K230: =
A231: Residual Fuel | C231: x | D231: =ResidNEFutil -> 0 | E231: = | G231: x | H231: 298 | I231: = | K231: =
A232: Natural Gas | C232: x | D232: =NatGasNEFutil -> 0 | E232: = | G232: x | H232: 298 | I232: = | K232: =
A233: Wood | C233: x | D233: =WoodNEFutil -> 0 | E233: = | G233: x | H233: 298 | I233: = | K233: =
A234: Other | B234: =VLOOKUP($A$2&$C$2&$B$2&$C$2&$A234,ConsumeBlock3,D224-1987,FALSE) -> 0 | C234: x | D234: =OtherNEFutil -> 0 | E234: = | F234: 0 | G234: x | H234: 298 | I234: = | J234: 0 | K234: = | L234: 0
H235: Total | I235: = | J235: =SUM(J228:J234) ->  | K235: =
... 143 more rows

Sheet Electric Power CH4
A1: ="4. Electric Power Sector Consumption and CH4 emissions in "&Constants!G2 -> 4. Electric Power Sector Consumption and CH4 emissions in Select a State . . .
A2: =Constants!H2 -> xx | B2: Electric Utilities
A3: Electric Power Sector CH4 | D3: 1990
B5: Consumption | D5: Emission Factor | F5: Emissions | H5: GWP | J5: Emissions | L5: Emissions
A6: Fuel Type | B6: (Billion Btu) | D6: (metric tons CH4 /BBtu) | F6: (metric tons CH4) | J6: (MMTCE) | L6: (MMTCO2E)
A7: Coal | B7: ='Electric Power N2O'!B7 ->  | C7: x | D7: =CoalCEFutil -> 0 | E7: = | F7: =B7*D7 ->  | G7: x | H7: =GWPCH4 -> 25 | I7: = | J7: =F7*H7*CO2_C/(10^6) ->  | K7: = | L7: =J7/CO2_C -> 
A8: Distillate Fuel | B8: ='Electric Power N2O'!B8 ->  | C8: x | D8: =DistillCEFutil -> 0 | E8: = | F8: =B8*D8 ->  | G8: x | H8: 25 | I8: = | J8: =F8*H8*CO2_C/(10^6) ->  | K8: =
A9: Petroleum Coke | B9: ='Electric Power N2O'!B9 ->  | C9: x | D9: =PetCokeCEFutil -> 0 | E9: = | G9: x | H9: 25 | I9: = | K9: =
A10: Residual Fuel | B10: ='Electric Power N2O'!B10 ->  | C10: x | D10: =ResidCEFutil -> 0 | E10: = | G10: x | H10: 25 | I10: = | K10: =
A11: Natural Gas | B11: ='Electric Power N2O'!B11 ->  | C11: x | D11: =NatGasCEFutil -> 0 | E11: = | G11: x | H11: 25 | I11: = | K11: =
A12: Wood | B12: ='Electric Power N2O'!B12 ->  | C12: x | D12: =WoodCEFutil -> 0 | E12: = | G12: x | H12: 25 | I12: = | J12: =F12*H12*CO2_C/(10^6) ->  | K12: =
A13: Other | B13: ='Electric Power N2O'!B13 -> 0 | C13: x | D13: =OtherCEFutil -> 0 | E13: = | F13: 0 | G13: x | H13: 25 | I13: = | J13: 0 | K13: = | L13: 0
H14: Total | I14: = | J14: =SUM(J7:J13) ->  | K14: =
A16: Electric Power Sector CH4 | D16: =D3+1 -> 1991
B18: Consumption | D18: Emission Factor | F18: Emissions | H18: GWP | J18: Emissions | L18: Emissions
A19: Fuel Type | B19: (Billion Btu) | D19: (metric tons CH4 /BBtu) | F19: (metric tons CH4) | J19: (MMTCE) | L19: (MMTCO2E)
A20: Coal | B20: ='Electric Power N2O'!B20 ->  | C20: x | D20: =CoalCEFutil -> 0 | E20: = | F20: =B20*D20 ->  | G20: x | H20: =GWPCH4 -> 25 | I20: = | J20: =F20*H20*CO2_C/(10^6) ->  | K20: = | L20: =J20/CO2_C -> 
A21: Distillate Fuel | B21: ='Electric Power N2O'!B21 ->  | C21: x | D21: =DistillCEFutil -> 0 | E21: = | F21: =B21*D21 ->  | G21: x | H21: 25 | I21: = | K21: =
A22: Petroleum Coke | B22: ='Electric Power N2O'!B22 ->  | C22: x | D22: =PetCokeCEFutil -> 0 | E22: = | G22: x | H22: 25 | I22: = | K22: =
A23: Residual Fuel | B23: ='Electric Power N2O'!B23 ->  | C23: x | D23: =ResidCEFutil -> 0 | E23: = | G23: x | H23: 25 | I23: = | K23: =
A24: Natural Gas | B24: ='Electric Power N2O'!B24 ->  | C24: x | D24: =NatGasCEFutil -> 0 | E24: = | G24: x | H24: 25 | I24: = | K24: =
A25: Wood | B25: ='Electric Power N2O'!B25 ->  | C25: x | D25: =WoodCEFutil -> 0 | E25: = | G25: x | H25: 25 | I25: = | K25: =
A26: Other | B26: ='Electric Power N2O'!B26 -> 0 | C26: x | D26: =OtherCEFutil -> 0 | E26: = | F26: 0 | G26: x | H26: 25 | I26: = | J26: 0 | K26: = | L26: 0
H27: Total | I27: = | J27: =SUM(J20:J26) ->  | K27: =
A29: Electric Power Sector CH4 | D29: =D16+1 -> 1992
B31: Consumption | D31: Emission Factor | F31: Emissions | H31: GWP | J31: Emissions | L31: Emissions
A32: Fuel Type | B32: (Billion Btu) | D32: (metric tons CH4 /BBtu) | F32: (metric tons CH4) | J32: (MMTCE) | L32: (MMTCO2E)
A33: Coal | B33: ='Electric Power N2O'!B33 ->  | C33: x | D33: =CoalCEFutil -> 0 | E33: = | F33: =B33*D33 ->  | G33: x | H33: =GWPCH4 -> 25 | I33: = | J33: =F33*H33*CO2_C/(10^6) ->  | K33: = | L33: =J33/CO2_C -> 
A34: Distillate Fuel | B34: ='Electric Power N2O'!B34 ->  | C34: x | D34: =DistillCEFutil -> 0 | E34: = | F34: =B34*D34 ->  | G34: x | H34: 25 | I34: = | K34: =
A35: Petroleum Coke | B35: ='Electric Power N2O'!B35 ->  | C35: x | D35: =PetCokeCEFutil -> 0 | E35: = | G35: x | H35: 25 | I35: = | K35: =
A36: Residual Fuel | B36: ='Electric Power N2O'!B36 ->  | C36: x | D36: =ResidCEFutil -> 0 | E36: = | G36: x | H36: 25 | I36: = | K36: =
A37: Natural Gas | B37: ='Electric Power N2O'!B37 ->  | C37: x | D37: =NatGasCEFutil -> 0 | E37: = | G37: x | H37: 25 | I37: = | K37: =
A38: Wood | B38: ='Electric Power N2O'!B38 ->  | C38: x | D38: =WoodCEFutil -> 0 | E38: = | G38: x | H38: 25 | I38: = | K38: =
A39: Other | B39: ='Electric Power N2O'!B39 -> 0 | C39: x | D39: =OtherCEFutil -> 0 | E39: = | F39: 0 | G39: x | H39: 25 | I39: = | J39: 0 | K39: = | L39: 0
H40: Total | I40: = | J40: =SUM(J33:J39) ->  | K40: =
A42: Electric Power Sector CH4 | D42: =D29+1 -> 1993
B44: Consumption | D44: Emission Factor | F44: Emissions | H44: GWP | J44: Emissions | L44: Emissions
A45: Fuel Type | B45: (Billion Btu) | D45: (metric tons CH4 /BBtu) | F45: (metric tons CH4) | J45: (MMTCE) | L45: (MMTCO2E)
A46: Coal | B46: ='Electric Power N2O'!B46 ->  | C46: x | D46: =CoalCEFutil -> 0 | E46: = | F46: =B46*D46 ->  | G46: x | H46: =GWPCH4 -> 25 | I46: = | J46: =F46*H46*CO2_C/(10^6) ->  | K46: = | L46: =J46/CO2_C -> 
A47: Distillate Fuel | B47: ='Electric Power N2O'!B47 ->  | C47: x | D47: =DistillCEFutil -> 0 | E47: = | F47: =B47*D47 ->  | G47: x | H47: 25 | I47: = | K47: =
A48: Petroleum Coke | B48: ='Electric Power N2O'!B48 ->  | C48: x | D48: =PetCokeCEFutil -> 0 | E48: = | G48: x | H48: 25 | I48: = | K48: =
A49: Residual Fuel | B49: ='Electric Power N2O'!B49 ->  | C49: x | D49: =ResidCEFutil -> 0 | E49: = | G49: x | H49: 25 | I49: = | K49: =
A50: Natural Gas | B50: ='Electric Power N2O'!B50 ->  | C50: x | D50: =NatGasCEFutil -> 0 | E50: = | G50: x | H50: 25 | I50: = | K50: =
A51: Wood | B51: ='Electric Power N2O'!B51 ->  | C51: x | D51: =WoodCEFutil -> 0 | E51: = | G51: x | H51: 25 | I51: = | K51: =
A52: Other | B52: ='Electric Power N2O'!B52 -> 0 | C52: x | D52: =OtherCEFutil -> 0 | E52: = | F52: 0 | G52: x | H52: 25 | I52: = | J52: 0 | K52: = | L52: 0
H53: Total | I53: = | J53: =SUM(J46:J52) ->  | K53: =
A55: Electric Power Sector CH4 | D55: =D42+1 -> 1994
B57: Consumption | D57: Emission Factor | F57: Emissions | H57: GWP | J57: Emissions | L57: Emissions
A58: Fuel Type | B58: (Billion Btu) | D58: (metric tons CH4 /BBtu) | F58: (metric tons CH4) | J58: (MMTCE) | L58: (MMTCO2E)
A59: Coal | B59: ='Electric Power N2O'!B59 ->  | C59: x | D59: =CoalCEFutil -> 0 | E59: = | F59: =B59*D59 ->  | G59: x | H59: =GWPCH4 -> 25 | I59: = | J59: =F59*H59*CO2_C/(10^6) ->  | K59: = | L59: =J59/CO2_C -> 
A60: Distillate Fuel | B60: ='Electric Power N2O'!B60 ->  | C60: x | D60: =DistillCEFutil -> 0 | E60: = | F60: =B60*D60 ->  | G60: x | H60: 25 | I60: = | K60: =
A61: Petroleum Coke | B61: ='Electric Power N2O'!B61 ->  | C61: x | D61: =PetCokeCEFutil -> 0 | E61: = | G61: x | H61: 25 | I61: = | K61: =
A62: Residual Fuel | B62: ='Electric Power N2O'!B62 ->  | C62: x | D62: =ResidCEFutil -> 0 | E62: = | G62: x | H62: 25 | I62: = | K62: =
A63: Natural Gas | B63: ='Electric Power N2O'!B63 ->  | C63: x | D63: =NatGasCEFutil -> 0 | E63: = | G63: x | H63: 25 | I63: = | K63: =
A64: Wood | B64: ='Electric Power N2O'!B64 ->  | C64: x | D64: =WoodCEFutil -> 0 | E64: = | G64: x | H64: 25 | I64: = | K64: =
A65: Other | B65: ='Electric Power N2O'!B65 -> 0 | C65: x | D65: =OtherCEFutil -> 0 | E65: = | F65: 0 | G65: x | H65: 25 | I65: = | J65: 0 | K65: = | L65: 0
H66: Total | I66: = | J66: =SUM(J59:J65) ->  | K66: =
A68: Electric Power Sector CH4 | D68: =D55+1 -> 1995
B70: Consumption | D70: Emission Factor | F70: Emissions | H70: GWP | J70: Emissions | L70: Emissions
A71: Fuel Type | B71: (Billion Btu) | D71: (metric tons CH4 /BBtu) | F71: (metric tons CH4) | J71: (MMTCE) | L71: (MMTCO2E)
A72: Coal | B72: ='Electric Power N2O'!B72 ->  | C72: x | D72: =CoalCEFutil -> 0 | E72: = | F72: =B72*D72 ->  | G72: x | H72: =GWPCH4 -> 25 | I72: = | J72: =F72*H72*CO2_C/(10^6) ->  | K72: = | L72: =J72/CO2_C -> 
A73: Distillate Fuel | B73: ='Electric Power N2O'!B73 ->  | C73: x | D73: =DistillCEFutil -> 0 | E73: = | F73: =B73*D73 ->  | G73: x | H73: 25 | I73: = | K73: =
A74: Petroleum Coke | B74: ='Electric Power N2O'!B74 ->  | C74: x | D74: =PetCokeCEFutil -> 0 | E74: = | G74: x | H74: 25 | I74: = | K74: =
A75: Residual Fuel | B75: ='Electric Power N2O'!B75 ->  | C75: x | D75: =ResidCEFutil -> 0 | E75: = | G75: x | H75: 25 | I75: = | K75: =
A76: Natural Gas | B76: ='Electric Power N2O'!B76 ->  | C76: x | D76: =NatGasCEFutil -> 0 | E76: = | G76: x | H76: 25 | I76: = | K76: =
A77: Wood | B77: ='Electric Power N2O'!B77 ->  | C77: x | D77: =WoodCEFutil -> 0 | E77: = | G77: x | H77: 25 | I77: = | K77: =
A78: Other | B78: ='Electric Power N2O'!B78 -> 0 | C78: x | D78: =OtherCEFutil -> 0 | E78: = | F78: 0 | G78: x | H78: 25 | I78: = | J78: 0 | K78: = | L78: 0
H79: Total | I79: = | J79: =SUM(J72:J78) ->  | K79: =
A81: Electric Power Sector CH4 | D81: =D68+1 -> 1996
B83: Consumption | D83: Emission Factor | F83: Emissions | H83: GWP | J83: Emissions | L83: Emissions
A84: Fuel Type | B84: (Billion Btu) | D84: (metric tons CH4 /BBtu) | F84: (metric tons CH4) | J84: (MMTCE) | L84: (MMTCO2E)
A85: Coal | B85: ='Electric Power N2O'!B85 ->  | C85: x | D85: =CoalCEFutil -> 0 | E85: = | F85: =B85*D85 ->  | G85: x | H85: =GWPCH4 -> 25 | I85: = | J85: =F85*H85*CO2_C/(10^6) ->  | K85: = | L85: =J85/CO2_C -> 
A86: Distillate Fuel | B86: ='Electric Power N2O'!B86 ->  | C86: x | D86: =DistillCEFutil -> 0 | E86: = | F86: =B86*D86 ->  | G86: x | H86: 25 | I86: = | K86: =
A87: Petroleum Coke | B87: ='Electric Power N2O'!B87 ->  | C87: x | D87: =PetCokeCEFutil -> 0 | E87: = | G87: x | H87: 25 | I87: = | K87: =
A88: Residual Fuel | B88: ='Electric Power N2O'!B88 ->  | C88: x | D88: =ResidCEFutil -> 0 | E88: = | G88: x | H88: 25 | I88: = | K88: =
A89: Natural Gas | B89: ='Electric Power N2O'!B89 ->  | C89: x | D89: =NatGasCEFutil -> 0 | E89: = | G89: x | H89: 25 | I89: = | K89: =
A90: Wood | B90: ='Electric Power N2O'!B90 ->  | C90: x | D90: =WoodCEFutil -> 0 | E90: = | G90: x | H90: 25 | I90: = | K90: =
A91: Other | B91: ='Electric Power N2O'!B91 -> 0 | C91: x | D91: =OtherCEFutil -> 0 | E91: = | F91: 0 | G91: x | H91: 25 | I91: = | J91: 0 | K91: = | L91: 0
H92: Total | I92: = | J92: =SUM(J85:J91) ->  | K92: =
A94: Electric Power Sector CH4 | D94: =D81+1 -> 1997
B96: Consumption | D96: Emission Factor | F96: Emissions | H96: GWP | J96: Emissions | L96: Emissions
A97: Fuel Type | B97: (Billion Btu) | D97: (metric tons CH4 /BBtu) | F97: (metric tons CH4) | J97: (MMTCE) | L97: (MMTCO2E)
A98: Coal | B98: ='Electric Power N2O'!B98 ->  | C98: x | D98: =CoalCEFutil -> 0 | E98: = | F98: =B98*D98 ->  | G98: x | H98: =GWPCH4 -> 25 | I98: = | J98: =F98*H98*CO2_C/(10^6) ->  | K98: = | L98: =J98/CO2_C -> 
A99: Distillate Fuel | B99: ='Electric Power N2O'!B99 ->  | C99: x | D99: =DistillCEFutil -> 0 | E99: = | F99: =B99*D99 ->  | G99: x | H99: 25 | I99: = | K99: =
A100: Petroleum Coke | B100: ='Electric Power N2O'!B100 ->  | C100: x | D100: =PetCokeCEFutil -> 0 | E100: = | G100: x | H100: 25 | I100: = | K100: =
A101: Residual Fuel | B101: ='Electric Power N2O'!B101 ->  | C101: x | D101: =ResidCEFutil -> 0 | E101: = | G101: x | H101: 25 | I101: = | K101: =
A102: Natural Gas | B102: ='Electric Power N2O'!B102 ->  | C102: x | D102: =NatGasCEFutil -> 0 | E102: = | G102: x | H102: 25 | I102: = | K102: =
A103: Wood | B103: ='Electric Power N2O'!B103 ->  | C103: x | D103: =WoodCEFutil -> 0 | E103: = | G103: x | H103: 25 | I103: = | K103: =
A104: Other | B104: ='Electric Power N2O'!B104 -> 0 | C104: x | D104: =OtherCEFutil -> 0 | E104: = | F104: 0 | G104: x | H104: 25 | I104: = | J104: 0 | K104: = | L104: 0
H105: Total | I105: = | J105: =SUM(J98:J104) ->  | K105: =
A107: Electric Power Sector CH4 | D107: =D94+1 -> 1998
B109: Consumption | D109: Emission Factor | F109: Emissions | H109: GWP | J109: Emissions | L109: Emissions
A110: Fuel Type | B110: (Billion Btu) | D110: (metric tons CH4 /BBtu) | F110: (metric tons CH4) | J110: (MMTCE) | L110: (MMTCO2E)
A111: Coal | B111: ='Electric Power N2O'!B111 ->  | C111: x | D111: =CoalCEFutil -> 0 | E111: = | F111: =B111*D111 ->  | G111: x | H111: =GWPCH4 -> 25 | I111: = | J111: =F111*H111*CO2_C/(10^6) ->  | K111: = | L111: =J111/CO2_C -> 
A112: Distillate Fuel | B112: ='Electric Power N2O'!B112 ->  | C112: x | D112: =DistillCEFutil -> 0 | E112: = | F112: =B112*D112 ->  | G112: x | H112: 25 | I112: = | K112: =
A113: Petroleum Coke | B113: ='Electric Power N2O'!B113 ->  | C113: x | D113: =PetCokeCEFutil -> 0 | E113: = | G113: x | H113: 25 | I113: = | K113: =
A114: Residual Fuel | B114: ='Electric Power N2O'!B114 ->  | C114: x | D114: =ResidCEFutil -> 0 | E114: = | G114: x | H114: 25 | I114: = | K114: =
A115: Natural Gas | B115: ='Electric Power N2O'!B115 ->  | C115: x | D115: =NatGasCEFutil -> 0 | E115: = | G115: x | H115: 25 | I115: = | K115: =
A116: Wood | B116: ='Electric Power N2O'!B116 ->  | C116: x | D116: =WoodCEFutil -> 0 | E116: = | G116: x | H116: 25 | I116: = | K116: =
A117: Other | B117: ='Electric Power N2O'!B117 -> 0 | C117: x | D117: =OtherCEFutil -> 0 | E117: = | F117: 0 | G117: x | H117: 25 | I117: = | J117: 0 | K117: = | L117: 0
H118: Total | I118: = | J118: =SUM(J111:J117) ->  | K118: =
A120: Electric Power Sector CH4 | D120: =D107+1 -> 1999
B122: Consumption | D122: Emission Factor | F122: Emissions | H122: GWP | J122: Emissions | L122: Emissions
A123: Fuel Type | B123: (Billion Btu) | D123: (metric tons CH4 /BBtu) | F123: (metric tons CH4) | J123: (MMTCE) | L123: (MMTCO2E)
A124: Coal | B124: ='Electric Power N2O'!B124 ->  | C124: x | D124: =CoalCEFutil -> 0 | E124: = | F124: =B124*D124 ->  | G124: x | H124: =GWPCH4 -> 25 | I124: = | J124: =F124*H124*CO2_C/(10^6) ->  | K124: = | L124: =J124/CO2_C -> 
A125: Distillate Fuel | B125: ='Electric Power N2O'!B125 ->  | C125: x | D125: =DistillCEFutil -> 0 | E125: = | F125: =B125*D125 ->  | G125: x | H125: 25 | I125: = | K125: =
A126: Petroleum Coke | B126: ='Electric Power N2O'!B126 ->  | C126: x | D126: =PetCokeCEFutil -> 0 | E126: = | G126: x | H126: 25 | I126: = | K126: =
A127: Residual Fuel | B127: ='Electric Power N2O'!B127 ->  | C127: x | D127: =ResidCEFutil -> 0 | E127: = | G127: x | H127: 25 | I127: = | K127: =
A128: Natural Gas | B128: ='Electric Power N2O'!B128 ->  | C128: x | D128: =NatGasCEFutil -> 0 | E128: = | G128: x | H128: 25 | I128: = | K128: =
A129: Wood | B129: ='Electric Power N2O'!B129 ->  | C129: x | D129: =WoodCEFutil -> 0 | E129: = | G129: x | H129: 25 | I129: = | K129: =
A130: Other | B130: ='Electric Power N2O'!B130 -> 0 | C130: x | D130: =OtherCEFutil -> 0 | E130: = | F130: 0 | G130: x | H130: 25 | I130: = | J130: 0 | K130: = | L130: 0
H131: Total | I131: = | J131: =SUM(J124:J130) ->  | K131: =
A133: Electric Power Sector CH4 | D133: =D120+1 -> 2000
B135: Consumption | D135: Emission Factor | F135: Emissions | H135: GWP | J135: Emissions | L135: Emissions
A136: Fuel Type | B136: (Billion Btu) | D136: (metric tons CH4 /BBtu) | F136: (metric tons CH4) | J136: (MMTCE) | L136: (MMTCO2E)
A137: Coal | B137: ='Electric Power N2O'!B137 ->  | C137: x | D137: =CoalCEFutil -> 0 | E137: = | F137: =B137*D137 ->  | G137: x | H137: =GWPCH4 -> 25 | I137: = | J137: =F137*H137*CO2_C/(10^6) ->  | K137: = | L137: =J137/CO2_C -> 
A138: Distillate Fuel | B138: ='Electric Power N2O'!B138 ->  | C138: x | D138: =DistillCEFutil -> 0 | E138: = | F138: =B138*D138 ->  | G138: x | H138: 25 | I138: = | K138: =
A139: Petroleum Coke | B139: ='Electric Power N2O'!B139 ->  | C139: x | D139: =PetCokeCEFutil -> 0 | E139: = | G139: x | H139: 25 | I139: = | K139: =
A140: Residual Fuel | B140: ='Electric Power N2O'!B140 ->  | C140: x | D140: =ResidCEFutil -> 0 | E140: = | G140: x | H140: 25 | I140: = | K140: =
A141: Natural Gas | B141: ='Electric Power N2O'!B141 ->  | C141: x | D141: =NatGasCEFutil -> 0 | E141: = | G141: x | H141: 25 | I141: = | K141: =
A142: Wood | B142: ='Electric Power N2O'!B142 ->  | C142: x | D142: =WoodCEFutil -> 0 | E142: = | G142: x | H142: 25 | I142: = | K142: =
A143: Other | B143: ='Electric Power N2O'!B143 -> 0 | C143: x | D143: =OtherCEFutil -> 0 | E143: = | F143: 0 | G143: x | H143: 25 | I143: = | J143: 0 | K143: = | L143: 0
H144: Total | I144: = | J144: =SUM(J137:J143) ->  | K144: =
A146: Electric Power Sector CH4 | D146: =D133+1 -> 2001
B148: Consumption | D148: Emission Factor | F148: Emissions | H148: GWP | J148: Emissions | L148: Emissions
A149: Fuel Type | B149: (Billion Btu) | D149: (metric tons CH4 /BBtu) | F149: (metric tons CH4) | J149: (MMTCE) | L149: (MMTCO2E)
A150: Coal | B150: ='Electric Power N2O'!B150 ->  | C150: x | D150: =CoalCEFutil -> 0 | E150: = | F150: =B150*D150 ->  | G150: x | H150: =GWPCH4 -> 25 | I150: = | J150: =F150*H150*CO2_C/(10^6) ->  | K150: = | L150: =J150/CO2_C -> 
A151: Distillate Fuel | B151: ='Electric Power N2O'!B151 ->  | C151: x | D151: =DistillCEFutil -> 0 | E151: = | F151: =B151*D151 ->  | G151: x | H151: 25 | I151: = | K151: =
A152: Petroleum Coke | B152: ='Electric Power N2O'!B152 ->  | C152: x | D152: =PetCokeCEFutil -> 0 | E152: = | G152: x | H152: 25 | I152: = | K152: =
A153: Residual Fuel | B153: ='Electric Power N2O'!B153 ->  | C153: x | D153: =ResidCEFutil -> 0 | E153: = | G153: x | H153: 25 | I153: = | K153: =
A154: Natural Gas | B154: ='Electric Power N2O'!B154 ->  | C154: x | D154: =NatGasCEFutil -> 0 | E154: = | G154: x | H154: 25 | I154: = | K154: =
A155: Wood | B155: ='Electric Power N2O'!B155 ->  | C155: x | D155: =WoodCEFutil -> 0 | E155: = | G155: x | H155: 25 | I155: = | K155: =
A156: Other | B156: ='Electric Power N2O'!B156 -> 0 | C156: x | D156: =OtherCEFutil -> 0 | E156: = | F156: 0 | G156: x | H156: 25 | I156: = | J156: 0 | K156: = | L156: 0
H157: Total | I157: = | J157: =SUM(J150:J156) ->  | K157: =
A159: Electric Power Sector CH4 | D159: =D146+1 -> 2002
B161: Consumption | D161: Emission Factor | F161: Emissions | H161: GWP | J161: Emissions | L161: Emissions
A162: Fuel Type | B162: (Billion Btu) | D162: (metric tons CH4 /BBtu) | F162: (metric tons CH4) | J162: (MMTCE) | L162: (MMTCO2E)
A163: Coal | B163: ='Electric Power N2O'!B163 ->  | C163: x | D163: =CoalCEFutil -> 0 | E163: = | F163: =B163*D163 ->  | G163: x | H163: =GWPCH4 -> 25 | I163: = | J163: =F163*H163*CO2_C/(10^6) ->  | K163: = | L163: =J163/CO2_C -> 
A164: Distillate Fuel | B164: ='Electric Power N2O'!B164 ->  | C164: x | D164: =DistillCEFutil -> 0 | E164: = | F164: =B164*D164 ->  | G164: x | H164: 25 | I164: = | K164: =
A165: Petroleum Coke | B165: ='Electric Power N2O'!B165 ->  | C165: x | D165: =PetCokeCEFutil -> 0 | E165: = | G165: x | H165: 25 | I165: = | K165: =
A166: Residual Fuel | B166: ='Electric Power N2O'!B166 ->  | C166: x | D166: =ResidCEFutil -> 0 | E166: = | G166: x | H166: 25 | I166: = | K166: =
A167: Natural Gas | B167: ='Electric Power N2O'!B167 ->  | C167: x | D167: =NatGasCEFutil -> 0 | E167: = | G167: x | H167: 25 | I167: = | K167: =
A168: Wood | B168: ='Electric Power N2O'!B168 ->  | C168: x | D168: =WoodCEFutil -> 0 | E168: = | G168: x | H168: 25 | I168: = | K168: =
A169: Other | B169: ='Electric Power N2O'!B169 -> 0 | C169: x | D169: =OtherCEFutil -> 0 | E169: = | F169: 0 | G169: x | H169: 25 | I169: = | J169: 0 | K169: = | L169: 0
H170: Total | I170: = | J170: =SUM(J163:J169) ->  | K170: =
A172: Electric Power Sector CH4 | D172: =D159+1 -> 2003
B174: Consumption | D174: Emission Factor | F174: Emissions | H174: GWP | J174: Emissions | L174: Emissions
A175: Fuel Type | B175: (Billion Btu) | D175: (metric tons CH4 /BBtu) | F175: (metric tons CH4) | J175: (MMTCE) | L175: (MMTCO2E)
A176: Coal | B176: ='Electric Power N2O'!B176 ->  | C176: x | D176: =CoalCEFutil -> 0 | E176: = | F176: =B176*D176 ->  | G176: x | H176: =GWPCH4 -> 25 | I176: = | J176: =F176*H176*CO2_C/(10^6) ->  | K176: = | L176: =J176/CO2_C -> 
A177: Distillate Fuel | B177: ='Electric Power N2O'!B177 ->  | C177: x | D177: =DistillCEFutil -> 0 | E177: = | F177: =B177*D177 ->  | G177: x | H177: 25 | I177: = | K177: =
A178: Petroleum Coke | B178: ='Electric Power N2O'!B178 ->  | C178: x | D178: =PetCokeCEFutil -> 0 | E178: = | G178: x | H178: 25 | I178: = | K178: =
A179: Residual Fuel | B179: ='Electric Power N2O'!B179 ->  | C179: x | D179: =ResidCEFutil -> 0 | E179: = | G179: x | H179: 25 | I179: = | K179: =
A180: Natural Gas | B180: ='Electric Power N2O'!B180 ->  | C180: x | D180: =NatGasCEFutil -> 0 | E180: = | G180: x | H180: 25 | I180: = | K180: =
A181: Wood | B181: ='Electric Power N2O'!B181 ->  | C181: x | D181: =WoodCEFutil -> 0 | E181: = | G181: x | H181: 25 | I181: = | K181: =
A182: Other | B182: ='Electric Power N2O'!B182 -> 0 | C182: x | D182: =OtherCEFutil -> 0 | E182: = | F182: 0 | G182: x | H182: 25 | I182: = | J182: 0 | K182: = | L182: 0
H183: Total | I183: = | J183: =SUM(J176:J182) ->  | K183: =
A185: Electric Power Sector CH4 | D185: =D172+1 -> 2004
B187: Consumption | D187: Emission Factor | F187: Emissions | H187: GWP | J187: Emissions | L187: Emissions
A188: Fuel Type | B188: (Billion Btu) | D188: (metric tons CH4 /BBtu) | F188: (metric tons CH4) | J188: (MMTCE) | L188: (MMTCO2E)
A189: Coal | B189: ='Electric Power N2O'!B189 ->  | C189: x | D189: =CoalCEFutil -> 0 | E189: = | F189: =B189*D189 ->  | G189: x | H189: =GWPCH4 -> 25 | I189: = | J189: =F189*H189*CO2_C/(10^6) ->  | K189: = | L189: =J189/CO2_C -> 
A190: Distillate Fuel | B190: ='Electric Power N2O'!B190 ->  | C190: x | D190: =DistillCEFutil -> 0 | E190: = | F190: =B190*D190 ->  | G190: x | H190: 25 | I190: = | K190: =
A191: Petroleum Coke | B191: ='Electric Power N2O'!B191 ->  | C191: x | D191: =PetCokeCEFutil -> 0 | E191: = | G191: x | H191: 25 | I191: = | K191: =
A192: Residual Fuel | B192: ='Electric Power N2O'!B192 ->  | C192: x | D192: =ResidCEFutil -> 0 | E192: = | G192: x | H192: 25 | I192: = | K192: =
A193: Natural Gas | B193: ='Electric Power N2O'!B193 ->  | C193: x | D193: =NatGasCEFutil -> 0 | E193: = | G193: x | H193: 25 | I193: = | K193: =
A194: Wood | B194: ='Electric Power N2O'!B194 ->  | C194: x | D194: =WoodCEFutil -> 0 | E194: = | G194: x | H194: 25 | I194: = | K194: =
A195: Other | B195: ='Electric Power N2O'!B195 -> 0 | C195: x | D195: =OtherCEFutil -> 0 | E195: = | F195: 0 | G195: x | H195: 25 | I195: = | J195: 0 | K195: = | L195: 0
H196: Total | I196: = | J196: =SUM(J189:J195) ->  | K196: =
A198: Electric Power Sector CH4 | D198: =D185+1 -> 2005
B200: Consumption | D200: Emission Factor | F200: Emissions | H200: GWP | J200: Emissions | L200: Emissions
A201: Fuel Type | B201: (Billion Btu) | D201: (metric tons CH4 /BBtu) | F201: (metric tons CH4) | J201: (MMTCE) | L201: (MMTCO2E)
A202: Coal | B202: ='Electric Power N2O'!B202 ->  | C202: x | D202: =CoalCEFutil -> 0 | E202: = | F202: =B202*D202 ->  | G202: x | H202: =GWPCH4 -> 25 | I202: = | J202: =F202*H202*CO2_C/(10^6) ->  | K202: = | L202: =J202/CO2_C -> 
A203: Distillate Fuel | B203: ='Electric Power N2O'!B203 ->  | C203: x | D203: =DistillCEFutil -> 0 | E203: = | F203: =B203*D203 ->  | G203: x | H203: 25 | I203: = | K203: =
A204: Petroleum Coke | B204: ='Electric Power N2O'!B204 ->  | C204: x | D204: =PetCokeCEFutil -> 0 | E204: = | G204: x | H204: 25 | I204: = | K204: =
A205: Residual Fuel | B205: ='Electric Power N2O'!B205 ->  | C205: x | D205: =ResidCEFutil -> 0 | E205: = | G205: x | H205: 25 | I205: = | K205: =
A206: Natural Gas | B206: ='Electric Power N2O'!B206 ->  | C206: x | D206: =NatGasCEFutil -> 0 | E206: = | G206: x | H206: 25 | I206: = | K206: =
A207: Wood | B207: ='Electric Power N2O'!B207 ->  | C207: x | D207: =WoodCEFutil -> 0 | E207: = | G207: x | H207: 25 | I207: = | K207: =
A208: Other | B208: ='Electric Power N2O'!B208 -> 0 | C208: x | D208: =OtherCEFutil -> 0 | E208: = | F208: 0 | G208: x | H208: 25 | I208: = | J208: 0 | K208: = | L208: 0
H209: Total | I209: = | J209: =SUM(J202:J208) ->  | K209: =
A211: Electric Power Sector CH4 | D211: =D198+1 -> 2006
B213: Consumption | D213: Emission Factor | F213: Emissions | H213: GWP | J213: Emissions | L213: Emissions
A214: Fuel Type | B214: (Billion Btu) | D214: (metric tons CH4 /BBtu) | F214: (metric tons CH4) | J214: (MMTCE) | L214: (MMTCO2E)
A215: Coal | B215: ='Electric Power N2O'!B215 ->  | C215: x | D215: =CoalCEFutil -> 0 | E215: = | F215: =B215*D215 ->  | G215: x | H215: =GWPCH4 -> 25 | I215: = | J215: =F215*H215*CO2_C/(10^6) ->  | K215: = | L215: =J215/CO2_C -> 
A216: Distillate Fuel | B216: ='Electric Power N2O'!B216 ->  | C216: x | D216: =DistillCEFutil -> 0 | E216: = | F216: =B216*D216 ->  | G216: x | H216: 25 | I216: = | K216: =
A217: Petroleum Coke | B217: ='Electric Power N2O'!B217 ->  | C217: x | D217: =PetCokeCEFutil -> 0 | E217: = | G217: x | H217: 25 | I217: = | K217: =
A218: Residual Fuel | B218: ='Electric Power N2O'!B218 ->  | C218: x | D218: =ResidCEFutil -> 0 | E218: = | G218: x | H218: 25 | I218: = | K218: =
A219: Natural Gas | B219: ='Electric Power N2O'!B219 ->  | C219: x | D219: =NatGasCEFutil -> 0 | E219: = | G219: x | H219: 25 | I219: = | K219: =
A220: Wood | B220: ='Electric Power N2O'!B220 ->  | C220: x | D220: =WoodCEFutil -> 0 | E220: = | G220: x | H220: 25 | I220: = | K220: =
A221: Other | B221: ='Electric Power N2O'!B221 -> 0 | C221: x | D221: =OtherCEFutil -> 0 | E221: = | F221: 0 | G221: x | H221: 25 | I221: = | J221: 0 | K221: = | L221: 0
H222: Total | I222: = | J222: =SUM(J215:J221) ->  | K222: =
A224: Electric Power Sector CH4 | D224: =D211+1 -> 2007
B226: Consumption | D226: Emission Factor | F226: Emissions | H226: GWP | J226: Emissions | L226: Emissions
A227: Fuel Type | B227: (Billion Btu) | D227: (metric tons CH4 /BBtu) | F227: (metric tons CH4) | J227: (MMTCE) | L227: (MMTCO2E)
A228: Coal | B228: ='Electric Power N2O'!B228 ->  | C228: x | D228: =CoalCEFutil -> 0 | E228: = | F228: =B228*D228 ->  | G228: x | H228: =GWPCH4 -> 25 | I228: = | J228: =F228*H228*CO2_C/(10^6) ->  | K228: = | L228: =J228/CO2_C -> 
A229: Distillate Fuel | B229: ='Electric Power N2O'!B229 ->  | C229: x | D229: =DistillCEFutil -> 0 | E229: = | F229: =B229*D229 ->  | G229: x | H229: 25 | I229: = | K229: =
A230: Petroleum Coke | B230: ='Electric Power N2O'!B230 ->  | C230: x | D230: =PetCokeCEFutil -> 0 | E230: = | G230: x | H230: 25 | I230: = | K230: =
A231: Residual Fuel | B231: ='Electric Power N2O'!B231 ->  | C231: x | D231: =ResidCEFutil -> 0 | E231: = | G231: x | H231: 25 | I231: = | K231: =
A232: Natural Gas | B232: ='Electric Power N2O'!B232 ->  | C232: x | D232: =NatGasCEFutil -> 0 | E232: = | G232: x | H232: 25 | I232: = | K232: =
A233: Wood | B233: ='Electric Power N2O'!B233 ->  | C233: x | D233: =WoodCEFutil -> 0 | E233: = | G233: x | H233: 25 | I233: = | K233: =
A234: Other | B234: ='Electric Power N2O'!B234 -> 0 | C234: x | D234: =OtherCEFutil -> 0 | E234: = | F234: 0 | G234: x | H234: 25 | I234: = | J234: 0 | K234: = | L234: 0
H235: Total | I235: = | J235: =SUM(J228:J234) ->  | K235: =
... 143 more rows

Sheet Industrial N2O
B1: ="5. Industrial Consumption and N2O emissions in "&Constants!G2 -> 5. Industrial Consumption and N2O emissions in Select a State . . .
B2: =Constants!H2 -> xx | C2: Industrial | D2: =" " ->  | E2: =Constants!G2 -> Select a State . . .
B3: Industrial Sector N2O | E3: 1990
C4: Total | E4: Non-Energy
C5: Consumption | E5: Consumption | G5: Emission Factor | I5: Emissions | K5: GWP | M5: Emissions | O5: Emissions
B6: Fuel Type | C6: (Billion Btu) | E6: (Billion Btu) | G6: (metric tons N2O/BBtu) | I6: (metric tons N2O) | M6: (MMTCE) | O6: (MMTCO2E)
B7: Coking Coal | C7: =VLOOKUP($B$2&$D$2&$C$2&$D$2&$B7,ConsumeBlock3,E3-1987,FALSE) ->  | D7: - | F7: x | G7: =CokeCoalNEFind -> 0 | H7: = | I7: =(C7-E7)*G7 ->  | J7: x | K7: =GWPN2O -> 298 | L7: = | M7: =I7*K7*CO2_C/(10^6) ->  | N7: = | O7: =M7/CO2_C -> 
B8: Other Coal | C8: =IF(VLOOKUP($B$2&$D$2&$C$2&$D$2&$B8,ConsumeBlock3,$E3-1987,FALSE)-VLOOKUP($E$2,SyntheticNG,$E3-1988,FALSE)<0,0,VLOOKUP($B$2&$D$2&$C$2&$D$2&$B8,ConsumeBlock3,$E3-1987,FALSE)-VLOOKUP($E$2,SyntheticNG,$E3-1988,FALSE)) ->  | D8: - | F8: x | G8: =OtherCoalNEFind -> 0 | H8: = | I8: =(C8-E8)*G8 ->  | J8: x | K8: =GWPN2O -> 298 | L8: = | M8: =I8*K8*CO2_C/(10^6) ->  | N8: =
B9: Asphalt and Road Oil | C9: =VLOOKUP($B$2&$D$2&$C$2&$D$2&$B9,ConsumeBlock3,3,FALSE) ->  | D9: - | F9: x | G9: =AsphaltNEFind -> 0 | H9: = | J9: x | K9: 298 | L9: = | N9: =
B10: Aviation Gasoline Blending Components | D10: - | F10: x | G10: =AvGasBlendNEFind -> 0 | H10: = | J10: x | K10: 298 | L10: = | N10: =
B11: Crude Oil | D11: - | F11: x | G11: =CrudeNEFind -> 0 | H11: = | J11: x | K11: 298 | L11: = | N11: =
B12: Distillate Fuel | D12: - | F12: x | G12: =DistillNEFind -> 0 | H12: = | J12: x | K12: 298 | L12: = | N12: =
B13: Feedstocks, Naphtha less than 401 F | D13: - | F13: x | G13: =NaphNEFind -> 0 | H13: = | J13: x | K13: 298 | L13: = | N13: =
B14: Feedstocks, Other Oils greater than 401 F | D14: - | F14: x | G14: =OtherOilNEFind -> 0 | H14: = | J14: x | K14: 298 | L14: = | N14: =
B15: Kerosene | D15: - | F15: x | G15: =KeroNEFind -> 0 | H15: = | J15: x | K15: 298 | L15: = | N15: =
B16: LPG | D16: - | F16: x | G16: =LPGNEFind -> 0 | H16: = | J16: x | K16: 298 | L16: = | N16: =
B17: Lubricants | D17: - | F17: x | G17: =LubeNEFind -> 0 | H17: = | J17: x | K17: 298 | L17: = | N17: =
B18: Motor Gasoline | D18: - | F18: x | G18: =MotorGasNEFind -> 0 | H18: = | J18: x | K18: 298 | L18: = | N18: =
B19: Motor Gasoline Blending Components | D19: - | F19: x | G19: =MoGasBlendNEFind -> 0 | H19: = | J19: x | K19: 298 | L19: = | N19: =
B20: Misc. Petro Products | D20: - | F20: x | G20: =MiscNEFind -> 0 | H20: = | J20: x | K20: 298 | L20: = | N20: =
B21: Petroleum Coke | D21: - | F21: x | G21: =PetCokeNEFind -> 0 | H21: = | J21: x | K21: 298 | L21: = | N21: =
B22: Pentanes Plus | D22: - | F22: x | G22: =pentanesNEFind -> 0 | H22: = | J22: x | K22: 298 | L22: = | N22: =
B23: Residual Fuel | D23: - | F23: x | G23: =ResidNEFind -> 0 | H23: = | J23: x | K23: 298 | L23: = | N23: =
B24: Still Gas | D24: - | F24: x | G24: =StillNEFind -> 0 | H24: = | J24: x | K24: 298 | L24: = | N24: =
B25: Special Naphthas | D25: - | F25: x | G25: =SpecialNEFind -> 0 | H25: = | J25: x | K25: 298 | L25: = | N25: =
B26: Unfinished Oils | D26: - | F26: x | G26: =UnfinNEFind -> 0 | H26: = | J26: x | K26: 298 | L26: = | N26: =
B27: Waxes | D27: - | F27: x | G27: =WaxesNEFind -> 0 | H27: = | J27: x | K27: 298 | L27: = | N27: =
B28: Natural Gas | D28: - | F28: x | G28: =NatGasNEFind -> 0 | H28: = | J28: x | K28: 298 | L28: = | N28: =
B29: Wood | D29: - | E29: NA | F29: x | G29: =WoodNEFind -> 0 | H29: = | I29: =C29*G29 ->  | J29: x | K29: 298 | L29: = | N29: =
B30: Other | C30: =VLOOKUP($B$2&$D$2&$C$2&$D$2&$B30,ConsumeBlock3,E3-1987,FALSE) -> 0 | D30: - | F30: x | G30: =OtherNEFind -> 0 | H30: = | I30: 0 | J30: x | K30: 298 | L30: = | M30: 0 | N30: = | O30: 0
K31: Total | L31: = | M31: =SUM(M7:M30) ->  | N31: =
B33: Industrial Sector N2O | E33: =E3+1 -> 1991
C34: Total | E34: Non-Energy
C35: Consumption | E35: Consumption | G35: Emission Factor | I35: Emissions | K35: GWP | M35: Emissions | O35: Emissions
B36: Fuel Type | C36: (Billion Btu) | E36: (Billion Btu) | G36: (metric tons N2O/BBtu) | I36: (metric tons N2O) | M36: (MMTCE) | O36: (MMTCO2E)
B37: Coking Coal | C37: =VLOOKUP($B$2&$D$2&$C$2&$D$2&$B37,ConsumeBlock3,E33-1987,FALSE) ->  | D37: - | F37: x | G37: =CokeCoalNEFind -> 0 | H37: = | I37: =(C37-E37)*G37 ->  | J37: x | K37: =GWPN2O -> 298 | L37: = | M37: =I37*K37*CO2_C/(10^6) ->  | N37: = | O37: =M37/CO2_C -> 
B38: Other Coal | C38: =IF(VLOOKUP($B$2&$D$2&$C$2&$D$2&$B38,ConsumeBlock3,$E33-1987,FALSE)-VLOOKUP($E$2,SyntheticNG,$E33-1988,FALSE)<0,0,VLOOKUP($B$2&$D$2&$C$2&$D$2&$B38,ConsumeBlock3,$E33-1987,FALSE)-VLOOKUP($E$2,SyntheticNG,$E33-1988,FALSE)) ->  | D38: - | F38: x | G38: =OtherCoalNEFind -> 0 | H38: = | I38: =(C38-E38)*G38 ->  | J38: x | K38: =GWPN2O -> 298 | L38: = | M38: =I38*K38*CO2_C/(10^6) ->  | N38: =
B39: Asphalt and Road Oil | C39: =VLOOKUP($B$2&$D$2&$C$2&$D$2&$B39,ConsumeBlock3,4,FALSE) ->  | D39: - | F39: x | G39: =AsphaltNEFind -> 0 | H39: = | J39: x | K39: 298 | L39: = | N39: =
B40: Aviation Gasoline Blending Components | D40: - | F40: x | G40: =AvGasBlendNEFind -> 0 | H40: = | J40: x | K40: 298 | L40: = | N40: =
B41: Crude Oil | D41: - | F41: x | G41: =CrudeNEFind -> 0 | H41: = | J41: x | K41: 298 | L41: = | N41: =
B42: Distillate Fuel | D42: - | F42: x | G42: =DistillNEFind -> 0 | H42: = | J42: x | K42: 298 | L42: = | N42: =
B43: Feedstocks, Naphtha less than 401 F | D43: - | F43: x | G43: =NaphNEFind -> 0 | H43: = | J43: x | K43: 298 | L43: = | N43: =
B44: Feedstocks, Other Oils greater than 401 F | D44: - | F44: x | G44: =OtherOilNEFind -> 0 | H44: = | J44: x | K44: 298 | L44: = | N44: =
B45: Kerosene | D45: - | F45: x | G45: =KeroNEFind -> 0 | H45: = | J45: x | K45: 298 | L45: = | N45: =
B46: LPG | D46: - | F46: x | G46: =LPGNEFind -> 0 | H46: = | J46: x | K46: 298 | L46: = | N46: =
B47: Lubricants | D47: - | F47: x | G47: =LubeNEFind -> 0 | H47: = | J47: x | K47: 298 | L47: = | N47: =
B48: Motor Gasoline | D48: - | F48: x | G48: =MotorGasNEFind -> 0 | H48: = | J48: x | K48: 298 | L48: = | N48: =
B49: Motor Gasoline Blending Components | D49: - | F49: x | G49: =MoGasBlendNEFind -> 0 | H49: = | J49: x | K49: 298 | L49: = | N49: =
B50: Misc. Petro Products | D50: - | F50: x | G50: =MiscNEFind -> 0 | H50: = | J50: x | K50: 298 | L50: = | N50: =
B51: Petroleum Coke | D51: - | F51: x | G51: =PetCokeNEFind -> 0 | H51: = | J51: x | K51: 298 | L51: = | N51: =
B52: Pentanes Plus | D52: - | F52: x | G52: =pentanesNEFind -> 0 | H52: = | J52: x | K52: 298 | L52: = | N52: =
B53: Residual Fuel | D53: - | F53: x | G53: =ResidNEFind -> 0 | H53: = | J53: x | K53: 298 | L53: = | N53: =
B54: Still Gas | D54: - | F54: x | G54: =StillNEFind -> 0 | H54: = | J54: x | K54: 298 | L54: = | N54: =
B55: Special Naphthas | D55: - | F55: x | G55: =SpecialNEFind -> 0 | H55: = | J55: x | K55: 298 | L55: = | N55: =
B56: Unfinished Oils | D56: - | F56: x | G56: =UnfinNEFind -> 0 | H56: = | J56: x | K56: 298 | L56: = | N56: =
B57: Waxes | D57: - | F57: x | G57: =WaxesNEFind -> 0 | H57: = | J57: x | K57: 298 | L57: = | N57: =
B58: Natural Gas | D58: - | F58: x | G58: =NatGasNEFind -> 0 | H58: = | J58: x | K58: 298 | L58: = | N58: =
B59: Wood | D59: - | E59: NA | F59: x | G59: =WoodNEFind -> 0 | H59: = | I59: =C59*G59 ->  | J59: x | K59: 298 | L59: = | N59: =
B60: Other | C60: =VLOOKUP($B$2&$D$2&$C$2&$D$2&$B60,ConsumeBlock3,E33-1987,FALSE) -> 0 | D60: - | F60: x | G60: =OtherNEFind -> 0 | H60: = | I60: 0 | J60: x | K60: 298 | L60: = | M60: 0 | N60: = | O60: 0
K61: Total | L61: = | M61: =SUM(M37:M60) ->  | N61: =
B63: Industrial Sector N2O | E63: =E33+1 -> 1992
C64: Total | E64: Non-Energy
C65: Consumption | E65: Consumption | G65: Emission Factor | I65: Emissions | K65: GWP | M65: Emissions | O65: Emissions
B66: Fuel Type | C66: (Billion Btu) | E66: (Billion Btu) | G66: (metric tons N2O/BBtu) | I66: (metric tons N2O) | M66: (MMTCE) | O66: (MMTCO2E)
B67: Coking Coal | C67: =VLOOKUP($B$2&$D$2&$C$2&$D$2&$B67,ConsumeBlock3,E63-1987,FALSE) ->  | D67: - | F67: x | G67: =CokeCoalNEFind -> 0 | H67: = | I67: =(C67-E67)*G67 ->  | J67: x | K67: =GWPN2O -> 298 | L67: = | M67: =I67*K67*CO2_C/(10^6) ->  | N67: = | O67: =M67/CO2_C -> 
B68: Other Coal | C68: =IF(VLOOKUP($B$2&$D$2&$C$2&$D$2&$B68,ConsumeBlock3,$E63-1987,FALSE)-VLOOKUP($E$2,SyntheticNG,$E63-1988,FALSE)<0,0,VLOOKUP($B$2&$D$2&$C$2&$D$2&$B68,ConsumeBlock3,$E63-1987,FALSE)-VLOOKUP($E$2,SyntheticNG,$E63-1988,FALSE)) ->  | D68: - | F68: x | G68: =OtherCoalNEFind -> 0 | H68: = | I68: =(C68-E68)*G68 ->  | J68: x | K68: =GWPN2O -> 298 | L68: = | M68: =I68*K68*CO2_C/(10^6) ->  | N68: =
B69: Asphalt and Road Oil | C69: =VLOOKUP($B$2&$D$2&$C$2&$D$2&$B69,ConsumeBlock3,5,FALSE) ->  | D69: - | F69: x | G69: =AsphaltNEFind -> 0 | H69: = | J69: x | K69: 298 | L69: = | N69: =
B70: Aviation Gasoline Blending Components | D70: - | F70: x | G70: =AvGasBlendNEFind -> 0 | H70: = | J70: x | K70: 298 | L70: = | N70: =
B71: Crude Oil | D71: - | F71: x | G71: =CrudeNEFind -> 0 | H71: = | J71: x | K71: 298 | L71: = | N71: =
B72: Distillate Fuel | D72: - | F72: x | G72: =DistillNEFind -> 0 | H72: = | J72: x | K72: 298 | L72: = | N72: =
B73: Feedstocks, Naphtha less than 401 F | D73: - | F73: x | G73: =NaphNEFind -> 0 | H73: = | J73: x | K73: 298 | L73: = | N73: =
B74: Feedstocks, Other Oils greater than 401 F | D74: - | F74: x | G74: =OtherOilNEFind -> 0 | H74: = | J74: x | K74: 298 | L74: = | N74: =
B75: Kerosene | D75: - | F75: x | G75: =KeroNEFind -> 0 | H75: = | J75: x | K75: 298 | L75: = | N75: =
B76: LPG | D76: - | F76: x | G76: =LPGNEFind -> 0 | H76: = | J76: x | K76: 298 | L76: = | N76: =
B77: Lubricants | D77: - | F77: x | G77: =LubeNEFind -> 0 | H77: = | J77: x | K77: 298 | L77: = | N77: =
B78: Motor Gasoline | D78: - | F78: x | G78: =MotorGasNEFind -> 0 | H78: = | J78: x | K78: 298 | L78: = | N78: =
B79: Motor Gasoline Blending Components | D79: - | F79: x | G79: =MoGasBlendNEFind -> 0 | H79: = | J79: x | K79: 298 | L79: = | N79: =
B80: Misc. Petro Products | D80: - | F80: x | G80: =MiscNEFind -> 0 | H80: = | J80: x | K80: 298 | L80: = | N80: =
B81: Petroleum Coke | D81: - | F81: x | G81: =PetCokeNEFind -> 0 | H81: = | J81: x | K81: 298 | L81: = | N81: =
B82: Pentanes Plus | D82: - | F82: x | G82: =pentanesNEFind -> 0 | H82: = | J82: x | K82: 298 | L82: = | N82: =
B83: Residual Fuel | D83: - | F83: x | G83: =ResidNEFind -> 0 | H83: = | J83: x | K83: 298 | L83: = | N83: =
B84: Still Gas | D84: - | F84: x | G84: =StillNEFind -> 0 | H84: = | J84: x | K84: 298 | L84: = | N84: =
B85: Special Naphthas | D85: - | F85: x | G85: =SpecialNEFind -> 0 | H85: = | J85: x | K85: 298 | L85: = | N85: =
B86: Unfinished Oils | D86: - | F86: x | G86: =UnfinNEFind -> 0 | H86: = | J86: x | K86: 298 | L86: = | N86: =
B87: Waxes | D87: - | F87: x | G87: =WaxesNEFind -> 0 | H87: = | J87: x | K87: 298 | L87: = | N87: =
B88: Natural Gas | D88: - | F88: x | G88: =NatGasNEFind -> 0 | H88: = | J88: x | K88: 298 | L88: = | N88: =
B89: Wood | D89: - | E89: NA | F89: x | G89: =WoodNEFind -> 0 | H89: = | I89: =C89*G89 ->  | J89: x | K89: 298 | L89: = | N89: =
B90: Other | C90: =VLOOKUP($B$2&$D$2&$C$2&$D$2&$B90,ConsumeBlock3,E63-1987,FALSE) -> 0 | D90: - | F90: x | G90: =OtherNEFind -> 0 | H90: = | I90: 0 | J90: x | K90: 298 | L90: = | M90: 0 | N90: = | O90: 0
K91: Total | L91: = | M91: =SUM(M67:M90) ->  | N91: =
B93: Industrial Sector N2O | E93: =E63+1 -> 1993
C94: Total | E94: Non-Energy
C95: Consumption | E95: Consumption | G95: Emission Factor | I95: Emissions | K95: GWP | M95: Emissions | O95: Emissions
B96: Fuel Type | C96: (Billion Btu) | E96: (Billion Btu) | G96: (metric tons N2O/BBtu) | I96: (metric tons N2O) | M96: (MMTCE) | O96: (MMTCO2E)
B97: Coking Coal | C97: =VLOOKUP($B$2&$D$2&$C$2&$D$2&$B97,ConsumeBlock3,E93-1987,FALSE) ->  | D97: - | F97: x | G97: =CokeCoalNEFind -> 0 | H97: = | I97: =(C97-E97)*G97 ->  | J97: x | K97: =GWPN2O -> 298 | L97: = | M97: =I97*K97*CO2_C/(10^6) ->  | N97: = | O97: =M97/CO2_C -> 
B98: Other Coal | C98: =IF(VLOOKUP($B$2&$D$2&$C$2&$D$2&$B98,ConsumeBlock3,$E93-1987,FALSE)-VLOOKUP($E$2,SyntheticNG,$E93-1988,FALSE)<0,0,VLOOKUP($B$2&$D$2&$C$2&$D$2&$B98,ConsumeBlock3,$E93-1987,FALSE)-VLOOKUP($E$2,SyntheticNG,$E93-1988,FALSE)) ->  | D98: - | F98: x | G98: =OtherCoalNEFind -> 0 | H98: = | I98: =(C98-E98)*G98 ->  | J98: x | K98: =GWPN2O -> 298 | L98: = | M98: =I98*K98*CO2_C/(10^6) ->  | N98: =
B99: Asphalt and Road Oil | C99: =VLOOKUP($B$2&$D$2&$C$2&$D$2&$B99,ConsumeBlock3,6,FALSE) ->  | D99: - | F99: x | G99: =AsphaltNEFind -> 0 | H99: = | J99: x | K99: 298 | L99: = | N99: =
B100: Aviation Gasoline Blending Components | D100: - | F100: x | G100: =AvGasBlendNEFind -> 0 | H100: = | J100: x | K100: 298 | L100: = | N100: =
B101: Crude Oil | D101: - | F101: x | G101: =CrudeNEFind -> 0 | H101: = | J101: x | K101: 298 | L101: = | N101: =
B102: Distillate Fuel | D102: - | F102: x | G102: =DistillNEFind -> 0 | H102: = | J102: x | K102: 298 | L102: = | N102: =
B103: Feedstocks, Naphtha less than 401 F | D103: - | F103: x | G103: =NaphNEFind -> 0 | H103: = | J103: x | K103: 298 | L103: = | N103: =
B104: Feedstocks, Other Oils greater than 401 F | D104: - | F104: x | G104: =OtherOilNEFind -> 0 | H104: = | J104: x | K104: 298 | L104: = | N104: =
B105: Kerosene | D105: - | F105: x | G105: =KeroNEFind -> 0 | H105: = | J105: x | K105: 298 | L105: = | N105: =
B106: LPG | D106: - | F106: x | G106: =LPGNEFind -> 0 | H106: = | J106: x | K106: 298 | L106: = | N106: =
B107: Lubricants | D107: - | F107: x | G107: =LubeNEFind -> 0 | H107: = | J107: x | K107: 298 | L107: = | N107: =
B108: Motor Gasoline | D108: - | F108: x | G108: =MotorGasNEFind -> 0 | H108: = | J108: x | K108: 298 | L108: = | N108: =
B109: Motor Gasoline Blending Components | D109: - | F109: x | G109: =MoGasBlendNEFind -> 0 | H109: = | J109: x | K109: 298 | L109: = | N109: =
B110: Misc. Petro Products | D110: - | F110: x | G110: =MiscNEFind -> 0 | H110: = | J110: x | K110: 298 | L110: = | N110: =
B111: Petroleum Coke | D111: - | F111: x | G111: =PetCokeNEFind -> 0 | H111: = | J111: x | K111: 298 | L111: = | N111: =
B112: Pentanes Plus | D112: - | F112: x | G112: =pentanesNEFind -> 0 | H112: = | J112: x | K112: 298 | L112: = | N112: =
B113: Residual Fuel | D113: - | F113: x | G113: =ResidNEFind -> 0 | H113: = | J113: x | K113: 298 | L113: = | N113: =
B114: Still Gas | D114: - | F114: x | G114: =StillNEFind -> 0 | H114: = | J114: x | K114: 298 | L114: = | N114: =
B115: Special Naphthas | D115: - | F115: x | G115: =SpecialNEFind -> 0 | H115: = | J115: x | K115: 298 | L115: = | N115: =
B116: Unfinished Oils | D116: - | F116: x | G116: =UnfinNEFind -> 0 | H116: = | J116: x | K116: 298 | L116: = | N116: =
B117: Waxes | D117: - | F117: x | G117: =WaxesNEFind -> 0 | H117: = | J117: x | K117: 298 | L117: = | N117: =
B118: Natural Gas | D118: - | F118: x | G118: =NatGasNEFind -> 0 | H118: = | J118: x | K118: 298 | L118: = | N118: =
B119: Wood | D119: - | E119: NA | F119: x | G119: =WoodNEFind -> 0 | H119: = | I119: =C119*G119 ->  | J119: x | K119: 298 | L119: = | N119: =
B120: Other | C120: =VLOOKUP($B$2&$D$2&$C$2&$D$2&$B120,ConsumeBlock3,E93-1987,FALSE) -> 0 | D120: - | F120: x | G120: =OtherNEFind -> 0 | H120: = | I120: 0 | J120: x | K120: 298 | L120: = | M120: 0 | N120: = | O120: 0
K121: Total | L121: = | M121: =SUM(M97:M120) ->  | N121: =
B123: Industrial Sector N2O | E123: =E93+1 -> 1994
C124: Total | E124: Non-Energy
C125: Consumption | E125: Consumption | G125: Emission Factor | I125: Emissions | K125: GWP | M125: Emissions | O125: Emissions
B126: Fuel Type | C126: (Billion Btu) | E126: (Billion Btu) | G126: (metric tons N2O/BBtu) | I126: (metric tons N2O) | M126: (MMTCE) | O126: (MMTCO2E)
B127: Coking Coal | C127: =VLOOKUP($B$2&$D$2&$C$2&$D$2&$B127,ConsumeBlock3,E123-1987,FALSE) ->  | D127: - | F127: x | G127: =CokeCoalNEFind -> 0 | H127: = | I127: =(C127-E127)*G127 ->  | J127: x | K127: =GWPN2O -> 298 | L127: = | M127: =I127*K127*CO2_C/(10^6) ->  | N127: = | O127: =M127/CO2_C -> 
B128: Other Coal | C128: =IF(VLOOKUP($B$2&$D$2&$C$2&$D$2&$B128,ConsumeBlock3,$E123-1987,FALSE)-VLOOKUP($E$2,SyntheticNG,$E123-1988,FALSE)<0,0,VLOOKUP($B$2&$D$2&$C$2&$D$2&$B128,ConsumeBlock3,$E123-1987,FALSE)-VLOOKUP($E$2,SyntheticNG,$E123-1988,FALSE)) ->  | D128: - | F128: x | G128: =OtherCoalNEFind -> 0 | H128: = | I128: =(C128-E128)*G128 ->  | J128: x | K128: =GWPN2O -> 298 | L128: = | M128: =I128*K128*CO2_C/(10^6) ->  | N128: =
B129: Asphalt and Road Oil | C129: =VLOOKUP($B$2&$D$2&$C$2&$D$2&$B129,ConsumeBlock3,7,FALSE) ->  | D129: - | F129: x | G129: =AsphaltNEFind -> 0 | H129: = | J129: x | K129: 298 | L129: = | N129: =
B130: Aviation Gasoline Blending Components | D130: - | F130: x | G130: =AvGasBlendNEFind -> 0 | H130: = | J130: x | K130: 298 | L130: = | N130: =
B131: Crude Oil | D131: - | F131: x | G131: =CrudeNEFind -> 0 | H131: = | J131: x | K131: 298 | L131: = | N131: =
B132: Distillate Fuel | D132: - | F132: x | G132: =DistillNEFind -> 0 | H132: = | J132: x | K132: 298 | L132: = | N132: =
B133: Feedstocks, Naphtha less than 401 F | D133: - | F133: x | G133: =NaphNEFind -> 0 | H133: = | J133: x | K133: 298 | L133: = | N133: =
B134: Feedstocks, Other Oils greater than 401 F | D134: - | F134: x | G134: =OtherOilNEFind -> 0 | H134: = | J134: x | K134: 298 | L134: = | N134: =
B135: Kerosene | D135: - | F135: x | G135: =KeroNEFind -> 0 | H135: = | J135: x | K135: 298 | L135: = | N135: =
B136: LPG | D136: - | F136: x | G136: =LPGNEFind -> 0 | H136: = | J136: x | K136: 298 | L136: = | N136: =
B137: Lubricants | D137: - | F137: x | G137: =LubeNEFind -> 0 | H137: = | J137: x | K137: 298 | L137: = | N137: =
B138: Motor Gasoline | D138: - | F138: x | G138: =MotorGasNEFind -> 0 | H138: = | J138: x | K138: 298 | L138: = | N138: =
B139: Motor Gasoline Blending Components | D139: - | F139: x | G139: =MoGasBlendNEFind -> 0 | H139: = | J139: x | K139: 298 | L139: = | N139: =
B140: Misc. Petro Products | D140: - | F140: x | G140: =MiscNEFind -> 0 | H140: = | J140: x | K140: 298 | L140: = | N140: =
B141: Petroleum Coke | D141: - | F141: x | G141: =PetCokeNEFind -> 0 | H141: = | J141: x | K141: 298 | L141: = | N141: =
B142: Pentanes Plus | D142: - | F142: x | G142: =pentanesNEFind -> 0 | H142: = | J142: x | K142: 298 | L142: = | N142: =
B143: Residual Fuel | D143: - | F143: x | G143: =ResidNEFind -> 0 | H143: = | J143: x | K143: 298 | L143: = | N143: =
B144: Still Gas | D144: - | F144: x | G144: =StillNEFind -> 0 | H144: = | J144: x | K144: 298 | L144: = | N144: =
B145: Special Naphthas | D145: - | F145: x | G145: =SpecialNEFind -> 0 | H145: = | J145: x | K145: 298 | L145: = | N145: =
B146: Unfinished Oils | D146: - | F146: x | G146: =UnfinNEFind -> 0 | H146: = | J146: x | K146: 298 | L146: = | N146: =
B147: Waxes | D147: - | F147: x | G147: =WaxesNEFind -> 0 | H147: = | J147: x | K147: 298 | L147: = | N147: =
B148: Natural Gas | D148: - | F148: x | G148: =NatGasNEFind -> 0 | H148: = | J148: x | K148: 298 | L148: = | N148: =
B149: Wood | D149: - | E149: NA | F149: x | G149: =WoodNEFind -> 0 | H149: = | I149: =C149*G149 ->  | J149: x | K149: 298 | L149: = | N149: =
B150: Other | C150: =VLOOKUP($B$2&$D$2&$C$2&$D$2&$B150,ConsumeBlock3,E123-1987,FALSE) -> 0 | D150: - | F150: x | G150: =OtherNEFind -> 0 | H150: = | I150: 0 | J150: x | K150: 298 | L150: = | M150: 0 | N150: = | O150: 0
K151: Total | L151: = | M151: =SUM(M127:M150) ->  | N151: =
B153: Industrial Sector N2O | E153: =E123+1 -> 1995
C154: Total | E154: Non-Energy
C155: Consumption | E155: Consumption | G155: Emission Factor | I155: Emissions | K155: GWP | M155: Emissions | O155: Emissions
B156: Fuel Type | C156: (Billion Btu) | E156: (Billion Btu) | G156: (metric tons N2O/BBtu) | I156: (metric tons N2O) | M156: (MMTCE) | O156: (MMTCO2E)
B157: Coking Coal | C157: =VLOOKUP($B$2&$D$2&$C$2&$D$2&$B157,ConsumeBlock3,E153-1987,FALSE) ->  | D157: - | F157: x | G157: =CokeCoalNEFind -> 0 | H157: = | I157: =(C157-E157)*G157 ->  | J157: x | K157: =GWPN2O -> 298 | L157: = | M157: =I157*K157*CO2_C/(10^6) ->  | N157: = | O157: =M157/CO2_C -> 
B158: Other Coal | C158: =IF(VLOOKUP($B$2&$D$2&$C$2&$D$2&$B158,ConsumeBlock3,$E153-1987,FALSE)-VLOOKUP($E$2,SyntheticNG,$E153-1988,FALSE)<0,0,VLOOKUP($B$2&$D$2&$C$2&$D$2&$B158,ConsumeBlock3,$E153-1987,FALSE)-VLOOKUP($E$2,SyntheticNG,$E153-1988,FALSE)) ->  | D158: - | F158: x | G158: =OtherCoalNEFind -> 0 | H158: = | I158: =(C158-E158)*G158 ->  | J158: x | K158: =GWPN2O -> 298 | L158: = | M158: =I158*K158*CO2_C/(10^6) ->  | N158: =
B159: Asphalt and Road Oil | C159: =VLOOKUP($B$2&$D$2&$C$2&$D$2&$B159,ConsumeBlock3,8,FALSE) ->  | D159: - | F159: x | G159: =AsphaltNEFind -> 0 | H159: = | J159: x | K159: 298 | L159: = | N159: =
B160: Aviation Gasoline Blending Components | D160: - | F160: x | G160: =AvGasBlendNEFind -> 0 | H160: = | J160: x | K160: 298 | L160: = | N160: =
B161: Crude Oil | D161: - | F161: x | G161: =CrudeNEFind -> 0 | H161: = | J161: x | K161: 298 | L161: = | N161: =
B162: Distillate Fuel | D162: - | F162: x | G162: =DistillNEFind -> 0 | H162: = | J162: x | K162: 298 | L162: = | N162: =
B163: Feedstocks, Naphtha less than 401 F | D163: - | F163: x | G163: =NaphNEFind -> 0 | H163: = | J163: x | K163: 298 | L163: = | N163: =
B164: Feedstocks, Other Oils greater than 401 F | D164: - | F164: x | G164: =OtherOilNEFind -> 0 | H164: = | J164: x | K164: 298 | L164: = | N164: =
B165: Kerosene | D165: - | F165: x | G165: =KeroNEFind -> 0 | H165: = | J165: x | K165: 298 | L165: = | N165: =
B166: LPG | D166: - | F166: x | G166: =LPGNEFind -> 0 | H166: = | J166: x | K166: 298 | L166: = | N166: =
B167: Lubricants | D167: - | F167: x | G167: =LubeNEFind -> 0 | H167: = | J167: x | K167: 298 | L167: = | N167: =
B168: Motor Gasoline | D168: - | F168: x | G168: =MotorGasNEFind -> 0 | H168: = | J168: x | K168: 298 | L168: = | N168: =
B169: Motor Gasoline Blending Components | D169: - | F169: x | G169: =MoGasBlendNEFind -> 0 | H169: = | J169: x | K169: 298 | L169: = | N169: =
B170: Misc. Petro Products | D170: - | F170: x | G170: =MiscNEFind -> 0 | H170: = | J170: x | K170: 298 | L170: = | N170: =
B171: Petroleum Coke | D171: - | F171: x | G171: =PetCokeNEFind -> 0 | H171: = | J171: x | K171: 298 | L171: = | N171: =
B172: Pentanes Plus | D172: - | F172: x | G172: =pentanesNEFind -> 0 | H172: = | J172: x | K172: 298 | L172: = | N172: =
B173: Residual Fuel | D173: - | F173: x | G173: =ResidNEFind -> 0 | H173: = | J173: x | K173: 298 | L173: = | N173: =
B174: Still Gas | D174: - | F174: x | G174: =StillNEFind -> 0 | H174: = | J174: x | K174: 298 | L174: = | N174: =
B175: Special Naphthas | D175: - | F175: x | G175: =SpecialNEFind -> 0 | H175: = | J175: x | K175: 298 | L175: = | N175: =
B176: Unfinished Oils | D176: - | F176: x | G176: =UnfinNEFind -> 0 | H176: = | J176: x | K176: 298 | L176: = | N176: =
B177: Waxes | D177: - | F177: x | G177: =WaxesNEFind -> 0 | H177: = | J177: x | K177: 298 | L177: = | N177: =
B178: Natural Gas | D178: - | F178: x | G178: =NatGasNEFind -> 0 | H178: = | J178: x | K178: 298 | L178: = | N178: =
B179: Wood | D179: - | E179: NA | F179: x | G179: =WoodNEFind -> 0 | H179: = | I179: =C179*G179 ->  | J179: x | K179: 298 | L179: = | N179: =
B180: Other | C180: =VLOOKUP($B$2&$D$2&$C$2&$D$2&$B180,ConsumeBlock3,E153-1987,FALSE) -> 0 | D180: - | F180: x | G180: =OtherNEFind -> 0 | H180: = | I180: 0 | J180: x | K180: 298 | L180: = | M180: 0 | N180: = | O180: 0
K181: Total | L181: = | M181: =SUM(M157:M180) ->  | N181: =
B183: Industrial Sector N2O | E183: =E153+1 -> 1996
C184: Total | E184: Non-Energy
C185: Consumption | E185: Consumption | G185: Emission Factor | I185: Emissions | K185: GWP | M185: Emissions | O185: Emissions
B186: Fuel Type | C186: (Billion Btu) | E186: (Billion Btu) | G186: (metric tons N2O/BBtu) | I186: (metric tons N2O) | M186: (MMTCE) | O186: (MMTCO2E)
B187: Coking Coal | C187: =VLOOKUP($B$2&$D$2&$C$2&$D$2&$B187,ConsumeBlock3,E183-1987,FALSE) ->  | D187: - | F187: x | G187: =CokeCoalNEFind -> 0 | H187: = | I187: =(C187-E187)*G187 ->  | J187: x | K187: =GWPN2O -> 298 | L187: = | M187: =I187*K187*CO2_C/(10^6) ->  | N187: = | O187: =M187/CO2_C -> 
B188: Other Coal | C188: =IF(VLOOKUP($B$2&$D$2&$C$2&$D$2&$B188,ConsumeBlock3,$E183-1987,FALSE)-VLOOKUP($E$2,SyntheticNG,$E183-1988,FALSE)<0,0,VLOOKUP($B$2&$D$2&$C$2&$D$2&$B188,ConsumeBlock3,$E183-1987,FALSE)-VLOOKUP($E$2,SyntheticNG,$E183-1988,FALSE)) ->  | D188: - | F188: x | G188: =OtherCoalNEFind -> 0 | H188: = | I188: =(C188-E188)*G188 ->  | J188: x | K188: =GWPN2O -> 298 | L188: = | M188: =I188*K188*CO2_C/(10^6) ->  | N188: =
B189: Asphalt and Road Oil | C189: =VLOOKUP($B$2&$D$2&$C$2&$D$2&$B189,ConsumeBlock3,9,FALSE) ->  | D189: - | F189: x | G189: =AsphaltNEFind -> 0 | H189: = | J189: x | K189: 298 | L189: = | N189: =
B190: Aviation Gasoline Blending Components | D190: - | F190: x | G190: =AvGasBlendNEFind -> 0 | H190: = | J190: x | K190: 298 | L190: = | N190: =
B191: Crude Oil | D191: - | F191: x | G191: =CrudeNEFind -> 0 | H191: = | J191: x | K191: 298 | L191: = | N191: =
B192: Distillate Fuel | D192: - | F192: x | G192: =DistillNEFind -> 0 | H192: = | J192: x | K192: 298 | L192: = | N192: =
B193: Feedstocks, Naphtha less than 401 F | D193: - | F193: x | G193: =NaphNEFind -> 0 | H193: = | J193: x | K193: 298 | L193: = | N193: =
B194: Feedstocks, Other Oils greater than 401 F | D194: - | F194: x | G194: =OtherOilNEFind -> 0 | H194: = | J194: x | K194: 298 | L194: = | N194: =
B195: Kerosene | D195: - | F195: x | G195: =KeroNEFind -> 0 | H195: = | J195: x | K195: 298 | L195: = | N195: =
B196: LPG | D196: - | F196: x | G196: =LPGNEFind -> 0 | H196: = | J196: x | K196: 298 | L196: = | N196: =
B197: Lubricants | D197: - | F197: x | G197: =LubeNEFind -> 0 | H197: = | J197: x | K197: 298 | L197: = | N197: =
B198: Motor Gasoline | D198: - | F198: x | G198: =MotorGasNEFind -> 0 | H198: = | J198: x | K198: 298 | L198: = | N198: =
B199: Motor Gasoline Blending Components | D199: - | F199: x | G199: =MoGasBlendNEFind -> 0 | H199: = | J199: x | K199: 298 | L199: = | N199: =
B200: Misc. Petro Products | D200: - | F200: x | G200: =MiscNEFind -> 0 | H200: = | J200: x | K200: 298 | L200: = | N200: =
B201: Petroleum Coke | D201: - | F201: x | G201: =PetCokeNEFind -> 0 | H201: = | J201: x | K201: 298 | L201: = | N201: =
B202: Pentanes Plus | D202: - | F202: x | G202: =pentanesNEFind -> 0 | H202: = | J202: x | K202: 298 | L202: = | N202: =
B203: Residual Fuel | D203: - | F203: x | G203: =ResidNEFind -> 0 | H203: = | J203: x | K203: 298 | L203: = | N203: =
B204: Still Gas | D204: - | F204: x | G204: =StillNEFind -> 0 | H204: = | J204: x | K204: 298 | L204: = | N204: =
B205: Special Naphthas | D205: - | F205: x | G205: =SpecialNEFind -> 0 | H205: = | J205: x | K205: 298 | L205: = | N205: =
B206: Unfinished Oils | D206: - | F206: x | G206: =UnfinNEFind -> 0 | H206: = | J206: x | K206: 298 | L206: = | N206: =
... 701 more rows

Sheet Industrial CH4
B1: ="5. Industrial Consumption and CH4 emissions in "&Constants!G2 -> 5. Industrial Consumption and CH4 emissions in Select a State . . .
B2: =Constants!H2 -> xx | C2: Industrial | D2: =" " -> 
B3: Industrial Sector CH4 | E3: 1990
C4: Total | E4: Non-Energy
C5: Consumption | E5: Consumption | G5: Emission Factor | I5: Emissions | K5: GWP | M5: Emissions | O5: Emissions
B6: Fuel Type | C6: (Billion Btu) | E6: (Billion Btu) | G6: (metric tons CH4 /BBtu) | I6: (metric tons CH4) | M6: (MMTCE) | O6: (MMTCO2E)
B7: Coking Coal | C7: ='Industrial N2O'!C7 ->  | D7: - | E7: ='Industrial N2O'!E7 -> 0 | F7: x | G7: =CokeCoalCEFind -> 0 | H7: = | I7: =(C7-E7)*G7 ->  | J7: x | K7: =GWPCH4 -> 25 | L7: = | M7: =I7*K7*CO2_C/(10^6) ->  | N7: = | O7: =M7/CO2_C -> 
B8: Other Coal | C8: ='Industrial N2O'!C8 ->  | D8: - | E8: ='Industrial N2O'!E8 -> 0 | F8: x | G8: =OtherCoalCEFind -> 0 | H8: = | I8: =(C8-E8)*G8 ->  | J8: x | K8: =GWPCH4 -> 25 | L8: = | M8: =I8*K8*CO2_C/(10^6) ->  | N8: =
B9: Asphalt and Road Oil | C9: ='Industrial N2O'!C9 ->  | D9: - | E9: ='Industrial N2O'!E9 -> 0 | F9: x | G9: =AsphaltCEFind -> 0 | H9: = | J9: x | K9: 25 | L9: = | N9: =
B10: Aviation Gasoline Blending Components | C10: ='Industrial N2O'!C10 ->  | D10: - | E10: ='Industrial N2O'!E10 -> 0 | F10: x | G10: =AvGasBlendCEFind -> 0 | H10: = | J10: x | K10: 25 | L10: = | N10: =
B11: Crude Oil | C11: ='Industrial N2O'!C11 ->  | D11: - | E11: ='Industrial N2O'!E11 -> 0 | F11: x | G11: =CrudeCEFind -> 0 | H11: = | J11: x | K11: 25 | L11: = | N11: =
B12: Distillate Fuel | C12: ='Industrial N2O'!C12 ->  | D12: - | E12: ='Industrial N2O'!E12 -> 0 | F12: x | G12: =DistillCEFind -> 0 | H12: = | J12: x | K12: 25 | L12: = | N12: =
B13: Feedstocks, Naphtha less than 401 F | C13: ='Industrial N2O'!C13 ->  | D13: - | E13: ='Industrial N2O'!E13 -> 0 | F13: x | G13: =NaphCEFind -> 0 | H13: = | J13: x | K13: 25 | L13: = | N13: =
B14: Feedstocks, Other Oils greater than 401 F | C14: ='Industrial N2O'!C14 ->  | D14: - | E14: ='Industrial N2O'!E14 -> 0 | F14: x | G14: =OtherOilCEFind -> 0 | H14: = | J14: x | K14: 25 | L14: = | N14: =
B15: Kerosene | C15: ='Industrial N2O'!C15 ->  | D15: - | E15: ='Industrial N2O'!E15 -> 0 | F15: x | G15: =KeroCEFind -> 0 | H15: = | J15: x | K15: 25 | L15: = | N15: =
B16: LPG | C16: ='Industrial N2O'!C16 ->  | D16: - | E16: ='Industrial N2O'!E16 -> 0 | F16: x | G16: =LPGCEFind -> 0 | H16: = | J16: x | K16: 25 | L16: = | N16: =
B17: Lubricants | C17: ='Industrial N2O'!C17 ->  | D17: - | E17: ='Industrial N2O'!E17 -> 0 | F17: x | G17: =LubeCEFind -> 0 | H17: = | J17: x | K17: 25 | L17: = | N17: =
B18: Motor Gasoline | C18: ='Industrial N2O'!C18 ->  | D18: - | E18: ='Industrial N2O'!E18 -> 0 | F18: x | G18: =MotorGasCEFind -> 0 | H18: = | J18: x | K18: 25 | L18: = | N18: =
B19: Motor Gasoline Blending Components | C19: ='Industrial N2O'!C19 ->  | D19: - | E19: ='Industrial N2O'!E19 -> 0 | F19: x | G19: =MoGasBlendCEFind -> 0 | H19: = | J19: x | K19: 25 | L19: = | N19: =
B20: Misc. Petro Products | C20: ='Industrial N2O'!C20 ->  | D20: - | E20: ='Industrial N2O'!E20 -> 0 | F20: x | G20: =MiscCEFind -> 0 | H20: = | J20: x | K20: 25 | L20: = | N20: =
B21: Petroleum Coke | C21: ='Industrial N2O'!C21 ->  | D21: - | E21: ='Industrial N2O'!E21 -> 0 | F21: x | G21: =PetCokeCEFind -> 0 | H21: = | J21: x | K21: 25 | L21: = | N21: =
B22: Pentanes Plus | C22: ='Industrial N2O'!C22 ->  | D22: - | E22: ='Industrial N2O'!E22 -> 0 | F22: x | G22: =pentanesCEFind -> 0 | H22: = | J22: x | K22: 25 | L22: = | N22: =
B23: Residual Fuel | C23: ='Industrial N2O'!C23 ->  | D23: - | E23: ='Industrial N2O'!E23 -> 0 | F23: x | G23: =ResidCEFind -> 0 | H23: = | J23: x | K23: 25 | L23: = | N23: =
B24: Still Gas | C24: ='Industrial N2O'!C24 ->  | D24: - | E24: ='Industrial N2O'!E24 -> 0 | F24: x | G24: =StillCEFind -> 0 | H24: = | J24: x | K24: 25 | L24: = | N24: =
B25: Special Naphthas | C25: ='Industrial N2O'!C25 ->  | D25: - | E25: ='Industrial N2O'!E25 -> 0 | F25: x | G25: =SpecialCEFind -> 0 | H25: = | J25: x | K25: 25 | L25: = | N25: =
B26: Unfinished Oils | C26: ='Industrial N2O'!C26 ->  | D26: - | E26: ='Industrial N2O'!E26 -> 0 | F26: x | G26: =UnfinCEFind -> 0 | H26: = | J26: x | K26: 25 | L26: = | N26: =
B27: Waxes | C27: ='Industrial N2O'!C27 ->  | D27: - | E27: ='Industrial N2O'!E27 -> 0 | F27: x | G27: =WaxesCEFind -> 0 | H27: = | J27: x | K27: 25 | L27: = | N27: =
B28: Natural Gas | C28: ='Industrial N2O'!C28 ->  | D28: - | E28: ='Industrial N2O'!E28 -> 0 | F28: x | G28: =NatGasCEFind -> 0 | H28: = | J28: x | K28: 25 | L28: = | N28: =
B29: Wood | C29: ='Industrial N2O'!C29 ->  | E29: ='Industrial N2O'!E29 -> NA | F29: x | G29: =WoodCEFind -> 0 | H29: = | I29: =C29*G29 ->  | J29: x | K29: 25 | L29: = | N29: =
B30: Other | C30: ='Industrial N2O'!C30 -> 0 | D30: - | E30: ='Industrial N2O'!E30 -> 0 | F30: x | G30: =OtherCEFind -> 0 | H30: = | I30: 0 | J30: x | K30: 25 | L30: = | M30: 0 | N30: = | O30: 0
K31: Total | L31: = | M31: =SUM(M7:M30) ->  | N31: =
B33: Industrial Sector CH4 | E33: =E3+1 -> 1991
C34: Total | E34: Non-Energy
C35: Consumption | E35: Consumption | G35: Emission Factor | I35: Emissions | K35: GWP | M35: Emissions | O35: Emissions
B36: Fuel Type | C36: (Billion Btu) | E36: (Billion Btu) | G36: (metric tons CH4 /BBtu) | I36: (metric tons CH4) | M36: (MMTCE) | O36: (MMTCO2E)
B37: Coking Coal | C37: ='Industrial N2O'!C37 ->  | D37: - | E37: ='Industrial N2O'!E37 -> 0 | F37: x | G37: =CokeCoalCEFind -> 0 | H37: = | I37: =(C37-E37)*G37 ->  | J37: x | K37: =GWPCH4 -> 25 | L37: = | M37: =I37*K37*CO2_C/(10^6) ->  | N37: = | O37: =M37/CO2_C -> 
B38: Other Coal | C38: ='Industrial N2O'!C38 ->  | D38: - | E38: ='Industrial N2O'!E38 -> 0 | F38: x | G38: =OtherCoalCEFind -> 0 | H38: = | I38: =(C38-E38)*G38 ->  | J38: x | K38: =GWPCH4 -> 25 | L38: = | M38: =I38*K38*CO2_C/(10^6) ->  | N38: =
B39: Asphalt and Road Oil | C39: ='Industrial N2O'!C39 ->  | D39: - | E39: ='Industrial N2O'!E39 -> 0 | F39: x | G39: =AsphaltCEFind -> 0 | H39: = | J39: x | K39: 25 | L39: = | N39: =
B40: Aviation Gasoline Blending Components | C40: ='Industrial N2O'!C40 ->  | D40: - | E40: ='Industrial N2O'!E40 -> 0 | F40: x | G40: =AvGasBlendCEFind -> 0 | H40: = | J40: x | K40: 25 | L40: = | N40: =
B41: Crude Oil | C41: ='Industrial N2O'!C41 ->  | D41: - | E41: ='Industrial N2O'!E41 -> 0 | F41: x | G41: =CrudeCEFind -> 0 | H41: = | J41: x | K41: 25 | L41: = | N41: =
B42: Distillate Fuel | C42: ='Industrial N2O'!C42 ->  | D42: - | E42: ='Industrial N2O'!E42 -> 0 | F42: x | G42: =DistillCEFind -> 0 | H42: = | J42: x | K42: 25 | L42: = | N42: =
B43: Feedstocks, Naphtha less than 401 F | C43: ='Industrial N2O'!C43 ->  | D43: - | E43: ='Industrial N2O'!E43 -> 0 | F43: x | G43: =NaphCEFind -> 0 | H43: = | J43: x | K43: 25 | L43: = | N43: =
B44: Feedstocks, Other Oils greater than 401 F | C44: ='Industrial N2O'!C44 ->  | D44: - | E44: ='Industrial N2O'!E44 -> 0 | F44: x | G44: =OtherOilCEFind -> 0 | H44: = | J44: x | K44: 25 | L44: = | N44: =
B45: Kerosene | C45: ='Industrial N2O'!C45 ->  | D45: - | E45: ='Industrial N2O'!E45 -> 0 | F45: x | G45: =KeroCEFind -> 0 | H45: = | J45: x | K45: 25 | L45: = | N45: =
B46: LPG | C46: ='Industrial N2O'!C46 ->  | D46: - | E46: ='Industrial N2O'!E46 -> 0 | F46: x | G46: =LPGCEFind -> 0 | H46: = | J46: x | K46: 25 | L46: = | N46: =
B47: Lubricants | C47: ='Industrial N2O'!C47 ->  | D47: - | E47: ='Industrial N2O'!E47 -> 0 | F47: x | G47: =LubeCEFind -> 0 | H47: = | J47: x | K47: 25 | L47: = | N47: =
B48: Motor Gasoline | C48: ='Industrial N2O'!C48 ->  | D48: - | E48: ='Industrial N2O'!E48 -> 0 | F48: x | G48: =MotorGasCEFind -> 0 | H48: = | J48: x | K48: 25 | L48: = | N48: =
B49: Motor Gasoline Blending Components | C49: ='Industrial N2O'!C49 ->  | D49: - | E49: ='Industrial N2O'!E49 -> 0 | F49: x | G49: =MoGasBlendCEFind -> 0 | H49: = | J49: x | K49: 25 | L49: = | N49: =
B50: Misc. Petro Products | C50: ='Industrial N2O'!C50 ->  | D50: - | E50: ='Industrial N2O'!E50 -> 0 | F50: x | G50: =MiscCEFind -> 0 | H50: = | J50: x | K50: 25 | L50: = | N50: =
B51: Petroleum Coke | C51: ='Industrial N2O'!C51 ->  | D51: - | E51: ='Industrial N2O'!E51 -> 0 | F51: x | G51: =PetCokeCEFind -> 0 | H51: = | J51: x | K51: 25 | L51: = | N51: =
B52: Pentanes Plus | C52: ='Industrial N2O'!C52 ->  | D52: - | E52: ='Industrial N2O'!E52 -> 0 | F52: x | G52: =pentanesCEFind -> 0 | H52: = | J52: x | K52: 25 | L52: = | N52: =
B53: Residual Fuel | C53: ='Industrial N2O'!C53 ->  | D53: - | E53: ='Industrial N2O'!E53 -> 0 | F53: x | G53: =ResidCEFind -> 0 | H53: = | J53: x | K53: 25 | L53: = | N53: =
B54: Still Gas | C54: ='Industrial N2O'!C54 ->  | D54: - | E54: ='Industrial N2O'!E54 -> 0 | F54: x | G54: =StillCEFind -> 0 | H54: = | J54: x | K54: 25 | L54: = | N54: =
B55: Special Naphthas | C55: ='Industrial N2O'!C55 ->  | D55: - | E55: ='Industrial N2O'!E55 -> 0 | F55: x | G55: =SpecialCEFind -> 0 | H55: = | J55: x | K55: 25 | L55: = | N55: =
B56: Unfinished Oils | C56: ='Industrial N2O'!C56 ->  | D56: - | E56: ='Industrial N2O'!E56 -> 0 | F56: x | G56: =UnfinCEFind -> 0 | H56: = | J56: x | K56: 25 | L56: = | N56: =
B57: Waxes | C57: ='Industrial N2O'!C57 ->  | D57: - | E57: ='Industrial N2O'!E57 -> 0 | F57: x | G57: =WaxesCEFind -> 0 | H57: = | J57: x | K57: 25 | L57: = | N57: =
B58: Natural Gas | C58: ='Industrial N2O'!C58 ->  | D58: - | E58: ='Industrial N2O'!E58 -> 0 | F58: x | G58: =NatGasCEFind -> 0 | H58: = | J58: x | K58: 25 | L58: = | N58: =
B59: Wood | C59: ='Industrial N2O'!C59 ->  | E59: ='Industrial N2O'!E59 -> NA | F59: x | G59: =WoodCEFind -> 0 | H59: = | I59: =C59*G59 ->  | J59: x | K59: 25 | L59: = | N59: =
B60: Other | C60: ='Industrial N2O'!C60 -> 0 | D60: - | E60: ='Industrial N2O'!E60 -> 0 | F60: x | G60: =OtherCEFind -> 0 | H60: = | I60: 0 | J60: x | K60: 25 | L60: = | M60: 0 | N60: = | O60: 0
K61: Total | L61: = | M61: =SUM(M37:M60) ->  | N61: =
B63: Industrial Sector CH4 | E63: =E33+1 -> 1992
C64: Total | E64: Non-Energy
C65: Consumption | E65: Consumption | G65: Emission Factor | I65: Emissions | K65: GWP | M65: Emissions | O65: Emissions
B66: Fuel Type | C66: (Billion Btu) | E66: (Billion Btu) | G66: (metric tons CH4 /BBtu) | I66: (metric tons CH4) | M66: (MMTCE) | O66: (MMTCO2E)
B67: Coking Coal | C67: ='Industrial N2O'!C67 ->  | D67: - | E67: ='Industrial N2O'!E67 -> 0 | F67: x | G67: =CokeCoalCEFind -> 0 | H67: = | I67: =(C67-E67)*G67 ->  | J67: x | K67: =GWPCH4 -> 25 | L67: = | M67: =I67*K67*CO2_C/(10^6) ->  | N67: = | O67: =M67/CO2_C -> 
B68: Other Coal | C68: ='Industrial N2O'!C68 ->  | D68: - | E68: ='Industrial N2O'!E68 -> 0 | F68: x | G68: =OtherCoalCEFind -> 0 | H68: = | I68: =(C68-E68)*G68 ->  | J68: x | K68: =GWPCH4 -> 25 | L68: = | M68: =I68*K68*CO2_C/(10^6) ->  | N68: =
B69: Asphalt and Road Oil | C69: ='Industrial N2O'!C69 ->  | D69: - | E69: ='Industrial N2O'!E69 -> 0 | F69: x | G69: =AsphaltCEFind -> 0 | H69: = | J69: x | K69: 25 | L69: = | N69: =
B70: Aviation Gasoline Blending Components | C70: ='Industrial N2O'!C70 ->  | D70: - | E70: ='Industrial N2O'!E70 -> 0 | F70: x | G70: =AvGasBlendCEFind -> 0 | H70: = | J70: x | K70: 25 | L70: = | N70: =
B71: Crude Oil | C71: ='Industrial N2O'!C71 ->  | D71: - | E71: ='Industrial N2O'!E71 -> 0 | F71: x | G71: =CrudeCEFind -> 0 | H71: = | J71: x | K71: 25 | L71: = | N71: =
B72: Distillate Fuel | C72: ='Industrial N2O'!C72 ->  | D72: - | E72: ='Industrial N2O'!E72 -> 0 | F72: x | G72: =DistillCEFind -> 0 | H72: = | J72: x | K72: 25 | L72: = | N72: =
B73: Feedstocks, Naphtha less than 401 F | C73: ='Industrial N2O'!C73 ->  | D73: - | E73: ='Industrial N2O'!E73 -> 0 | F73: x | G73: =NaphCEFind -> 0 | H73: = | J73: x | K73: 25 | L73: = | N73: =
B74: Feedstocks, Other Oils greater than 401 F | C74: ='Industrial N2O'!C74 ->  | D74: - | E74: ='Industrial N2O'!E74 -> 0 | F74: x | G74: =OtherOilCEFind -> 0 | H74: = | J74: x | K74: 25 | L74: = | N74: =
B75: Kerosene | C75: ='Industrial N2O'!C75 ->  | D75: - | E75: ='Industrial N2O'!E75 -> 0 | F75: x | G75: =KeroCEFind -> 0 | H75: = | J75: x | K75: 25 | L75: = | N75: =
B76: LPG | C76: ='Industrial N2O'!C76 ->  | D76: - | E76: ='Industrial N2O'!E76 -> 0 | F76: x | G76: =LPGCEFind -> 0 | H76: = | J76: x | K76: 25 | L76: = | N76: =
B77: Lubricants | C77: ='Industrial N2O'!C77 ->  | D77: - | E77: ='Industrial N2O'!E77 -> 0 | F77: x | G77: =LubeCEFind -> 0 | H77: = | J77: x | K77: 25 | L77: = | N77: =
B78: Motor Gasoline | C78: ='Industrial N2O'!C78 ->  | D78: - | E78: ='Industrial N2O'!E78 -> 0 | F78: x | G78: =MotorGasCEFind -> 0 | H78: = | J78: x | K78: 25 | L78: = | N78: =
B79: Motor Gasoline Blending Components | C79: ='Industrial N2O'!C79 ->  | D79: - | E79: ='Industrial N2O'!E79 -> 0 | F79: x | G79: =MoGasBlendCEFind -> 0 | H79: = | J79: x | K79: 25 | L79: = | N79: =
B80: Misc. Petro Products | C80: ='Industrial N2O'!C80 ->  | D80: - | E80: ='Industrial N2O'!E80 -> 0 | F80: x | G80: =MiscCEFind -> 0 | H80: = | J80: x | K80: 25 | L80: = | N80: =
B81: Petroleum Coke | C81: ='Industrial N2O'!C81 ->  | D81: - | E81: ='Industrial N2O'!E81 -> 0 | F81: x | G81: =PetCokeCEFind -> 0 | H81: = | J81: x | K81: 25 | L81: = | N81: =
B82: Pentanes Plus | C82: ='Industrial N2O'!C82 ->  | D82: - | E82: ='Industrial N2O'!E82 -> 0 | F82: x | G82: =pentanesCEFind -> 0 | H82: = | J82: x | K82: 25 | L82: = | N82: =
B83: Residual Fuel | C83: ='Industrial N2O'!C83 ->  | D83: - | E83: ='Industrial N2O'!E83 -> 0 | F83: x | G83: =ResidCEFind -> 0 | H83: = | J83: x | K83: 25 | L83: = | N83: =
B84: Still Gas | C84: ='Industrial N2O'!C84 ->  | D84: - | E84: ='Industrial N2O'!E84 -> 0 | F84: x | G84: =StillCEFind -> 0 | H84: = | J84: x | K84: 25 | L84: = | N84: =
B85: Special Naphthas | C85: ='Industrial N2O'!C85 ->  | D85: - | E85: ='Industrial N2O'!E85 -> 0 | F85: x | G85: =SpecialCEFind -> 0 | H85: = | J85: x | K85: 25 | L85: = | N85: =
B86: Unfinished Oils | C86: ='Industrial N2O'!C86 ->  | D86: - | E86: ='Industrial N2O'!E86 -> 0 | F86: x | G86: =UnfinCEFind -> 0 | H86: = | J86: x | K86: 25 | L86: = | N86: =
B87: Waxes | C87: ='Industrial N2O'!C87 ->  | D87: - | E87: ='Industrial N2O'!E87 -> 0 | F87: x | G87: =WaxesCEFind -> 0 | H87: = | J87: x | K87: 25 | L87: = | N87: =
B88: Natural Gas | C88: ='Industrial N2O'!C88 ->  | D88: - | E88: ='Industrial N2O'!E88 -> 0 | F88: x | G88: =NatGasCEFind -> 0 | H88: = | J88: x | K88: 25 | L88: = | N88: =
B89: Wood | C89: ='Industrial N2O'!C89 ->  | E89: ='Industrial N2O'!E89 -> NA | F89: x | G89: =WoodCEFind -> 0 | H89: = | I89: =C89*G89 ->  | J89: x | K89: 25 | L89: = | N89: =
B90: Other | C90: ='Industrial N2O'!C90 -> 0 | D90: - | E90: ='Industrial N2O'!E90 -> 0 | F90: x | G90: =OtherCEFind -> 0 | H90: = | I90: 0 | J90: x | K90: 25 | L90: = | M90: 0 | N90: = | O90: 0
K91: Total | L91: = | M91: =SUM(M67:M90) ->  | N91: =
B93: Industrial Sector CH4 | E93: =E63+1 -> 1993
C94: Total | E94: Non-Energy
C95: Consumption | E95: Consumption | G95: Emission Factor | I95: Emissions | K95: GWP | M95: Emissions | O95: Emissions
B96: Fuel Type | C96: (Billion Btu) | E96: (Billion Btu) | G96: (metric tons CH4 /BBtu) | I96: (metric tons CH4) | M96: (MMTCE) | O96: (MMTCO2E)
B97: Coking Coal | C97: ='Industrial N2O'!C97 ->  | D97: - | E97: ='Industrial N2O'!E97 -> 0 | F97: x | G97: =CokeCoalCEFind -> 0 | H97: = | I97: =(C97-E97)*G97 ->  | J97: x | K97: =GWPCH4 -> 25 | L97: = | M97: =I97*K97*CO2_C/(10^6) ->  | N97: = | O97: =M97/CO2_C -> 
B98: Other Coal | C98: ='Industrial N2O'!C98 ->  | D98: - | E98: ='Industrial N2O'!E98 -> 0 | F98: x | G98: =OtherCoalCEFind -> 0 | H98: = | I98: =(C98-E98)*G98 ->  | J98: x | K98: =GWPCH4 -> 25 | L98: = | M98: =I98*K98*CO2_C/(10^6) ->  | N98: =
B99: Asphalt and Road Oil | C99: ='Industrial N2O'!C99 ->  | D99: - | E99: ='Industrial N2O'!E99 -> 0 | F99: x | G99: =AsphaltCEFind -> 0 | H99: = | J99: x | K99: 25 | L99: = | N99: =
B100: Aviation Gasoline Blending Components | C100: ='Industrial N2O'!C100 ->  | D100: - | E100: ='Industrial N2O'!E100 -> 0 | F100: x | G100: =AvGasBlendCEFind -> 0 | H100: = | J100: x | K100: 25 | L100: = | N100: =
B101: Crude Oil | C101: ='Industrial N2O'!C101 ->  | D101: - | E101: ='Industrial N2O'!E101 -> 0 | F101: x | G101: =CrudeCEFind -> 0 | H101: = | J101: x | K101: 25 | L101: = | N101: =
B102: Distillate Fuel | C102: ='Industrial N2O'!C102 ->  | D102: - | E102: ='Industrial N2O'!E102 -> 0 | F102: x | G102: =DistillCEFind -> 0 | H102: = | J102: x | K102: 25 | L102: = | N102: =
B103: Feedstocks, Naphtha less than 401 F | C103: ='Industrial N2O'!C103 ->  | D103: - | E103: ='Industrial N2O'!E103 -> 0 | F103: x | G103: =NaphCEFind -> 0 | H103: = | J103: x | K103: 25 | L103: = | N103: =
B104: Feedstocks, Other Oils greater than 401 F | C104: ='Industrial N2O'!C104 ->  | D104: - | E104: ='Industrial N2O'!E104 -> 0 | F104: x | G104: =OtherOilCEFind -> 0 | H104: = | J104: x | K104: 25 | L104: = | N104: =
B105: Kerosene | C105: ='Industrial N2O'!C105 ->  | D105: - | E105: ='Industrial N2O'!E105 -> 0 | F105: x | G105: =KeroCEFind -> 0 | H105: = | J105: x | K105: 25 | L105: = | N105: =
B106: LPG | C106: ='Industrial N2O'!C106 ->  | D106: - | E106: ='Industrial N2O'!E106 -> 0 | F106: x | G106: =LPGCEFind -> 0 | H106: = | J106: x | K106: 25 | L106: = | N106: =
B107: Lubricants | C107: ='Industrial N2O'!C107 ->  | D107: - | E107: ='Industrial N2O'!E107 -> 0 | F107: x | G107: =LubeCEFind -> 0 | H107: = | J107: x | K107: 25 | L107: = | N107: =
B108: Motor Gasoline | C108: ='Industrial N2O'!C108 ->  | D108: - | E108: ='Industrial N2O'!E108 -> 0 | F108: x | G108: =MotorGasCEFind -> 0 | H108: = | J108: x | K108: 25 | L108: = | N108: =
B109: Motor Gasoline Blending Components | C109: ='Industrial N2O'!C109 ->  | D109: - | E109: ='Industrial N2O'!E109 -> 0 | F109: x | G109: =MoGasBlendCEFind -> 0 | H109: = | J109: x | K109: 25 | L109: = | N109: =
B110: Misc. Petro Products | C110: ='Industrial N2O'!C110 ->  | D110: - | E110: ='Industrial N2O'!E110 -> 0 | F110: x | G110: =MiscCEFind -> 0 | H110: = | J110: x | K110: 25 | L110: = | N110: =
B111: Petroleum Coke | C111: ='Industrial N2O'!C111 ->  | D111: - | E111: ='Industrial N2O'!E111 -> 0 | F111: x | G111: =PetCokeCEFind -> 0 | H111: = | J111: x | K111: 25 | L111: = | N111: =
B112: Pentanes Plus | C112: ='Industrial N2O'!C112 ->  | D112: - | E112: ='Industrial N2O'!E112 -> 0 | F112: x | G112: =pentanesCEFind -> 0 | H112: = | J112: x | K112: 25 | L112: = | N112: =
B113: Residual Fuel | C113: ='Industrial N2O'!C113 ->  | D113: - | E113: ='Industrial N2O'!E113 -> 0 | F113: x | G113: =ResidCEFind -> 0 | H113: = | J113: x | K113: 25 | L113: = | N113: =
B114: Still Gas | C114: ='Industrial N2O'!C114 ->  | D114: - | E114: ='Industrial N2O'!E114 -> 0 | F114: x | G114: =StillCEFind -> 0 | H114: = | J114: x | K114: 25 | L114: = | N114: =
B115: Special Naphthas | C115: ='Industrial N2O'!C115 ->  | D115: - | E115: ='Industrial N2O'!E115 -> 0 | F115: x | G115: =SpecialCEFind -> 0 | H115: = | J115: x | K115: 25 | L115: = | N115: =
B116: Unfinished Oils | C116: ='Industrial N2O'!C116 ->  | D116: - | E116: ='Industrial N2O'!E116 -> 0 | F116: x | G116: =UnfinCEFind -> 0 | H116: = | J116: x | K116: 25 | L116: = | N116: =
B117: Waxes | C117: ='Industrial N2O'!C117 ->  | D117: - | E117: ='Industrial N2O'!E117 -> 0 | F117: x | G117: =WaxesCEFind -> 0 | H117: = | J117: x | K117: 25 | L117: = | N117: =
B118: Natural Gas | C118: ='Industrial N2O'!C118 ->  | D118: - | E118: ='Industrial N2O'!E118 -> 0 | F118: x | G118: =NatGasCEFind -> 0 | H118: = | J118: x | K118: 25 | L118: = | N118: =
B119: Wood | C119: ='Industrial N2O'!C119 ->  | E119: ='Industrial N2O'!E119 -> NA | F119: x | G119: =WoodCEFind -> 0 | H119: = | I119: =C119*G119 ->  | J119: x | K119: 25 | L119: = | N119: =
B120: Other | C120: ='Industrial N2O'!C120 -> 0 | D120: - | E120: ='Industrial N2O'!E120 -> 0 | F120: x | G120: =OtherCEFind -> 0 | H120: = | I120: 0 | J120: x | K120: 25 | L120: = | M120: 0 | N120: = | O120: 0
K121: Total | L121: = | M121: =SUM(M97:M120) ->  | N121: =
B123: Industrial Sector CH4 | E123: =E93+1 -> 1994
C124: Total | E124: Non-Energy
C125: Consumption | E125: Consumption | G125: Emission Factor | I125: Emissions | K125: GWP | M125: Emissions | O125: Emissions
B126: Fuel Type | C126: (Billion Btu) | E126: (Billion Btu) | G126: (metric tons CH4 /BBtu) | I126: (metric tons CH4) | M126: (MMTCE) | O126: (MMTCO2E)
B127: Coking Coal | C127: ='Industrial N2O'!C127 ->  | D127: - | E127: ='Industrial N2O'!E127 -> 0 | F127: x | G127: =CokeCoalCEFind -> 0 | H127: = | I127: =(C127-E127)*G127 ->  | J127: x | K127: =GWPCH4 -> 25 | L127: = | M127: =I127*K127*CO2_C/(10^6) ->  | N127: = | O127: =M127/CO2_C -> 
B128: Other Coal | C128: ='Industrial N2O'!C128 ->  | D128: - | E128: ='Industrial N2O'!E128 -> 0 | F128: x | G128: =OtherCoalCEFind -> 0 | H128: = | I128: =(C128-E128)*G128 ->  | J128: x | K128: =GWPCH4 -> 25 | L128: = | M128: =I128*K128*CO2_C/(10^6) ->  | N128: =
B129: Asphalt and Road Oil | C129: ='Industrial N2O'!C129 ->  | D129: - | E129: ='Industrial N2O'!E129 -> 0 | F129: x | G129: =AsphaltCEFind -> 0 | H129: = | J129: x | K129: 25 | L129: = | N129: =
B130: Aviation Gasoline Blending Components | C130: ='Industrial N2O'!C130 ->  | D130: - | E130: ='Industrial N2O'!E130 -> 0 | F130: x | G130: =AvGasBlendCEFind -> 0 | H130: = | J130: x | K130: 25 | L130: = | N130: =
B131: Crude Oil | C131: ='Industrial N2O'!C131 ->  | D131: - | E131: ='Industrial N2O'!E131 -> 0 | F131: x | G131: =CrudeCEFind -> 0 | H131: = | J131: x | K131: 25 | L131: = | N131: =
B132: Distillate Fuel | C132: ='Industrial N2O'!C132 ->  | D132: - | E132: ='Industrial N2O'!E132 -> 0 | F132: x | G132: =DistillCEFind -> 0 | H132: = | J132: x | K132: 25 | L132: = | N132: =
B133: Feedstocks, Naphtha less than 401 F | C133: ='Industrial N2O'!C133 ->  | D133: - | E133: ='Industrial N2O'!E133 -> 0 | F133: x | G133: =NaphCEFind -> 0 | H133: = | J133: x | K133: 25 | L133: = | N133: =
B134: Feedstocks, Other Oils greater than 401 F | C134: ='Industrial N2O'!C134 ->  | D134: - | E134: ='Industrial N2O'!E134 -> 0 | F134: x | G134: =OtherOilCEFind -> 0 | H134: = | J134: x | K134: 25 | L134: = | N134: =
B135: Kerosene | C135: ='Industrial N2O'!C135 ->  | D135: - | E135: ='Industrial N2O'!E135 -> 0 | F135: x | G135: =KeroCEFind -> 0 | H135: = | J135: x | K135: 25 | L135: = | N135: =
B136: LPG | C136: ='Industrial N2O'!C136 ->  | D136: - | E136: ='Industrial N2O'!E136 -> 0 | F136: x | G136: =LPGCEFind -> 0 | H136: = | J136: x | K136: 25 | L136: = | N136: =
B137: Lubricants | C137: ='Industrial N2O'!C137 ->  | D137: - | E137: ='Industrial N2O'!E137 -> 0 | F137: x | G137: =LubeCEFind -> 0 | H137: = | J137: x | K137: 25 | L137: = | N137: =
B138: Motor Gasoline | C138: ='Industrial N2O'!C138 ->  | D138: - | E138: ='Industrial N2O'!E138 -> 0 | F138: x | G138: =MotorGasCEFind -> 0 | H138: = | J138: x | K138: 25 | L138: = | N138: =
B139: Motor Gasoline Blending Components | C139: ='Industrial N2O'!C139 ->  | D139: - | E139: ='Industrial N2O'!E139 -> 0 | F139: x | G139: =MoGasBlendCEFind -> 0 | H139: = | J139: x | K139: 25 | L139: = | N139: =
B140: Misc. Petro Products | C140: ='Industrial N2O'!C140 ->  | D140: - | E140: ='Industrial N2O'!E140 -> 0 | F140: x | G140: =MiscCEFind -> 0 | H140: = | J140: x | K140: 25 | L140: = | N140: =
B141: Petroleum Coke | C141: ='Industrial N2O'!C141 ->  | D141: - | E141: ='Industrial N2O'!E141 -> 0 | F141: x | G141: =PetCokeCEFind -> 0 | H141: = | J141: x | K141: 25 | L141: = | N141: =
B142: Pentanes Plus | C142: ='Industrial N2O'!C142 ->  | D142: - | E142: ='Industrial N2O'!E142 -> 0 | F142: x | G142: =pentanesCEFind -> 0 | H142: = | J142: x | K142: 25 | L142: = | N142: =
B143: Residual Fuel | C143: ='Industrial N2O'!C143 ->  | D143: - | E143: ='Industrial N2O'!E143 -> 0 | F143: x | G143: =ResidCEFind -> 0 | H143: = | J143: x | K143: 25 | L143: = | N143: =
B144: Still Gas | C144: ='Industrial N2O'!C144 ->  | D144: - | E144: ='Industrial N2O'!E144 -> 0 | F144: x | G144: =StillCEFind -> 0 | H144: = | J144: x | K144: 25 | L144: = | N144: =
B145: Special Naphthas | C145: ='Industrial N2O'!C145 ->  | D145: - | E145: ='Industrial N2O'!E145 -> 0 | F145: x | G145: =SpecialCEFind -> 0 | H145: = | J145: x | K145: 25 | L145: = | N145: =
B146: Unfinished Oils | C146: ='Industrial N2O'!C146 ->  | D146: - | E146: ='Industrial N2O'!E146 -> 0 | F146: x | G146: =UnfinCEFind -> 0 | H146: = | J146: x | K146: 25 | L146: = | N146: =
B147: Waxes | C147: ='Industrial N2O'!C147 ->  | D147: - | E147: ='Industrial N2O'!E147 -> 0 | F147: x | G147: =WaxesCEFind -> 0 | H147: = | J147: x | K147: 25 | L147: = | N147: =
B148: Natural Gas | C148: ='Industrial N2O'!C148 ->  | D148: - | E148: ='Industrial N2O'!E148 -> 0 | F148: x | G148: =NatGasCEFind -> 0 | H148: = | J148: x | K148: 25 | L148: = | N148: =
B149: Wood | C149: ='Industrial N2O'!C149 ->  | E149: ='Industrial N2O'!E149 -> NA | F149: x | G149: =WoodCEFind -> 0 | H149: = | I149: =C149*G149 ->  | J149: x | K149: 25 | L149: = | N149: =
B150: Other | C150: ='Industrial N2O'!C150 -> 0 | D150: - | E150: ='Industrial N2O'!E150 -> 0 | F150: x | G150: =OtherCEFind -> 0 | H150: = | I150: 0 | J150: x | K150: 25 | L150: = | M150: 0 | N150: = | O150: 0
K151: Total | L151: = | M151: =SUM(M127:M150) ->  | N151: =
B153: Industrial Sector CH4 | E153: =E123+1 -> 1995
C154: Total | E154: Non-Energy
C155: Consumption | E155: Consumption | G155: Emission Factor | I155: Emissions | K155: GWP | M155: Emissions | O155: Emissions
B156: Fuel Type | C156: (Billion Btu) | E156: (Billion Btu) | G156: (metric tons CH4 /BBtu) | I156: (metric tons CH4) | M156: (MMTCE) | O156: (MMTCO2E)
B157: Coking Coal | C157: ='Industrial N2O'!C157 ->  | D157: - | E157: ='Industrial N2O'!E157 -> 0 | F157: x | G157: =CokeCoalCEFind -> 0 | H157: = | I157: =(C157-E157)*G157 ->  | J157: x | K157: =GWPCH4 -> 25 | L157: = | M157: =I157*K157*CO2_C/(10^6) ->  | N157: = | O157: =M157/CO2_C -> 
B158: Other Coal | C158: ='Industrial N2O'!C158 ->  | D158: - | E158: ='Industrial N2O'!E158 -> 0 | F158: x | G158: =OtherCoalCEFind -> 0 | H158: = | I158: =(C158-E158)*G158 ->  | J158: x | K158: =GWPCH4 -> 25 | L158: = | M158: =I158*K158*CO2_C/(10^6) ->  | N158: =
B159: Asphalt and Road Oil | C159: ='Industrial N2O'!C159 ->  | D159: - | E159: ='Industrial N2O'!E159 -> 0 | F159: x | G159: =AsphaltCEFind -> 0 | H159: = | J159: x | K159: 25 | L159: = | N159: =
B160: Aviation Gasoline Blending Components | C160: ='Industrial N2O'!C160 ->  | D160: - | E160: ='Industrial N2O'!E160 -> 0 | F160: x | G160: =AvGasBlendCEFind -> 0 | H160: = | J160: x | K160: 25 | L160: = | N160: =
B161: Crude Oil | C161: ='Industrial N2O'!C161 ->  | D161: - | E161: ='Industrial N2O'!E161 -> 0 | F161: x | G161: =CrudeCEFind -> 0 | H161: = | J161: x | K161: 25 | L161: = | N161: =
B162: Distillate Fuel | C162: ='Industrial N2O'!C162 ->  | D162: - | E162: ='Industrial N2O'!E162 -> 0 | F162: x | G162: =DistillCEFind -> 0 | H162: = | J162: x | K162: 25 | L162: = | N162: =
B163: Feedstocks, Naphtha less than 401 F | C163: ='Industrial N2O'!C163 ->  | D163: - | E163: ='Industrial N2O'!E163 -> 0 | F163: x | G163: =NaphCEFind -> 0 | H163: = | J163: x | K163: 25 | L163: = | N163: =
B164: Feedstocks, Other Oils greater than 401 F | C164: ='Industrial N2O'!C164 ->  | D164: - | E164: ='Industrial N2O'!E164 -> 0 | F164: x | G164: =OtherOilCEFind -> 0 | H164: = | J164: x | K164: 25 | L164: = | N164: =
B165: Kerosene | C165: ='Industrial N2O'!C165 ->  | D165: - | E165: ='Industrial N2O'!E165 -> 0 | F165: x | G165: =KeroCEFind -> 0 | H165: = | J165: x | K165: 25 | L165: = | N165: =
B166: LPG | C166: ='Industrial N2O'!C166 ->  | D166: - | E166: ='Industrial N2O'!E166 -> 0 | F166: x | G166: =LPGCEFind -> 0 | H166: = | J166: x | K166: 25 | L166: = | N166: =
B167: Lubricants | C167: ='Industrial N2O'!C167 ->  | D167: - | E167: ='Industrial N2O'!E167 -> 0 | F167: x | G167: =LubeCEFind -> 0 | H167: = | J167: x | K167: 25 | L167: = | N167: =
B168: Motor Gasoline | C168: ='Industrial N2O'!C168 ->  | D168: - | E168: ='Industrial N2O'!E168 -> 0 | F168: x | G168: =MotorGasCEFind -> 0 | H168: = | J168: x | K168: 25 | L168: = | N168: =
B169: Motor Gasoline Blending Components | C169: ='Industrial N2O'!C169 ->  | D169: - | E169: ='Industrial N2O'!E169 -> 0 | F169: x | G169: =MoGasBlendCEFind -> 0 | H169: = | J169: x | K169: 25 | L169: = | N169: =
B170: Misc. Petro Products | C170: ='Industrial N2O'!C170 ->  | D170: - | E170: ='Industrial N2O'!E170 -> 0 | F170: x | G170: =MiscCEFind -> 0 | H170: = | J170: x | K170: 25 | L170: = | N170: =
B171: Petroleum Coke | C171: ='Industrial N2O'!C171 ->  | D171: - | E171: ='Industrial N2O'!E171 -> 0 | F171: x | G171: =PetCokeCEFind -> 0 | H171: = | J171: x | K171: 25 | L171: = | N171: =
B172: Pentanes Plus | C172: ='Industrial N2O'!C172 ->  | D172: - | E172: ='Industrial N2O'!E172 -> 0 | F172: x | G172: =pentanesCEFind -> 0 | H172: = | J172: x | K172: 25 | L172: = | N172: =
B173: Residual Fuel | C173: ='Industrial N2O'!C173 ->  | D173: - | E173: ='Industrial N2O'!E173 -> 0 | F173: x | G173: =ResidCEFind -> 0 | H173: = | J173: x | K173: 25 | L173: = | N173: =
B174: Still Gas | C174: ='Industrial N2O'!C174 ->  | D174: - | E174: ='Industrial N2O'!E174 -> 0 | F174: x | G174: =StillCEFind -> 0 | H174: = | J174: x | K174: 25 | L174: = | N174: =
B175: Special Naphthas | C175: ='Industrial N2O'!C175 ->  | D175: - | E175: ='Industrial N2O'!E175 -> 0 | F175: x | G175: =SpecialCEFind -> 0 | H175: = | J175: x | K175: 25 | L175: = | N175: =
B176: Unfinished Oils | C176: ='Industrial N2O'!C176 ->  | D176: - | E176: ='Industrial N2O'!E176 -> 0 | F176: x | G176: =UnfinCEFind -> 0 | H176: = | J176: x | K176: 25 | L176: = | N176: =
B177: Waxes | C177: ='Industrial N2O'!C177 ->  | D177: - | E177: ='Industrial N2O'!E177 -> 0 | F177: x | G177: =WaxesCEFind -> 0 | H177: = | J177: x | K177: 25 | L177: = | N177: =
B178: Natural Gas | C178: ='Industrial N2O'!C178 ->  | D178: - | E178: ='Industrial N2O'!E178 -> 0 | F178: x | G178: =NatGasCEFind -> 0 | H178: = | J178: x | K178: 25 | L178: = | N178: =
B179: Wood | C179: ='Industrial N2O'!C179 ->  | E179: ='Industrial N2O'!E179 -> NA | F179: x | G179: =WoodCEFind -> 0 | H179: = | I179: =C179*G179 ->  | J179: x | K179: 25 | L179: = | N179: =
B180: Other | C180: ='Industrial N2O'!C180 -> 0 | D180: - | E180: ='Industrial N2O'!E180 -> 0 | F180: x | G180: =OtherCEFind -> 0 | H180: = | I180: 0 | J180: x | K180: 25 | L180: = | M180: 0 | N180: = | O180: 0
K181: Total | L181: = | M181: =SUM(M157:M180) ->  | N181: =
B183: Industrial Sector CH4 | E183: =E153+1 -> 1996
C184: Total | E184: Non-Energy
C185: Consumption | E185: Consumption | G185: Emission Factor | I185: Emissions | K185: GWP | M185: Emissions | O185: Emissions
B186: Fuel Type | C186: (Billion Btu) | E186: (Billion Btu) | G186: (metric tons CH4 /BBtu) | I186: (metric tons CH4) | M186: (MMTCE) | O186: (MMTCO2E)
B187: Coking Coal | C187: ='Industrial N2O'!C187 ->  | D187: - | E187: ='Industrial N2O'!E187 -> 0 | F187: x | G187: =CokeCoalCEFind -> 0 | H187: = | I187: =(C187-E187)*G187 ->  | J187: x | K187: =GWPCH4 -> 25 | L187: = | M187: =I187*K187*CO2_C/(10^6) ->  | N187: = | O187: =M187/CO2_C -> 
B188: Other Coal | C188: ='Industrial N2O'!C188 ->  | D188: - | E188: ='Industrial N2O'!E188 -> 0 | F188: x | G188: =OtherCoalCEFind -> 0 | H188: = | I188: =(C188-E188)*G188 ->  | J188: x | K188: =GWPCH4 -> 25 | L188: = | M188: =I188*K188*CO2_C/(10^6) ->  | N188: =
B189: Asphalt and Road Oil | C189: ='Industrial N2O'!C189 ->  | D189: - | E189: ='Industrial N2O'!E189 -> 0 | F189: x | G189: =AsphaltCEFind -> 0 | H189: = | J189: x | K189: 25 | L189: = | N189: =
B190: Aviation Gasoline Blending Components | C190: ='Industrial N2O'!C190 ->  | D190: - | E190: ='Industrial N2O'!E190 -> 0 | F190: x | G190: =AvGasBlendCEFind -> 0 | H190: = | J190: x | K190: 25 | L190: = | N190: =
B191: Crude Oil | C191: ='Industrial N2O'!C191 ->  | D191: - | E191: ='Industrial N2O'!E191 -> 0 | F191: x | G191: =CrudeCEFind -> 0 | H191: = | J191: x | K191: 25 | L191: = | N191: =
B192: Distillate Fuel | C192: ='Industrial N2O'!C192 ->  | D192: - | E192: ='Industrial N2O'!E192 -> 0 | F192: x | G192: =DistillCEFind -> 0 | H192: = | J192: x | K192: 25 | L192: = | N192: =
B193: Feedstocks, Naphtha less than 401 F | C193: ='Industrial N2O'!C193 ->  | D193: - | E193: ='Industrial N2O'!E193 -> 0 | F193: x | G193: =NaphCEFind -> 0 | H193: = | J193: x | K193: 25 | L193: = | N193: =
B194: Feedstocks, Other Oils greater than 401 F | C194: ='Industrial N2O'!C194 ->  | D194: - | E194: ='Industrial N2O'!E194 -> 0 | F194: x | G194: =OtherOilCEFind -> 0 | H194: = | J194: x | K194: 25 | L194: = | N194: =
B195: Kerosene | C195: ='Industrial N2O'!C195 ->  | D195: - | E195: ='Industrial N2O'!E195 -> 0 | F195: x | G195: =KeroCEFind -> 0 | H195: = | J195: x | K195: 25 | L195: = | N195: =
B196: LPG | C196: ='Industrial N2O'!C196 ->  | D196: - | E196: ='Industrial N2O'!E196 -> 0 | F196: x | G196: =LPGCEFind -> 0 | H196: = | J196: x | K196: 25 | L196: = | N196: =
B197: Lubricants | C197: ='Industrial N2O'!C197 ->  | D197: - | E197: ='Industrial N2O'!E197 -> 0 | F197: x | G197: =LubeCEFind -> 0 | H197: = | J197: x | K197: 25 | L197: = | N197: =
B198: Motor Gasoline | C198: ='Industrial N2O'!C198 ->  | D198: - | E198: ='Industrial N2O'!E198 -> 0 | F198: x | G198: =MotorGasCEFind -> 0 | H198: = | J198: x | K198: 25 | L198: = | N198: =
B199: Motor Gasoline Blending Components | C199: ='Industrial N2O'!C199 ->  | D199: - | E199: ='Industrial N2O'!E199 -> 0 | F199: x | G199: =MoGasBlendCEFind -> 0 | H199: = | J199: x | K199: 25 | L199: = | N199: =
B200: Misc. Petro Products | C200: ='Industrial N2O'!C200 ->  | D200: - | E200: ='Industrial N2O'!E200 -> 0 | F200: x | G200: =MiscCEFind -> 0 | H200: = | J200: x | K200: 25 | L200: = | N200: =
B201: Petroleum Coke | C201: ='Industrial N2O'!C201 ->  | D201: - | E201: ='Industrial N2O'!E201 -> 0 | F201: x | G201: =PetCokeCEFind -> 0 | H201: = | J201: x | K201: 25 | L201: = | N201: =
B202: Pentanes Plus | C202: ='Industrial N2O'!C202 ->  | D202: - | E202: ='Industrial N2O'!E202 -> 0 | F202: x | G202: =pentanesCEFind -> 0 | H202: = | J202: x | K202: 25 | L202: = | N202: =
B203: Residual Fuel | C203: ='Industrial N2O'!C203 ->  | D203: - | E203: ='Industrial N2O'!E203 -> 0 | F203: x | G203: =ResidCEFind -> 0 | H203: = | J203: x | K203: 25 | L203: = | N203: =
B204: Still Gas | C204: ='Industrial N2O'!C204 ->  | D204: - | E204: ='Industrial N2O'!E204 -> 0 | F204: x | G204: =StillCEFind -> 0 | H204: = | J204: x | K204: 25 | L204: = | N204: =
B205: Special Naphthas | C205: ='Industrial N2O'!C205 ->  | D205: - | E205: ='Industrial N2O'!E205 -> 0 | F205: x | G205: =SpecialCEFind -> 0 | H205: = | J205: x | K205: 25 | L205: = | N205: =
B206: Unfinished Oils | C206: ='Industrial N2O'!C206 ->  | D206: - | E206: ='Industrial N2O'!E206 -> 0 | F206: x | G206: =UnfinCEFind -> 0 | H206: = | J206: x | K206: 25 | L206: = | N206: =
... 701 more rows

Sheet Summary N2O
A1: ="N2O Emissions Summary for "&StateName -> N2O Emissions Summary for Select a State . . .
B3: =Tracker!B13 -> Emissions were not calculated for the following sectors: Residential, Commercial, Industrial, and Electric Power.
B5: MMTCO2E | C5: 1990 | D5: 1991 | E5: 1992 | F5: 1993 | G5: 1994 | H5: 1995 | I5: 1996 | J5: 1997 | K5: 1998 | L5: 1999 | M5: 2000 | N5: 2001 | O5: 2002 | P5: 2003 | Q5: 2004 | R5: 2005 | S5: 2006 | T5: 2007 | U5: 2008 | V5: 2009 | W5: 2010 | X5: 2011 | Y5: 2012 | Z5: 2013 | AA5: 2014 | AB5: 2015 | AC5: 2016 | AD5: 2017 | AE5: 2018 | AF5: 2019 | AG5: 2020
B6: Residential | C6: =C40*44/12 ->  | S6: =S40*44/12 -> 
B7: Coal | C7: =C41*44/12 ->  | S7: =S41*44/12 -> 
B8: Petroleum | C8: =C42*44/12 ->  | S8: =S42*44/12 -> 
B9: Natural Gas | C9: =C43*44/12 ->  | S9: =S43*44/12 -> 
B10: Wood | C10: =C44*44/12 ->  | S10: =S44*44/12 -> 
B11: Other | C11: =C45*44/12 -> 0 | D11: 0 | E11: 0 | F11: 0 | G11: 0 | H11: 0 | I11: 0 | J11: 0 | K11: 0 | L11: 0 | M11: 0 | N11: 0 | O11: 0 | P11: 0 | Q11: 0 | R11: 0 | S11: =S45*44/12 -> 0 | T11: 0 | U11: 0 | V11: 0 | W11: 0 | X11: 0 | Y11: 0 | Z11: 0 | AA11: 0 | AB11: 0 | AC11: 0 | AD11: 0 | AE11: 0 | AF11: 0 | AG11: 0
B12: Commercial | C12: =C46*44/12 ->  | S12: =S46*44/12 -> 
B13: Coal | C13: =C47*44/12 ->  | S13: =S47*44/12 -> 
B14: Petroleum | C14: =C48*44/12 ->  | S14: =S48*44/12 -> 
B15: Natural Gas | C15: =C49*44/12 ->  | S15: =S49*44/12 -> 
B16: Wood | C16: =C50*44/12 ->  | S16: =S50*44/12 -> 
B17: Other | C17: =C51*44/12 -> 0 | D17: 0 | E17: 0 | F17: 0 | G17: 0 | H17: 0 | I17: 0 | J17: 0 | K17: 0 | L17: 0 | M17: 0 | N17: 0 | O17: 0 | P17: 0 | Q17: 0 | R17: 0 | S17: =S51*44/12 -> 0 | T17: 0 | U17: 0 | V17: 0 | W17: 0 | X17: 0 | Y17: 0 | Z17: 0 | AA17: 0 | AB17: 0 | AC17: 0 | AD17: 0 | AE17: 0 | AF17: 0 | AG17: 0
B18: Industrial | C18: =C52*44/12 ->  | S18: =S52*44/12 -> 
B19: Coal | C19: =C53*44/12 ->  | S19: =S53*44/12 -> 
B20: Petroleum | C20: =C54*44/12 ->  | S20: =S54*44/12 -> 
B21: Natural Gas | C21: =C55*44/12 ->  | S21: =S55*44/12 -> 
B22: Wood | C22: =C56*44/12 ->  | S22: =S56*44/12 -> 
B23: Other | C23: =C57*44/12 -> 0 | D23: 0 | E23: 0 | F23: 0 | G23: 0 | H23: 0 | I23: 0 | J23: 0 | K23: 0 | L23: 0 | M23: 0 | N23: 0 | O23: 0 | P23: 0 | Q23: 0 | R23: 0 | S23: =S57*44/12 -> 0 | T23: 0 | U23: 0 | V23: 0 | W23: 0 | X23: 0 | Y23: 0 | Z23: 0 | AA23: 0 | AB23: 0 | AC23: 0 | AD23: 0 | AE23: 0 | AF23: 0 | AG23: 0
B24: Electric Power | C24: =C58*44/12 ->  | S24: =S58*44/12 -> 
B25: Coal | C25: =C59*44/12 ->  | S25: =S59*44/12 -> 
B26: Petroleum | C26: =C60*44/12 ->  | S26: =S60*44/12 -> 
B27: Natural Gas | C27: =C61*44/12 ->  | S27: =S61*44/12 -> 
B28: Wood | C28: =C62*44/12 ->  | S28: =S62*44/12 -> 
B29: Other | C29: =C63*44/12 -> 0 | D29: 0 | E29: 0 | F29: 0 | G29: 0 | H29: 0 | I29: 0 | J29: 0 | K29: 0 | L29: 0 | M29: 0 | N29: 0 | O29: 0 | P29: 0 | Q29: 0 | R29: 0 | S29: =S63*44/12 -> 0 | T29: 0 | U29: 0 | V29: 0 | W29: 0 | X29: 0 | Y29: 0 | Z29: 0 | AA29: 0 | AB29: 0 | AC29: 0 | AD29: 0 | AE29: 0 | AF29: 0 | AG29: 0
B30: TOTAL | C30: =C64*44/12 ->  | S30: =S64*44/12 -> 
B31: Coal | C31: =C65*44/12 ->  | S31: =S65*44/12 -> 
B32: Petroleum | C32: =C66*44/12 ->  | S32: =S66*44/12 -> 
B33: Natural Gas | C33: =C67*44/12 ->  | S33: =S67*44/12 -> 
B34: Wood | C34: =C68*44/12 ->  | S34: =S68*44/12 -> 
B35: Other | C35: =C69*44/12 -> 0 | D35: 0 | E35: 0 | F35: 0 | G35: 0 | H35: 0 | I35: 0 | J35: 0 | K35: 0 | L35: 0 | M35: 0 | N35: 0 | O35: 0 | P35: 0 | Q35: 0 | R35: 0 | S35: =S69*44/12 -> 0 | T35: 0 | U35: 0 | V35: 0 | W35: 0 | X35: 0 | Y35: 0 | Z35: 0 | AA35: 0 | AB35: 0 | AC35: 0 | AD35: 0 | AE35: 0 | AF35: 0 | AG35: 0
C37: 1 | D37: =IF(ISERROR(IF(D30=0,0,COLUMN()-2)),0,IF(D30=0,0,COLUMN()-2)) -> 0 | E37: =IF(ISERROR(IF(E30=0,0,COLUMN()-2)),0,IF(E30=0,0,COLUMN()-2)) -> 0 | F37: 0 | G37: 0 | H37: 0 | I37: 0 | J37: 0 | K37: 0 | L37: 0 | M37: 0 | N37: 0 | O37: 0 | P37: 0 | Q37: 0 | R37: 0 | S37: 0 | T37: 0 | U37: 0 | V37: 0 | W37: 0 | X37: 0 | Y37: 0 | Z37: 0 | AA37: 0 | AB37: 0 | AC37: 0 | AD37: 0 | AE37: 0 | AF37: 0 | AG37: 0
C38: =IF(C37=0,0,C5) -> 1990 | D38: =IF(D37=0,0,D5) -> 0 | E38: 0 | F38: 0 | G38: 0 | H38: 0 | I38: 0 | J38: 0 | K38: 0 | L38: 0 | M38: 0 | N38: 0 | O38: 0 | P38: 0 | Q38: 0 | R38: 0 | S38: 0 | T38: 0 | U38: 0 | V38: 0 | W38: 0 | X38: 0 | Y38: 0 | Z38: 0 | AA38: 0 | AB38: 0 | AC38: 0 | AD38: 0 | AE38: 0 | AF38: 0 | AG38: =IF(AG37=0,0,AG5) -> 0
B39: MMTCE | C39: 1990 | D39: 1991 | E39: 1992 | F39: 1993 | G39: 1994 | H39: 1995 | I39: 1996 | J39: 1997 | K39: 1998 | L39: 1999 | M39: 2000 | N39: 2001 | O39: 2002 | P39: 2003 | Q39: 2004 | R39: 2005 | S39: 2006 | T39: 2007 | U39: 2008 | V39: 2009 | W39: 2010 | X39: 2011 | Y39: 2012 | Z39: 2013 | AA39: 2014 | AB39: 2015 | AC39: 2016 | AD39: 2017 | AE39: 2018 | AF39: 2019 | AG39: 2020
B40: Residential | C40: =SUM(C41:C45) ->  | D40: =SUM(D41:D45) ->  | M40: =SUM(M41:M45) -> 
B41: Coal | C41: ='Residential N2O'!$J7 ->  | D41: ='Residential N2O'!$J20 ->  | E41: ='Residential N2O'!$J33 ->  | F41: ='Residential N2O'!$J46 ->  | G41: ='Residential N2O'!$J59 ->  | H41: ='Residential N2O'!$J72 ->  | I41: ='Residential N2O'!$J85 ->  | J41: ='Residential N2O'!$J98 ->  | K41: ='Residential N2O'!$J111 ->  | L41: ='Residential N2O'!$J124 ->  | M41: ='Residential N2O'!$J137 ->  | N41: ='Residential N2O'!$J150 ->  | O41: ='Residential N2O'!$J163 ->  | P41: ='Residential N2O'!$J176 ->  | Q41: ='Residential N2O'!$J189 ->  | R41: ='Residential N2O'!$J202 ->  | S41: ='Residential N2O'!$J215 ->  | T41: ='Residential N2O'!$J228 ->  | U41: ='Residential N2O'!$J241 ->  | V41: ='Residential N2O'!$J254 ->  | W41: ='Residential N2O'!$J267 ->  | X41: ='Residential N2O'!$J280 ->  | Y41: ='Residential N2O'!$J293 ->  | Z41: ='Residential N2O'!$J306 ->  | AA41: ='Residential N2O'!$J319 ->  | AB41: ='Residential N2O'!$J332 ->  | AC41: ='Residential N2O'!$J345 ->  | AD41: ='Residential N2O'!$J358 ->  | AE41: ='Residential N2O'!$J371 ->  | AF41: ='Residential N2O'!$J384 ->  | AG41: ='Residential N2O'!$J397 -> 
B42: Petroleum | C42: =SUM('Residential N2O'!$J8:$J10) ->  | D42: =SUM('Residential N2O'!$J21:$J23) ->  | E42: =SUM('Residential N2O'!$J34:$J36) ->  | F42: =SUM('Residential N2O'!$J47:$J49) ->  | G42: =SUM('Residential N2O'!$J60:$J62) ->  | H42: =SUM('Residential N2O'!$J73:$J75) ->  | I42: =SUM('Residential N2O'!$J86:$J88) ->  | J42: =SUM('Residential N2O'!$J99:$J101) ->  | K42: =SUM('Residential N2O'!$J112:$J114) ->  | L42: =SUM('Residential N2O'!$J125:$J127) ->  | M42: =SUM('Residential N2O'!$J138:$J140) ->  | N42: =SUM('Residential N2O'!$J151:$J153) ->  | O42: =SUM('Residential N2O'!$J164:$J166) ->  | P42: =SUM('Residential N2O'!$J177:$J179) ->  | Q42: =SUM('Residential N2O'!$J190:$J192) ->  | R42: =SUM('Residential N2O'!$J203:$J205) ->  | S42: =SUM('Residential N2O'!$J216:$J218) ->  | T42: =SUM('Residential N2O'!$J229:$J231) ->  | U42: =SUM('Residential N2O'!$J242:$J244) ->  | V42: =SUM('Residential N2O'!$J255:$J257) ->  | W42: =SUM('Residential N2O'!$J268:$J270) ->  | X42: =SUM('Residential N2O'!$J281:$J283) ->  | Y42: =SUM('Residential N2O'!$J294:$J296) ->  | Z42: =SUM('Residential N2O'!$J307:$J309) ->  | AA42: =SUM('Residential N2O'!$J320:$J322) ->  | AB42: =SUM('Residential N2O'!$J333:$J335) ->  | AC42: =SUM('Residential N2O'!$J346:$J348) ->  | AD42: =SUM('Residential N2O'!$J359:$J361) ->  | AE42: =SUM('Residential N2O'!$J372:$J374) ->  | AF42: =SUM('Residential N2O'!$J385:$J387) ->  | AG42: =SUM('Residential N2O'!$J398:$J400) -> 
B43: Natural Gas | C43: ='Residential N2O'!$J11 ->  | D43: ='Residential N2O'!$J24 ->  | E43: ='Residential N2O'!$J37 ->  | F43: ='Residential N2O'!$J50 ->  | G43: ='Residential N2O'!$J63 ->  | H43: ='Residential N2O'!$J76 ->  | I43: ='Residential N2O'!$J89 ->  | J43: ='Residential N2O'!$J102 ->  | K43: ='Residential N2O'!$J115 ->  | L43: ='Residential N2O'!$J128 ->  | M43: ='Residential N2O'!$J141 ->  | N43: ='Residential N2O'!$J154 ->  | O43: ='Residential N2O'!$J167 ->  | P43: ='Residential N2O'!$J180 ->  | Q43: ='Residential N2O'!$J193 ->  | R43: ='Residential N2O'!$J206 ->  | S43: ='Residential N2O'!$J219 ->  | T43: ='Residential N2O'!$J232 ->  | U43: ='Residential N2O'!$J245 ->  | V43: ='Residential N2O'!$J258 ->  | W43: ='Residential N2O'!$J271 ->  | X43: ='Residential N2O'!$J284 ->  | Y43: ='Residential N2O'!$J297 ->  | Z43: ='Residential N2O'!$J310 ->  | AA43: ='Residential N2O'!$J323 ->  | AB43: ='Residential N2O'!$J336 ->  | AC43: ='Residential N2O'!$J349 ->  | AD43: ='Residential N2O'!$J362 ->  | AE43: ='Residential N2O'!$J375 ->  | AF43: ='Residential N2O'!$J388 ->  | AG43: ='Residential N2O'!$J401 -> 
B44: Wood | C44: ='Residential N2O'!$J12 ->  | D44: ='Residential N2O'!$J25 ->  | E44: ='Residential N2O'!$J38 ->  | F44: ='Residential N2O'!$J51 ->  | G44: ='Residential N2O'!$J64 ->  | H44: ='Residential N2O'!$J77 ->  | I44: ='Residential N2O'!$J90 ->  | J44: ='Residential N2O'!$J103 ->  | K44: ='Residential N2O'!$J116 ->  | L44: ='Residential N2O'!$J129 ->  | M44: ='Residential N2O'!$J142 ->  | N44: ='Residential N2O'!$J155 ->  | O44: ='Residential N2O'!$J168 ->  | P44: ='Residential N2O'!$J181 ->  | Q44: ='Residential N2O'!$J194 ->  | R44: ='Residential N2O'!$J207 ->  | S44: ='Residential N2O'!$J220 ->  | T44: ='Residential N2O'!$J233 ->  | U44: ='Residential N2O'!$J246 ->  | V44: ='Residential N2O'!$J259 ->  | W44: ='Residential N2O'!$J272 ->  | X44: ='Residential N2O'!$J285 ->  | Y44: ='Residential N2O'!$J298 ->  | Z44: ='Residential N2O'!$J311 ->  | AA44: ='Residential N2O'!$J324 ->  | AB44: ='Residential N2O'!$J337 ->  | AC44: ='Residential N2O'!$J350 ->  | AD44: ='Residential N2O'!$J363 ->  | AE44: ='Residential N2O'!$J376 ->  | AF44: ='Residential N2O'!$J389 ->  | AG44: ='Residential N2O'!$J402 -> 
B45: Other | C45: ='Residential N2O'!$J13 -> 0 | D45: ='Residential N2O'!$J26 -> 0 | E45: ='Residential N2O'!$J39 -> 0 | F45: ='Residential N2O'!$J52 -> 0 | G45: ='Residential N2O'!$J65 -> 0 | H45: ='Residential N2O'!$J78 -> 0 | I45: ='Residential N2O'!$J91 -> 0 | J45: ='Residential N2O'!$J104 -> 0 | K45: ='Residential N2O'!$J117 -> 0 | L45: ='Residential N2O'!$J130 -> 0 | M45: ='Residential N2O'!$J143 -> 0 | N45: ='Residential N2O'!$J156 -> 0 | O45: ='Residential N2O'!$J169 -> 0 | P45: ='Residential N2O'!$J182 -> 0 | Q45: ='Residential N2O'!$J195 -> 0 | R45: ='Residential N2O'!$J208 -> 0 | S45: ='Residential N2O'!$J221 -> 0 | T45: ='Residential N2O'!$J234 -> 0 | U45: ='Residential N2O'!$J247 -> 0 | V45: ='Residential N2O'!$J260 -> 0 | W45: ='Residential N2O'!$J273 -> 0 | X45: ='Residential N2O'!$J286 -> 0 | Y45: ='Residential N2O'!$J299 -> 0 | Z45: ='Residential N2O'!$J312 -> 0 | AA45: ='Residential N2O'!$J325 -> 0 | AB45: ='Residential N2O'!$J338 -> 0 | AC45: ='Residential N2O'!$J351 -> 0 | AD45: ='Residential N2O'!$J364 -> 0 | AE45: ='Residential N2O'!$J377 -> 0 | AF45: ='Residential N2O'!$J390 -> 0 | AG45: ='Residential N2O'!$J403 -> 0
B46: Commercial | C46: =SUM(C47:C51) ->  | D46: =SUM(D47:D51) ->  | M46: =SUM(M47:M51) -> 
B47: Coal | C47: ='Commercial N2O'!J7 ->  | D47: ='Commercial N2O'!J22 ->  | E47: ='Commercial N2O'!J37 ->  | F47: ='Commercial N2O'!J52 ->  | G47: ='Commercial N2O'!J67 ->  | H47: ='Commercial N2O'!J82 ->  | I47: ='Commercial N2O'!J97 ->  | J47: ='Commercial N2O'!J112 ->  | K47: ='Commercial N2O'!J127 ->  | L47: ='Commercial N2O'!J142 ->  | M47: ='Commercial N2O'!$J157 ->  | N47: ='Commercial N2O'!$J172 ->  | O47: ='Commercial N2O'!$J187 ->  | P47: ='Commercial N2O'!$J202 ->  | Q47: ='Commercial N2O'!$J217 ->  | R47: ='Commercial N2O'!$J232 ->  | S47: ='Commercial N2O'!$J247 ->  | T47: ='Commercial N2O'!$J262 ->  | U47: ='Commercial N2O'!$J277 ->  | V47: ='Commercial N2O'!$J292 ->  | W47: ='Commercial N2O'!$J307 ->  | X47: ='Commercial N2O'!$J322 ->  | Y47: ='Commercial N2O'!$J337 ->  | Z47: ='Commercial N2O'!$J352 ->  | AA47: ='Commercial N2O'!$J367 ->  | AB47: ='Commercial N2O'!$J382 ->  | AC47: ='Commercial N2O'!$J397 ->  | AD47: ='Commercial N2O'!$J412 ->  | AE47: ='Commercial N2O'!$J427 ->  | AF47: ='Commercial N2O'!$J442 ->  | AG47: ='Commercial N2O'!$J457 -> 
B48: Petroleum | C48: =SUM('Commercial N2O'!J8:J12) ->  | D48: =SUM('Commercial N2O'!J23:J27) ->  | E48: =SUM('Commercial N2O'!J38:J42) ->  | F48: =SUM('Commercial N2O'!J53:J57) ->  | G48: =SUM('Commercial N2O'!J68:J72) ->  | H48: =SUM('Commercial N2O'!J83:J87) ->  | I48: =SUM('Commercial N2O'!J98:J102) ->  | J48: =SUM('Commercial N2O'!J113:J117) ->  | K48: =SUM('Commercial N2O'!J128:J132) ->  | L48: =SUM('Commercial N2O'!J143:J147) ->  | M48: =SUM('Commercial N2O'!$J158:$J162) ->  | N48: =SUM('Commercial N2O'!$J173:$J177) ->  | O48: =SUM('Commercial N2O'!$J188:$J192) ->  | P48: =SUM('Commercial N2O'!$J203:$J207) ->  | Q48: =SUM('Commercial N2O'!$J218:$J222) ->  | R48: =SUM('Commercial N2O'!$J233:$J237) ->  | S48: =SUM('Commercial N2O'!$J248:$J252) ->  | T48: =SUM('Commercial N2O'!$J263:$J267) ->  | U48: =SUM('Commercial N2O'!$J278:$J282) ->  | V48: =SUM('Commercial N2O'!$J293:$J297) ->  | W48: =SUM('Commercial N2O'!$J308:$J312) ->  | X48: =SUM('Commercial N2O'!$J323:$J327) ->  | Y48: =SUM('Commercial N2O'!$J338:$J342) ->  | Z48: =SUM('Commercial N2O'!$J353:$J357) ->  | AA48: =SUM('Commercial N2O'!$J368:$J372) ->  | AB48: =SUM('Commercial N2O'!$J383:$J387) ->  | AC48: =SUM('Commercial N2O'!$J398:$J402) ->  | AD48: =SUM('Commercial N2O'!$J413:$J417) ->  | AE48: =SUM('Commercial N2O'!$J428:$J432) ->  | AF48: =SUM('Commercial N2O'!$J443:$J447) ->  | AG48: =SUM('Commercial N2O'!$J458:$J462) -> 
B49: Natural Gas | C49: ='Commercial N2O'!J13 ->  | D49: ='Commercial N2O'!J28 ->  | E49: ='Commercial N2O'!J43 ->  | F49: ='Commercial N2O'!J58 ->  | G49: ='Commercial N2O'!J73 ->  | H49: ='Commercial N2O'!J88 ->  | I49: ='Commercial N2O'!J103 ->  | J49: ='Commercial N2O'!J118 ->  | K49: ='Commercial N2O'!J133 ->  | L49: ='Commercial N2O'!J148 ->  | M49: ='Commercial N2O'!$J163 ->  | N49: ='Commercial N2O'!$J178 ->  | O49: ='Commercial N2O'!$J193 ->  | P49: ='Commercial N2O'!$J208 ->  | Q49: ='Commercial N2O'!$J223 ->  | R49: ='Commercial N2O'!$J238 ->  | S49: ='Commercial N2O'!$J253 ->  | T49: ='Commercial N2O'!$J268 ->  | U49: ='Commercial N2O'!$J283 ->  | V49: ='Commercial N2O'!$J298 ->  | W49: ='Commercial N2O'!$J313 ->  | X49: ='Commercial N2O'!$J328 ->  | Y49: ='Commercial N2O'!$J343 ->  | Z49: ='Commercial N2O'!$J358 ->  | AA49: ='Commercial N2O'!$J373 ->  | AB49: ='Commercial N2O'!$J388 ->  | AC49: ='Commercial N2O'!$J403 ->  | AD49: ='Commercial N2O'!$J418 ->  | AE49: ='Commercial N2O'!$J433 ->  | AF49: ='Commercial N2O'!$J448 ->  | AG49: ='Commercial N2O'!$J463 -> 
B50: Wood | C50: ='Commercial N2O'!J14 ->  | D50: ='Commercial N2O'!J29 ->  | E50: ='Commercial N2O'!J44 ->  | F50: ='Commercial N2O'!J59 ->  | G50: ='Commercial N2O'!J74 ->  | H50: ='Commercial N2O'!J89 ->  | I50: ='Commercial N2O'!J104 ->  | J50: ='Commercial N2O'!J119 ->  | K50: ='Commercial N2O'!J134 ->  | L50: ='Commercial N2O'!J149 ->  | M50: ='Commercial N2O'!$J164 ->  | N50: ='Commercial N2O'!$J179 ->  | O50: ='Commercial N2O'!$J194 ->  | P50: ='Commercial N2O'!$J209 ->  | Q50: ='Commercial N2O'!$J224 ->  | R50: ='Commercial N2O'!$J239 ->  | S50: ='Commercial N2O'!$J254 ->  | T50: ='Commercial N2O'!$J269 ->  | U50: ='Commercial N2O'!$J284 ->  | V50: ='Commercial N2O'!$J299 ->  | W50: ='Commercial N2O'!$J314 ->  | X50: ='Commercial N2O'!$J329 ->  | Y50: ='Commercial N2O'!$J344 ->  | Z50: ='Commercial N2O'!$J359 ->  | AA50: ='Commercial N2O'!$J374 ->  | AB50: ='Commercial N2O'!$J389 ->  | AC50: ='Commercial N2O'!$J404 ->  | AD50: ='Commercial N2O'!$J419 ->  | AE50: ='Commercial N2O'!$J434 ->  | AF50: ='Commercial N2O'!$J449 ->  | AG50: ='Commercial N2O'!$J464 -> 
B51: Other | C51: ='Commercial N2O'!J15 -> 0 | D51: ='Commercial N2O'!J30 -> 0 | E51: ='Commercial N2O'!J45 -> 0 | F51: ='Commercial N2O'!J60 -> 0 | G51: ='Commercial N2O'!J75 -> 0 | H51: ='Commercial N2O'!J90 -> 0 | I51: ='Commercial N2O'!J105 -> 0 | J51: ='Commercial N2O'!J120 -> 0 | K51: ='Commercial N2O'!J135 -> 0 | L51: ='Commercial N2O'!J150 -> 0 | M51: ='Commercial N2O'!$J165 -> 0 | N51: ='Commercial N2O'!$J180 -> 0 | O51: ='Commercial N2O'!$J195 -> 0 | P51: ='Commercial N2O'!$J210 -> 0 | Q51: ='Commercial N2O'!$J225 -> 0 | R51: ='Commercial N2O'!$J240 -> 0 | S51: ='Commercial N2O'!$J255 -> 0 | T51: ='Commercial N2O'!$J270 -> 0 | U51: ='Commercial N2O'!$J285 -> 0 | V51: ='Commercial N2O'!$J300 -> 0 | W51: ='Commercial N2O'!$J315 -> 0 | X51: ='Commercial N2O'!$J330 -> 0 | Y51: ='Commercial N2O'!$J345 -> 0 | Z51: ='Commercial N2O'!$J360 -> 0 | AA51: ='Commercial N2O'!$J375 -> 0 | AB51: ='Commercial N2O'!$J390 -> 0 | AC51: ='Commercial N2O'!$J405 -> 0 | AD51: ='Commercial N2O'!$J420 -> 0 | AE51: ='Commercial N2O'!$J435 -> 0 | AF51: ='Commercial N2O'!$J450 -> 0 | AG51: ='Commercial N2O'!$J465 -> 0
B52: Industrial | C52: =SUM(C53:C57) ->  | D52: =SUM(D53:D57) ->  | M52: =SUM(M53:M57) -> 
B53: Coal | C53: =SUM('Industrial N2O'!M7:M8) ->  | D53: =SUM('Industrial N2O'!M37:M38) ->  | E53: =SUM('Industrial N2O'!M67:M68) ->  | F53: =SUM('Industrial N2O'!M97:M98) ->  | G53: =SUM('Industrial N2O'!M127:M128) ->  | H53: =SUM('Industrial N2O'!M157:M158) ->  | I53: =SUM('Industrial N2O'!M187:M188) ->  | J53: =SUM('Industrial N2O'!M217:M218) ->  | K53: =SUM('Industrial N2O'!M247:M248) ->  | L53: =SUM('Industrial N2O'!M277:M278) ->  | M53: =SUM('Industrial N2O'!$M307:$M308) ->  | N53: =SUM('Industrial N2O'!M337:M338) ->  | O53: =SUM('Industrial N2O'!M367:M368) ->  | P53: =SUM('Industrial N2O'!M397:M398) ->  | Q53: =SUM('Industrial N2O'!M427:M428) ->  | R53: =SUM('Industrial N2O'!$M457:$M458) ->  | S53: =SUM('Industrial N2O'!$M487:$M488) ->  | T53: =SUM('Industrial N2O'!$M517:$M518) ->  | U53: =SUM('Industrial N2O'!$M547:$M548) ->  | V53: =SUM('Industrial N2O'!$M577:$M578) ->  | W53: =SUM('Industrial N2O'!$M607:$M608) ->  | X53: =SUM('Industrial N2O'!$M637:$M638) ->  | Y53: =SUM('Industrial N2O'!$M667:$M668) ->  | Z53: =SUM('Industrial N2O'!$M697:$M698) ->  | AA53: =SUM('Industrial N2O'!$M727:$M728) ->  | AB53: =SUM('Industrial N2O'!$M757:$M758) ->  | AC53: =SUM('Industrial N2O'!$M787:$M788) ->  | AD53: =SUM('Industrial N2O'!$M817:$M818) ->  | AE53: =SUM('Industrial N2O'!$M847:$M848) ->  | AF53: =SUM('Industrial N2O'!$M877:$M878) ->  | AG53: =SUM('Industrial N2O'!$M907:$M908) -> 
B54: Petroleum | C54: =SUM('Industrial N2O'!M9:M27) ->  | D54: =SUM('Industrial N2O'!M39:M57) ->  | E54: =SUM('Industrial N2O'!M69:M87) ->  | F54: =SUM('Industrial N2O'!M99:M117) ->  | G54: =SUM('Industrial N2O'!M129:M147) ->  | H54: =SUM('Industrial N2O'!M159:M177) ->  | I54: =SUM('Industrial N2O'!M189:M207) ->  | J54: =SUM('Industrial N2O'!M219:M237) ->  | K54: =SUM('Industrial N2O'!M249:M267) ->  | L54: =SUM('Industrial N2O'!M279:M297) ->  | M54: =SUM('Industrial N2O'!$M309:$M327) ->  | N54: =SUM('Industrial N2O'!M339:M357) ->  | O54: =SUM('Industrial N2O'!M369:M387) ->  | P54: =SUM('Industrial N2O'!M399:M417) ->  | Q54: =SUM('Industrial N2O'!M429:M447) ->  | R54: =SUM('Industrial N2O'!M459:M477) ->  | S54: =SUM('Industrial N2O'!M489:M507) ->  | T54: =SUM('Industrial N2O'!M519:M537) ->  | U54: =SUM('Industrial N2O'!M549:M567) ->  | V54: =SUM('Industrial N2O'!M579:M597) ->  | W54: =SUM('Industrial N2O'!M609:M627) ->  | X54: =SUM('Industrial N2O'!M639:M657) ->  | Y54: =SUM('Industrial N2O'!M669:M687) ->  | Z54: =SUM('Industrial N2O'!M699:M717) ->  | AA54: =SUM('Industrial N2O'!M729:M747) ->  | AB54: =SUM('Industrial N2O'!M759:M777) ->  | AC54: =SUM('Industrial N2O'!M789:M807) ->  | AD54: =SUM('Industrial N2O'!M819:M837) ->  | AE54: =SUM('Industrial N2O'!M849:M867) ->  | AF54: =SUM('Industrial N2O'!M879:M897) ->  | AG54: =SUM('Industrial N2O'!M909:M927) -> 
B55: Natural Gas | C55: ='Industrial N2O'!$M28 ->  | D55: ='Industrial N2O'!$M58 ->  | E55: ='Industrial N2O'!$M88 ->  | F55: ='Industrial N2O'!$M118 ->  | G55: ='Industrial N2O'!$M148 ->  | H55: ='Industrial N2O'!$M178 ->  | I55: ='Industrial N2O'!$M208 ->  | J55: ='Industrial N2O'!$M238 ->  | K55: ='Industrial N2O'!$M268 ->  | L55: ='Industrial N2O'!$M298 ->  | M55: ='Industrial N2O'!$M328 ->  | N55: ='Industrial N2O'!$M358 ->  | O55: ='Industrial N2O'!$M388 ->  | P55: ='Industrial N2O'!$M418 ->  | Q55: ='Industrial N2O'!$M448 ->  | R55: ='Industrial N2O'!$M478 ->  | S55: ='Industrial N2O'!$M508 ->  | T55: ='Industrial N2O'!$M538 ->  | U55: ='Industrial N2O'!$M568 ->  | V55: ='Industrial N2O'!$M598 ->  | W55: ='Industrial N2O'!$M628 ->  | X55: ='Industrial N2O'!$M658 ->  | Y55: ='Industrial N2O'!$M688 ->  | Z55: ='Industrial N2O'!$M718 ->  | AA55: ='Industrial N2O'!$M748 ->  | AB55: ='Industrial N2O'!$M778 ->  | AC55: ='Industrial N2O'!$M808 ->  | AD55: ='Industrial N2O'!$M838 ->  | AE55: ='Industrial N2O'!$M868 ->  | AF55: ='Industrial N2O'!$M898 ->  | AG55: ='Industrial N2O'!$M928 -> 
B56: Wood | C56: ='Industrial N2O'!$M29 ->  | D56: ='Industrial N2O'!$M59 ->  | E56: ='Industrial N2O'!$M89 ->  | F56: ='Industrial N2O'!$M119 ->  | G56: ='Industrial N2O'!$M149 ->  | H56: ='Industrial N2O'!$M179 ->  | I56: ='Industrial N2O'!$M209 ->  | J56: ='Industrial N2O'!$M239 ->  | K56: ='Industrial N2O'!$M269 ->  | L56: ='Industrial N2O'!$M299 ->  | M56: ='Industrial N2O'!$M329 ->  | N56: ='Industrial N2O'!$M359 ->  | O56: ='Industrial N2O'!$M389 ->  | P56: ='Industrial N2O'!$M419 ->  | Q56: ='Industrial N2O'!$M449 ->  | R56: ='Industrial N2O'!$M479 ->  | S56: ='Industrial N2O'!$M509 ->  | T56: ='Industrial N2O'!$M539 ->  | U56: ='Industrial N2O'!$M569 ->  | V56: ='Industrial N2O'!$M599 ->  | W56: ='Industrial N2O'!$M629 ->  | X56: ='Industrial N2O'!$M659 ->  | Y56: ='Industrial N2O'!$M689 ->  | Z56: ='Industrial N2O'!$M719 ->  | AA56: ='Industrial N2O'!$M749 ->  | AB56: ='Industrial N2O'!$M779 ->  | AC56: ='Industrial N2O'!$M809 ->  | AD56: ='Industrial N2O'!$M839 ->  | AE56: ='Industrial N2O'!$M869 ->  | AF56: ='Industrial N2O'!$M899 ->  | AG56: ='Industrial N2O'!$M929 -> 
B57: Other | C57: ='Industrial N2O'!$M30 -> 0 | D57: ='Industrial N2O'!$M60 -> 0 | E57: ='Industrial N2O'!$M90 -> 0 | F57: ='Industrial N2O'!$M120 -> 0 | G57: ='Industrial N2O'!$M150 -> 0 | H57: ='Industrial N2O'!$M180 -> 0 | I57: ='Industrial N2O'!$M210 -> 0 | J57: ='Industrial N2O'!$M240 -> 0 | K57: ='Industrial N2O'!$M270 -> 0 | L57: ='Industrial N2O'!$M300 -> 0 | M57: ='Industrial N2O'!$M330 -> 0 | N57: ='Industrial N2O'!$M360 -> 0 | O57: ='Industrial N2O'!$M390 -> 0 | P57: ='Industrial N2O'!$M420 -> 0 | Q57: ='Industrial N2O'!$M450 -> 0 | R57: ='Industrial N2O'!$M480 -> 0 | S57: ='Industrial N2O'!$M510 -> 0 | T57: ='Industrial N2O'!$M540 -> 0 | U57: ='Industrial N2O'!$M570 -> 0 | V57: ='Industrial N2O'!$M600 -> 0 | W57: ='Industrial N2O'!$M630 -> 0 | X57: ='Industrial N2O'!$M660 -> 0 | Y57: ='Industrial N2O'!$M690 -> 0 | Z57: ='Industrial N2O'!$M720 -> 0 | AA57: ='Industrial N2O'!$M750 -> 0 | AB57: ='Industrial N2O'!$M780 -> 0 | AC57: ='Industrial N2O'!$M810 -> 0 | AD57: ='Industrial N2O'!$M840 -> 0 | AE57: ='Industrial N2O'!$M870 -> 0 | AF57: ='Industrial N2O'!$M900 -> 0 | AG57: ='Industrial N2O'!$M930 -> 0
B58: Electric Utilities | C58: =SUM(C59:C63) ->  | D58: =SUM(D59:D63) ->  | M58: =SUM(M59:M63) -> 
B59: Coal | C59: ='Electric Power N2O'!$J7 ->  | D59: ='Electric Power N2O'!$J20 ->  | E59: ='Electric Power N2O'!$J33 ->  | F59: ='Electric Power N2O'!$J46 ->  | G59: ='Electric Power N2O'!$J59 ->  | H59: ='Electric Power N2O'!$J72 ->  | I59: ='Electric Power N2O'!$J85 ->  | J59: ='Electric Power N2O'!$J98 ->  | K59: ='Electric Power N2O'!$J111 ->  | L59: ='Electric Power N2O'!$J124 ->  | M59: ='Electric Power N2O'!$J137 ->  | N59: ='Electric Power N2O'!$J150 ->  | O59: ='Electric Power N2O'!$J163 ->  | P59: ='Electric Power N2O'!$J176 ->  | Q59: ='Electric Power N2O'!$J189 ->  | R59: ='Electric Power N2O'!$J202 ->  | S59: ='Electric Power N2O'!$J215 ->  | T59: ='Electric Power N2O'!$J228 ->  | U59: ='Electric Power N2O'!$J241 ->  | V59: ='Electric Power N2O'!$J254 ->  | W59: ='Electric Power N2O'!$J267 ->  | X59: ='Electric Power N2O'!$J280 ->  | Y59: ='Electric Power N2O'!$J293 ->  | Z59: ='Electric Power N2O'!$J306 ->  | AA59: ='Electric Power N2O'!$J319 ->  | AB59: ='Electric Power N2O'!$J332 ->  | AC59: ='Electric Power N2O'!$J345 ->  | AD59: ='Electric Power N2O'!$J358 ->  | AE59: ='Electric Power N2O'!$J371 ->  | AF59: ='Electric Power N2O'!$J384 ->  | AG59: ='Electric Power N2O'!$J397 -> 
B60: Petroleum | C60: =SUM('Electric Power N2O'!$J8:$J10) ->  | D60: =SUM('Electric Power N2O'!$J21:$J23) ->  | E60: =SUM('Electric Power N2O'!$J34:$J36) ->  | F60: =SUM('Electric Power N2O'!$J47:$J49) ->  | G60: =SUM('Electric Power N2O'!$J60:$J62) ->  | H60: =SUM('Electric Power N2O'!$J73:$J75) ->  | I60: =SUM('Electric Power N2O'!$J86:$J88) ->  | J60: =SUM('Electric Power N2O'!$J99:$J101) ->  | K60: =SUM('Electric Power N2O'!$J112:$J114) ->  | L60: =SUM('Electric Power N2O'!$J125:$J127) ->  | M60: =SUM('Electric Power N2O'!$J138:$J140) ->  | N60: =SUM('Electric Power N2O'!$J151:$J153) ->  | O60: =SUM('Electric Power N2O'!$J164:$J166) ->  | P60: =SUM('Electric Power N2O'!$J177:$J179) ->  | Q60: =SUM('Electric Power N2O'!$J190:$J192) ->  | R60: =SUM('Electric Power N2O'!$J203:$J205) ->  | S60: =SUM('Electric Power N2O'!$J216:$J218) ->  | T60: =SUM('Electric Power N2O'!$J229:$J231) ->  | U60: =SUM('Electric Power N2O'!$J242:$J244) ->  | V60: =SUM('Electric Power N2O'!$J255:$J257) ->  | W60: =SUM('Electric Power N2O'!$J268:$J270) ->  | X60: =SUM('Electric Power N2O'!$J281:$J283) ->  | Y60: =SUM('Electric Power N2O'!$J294:$J296) ->  | Z60: =SUM('Electric Power N2O'!$J307:$J309) ->  | AA60: =SUM('Electric Power N2O'!$J320:$J322) ->  | AB60: =SUM('Electric Power N2O'!$J333:$J335) ->  | AC60: =SUM('Electric Power N2O'!$J346:$J348) ->  | AD60: =SUM('Electric Power N2O'!$J359:$J361) ->  | AE60: =SUM('Electric Power N2O'!$J372:$J374) ->  | AF60: =SUM('Electric Power N2O'!$J385:$J387) ->  | AG60: =SUM('Electric Power N2O'!$J398:$J400) -> 
B61: Natural Gas | C61: ='Electric Power N2O'!$J11 ->  | D61: ='Electric Power N2O'!$J24 ->  | E61: ='Electric Power N2O'!$J37 ->  | F61: ='Electric Power N2O'!$J50 ->  | G61: ='Electric Power N2O'!$J63 ->  | H61: ='Electric Power N2O'!$J76 ->  | I61: ='Electric Power N2O'!$J89 ->  | J61: ='Electric Power N2O'!$J102 ->  | K61: ='Electric Power N2O'!$J115 ->  | L61: ='Electric Power N2O'!$J128 ->  | M61: ='Electric Power N2O'!$J141 ->  | N61: ='Electric Power N2O'!$J154 ->  | O61: ='Electric Power N2O'!$J167 ->  | P61: ='Electric Power N2O'!$J180 ->  | Q61: ='Electric Power N2O'!$J193 ->  | R61: ='Electric Power N2O'!$J206 ->  | S61: ='Electric Power N2O'!$J219 ->  | T61: ='Electric Power N2O'!$J232 ->  | U61: ='Electric Power N2O'!$J245 ->  | V61: ='Electric Power N2O'!$J258 ->  | W61: ='Electric Power N2O'!$J271 ->  | X61: ='Electric Power N2O'!$J284 ->  | Y61: ='Electric Power N2O'!$J297 ->  | Z61: ='Electric Power N2O'!$J310 ->  | AA61: ='Electric Power N2O'!$J323 ->  | AB61: ='Electric Power N2O'!$J336 ->  | AC61: ='Electric Power N2O'!$J349 ->  | AD61: ='Electric Power N2O'!$J362 ->  | AE61: ='Electric Power N2O'!$J375 ->  | AF61: ='Electric Power N2O'!$J388 ->  | AG61: ='Electric Power N2O'!$J401 -> 
B62: Wood | C62: ='Electric Power N2O'!$J12 ->  | D62: ='Electric Power N2O'!$J25 ->  | E62: ='Electric Power N2O'!$J38 ->  | F62: ='Electric Power N2O'!$J51 ->  | G62: ='Electric Power N2O'!$J64 ->  | H62: ='Electric Power N2O'!$J77 ->  | I62: ='Electric Power N2O'!$J90 ->  | J62: ='Electric Power N2O'!$J103 ->  | K62: ='Electric Power N2O'!$J116 ->  | L62: ='Electric Power N2O'!$J129 ->  | M62: ='Electric Power N2O'!$J142 ->  | N62: ='Electric Power N2O'!$J155 ->  | O62: ='Electric Power N2O'!$J168 ->  | P62: ='Electric Power N2O'!$J181 ->  | Q62: ='Electric Power N2O'!$J194 ->  | R62: ='Electric Power N2O'!$J207 ->  | S62: ='Electric Power N2O'!$J220 ->  | T62: ='Electric Power N2O'!$J233 ->  | U62: ='Electric Power N2O'!$J246 ->  | V62: ='Electric Power N2O'!$J259 ->  | W62: ='Electric Power N2O'!$J272 ->  | X62: ='Electric Power N2O'!$J285 ->  | Y62: ='Electric Power N2O'!$J298 ->  | Z62: ='Electric Power N2O'!$J311 ->  | AA62: ='Electric Power N2O'!$J324 ->  | AB62: ='Electric Power N2O'!$J337 ->  | AC62: ='Electric Power N2O'!$J350 ->  | AD62: ='Electric Power N2O'!$J363 ->  | AE62: ='Electric Power N2O'!$J376 ->  | AF62: ='Electric Power N2O'!$J389 ->  | AG62: ='Electric Power N2O'!$J402 -> 
B63: Other | C63: ='Electric Power N2O'!$J13 -> 0 | D63: ='Electric Power N2O'!$J26 -> 0 | E63: ='Electric Power N2O'!$J39 -> 0 | F63: ='Electric Power N2O'!$J52 -> 0 | G63: ='Electric Power N2O'!$J65 -> 0 | H63: ='Electric Power N2O'!$J78 -> 0 | I63: ='Electric Power N2O'!$J91 -> 0 | J63: ='Electric Power N2O'!$J104 -> 0 | K63: ='Electric Power N2O'!$J117 -> 0 | L63: ='Electric Power N2O'!$J130 -> 0 | M63: ='Electric Power N2O'!$J143 -> 0 | N63: ='Electric Power N2O'!$J156 -> 0 | O63: ='Electric Power N2O'!$J169 -> 0 | P63: ='Electric Power N2O'!$J182 -> 0 | Q63: ='Electric Power N2O'!$J195 -> 0 | R63: ='Electric Power N2O'!$J208 -> 0 | S63: ='Electric Power N2O'!$J221 -> 0 | T63: ='Electric Power N2O'!$J234 -> 0 | U63: ='Electric Power N2O'!$J247 -> 0 | V63: ='Electric Power N2O'!$J260 -> 0 | W63: ='Electric Power N2O'!$J273 -> 0 | X63: ='Electric Power N2O'!$J286 -> 0 | Y63: ='Electric Power N2O'!$J299 -> 0 | Z63: ='Electric Power N2O'!$J312 -> 0 | AA63: ='Electric Power N2O'!$J325 -> 0 | AB63: ='Electric Power N2O'!$J338 -> 0 | AC63: ='Electric Power N2O'!$J351 -> 0 | AD63: ='Electric Power N2O'!$J364 -> 0 | AE63: ='Electric Power N2O'!$J377 -> 0 | AF63: ='Electric Power N2O'!$J390 -> 0 | AG63: ='Electric Power N2O'!$J403 -> 0
B64: TOTAL | C64: =SUM(C65:C69) ->  | D64: =SUM(D65:D69) ->  | M64: =SUM(M65:M69) ->  | S64: =SUM(S65:S69) -> 
B65: Coal | C65: =SUM(C41,C47,C53,C59) ->  | M65: =SUM(M41,M47,M53,M59) ->  | S65: =SUM(S41,S47,S53,S59) -> 
B66: Petroleum | C66: =SUM(C42,C48,C54,C60) ->  | S66: =SUM(S42,S48,S54,S60) -> 
B67: Natural Gas | C67: =SUM(C43,C49,C55,C61) ->  | D67: =SUM(D43,D49,D55,D61) ->  | S67: =SUM(S43,S49,S55,S61) -> 
B68: Wood | C68: =SUM(C44,C50,C56,C62) ->  | D68: =SUM(D44,D50,D56,D62) ->  | S68: =SUM(S44,S50,S56,S62) -> 
B69: Other | C69: =SUM(C45,C51,C57,C63) -> 0 | D69: 0 | E69: 0 | F69: 0 | G69: 0 | H69: 0 | I69: 0 | J69: 0 | K69: 0 | L69: 0 | M69: 0 | N69: 0 | O69: 0 | P69: 0 | Q69: 0 | R69: 0 | S69: =SUM(S45,S51,S57,S63) -> 0 | T69: 0 | U69: 0 | V69: 0 | W69: 0 | X69: 0 | Y69: 0 | Z69: 0 | AA69: 0 | AB69: 0 | AC69: 0 | AD69: 0 | AE69: 0 | AF69: 0 | AG69: 0

Sheet Summary CH4
A1: ="CH4 Emissions Summary for "&StateName -> CH4 Emissions Summary for Select a State . . .
B3: =Tracker!B13 -> Emissions were not calculated for the following sectors: Residential, Commercial, Industrial, and Electric Power.
B5: MMTCO2E | C5: 1990 | D5: 1991 | E5: 1992 | F5: 1993 | G5: 1994 | H5: 1995 | I5: 1996 | J5: 1997 | K5: 1998 | L5: 1999 | M5: 2000 | N5: 2001 | O5: 2002 | P5: 2003 | Q5: 2004 | R5: 2005 | S5: 2006 | T5: 2007 | U5: 2008 | V5: 2009 | W5: 2010 | X5: 2011 | Y5: 2012 | Z5: 2013 | AA5: 2014 | AB5: 2015 | AC5: 2016 | AD5: 2017 | AE5: 2018 | AF5: 2019 | AG5: 2020
B6: Residential | C6: =C38*44/12 -> 
B7: Coal | C7: =C39*44/12 -> 
B8: Petroleum | C8: =C40*44/12 -> 
B9: Natural Gas | C9: =C41*44/12 -> 
B10: Wood | C10: =C42*44/12 -> 
B11: Other | C11: =C43*44/12 -> 0 | D11: 0 | E11: 0 | F11: 0 | G11: 0 | H11: 0 | I11: 0 | J11: 0 | K11: 0 | L11: 0 | M11: 0 | N11: 0 | O11: 0 | P11: 0 | Q11: 0 | R11: 0 | S11: 0 | T11: 0 | U11: 0 | V11: 0 | W11: 0 | X11: 0 | Y11: 0 | Z11: 0 | AA11: 0 | AB11: 0 | AC11: 0 | AD11: 0 | AE11: 0 | AF11: 0 | AG11: 0
B12: Commercial | C12: =C44*44/12 -> 
B13: Coal | C13: =C45*44/12 -> 
B14: Petroleum | C14: =C46*44/12 -> 
B15: Natural Gas | C15: =C47*44/12 -> 
B16: Wood | C16: =C48*44/12 -> 
B17: Other | C17: =C49*44/12 -> 0 | D17: 0 | E17: 0 | F17: 0 | G17: 0 | H17: 0 | I17: 0 | J17: 0 | K17: 0 | L17: 0 | M17: 0 | N17: 0 | O17: 0 | P17: 0 | Q17: 0 | R17: 0 | S17: 0 | T17: 0 | U17: 0 | V17: 0 | W17: 0 | X17: 0 | Y17: 0 | Z17: 0 | AA17: 0 | AB17: 0 | AC17: 0 | AD17: 0 | AE17: 0 | AF17: 0 | AG17: 0
B18: Industrial | C18: =C50*44/12 -> 
B19: Coal | C19: =C51*44/12 -> 
B20: Petroleum | C20: =C52*44/12 -> 
B21: Natural Gas | C21: =C53*44/12 -> 
B22: Wood | C22: =C54*44/12 -> 
B23: Other | C23: =C55*44/12 -> 0 | D23: 0 | E23: 0 | F23: 0 | G23: 0 | H23: 0 | I23: 0 | J23: 0 | K23: 0 | L23: 0 | M23: 0 | N23: 0 | O23: 0 | P23: 0 | Q23: 0 | R23: 0 | S23: 0 | T23: 0 | U23: 0 | V23: 0 | W23: 0 | X23: 0 | Y23: 0 | Z23: 0 | AA23: 0 | AB23: 0 | AC23: 0 | AD23: 0 | AE23: 0 | AF23: 0 | AG23: 0
B24: Electric Power | C24: =C56*44/12 -> 
B25: Coal | C25: =C57*44/12 -> 
B26: Petroleum | C26: =C58*44/12 -> 
B27: Natural Gas | C27: =C59*44/12 -> 
B28: Wood | C28: =C60*44/12 -> 
B29: Other | C29: =C61*44/12 -> 0 | D29: 0 | E29: 0 | F29: 0 | G29: 0 | H29: 0 | I29: 0 | J29: 0 | K29: 0 | L29: 0 | M29: 0 | N29: 0 | O29: 0 | P29: 0 | Q29: 0 | R29: 0 | S29: 0 | T29: 0 | U29: 0 | V29: 0 | W29: 0 | X29: 0 | Y29: 0 | Z29: 0 | AA29: 0 | AB29: 0 | AC29: 0 | AD29: 0 | AE29: 0 | AF29: 0 | AG29: 0
B30: TOTAL | C30: =C62*44/12 -> 
B31: Coal | C31: =C63*44/12 -> 
B32: Petroleum | C32: =C64*44/12 -> 
B33: Natural Gas | C33: =C65*44/12 -> 
B34: Wood | C34: =C66*44/12 -> 
B35: Other | C35: =C67*44/12 -> 0 | D35: 0 | E35: 0 | F35: 0 | G35: 0 | H35: 0 | I35: 0 | J35: 0 | K35: 0 | L35: 0 | M35: 0 | N35: 0 | O35: 0 | P35: 0 | Q35: 0 | R35: 0 | S35: 0 | T35: 0 | U35: 0 | V35: 0 | W35: 0 | X35: 0 | Y35: 0 | Z35: 0 | AA35: 0 | AB35: 0 | AC35: 0 | AD35: 0 | AE35: 0 | AF35: 0 | AG35: 0
C36: 1 | D36: =IF(ISERROR(IF(D30=0,0,COLUMN()-2)),0,IF(D30=0,0,COLUMN()-2)) -> 0 | E36: =IF(ISERROR(IF(E30=0,0,COLUMN()-2)),0,IF(E30=0,0,COLUMN()-2)) -> 0 | F36: 0 | G36: 0 | H36: 0 | I36: 0 | J36: 0 | K36: 0 | L36: 0 | M36: 0 | N36: 0 | O36: 0 | P36: 0 | Q36: 0 | R36: 0 | S36: 0 | T36: 0 | U36: 0 | V36: 0 | W36: 0 | X36: 0 | Y36: 0 | Z36: 0 | AA36: 0 | AB36: 0 | AC36: 0 | AD36: 0 | AE36: 0 | AF36: 0 | AG36: 0
B37: MMTCE | C37: 1990 | D37: 1991 | E37: 1992 | F37: 1993 | G37: 1994 | H37: 1995 | I37: 1996 | J37: 1997 | K37: 1998 | L37: 1999 | M37: 2000 | N37: 2001 | O37: 2002 | P37: 2003 | Q37: 2004 | R37: 2005 | S37: 2006 | T37: 2007 | U37: 2008 | V37: 2009 | W37: 2010 | X37: 2011 | Y37: 2012 | Z37: 2013 | AA37: 2014 | AB37: 2015 | AC37: 2016 | AD37: 2017 | AE37: 2018 | AF37: 2019 | AG37: 2020
B38: Residential | C38: =SUM(C39:C43) ->  | D38: =SUM(D39:D43) ->  | S38: =SUM(S39:S43) ->  | AE38: =SUM(AE39:AE43) -> 
B39: Coal | C39: ='Residential CH4'!J7 ->  | D39: ='Residential CH4'!$J20 ->  | E39: ='Residential CH4'!$J33 ->  | F39: ='Residential CH4'!$J46 ->  | G39: ='Residential CH4'!$J59 ->  | H39: ='Residential CH4'!$J72 ->  | I39: ='Residential CH4'!$J85 ->  | J39: ='Residential CH4'!$J98 ->  | K39: ='Residential CH4'!$J111 ->  | L39: ='Residential CH4'!$J124 ->  | M39: ='Residential CH4'!$J137 ->  | N39: ='Residential CH4'!$J150 ->  | O39: ='Residential CH4'!$J163 ->  | P39: ='Residential CH4'!$J176 ->  | Q39: ='Residential CH4'!$J189 ->  | R39: ='Residential CH4'!$J202 ->  | S39: ='Residential CH4'!$J215 ->  | T39: ='Residential CH4'!$J228 ->  | U39: ='Residential CH4'!$J241 ->  | V39: ='Residential CH4'!$J254 ->  | W39: ='Residential CH4'!$J267 ->  | X39: ='Residential CH4'!$J280 ->  | Y39: ='Residential CH4'!$J293 ->  | Z39: ='Residential CH4'!$J306 ->  | AA39: ='Residential CH4'!$J319 ->  | AB39: ='Residential CH4'!$J332 ->  | AC39: ='Residential CH4'!$J345 ->  | AD39: ='Residential CH4'!$J358 ->  | AE39: ='Residential CH4'!$J371 ->  | AF39: ='Residential CH4'!$J384 ->  | AG39: ='Residential CH4'!$J397 -> 
B40: Petroleum | C40: =SUM('Residential CH4'!J8:J10) ->  | D40: =SUM('Residential CH4'!$J21:$J23) ->  | E40: =SUM('Residential CH4'!$J34:$J36) ->  | F40: =SUM('Residential CH4'!$J47:$J49) ->  | G40: =SUM('Residential CH4'!$J60:$J62) ->  | H40: =SUM('Residential CH4'!$J73:$J75) ->  | I40: =SUM('Residential CH4'!$J86:$J88) ->  | J40: =SUM('Residential CH4'!$J99:$J101) ->  | K40: =SUM('Residential CH4'!$J112:$J114) ->  | L40: =SUM('Residential CH4'!$J125:$J127) ->  | M40: =SUM('Residential CH4'!$J138:$J140) ->  | N40: =SUM('Residential CH4'!$J151:$J153) ->  | O40: =SUM('Residential CH4'!$J164:$J166) ->  | P40: =SUM('Residential CH4'!$J177:$J179) ->  | Q40: =SUM('Residential CH4'!$J190:$J192) ->  | R40: =SUM('Residential CH4'!$J203:$J205) ->  | S40: =SUM('Residential CH4'!$J216:$J218) ->  | T40: =SUM('Residential CH4'!$J229:$J231) ->  | U40: =SUM('Residential CH4'!$J242:$J244) ->  | V40: =SUM('Residential CH4'!$J255:$J257) ->  | W40: =SUM('Residential CH4'!$J268:$J270) ->  | X40: =SUM('Residential CH4'!$J281:$J283) ->  | Y40: =SUM('Residential CH4'!$J294:$J296) ->  | Z40: =SUM('Residential CH4'!$J307:$J309) ->  | AA40: =SUM('Residential CH4'!$J320:$J322) ->  | AB40: =SUM('Residential CH4'!$J333:$J335) ->  | AC40: =SUM('Residential CH4'!$J346:$J348) ->  | AD40: =SUM('Residential CH4'!$J359:$J361) ->  | AE40: =SUM('Residential CH4'!$J372:$J374) ->  | AF40: =SUM('Residential CH4'!$J385:$J387) ->  | AG40: =SUM('Residential CH4'!$J398:$J400) -> 
B41: Natural Gas | C41: ='Residential CH4'!J11 ->  | D41: ='Residential CH4'!$J24 ->  | E41: ='Residential CH4'!$J37 ->  | F41: ='Residential CH4'!$J50 ->  | G41: ='Residential CH4'!$J63 ->  | H41: ='Residential CH4'!$J76 ->  | I41: ='Residential CH4'!$J89 ->  | J41: ='Residential CH4'!$J102 ->  | K41: ='Residential CH4'!$J115 ->  | L41: ='Residential CH4'!$J128 ->  | M41: ='Residential CH4'!$J141 ->  | N41: ='Residential CH4'!$J154 ->  | O41: ='Residential CH4'!$J167 ->  | P41: ='Residential CH4'!$J180 ->  | Q41: ='Residential CH4'!$J193 ->  | R41: ='Residential CH4'!$J206 ->  | S41: ='Residential CH4'!$J219 ->  | T41: ='Residential CH4'!$J232 ->  | U41: ='Residential CH4'!$J245 ->  | V41: ='Residential CH4'!$J258 ->  | W41: ='Residential CH4'!$J271 ->  | X41: ='Residential CH4'!$J284 ->  | Y41: ='Residential CH4'!$J297 ->  | Z41: ='Residential CH4'!$J310 ->  | AA41: ='Residential CH4'!$J323 ->  | AB41: ='Residential CH4'!$J336 ->  | AC41: ='Residential CH4'!$J349 ->  | AD41: ='Residential CH4'!$J362 ->  | AE41: ='Residential CH4'!$J375 ->  | AF41: ='Residential CH4'!$J388 ->  | AG41: ='Residential CH4'!$J401 -> 
B42: Wood | C42: ='Residential CH4'!J12 ->  | D42: ='Residential CH4'!$J25 ->  | E42: ='Residential CH4'!$J38 ->  | F42: ='Residential CH4'!$J51 ->  | G42: ='Residential CH4'!$J64 ->  | H42: ='Residential CH4'!$J77 ->  | I42: ='Residential CH4'!$J90 ->  | J42: ='Residential CH4'!$J103 ->  | K42: ='Residential CH4'!$J116 ->  | L42: ='Residential CH4'!$J129 ->  | M42: ='Residential CH4'!$J142 ->  | N42: ='Residential CH4'!$J155 ->  | O42: ='Residential CH4'!$J168 ->  | P42: ='Residential CH4'!$J181 ->  | Q42: ='Residential CH4'!$J194 ->  | R42: ='Residential CH4'!$J207 ->  | S42: ='Residential CH4'!$J220 ->  | T42: ='Residential CH4'!$J233 ->  | U42: ='Residential CH4'!$J246 ->  | V42: ='Residential CH4'!$J259 ->  | W42: ='Residential CH4'!$J272 ->  | X42: ='Residential CH4'!$J285 ->  | Y42: ='Residential CH4'!$J298 ->  | Z42: ='Residential CH4'!$J311 ->  | AA42: ='Residential CH4'!$J324 ->  | AB42: ='Residential CH4'!$J337 ->  | AC42: ='Residential CH4'!$J350 ->  | AD42: ='Residential CH4'!$J363 ->  | AE42: ='Residential CH4'!$J376 ->  | AF42: ='Residential CH4'!$J389 ->  | AG42: ='Residential CH4'!$J402 -> 
B43: Other | C43: ='Residential CH4'!J13 -> 0 | D43: ='Residential CH4'!$J26 -> 0 | E43: ='Residential CH4'!$J39 -> 0 | F43: ='Residential CH4'!$J52 -> 0 | G43: ='Residential CH4'!$J65 -> 0 | H43: ='Residential CH4'!$J78 -> 0 | I43: ='Residential CH4'!$J91 -> 0 | J43: ='Residential CH4'!$J104 -> 0 | K43: ='Residential CH4'!$J117 -> 0 | L43: ='Residential CH4'!$J130 -> 0 | M43: ='Residential CH4'!$J143 -> 0 | N43: ='Residential CH4'!$J156 -> 0 | O43: ='Residential CH4'!$J169 -> 0 | P43: ='Residential CH4'!$J182 -> 0 | Q43: ='Residential CH4'!$J195 -> 0 | R43: ='Residential CH4'!$J208 -> 0 | S43: ='Residential CH4'!$J221 -> 0 | T43: ='Residential CH4'!$J234 -> 0 | U43: ='Residential CH4'!$J247 -> 0 | V43: ='Residential CH4'!$J260 -> 0 | W43: ='Residential CH4'!$J273 -> 0 | X43: ='Residential CH4'!$J286 -> 0 | Y43: ='Residential CH4'!$J299 -> 0 | Z43: ='Residential CH4'!$J312 -> 0 | AA43: ='Residential CH4'!$J325 -> 0 | AB43: ='Residential CH4'!$J338 -> 0 | AC43: ='Residential CH4'!$J351 -> 0 | AD43: ='Residential CH4'!$J364 -> 0 | AE43: ='Residential CH4'!$J377 -> 0 | AF43: ='Residential CH4'!$J390 -> 0 | AG43: ='Residential CH4'!$J403 -> 0
B44: Commercial | C44: =SUM(C45:C49) ->  | D44: =SUM(D45:D49) ->  | S44: =SUM(S45:S49) -> 
B45: Coal | C45: ='Commercial CH4'!J7 ->  | D45: ='Commercial CH4'!J22 ->  | E45: ='Commercial CH4'!J37 ->  | F45: ='Commercial CH4'!J52 ->  | G45: ='Commercial CH4'!J67 ->  | H45: ='Commercial CH4'!J82 ->  | I45: ='Commercial CH4'!J97 ->  | J45: ='Commercial CH4'!J112 ->  | K45: ='Commercial CH4'!J127 ->  | L45: ='Commercial CH4'!J142 ->  | M45: ='Commercial CH4'!J157 ->  | N45: ='Commercial CH4'!$J172 ->  | O45: ='Commercial CH4'!$J187 ->  | P45: ='Commercial CH4'!$J202 ->  | Q45: ='Commercial CH4'!$J217 ->  | R45: ='Commercial CH4'!$J232 ->  | S45: ='Commercial CH4'!$J247 ->  | T45: ='Commercial CH4'!$J262 ->  | U45: ='Commercial CH4'!$J277 ->  | V45: ='Commercial CH4'!$J292 ->  | W45: ='Commercial CH4'!$J307 ->  | X45: ='Commercial CH4'!$J322 ->  | Y45: ='Commercial CH4'!$J337 ->  | Z45: ='Commercial CH4'!$J352 ->  | AA45: ='Commercial CH4'!$J367 ->  | AB45: ='Commercial CH4'!$J382 ->  | AC45: ='Commercial CH4'!$J397 ->  | AD45: ='Commercial CH4'!$J412 ->  | AE45: ='Commercial CH4'!$J427 ->  | AF45: ='Commercial CH4'!$J442 ->  | AG45: ='Commercial CH4'!$J457 -> 
B46: Petroleum | C46: =SUM('Commercial CH4'!J8:J12) ->  | D46: =SUM('Commercial CH4'!J23:J27) ->  | E46: =SUM('Commercial CH4'!J38:J42) ->  | F46: =SUM('Commercial CH4'!J53:J57) ->  | G46: =SUM('Commercial CH4'!J68:J72) ->  | H46: =SUM('Commercial CH4'!J83:J87) ->  | I46: =SUM('Commercial CH4'!J98:J102) ->  | J46: =SUM('Commercial CH4'!J113:J117) ->  | K46: =SUM('Commercial CH4'!J128:J132) ->  | L46: =SUM('Commercial CH4'!J143:J147) ->  | M46: =SUM('Commercial CH4'!J158:J162) ->  | N46: =SUM('Commercial CH4'!$J173:$J177) ->  | O46: =SUM('Commercial CH4'!$J188:$J192) ->  | P46: =SUM('Commercial CH4'!$J203:$J207) ->  | Q46: =SUM('Commercial CH4'!$J218:$J222) ->  | R46: =SUM('Commercial CH4'!$J233:$J237) ->  | S46: =SUM('Commercial CH4'!$J248:$J252) ->  | T46: =SUM('Commercial CH4'!$J263:$J267) ->  | U46: =SUM('Commercial CH4'!$J278:$J282) ->  | V46: =SUM('Commercial CH4'!$J293:$J297) ->  | W46: =SUM('Commercial CH4'!$J308:$J312) ->  | X46: =SUM('Commercial CH4'!$J323:$J327) ->  | Y46: =SUM('Commercial CH4'!$J338:$J342) ->  | Z46: =SUM('Commercial CH4'!$J353:$J357) ->  | AA46: =SUM('Commercial CH4'!$J368:$J372) ->  | AB46: =SUM('Commercial CH4'!$J383:$J387) ->  | AC46: =SUM('Commercial CH4'!$J398:$J402) ->  | AD46: =SUM('Commercial CH4'!$J413:$J417) ->  | AE46: =SUM('Commercial CH4'!$J428:$J432) ->  | AF46: =SUM('Commercial CH4'!$J443:$J447) ->  | AG46: =SUM('Commercial CH4'!$J458:$J462) -> 
B47: Natural Gas | C47: ='Commercial CH4'!J13 ->  | D47: ='Commercial CH4'!J28 ->  | E47: ='Commercial CH4'!J43 ->  | F47: ='Commercial CH4'!J58 ->  | G47: ='Commercial CH4'!J73 ->  | H47: ='Commercial CH4'!J88 ->  | I47: ='Commercial CH4'!J103 ->  | J47: ='Commercial CH4'!J118 ->  | K47: ='Commercial CH4'!J133 ->  | L47: ='Commercial CH4'!J148 ->  | M47: ='Commercial CH4'!J163 ->  | N47: ='Commercial CH4'!$J178 ->  | O47: ='Commercial CH4'!$J193 ->  | P47: ='Commercial CH4'!$J208 ->  | Q47: ='Commercial CH4'!$J223 ->  | R47: ='Commercial CH4'!$J238 ->  | S47: ='Commercial CH4'!$J253 ->  | T47: ='Commercial CH4'!$J268 ->  | U47: ='Commercial CH4'!$J283 ->  | V47: ='Commercial CH4'!$J298 ->  | W47: ='Commercial CH4'!$J313 ->  | X47: ='Commercial CH4'!$J328 ->  | Y47: ='Commercial CH4'!$J343 ->  | Z47: ='Commercial CH4'!$J358 ->  | AA47: ='Commercial CH4'!$J373 ->  | AB47: ='Commercial CH4'!$J388 ->  | AC47: ='Commercial CH4'!$J403 ->  | AD47: ='Commercial CH4'!$J418 ->  | AE47: ='Commercial CH4'!$J433 ->  | AF47: ='Commercial CH4'!$J448 ->  | AG47: ='Commercial CH4'!$J463 -> 
B48: Wood | C48: ='Commercial CH4'!J14 ->  | D48: ='Commercial CH4'!J29 ->  | E48: ='Commercial CH4'!J44 ->  | F48: ='Commercial CH4'!J59 ->  | G48: ='Commercial CH4'!J74 ->  | H48: ='Commercial CH4'!J89 ->  | I48: ='Commercial CH4'!J104 ->  | J48: ='Commercial CH4'!J119 ->  | K48: ='Commercial CH4'!J134 ->  | L48: ='Commercial CH4'!J149 ->  | M48: ='Commercial CH4'!J164 ->  | N48: ='Commercial CH4'!$J179 ->  | O48: ='Commercial CH4'!$J194 ->  | P48: ='Commercial CH4'!$J209 ->  | Q48: ='Commercial CH4'!$J224 ->  | R48: ='Commercial CH4'!$J239 ->  | S48: ='Commercial CH4'!$J254 ->  | T48: ='Commercial CH4'!$J269 ->  | U48: ='Commercial CH4'!$J284 ->  | V48: ='Commercial CH4'!$J299 ->  | W48: ='Commercial CH4'!$J314 ->  | X48: ='Commercial CH4'!$J329 ->  | Y48: ='Commercial CH4'!$J344 ->  | Z48: ='Commercial CH4'!$J359 ->  | AA48: ='Commercial CH4'!$J374 ->  | AB48: ='Commercial CH4'!$J389 ->  | AC48: ='Commercial CH4'!$J404 ->  | AD48: ='Commercial CH4'!$J419 ->  | AE48: ='Commercial CH4'!$J434 ->  | AF48: ='Commercial CH4'!$J449 ->  | AG48: ='Commercial CH4'!$J464 -> 
B49: Other | C49: ='Commercial CH4'!J15 -> 0 | D49: ='Commercial CH4'!J30 -> 0 | E49: ='Commercial CH4'!J45 -> 0 | F49: ='Commercial CH4'!J60 -> 0 | G49: ='Commercial CH4'!J75 -> 0 | H49: ='Commercial CH4'!J90 -> 0 | I49: ='Commercial CH4'!J105 -> 0 | J49: ='Commercial CH4'!J120 -> 0 | K49: ='Commercial CH4'!J135 -> 0 | L49: ='Commercial CH4'!J150 -> 0 | M49: ='Commercial CH4'!J165 -> 0 | N49: ='Commercial CH4'!$J180 -> 0 | O49: ='Commercial CH4'!$J195 -> 0 | P49: ='Commercial CH4'!$J210 -> 0 | Q49: ='Commercial CH4'!$J225 -> 0 | R49: ='Commercial CH4'!$J240 -> 0 | S49: ='Commercial CH4'!$J255 -> 0 | T49: ='Commercial CH4'!$J270 -> 0 | U49: ='Commercial CH4'!$J285 -> 0 | V49: ='Commercial CH4'!$J300 -> 0 | W49: ='Commercial CH4'!$J315 -> 0 | X49: ='Commercial CH4'!$J330 -> 0 | Y49: ='Commercial CH4'!$J345 -> 0 | Z49: ='Commercial CH4'!$J360 -> 0 | AA49: ='Commercial CH4'!$J375 -> 0 | AB49: ='Commercial CH4'!$J390 -> 0 | AC49: ='Commercial CH4'!$J405 -> 0 | AD49: ='Commercial CH4'!$J420 -> 0 | AE49: ='Commercial CH4'!$J435 -> 0 | AF49: ='Commercial CH4'!$J450 -> 0 | AG49: ='Commercial CH4'!$J465 -> 0
B50: Industrial | C50: =SUM(C51:C55) ->  | D50: =SUM(D51:D55) ->  | S50: =SUM(S51:S55) -> 
B51: Coal | C51: =SUM('Industrial CH4'!M7:M8) ->  | D51: =SUM('Industrial CH4'!M37:M38) ->  | E51: =SUM('Industrial CH4'!M67:M68) ->  | F51: =SUM('Industrial CH4'!M97:M98) ->  | G51: =SUM('Industrial CH4'!M127:M128) ->  | H51: =SUM('Industrial CH4'!M157:M158) ->  | I51: =SUM('Industrial CH4'!M187:M188) ->  | J51: =SUM('Industrial CH4'!M217:M218) ->  | K51: =SUM('Industrial CH4'!M247:M248) ->  | L51: =SUM('Industrial CH4'!M277:M278) ->  | M51: =SUM('Industrial CH4'!M307:M308) ->  | N51: =SUM('Industrial CH4'!M337:M338) ->  | O51: =SUM('Industrial CH4'!M367:M368) ->  | P51: =SUM('Industrial CH4'!M397:M398) ->  | Q51: =SUM('Industrial CH4'!M427:M428) ->  | R51: =SUM('Industrial CH4'!$M457:$M458) ->  | S51: =SUM('Industrial CH4'!$M487:$M488) ->  | T51: =SUM('Industrial CH4'!$M517:$M518) ->  | U51: =SUM('Industrial CH4'!$M547:$M548) ->  | V51: =SUM('Industrial CH4'!$M577:$M578) ->  | W51: =SUM('Industrial CH4'!$M607:$M608) ->  | X51: =SUM('Industrial CH4'!$M637:$M638) ->  | Y51: =SUM('Industrial CH4'!$M667:$M668) ->  | Z51: =SUM('Industrial CH4'!$M697:$M698) ->  | AA51: =SUM('Industrial CH4'!$M727:$M728) ->  | AB51: =SUM('Industrial CH4'!$M757:$M758) ->  | AC51: =SUM('Industrial CH4'!$M787:$M788) ->  | AD51: =SUM('Industrial CH4'!$M817:$M818) ->  | AE51: =SUM('Industrial CH4'!$M847:$M848) ->  | AF51: =SUM('Industrial CH4'!$M877:$M878) ->  | AG51: =SUM('Industrial CH4'!$M907:$M908) -> 
B52: Petroleum | C52: =SUM('Industrial CH4'!M9:M27) ->  | D52: =SUM('Industrial CH4'!M39:M57) ->  | E52: =SUM('Industrial CH4'!M69:M87) ->  | F52: =SUM('Industrial CH4'!M99:M117) ->  | G52: =SUM('Industrial CH4'!M129:M147) ->  | H52: =SUM('Industrial CH4'!M159:M177) ->  | I52: =SUM('Industrial CH4'!M189:M207) ->  | J52: =SUM('Industrial CH4'!M219:M237) ->  | K52: =SUM('Industrial CH4'!M249:M267) ->  | L52: =SUM('Industrial CH4'!M279:M297) ->  | M52: =SUM('Industrial CH4'!M309:M327) ->  | N52: =SUM('Industrial CH4'!M339:M357) ->  | O52: =SUM('Industrial CH4'!M369:M387) ->  | P52: =SUM('Industrial CH4'!M399:M417) ->  | Q52: =SUM('Industrial CH4'!M429:M447) ->  | R52: =SUM('Industrial CH4'!M459:M477) ->  | S52: =SUM('Industrial CH4'!M489:M507) ->  | T52: =SUM('Industrial CH4'!M519:M537) ->  | U52: =SUM('Industrial CH4'!M549:M567) ->  | V52: =SUM('Industrial CH4'!M579:M597) ->  | W52: =SUM('Industrial CH4'!M609:M627) ->  | X52: =SUM('Industrial CH4'!M639:M657) ->  | Y52: =SUM('Industrial CH4'!M669:M687) ->  | Z52: =SUM('Industrial CH4'!M699:M717) ->  | AA52: =SUM('Industrial CH4'!M729:M747) ->  | AB52: =SUM('Industrial CH4'!M759:M777) ->  | AC52: =SUM('Industrial CH4'!M789:M807) ->  | AD52: =SUM('Industrial CH4'!M819:M837) ->  | AE52: =SUM('Industrial CH4'!M849:M867) ->  | AF52: =SUM('Industrial CH4'!M879:M897) ->  | AG52: =SUM('Industrial CH4'!M909:M927) -> 
B53: Natural Gas | C53: ='Industrial CH4'!M28 ->  | D53: ='Industrial CH4'!$M58 ->  | E53: ='Industrial CH4'!$M88 ->  | F53: ='Industrial CH4'!$M118 ->  | G53: ='Industrial CH4'!$M148 ->  | H53: ='Industrial CH4'!$M178 ->  | I53: ='Industrial CH4'!$M208 ->  | J53: ='Industrial CH4'!$M238 ->  | K53: ='Industrial CH4'!$M268 ->  | L53: ='Industrial CH4'!$M298 ->  | M53: ='Industrial CH4'!$M328 ->  | N53: ='Industrial CH4'!$M358 ->  | O53: ='Industrial CH4'!$M388 ->  | P53: ='Industrial CH4'!$M418 ->  | Q53: ='Industrial CH4'!$M448 ->  | R53: ='Industrial CH4'!$M478 ->  | S53: ='Industrial CH4'!$M508 ->  | T53: ='Industrial CH4'!$M538 ->  | U53: ='Industrial CH4'!$M568 ->  | V53: ='Industrial CH4'!$M598 ->  | W53: ='Industrial CH4'!$M628 ->  | X53: ='Industrial CH4'!$M658 ->  | Y53: ='Industrial CH4'!$M688 ->  | Z53: ='Industrial CH4'!$M718 ->  | AA53: ='Industrial CH4'!$M748 ->  | AB53: ='Industrial CH4'!$M778 ->  | AC53: ='Industrial CH4'!$M808 ->  | AD53: ='Industrial CH4'!$M838 ->  | AE53: ='Industrial CH4'!$M868 ->  | AF53: ='Industrial CH4'!$M898 ->  | AG53: ='Industrial CH4'!$M928 -> 
B54: Wood | C54: ='Industrial CH4'!M29 ->  | D54: ='Industrial CH4'!$M59 ->  | E54: ='Industrial CH4'!$M89 ->  | F54: ='Industrial CH4'!$M119 ->  | G54: ='Industrial CH4'!$M149 ->  | H54: ='Industrial CH4'!$M179 ->  | I54: ='Industrial CH4'!$M209 ->  | J54: ='Industrial CH4'!$M239 ->  | K54: ='Industrial CH4'!$M269 ->  | L54: ='Industrial CH4'!$M299 ->  | M54: ='Industrial CH4'!$M329 ->  | N54: ='Industrial CH4'!$M359 ->  | O54: ='Industrial CH4'!$M389 ->  | P54: ='Industrial CH4'!$M419 ->  | Q54: ='Industrial CH4'!$M449 ->  | R54: ='Industrial CH4'!$M479 ->  | S54: ='Industrial CH4'!$M509 ->  | T54: ='Industrial CH4'!$M539 ->  | U54: ='Industrial CH4'!$M569 ->  | V54: ='Industrial CH4'!$M599 ->  | W54: ='Industrial CH4'!$M629 ->  | X54: ='Industrial CH4'!$M659 ->  | Y54: ='Industrial CH4'!$M689 ->  | Z54: ='Industrial CH4'!$M719 ->  | AA54: ='Industrial CH4'!$M749 ->  | AB54: ='Industrial CH4'!$M779 ->  | AC54: ='Industrial CH4'!$M809 ->  | AD54: ='Industrial CH4'!$M839 ->  | AE54: ='Industrial CH4'!$M869 ->  | AF54: ='Industrial CH4'!$M899 ->  | AG54: ='Industrial CH4'!$M929 -> 
B55: Other | C55: ='Industrial CH4'!M30 -> 0 | D55: ='Industrial CH4'!$M60 -> 0 | E55: ='Industrial CH4'!$M90 -> 0 | F55: ='Industrial CH4'!$M120 -> 0 | G55: ='Industrial CH4'!$M150 -> 0 | H55: ='Industrial CH4'!$M180 -> 0 | I55: ='Industrial CH4'!$M210 -> 0 | J55: ='Industrial CH4'!$M240 -> 0 | K55: ='Industrial CH4'!$M270 -> 0 | L55: ='Industrial CH4'!$M300 -> 0 | M55: ='Industrial CH4'!$M330 -> 0 | N55: ='Industrial CH4'!$M360 -> 0 | O55: ='Industrial CH4'!$M390 -> 0 | P55: ='Industrial CH4'!$M420 -> 0 | Q55: ='Industrial CH4'!$M450 -> 0 | R55: ='Industrial CH4'!$M480 -> 0 | S55: ='Industrial CH4'!$M510 -> 0 | T55: ='Industrial CH4'!$M540 -> 0 | U55: ='Industrial CH4'!$M570 -> 0 | V55: ='Industrial CH4'!$M600 -> 0 | W55: ='Industrial CH4'!$M630 -> 0 | X55: ='Industrial CH4'!$M660 -> 0 | Y55: ='Industrial CH4'!$M690 -> 0 | Z55: ='Industrial CH4'!$M720 -> 0 | AA55: ='Industrial CH4'!$M750 -> 0 | AB55: ='Industrial CH4'!$M780 -> 0 | AC55: ='Industrial CH4'!$M810 -> 0 | AD55: ='Industrial CH4'!$M840 -> 0 | AE55: ='Industrial CH4'!$M870 -> 0 | AF55: ='Industrial CH4'!$M900 -> 0 | AG55: ='Industrial CH4'!$M930 -> 0
B56: Electric Power | C56: =SUM(C57:C61) ->  | D56: =SUM(D57:D61) ->  | S56: =SUM(S57:S61) -> 
B57: Coal | C57: ='Electric Power CH4'!J7 ->  | D57: ='Electric Power CH4'!$J20 ->  | E57: ='Electric Power CH4'!$J33 ->  | F57: ='Electric Power CH4'!$J46 ->  | G57: ='Electric Power CH4'!$J59 ->  | H57: ='Electric Power CH4'!$J72 ->  | I57: ='Electric Power CH4'!$J85 ->  | J57: ='Electric Power CH4'!$J98 ->  | K57: ='Electric Power CH4'!$J111 ->  | L57: ='Electric Power CH4'!$J124 ->  | M57: ='Electric Power CH4'!$J137 ->  | N57: ='Electric Power CH4'!$J150 ->  | O57: ='Electric Power CH4'!$J163 ->  | P57: ='Electric Power CH4'!$J176 ->  | Q57: ='Electric Power CH4'!$J189 ->  | R57: ='Electric Power CH4'!$J202 ->  | S57: ='Electric Power CH4'!$J215 ->  | T57: ='Electric Power CH4'!$J228 ->  | U57: ='Electric Power CH4'!$J241 ->  | V57: ='Electric Power CH4'!$J254 ->  | W57: ='Electric Power CH4'!$J267 ->  | X57: ='Electric Power CH4'!$J280 ->  | Y57: ='Electric Power CH4'!$J293 ->  | Z57: ='Electric Power CH4'!$J306 ->  | AA57: ='Electric Power CH4'!$J319 ->  | AB57: ='Electric Power CH4'!$J332 ->  | AC57: ='Electric Power CH4'!$J345 ->  | AD57: ='Electric Power CH4'!$J358 ->  | AE57: ='Electric Power CH4'!$J371 ->  | AF57: ='Electric Power CH4'!$J384 ->  | AG57: ='Electric Power CH4'!$J397 -> 
B58: Petroleum | C58: =SUM('Electric Power CH4'!J8:J10) ->  | D58: =SUM('Electric Power CH4'!$J21:$J23) ->  | E58: =SUM('Electric Power CH4'!$J34:$J36) ->  | F58: =SUM('Electric Power CH4'!$J47:$J49) ->  | G58: =SUM('Electric Power CH4'!$J60:$J62) ->  | H58: =SUM('Electric Power CH4'!$J73:$J75) ->  | I58: =SUM('Electric Power CH4'!$J86:$J88) ->  | J58: =SUM('Electric Power CH4'!$J99:$J101) ->  | K58: =SUM('Electric Power CH4'!$J112:$J114) ->  | L58: =SUM('Electric Power CH4'!$J125:$J127) ->  | M58: =SUM('Electric Power CH4'!$J138:$J140) ->  | N58: =SUM('Electric Power CH4'!$J151:$J153) ->  | O58: =SUM('Electric Power CH4'!$J164:$J166) ->  | P58: =SUM('Electric Power CH4'!$J177:$J179) ->  | Q58: =SUM('Electric Power CH4'!$J190:$J192) ->  | R58: =SUM('Electric Power CH4'!$J203:$J205) ->  | S58: =SUM('Electric Power CH4'!$J216:$J218) ->  | T58: =SUM('Electric Power CH4'!$J229:$J231) ->  | U58: =SUM('Electric Power CH4'!$J242:$J244) ->  | V58: =SUM('Electric Power CH4'!$J255:$J257) ->  | W58: =SUM('Electric Power CH4'!$J268:$J270) ->  | X58: =SUM('Electric Power CH4'!$J281:$J283) ->  | Y58: =SUM('Electric Power CH4'!$J294:$J296) ->  | Z58: =SUM('Electric Power CH4'!$J307:$J309) ->  | AA58: =SUM('Electric Power CH4'!$J320:$J322) ->  | AB58: =SUM('Electric Power CH4'!$J333:$J335) ->  | AC58: =SUM('Electric Power CH4'!$J346:$J348) ->  | AD58: =SUM('Electric Power CH4'!$J359:$J361) ->  | AE58: =SUM('Electric Power CH4'!$J372:$J374) ->  | AF58: =SUM('Electric Power CH4'!$J385:$J387) ->  | AG58: =SUM('Electric Power CH4'!$J398:$J400) -> 
B59: Natural Gas | C59: ='Electric Power CH4'!J11 ->  | D59: ='Electric Power CH4'!$J24 ->  | E59: ='Electric Power CH4'!$J37 ->  | F59: ='Electric Power CH4'!$J50 ->  | G59: ='Electric Power CH4'!$J63 ->  | H59: ='Electric Power CH4'!$J76 ->  | I59: ='Electric Power CH4'!$J89 ->  | J59: ='Electric Power CH4'!$J102 ->  | K59: ='Electric Power CH4'!$J115 ->  | L59: ='Electric Power CH4'!$J128 ->  | M59: ='Electric Power CH4'!$J141 ->  | N59: ='Electric Power CH4'!$J154 ->  | O59: ='Electric Power CH4'!$J167 ->  | P59: ='Electric Power CH4'!$J180 ->  | Q59: ='Electric Power CH4'!$J193 ->  | R59: ='Electric Power CH4'!$J206 ->  | S59: ='Electric Power CH4'!$J219 ->  | T59: ='Electric Power CH4'!$J232 ->  | U59: ='Electric Power CH4'!$J245 ->  | V59: ='Electric Power CH4'!$J258 ->  | W59: ='Electric Power CH4'!$J271 ->  | X59: ='Electric Power CH4'!$J284 ->  | Y59: ='Electric Power CH4'!$J297 ->  | Z59: ='Electric Power CH4'!$J310 ->  | AA59: ='Electric Power CH4'!$J323 ->  | AB59: ='Electric Power CH4'!$J336 ->  | AC59: ='Electric Power CH4'!$J349 ->  | AD59: ='Electric Power CH4'!$J362 ->  | AE59: ='Electric Power CH4'!$J375 ->  | AF59: ='Electric Power CH4'!$J388 ->  | AG59: ='Electric Power CH4'!$J401 -> 
B60: Wood | C60: ='Electric Power CH4'!J12 ->  | D60: ='Electric Power CH4'!$J25 ->  | E60: ='Electric Power CH4'!$J38 ->  | F60: ='Electric Power CH4'!$J51 ->  | G60: ='Electric Power CH4'!$J64 ->  | H60: ='Electric Power CH4'!$J77 ->  | I60: ='Electric Power CH4'!$J90 ->  | J60: ='Electric Power CH4'!$J103 ->  | K60: ='Electric Power CH4'!$J116 ->  | L60: ='Electric Power CH4'!$J129 ->  | M60: ='Electric Power CH4'!$J142 ->  | N60: ='Electric Power CH4'!$J155 ->  | O60: ='Electric Power CH4'!$J168 ->  | P60: ='Electric Power CH4'!$J181 ->  | Q60: ='Electric Power CH4'!$J194 ->  | R60: ='Electric Power CH4'!$J207 ->  | S60: ='Electric Power CH4'!$J220 ->  | T60: ='Electric Power CH4'!$J233 ->  | U60: ='Electric Power CH4'!$J246 ->  | V60: ='Electric Power CH4'!$J259 ->  | W60: ='Electric Power CH4'!$J272 ->  | X60: ='Electric Power CH4'!$J285 ->  | Y60: ='Electric Power CH4'!$J298 ->  | Z60: ='Electric Power CH4'!$J311 ->  | AA60: ='Electric Power CH4'!$J324 ->  | AB60: ='Electric Power CH4'!$J337 ->  | AC60: ='Electric Power CH4'!$J350 ->  | AD60: ='Electric Power CH4'!$J363 ->  | AE60: ='Electric Power CH4'!$J376 ->  | AF60: ='Electric Power CH4'!$J389 ->  | AG60: ='Electric Power CH4'!$J402 -> 
B61: Other | C61: ='Electric Power CH4'!J13 -> 0 | D61: ='Electric Power CH4'!$J26 -> 0 | E61: ='Electric Power CH4'!$J39 -> 0 | F61: ='Electric Power CH4'!$J52 -> 0 | G61: ='Electric Power CH4'!$J65 -> 0 | H61: ='Electric Power CH4'!$J78 -> 0 | I61: ='Electric Power CH4'!$J91 -> 0 | J61: ='Electric Power CH4'!$J104 -> 0 | K61: ='Electric Power CH4'!$J117 -> 0 | L61: ='Electric Power CH4'!$J130 -> 0 | M61: ='Electric Power CH4'!$J143 -> 0 | N61: ='Electric Power CH4'!$J156 -> 0 | O61: ='Electric Power CH4'!$J169 -> 0 | P61: ='Electric Power CH4'!$J182 -> 0 | Q61: ='Electric Power CH4'!$J195 -> 0 | R61: ='Electric Power CH4'!$J208 -> 0 | S61: ='Electric Power CH4'!$J221 -> 0 | T61: ='Electric Power CH4'!$J234 -> 0 | U61: ='Electric Power CH4'!$J247 -> 0 | V61: ='Electric Power CH4'!$J260 -> 0 | W61: ='Electric Power CH4'!$J273 -> 0 | X61: ='Electric Power CH4'!$J286 -> 0 | Y61: ='Electric Power CH4'!$J299 -> 0 | Z61: ='Electric Power CH4'!$J312 -> 0 | AA61: ='Electric Power CH4'!$J325 -> 0 | AB61: ='Electric Power CH4'!$J338 -> 0 | AC61: ='Electric Power CH4'!$J351 -> 0 | AD61: ='Electric Power CH4'!$J364 -> 0 | AE61: ='Electric Power CH4'!$J377 -> 0 | AF61: ='Electric Power CH4'!$J390 -> 0 | AG61: ='Electric Power CH4'!$J403 -> 0
B62: TOTAL | C62: =SUM(C63:C67) ->  | D62: =SUM(D63:D67) ->  | N62: =SUM(N63:N67) ->  | O62: =SUM(O63:O67) ->  | P62: =SUM(P63:P67) ->  | Q62: =SUM(Q63:Q67) ->  | R62: =SUM(R63:R67) ->  | S62: =SUM(S63:S67) -> 
B63: Coal | C63: =SUM(C39,C45,C51,C57) ->  | S63: =SUM(S39,S45,S51,S57) -> 
B64: Petroleum | C64: =SUM(C40,C46,C52,C58) ->  | E64: =SUM(E40,E46,E52,E58) ->  | M64: =SUM(M40,M46,M52,M58) ->  | S64: =SUM(S40,S46,S52,S58) -> 
B65: Natural Gas | C65: =SUM(C41,C47,C53,C59) ->  | S65: =SUM(S41,S47,S53,S59) -> 
B66: Wood | C66: =SUM(C42,C48,C54,C60) ->  | S66: =SUM(S42,S48,S54,S60) -> 
B67: Other | C67: =SUM(C43,C49,C55,C61) -> 0 | D67: 0 | E67: 0 | F67: 0 | G67: 0 | H67: 0 | I67: 0 | J67: 0 | K67: 0 | L67: 0 | M67: 0 | N67: 0 | O67: 0 | P67: 0 | Q67: 0 | R67: 0 | S67: =SUM(S43,S49,S55,S61) -> 0 | T67: 0 | U67: 0 | V67: 0 | W67: 0 | X67: 0 | Y67: 0 | Z67: 0 | AA67: 0 | AB67: 0 | AC67: 0 | AD67: 0 | AE67: 0 | AF67: 0 | AG67: 0

Sheet Total Summary
A1: ="Total Emissions Summary for " &StateName -> Total Emissions Summary for Select a State . . .
B3: =Tracker!B13 -> Emissions were not calculated for the following sectors: Residential, Commercial, Industrial, and Electric Power.
B5: MMTCO2E | C5: 1990 | D5: 1991 | E5: 1992 | F5: 1993 | G5: 1994 | H5: 1995 | I5: 1996 | J5: 1997 | K5: 1998 | L5: 1999 | M5: 2000 | N5: 2001 | O5: 2002 | P5: 2003 | Q5: 2004 | R5: 2005 | S5: 2006 | T5: 2007 | U5: 2008 | V5: 2009 | W5: 2010 | X5: 2011 | Y5: 2012 | Z5: 2013 | AA5: 2014 | AB5: 2015 | AC5: 2016 | AD5: 2017 | AE5: 2018 | AF5: 2019 | AG5: 2020
B6: Residential | C6: =C22*44/12 ->  | S6: =S22*44/12 -> 
B7: N2O | C7: =C23*44/12 ->  | S7: =S23*44/12 -> 
B8: CH4 | C8: =C24*44/12 ->  | S8: =S24*44/12 -> 
B9: Commercial | C9: =C25*44/12 ->  | S9: =S25*44/12 -> 
B10: N2O | C10: =C26*44/12 ->  | S10: =S26*44/12 -> 
B11: CH4 | C11: =C27*44/12 ->  | S11: =S27*44/12 -> 
B12: Industrial | C12: =C28*44/12 ->  | S12: =S28*44/12 -> 
B13: N2O | C13: =C29*44/12 ->  | S13: =S29*44/12 -> 
B14: CH4 | C14: =C30*44/12 ->  | S14: =S30*44/12 -> 
B15: Electric Power | C15: =C31*44/12 ->  | S15: =S31*44/12 -> 
B16: N2O | C16: =C32*44/12 ->  | S16: =S32*44/12 -> 
B17: CH4 | C17: =C33*44/12 ->  | S17: =S33*44/12 -> 
B18: TOTAL | C18: =C34*44/12 ->  | S18: =S34*44/12 -> 
C19: 1 | D19: =IF(ISERROR(IF(D18=0,0,COLUMN()-2)),0,IF(D18=0,0,COLUMN()-2)) -> 0 | E19: =IF(ISERROR(IF(E18=0,0,COLUMN()-2)),0,IF(E18=0,0,COLUMN()-2)) -> 0 | F19: 0 | G19: 0 | H19: 0 | I19: 0 | J19: 0 | K19: 0 | L19: 0 | M19: 0 | N19: 0 | O19: 0 | P19: 0 | Q19: 0 | R19: 0 | S19: 0 | T19: 0 | U19: 0 | V19: 0 | W19: 0 | X19: 0 | Y19: 0 | Z19: 0 | AA19: 0 | AB19: 0 | AC19: 0 | AD19: 0 | AE19: 0 | AF19: 0 | AG19: 0
B21: MMTCE | C21: 1990 | D21: 1991 | E21: 1992 | F21: 1993 | G21: 1994 | H21: 1995 | I21: 1996 | J21: 1997 | K21: 1998 | L21: 1999 | M21: 2000 | N21: 2001 | O21: 2002 | P21: 2003 | Q21: 2004 | R21: 2005 | S21: 2006 | T21: 2007 | U21: 2008 | V21: 2009 | W21: 2010 | X21: 2011 | Y21: 2012 | Z21: 2013 | AA21: 2014 | AB21: 2015 | AC21: 2016 | AD21: 2017 | AE21: 2018 | AF21: 2019 | AG21: 2020
B22: Residential | C22: =SUM(C23:C24) ->  | M22: =SUM(M23:M24) ->  | S22: =SUM(S23:S24) -> 
B23: N2O | C23: ='Summary N2O'!C$40 ->  | D23: ='Summary N2O'!D$40 ->  | E23: ='Summary N2O'!E$40 ->  | F23: ='Summary N2O'!F$40 ->  | G23: ='Summary N2O'!G$40 ->  | H23: ='Summary N2O'!H$40 ->  | I23: ='Summary N2O'!I$40 ->  | J23: ='Summary N2O'!J$40 ->  | K23: ='Summary N2O'!K$40 ->  | L23: ='Summary N2O'!L$40 ->  | M23: ='Summary N2O'!M$40 ->  | N23: ='Summary N2O'!N$40 ->  | O23: ='Summary N2O'!O$40 ->  | P23: ='Summary N2O'!P$40 ->  | Q23: ='Summary N2O'!Q$40 ->  | R23: ='Summary N2O'!R$40 ->  | S23: ='Summary N2O'!S$40 ->  | T23: ='Summary N2O'!T$40 ->  | U23: ='Summary N2O'!U$40 ->  | V23: ='Summary N2O'!V$40 ->  | W23: ='Summary N2O'!W$40 ->  | X23: ='Summary N2O'!X$40 ->  | Y23: ='Summary N2O'!Y$40 ->  | Z23: ='Summary N2O'!Z$40 ->  | AA23: ='Summary N2O'!AA$40 ->  | AB23: ='Summary N2O'!AB$40 ->  | AC23: ='Summary N2O'!AC$40 ->  | AD23: ='Summary N2O'!AD$40 ->  | AE23: ='Summary N2O'!AE$40 ->  | AF23: ='Summary N2O'!AF$40 ->  | AG23: ='Summary N2O'!AG$40 -> 
B24: CH4 | C24: ='Summary CH4'!C38 ->  | D24: ='Summary CH4'!D38 ->  | E24: ='Summary CH4'!E38 ->  | F24: ='Summary CH4'!F38 ->  | G24: ='Summary CH4'!G38 ->  | H24: ='Summary CH4'!H38 ->  | I24: ='Summary CH4'!I38 ->  | J24: ='Summary CH4'!J38 ->  | K24: ='Summary CH4'!K38 ->  | L24: ='Summary CH4'!L38 ->  | M24: ='Summary CH4'!M38 ->  | N24: ='Summary CH4'!N38 ->  | O24: ='Summary CH4'!O38 ->  | P24: ='Summary CH4'!P38 ->  | Q24: ='Summary CH4'!Q38 ->  | R24: ='Summary CH4'!R38 ->  | S24: ='Summary CH4'!S38 ->  | T24: ='Summary CH4'!T38 ->  | U24: ='Summary CH4'!U38 ->  | V24: ='Summary CH4'!V38 ->  | W24: ='Summary CH4'!W38 ->  | X24: ='Summary CH4'!X38 ->  | Y24: ='Summary CH4'!Y38 ->  | Z24: ='Summary CH4'!Z38 ->  | AA24: ='Summary CH4'!AA38 ->  | AB24: ='Summary CH4'!AB38 ->  | AC24: ='Summary CH4'!AC38 ->  | AD24: ='Summary CH4'!AD38 ->  | AE24: ='Summary CH4'!AE38 ->  | AF24: ='Summary CH4'!AF38 ->  | AG24: ='Summary CH4'!AG38 -> 
B25: Commercial | C25: =SUM(C26:C27) ->  | M25: =SUM(M26:M27) ->  | S25: =SUM(S26:S27) -> 
B26: N2O | C26: ='Summary N2O'!C$46 ->  | D26: ='Summary N2O'!D$46 ->  | E26: ='Summary N2O'!E$46 ->  | F26: ='Summary N2O'!F$46 ->  | G26: ='Summary N2O'!G$46 ->  | H26: ='Summary N2O'!H$46 ->  | I26: ='Summary N2O'!I$46 ->  | J26: ='Summary N2O'!J$46 ->  | K26: ='Summary N2O'!K$46 ->  | L26: ='Summary N2O'!L$46 ->  | M26: ='Summary N2O'!M$46 ->  | N26: ='Summary N2O'!N$46 ->  | O26: ='Summary N2O'!O$46 ->  | P26: ='Summary N2O'!P$46 ->  | Q26: ='Summary N2O'!Q$46 ->  | R26: ='Summary N2O'!R$46 ->  | S26: ='Summary N2O'!S$46 ->  | T26: ='Summary N2O'!T$46 ->  | U26: ='Summary N2O'!U$46 ->  | V26: ='Summary N2O'!V$46 ->  | W26: ='Summary N2O'!W$46 ->  | X26: ='Summary N2O'!X$46 ->  | Y26: ='Summary N2O'!Y$46 ->  | Z26: ='Summary N2O'!Z$46 ->  | AA26: ='Summary N2O'!AA$46 ->  | AB26: ='Summary N2O'!AB$46 ->  | AC26: ='Summary N2O'!AC$46 ->  | AD26: ='Summary N2O'!AD$46 ->  | AE26: ='Summary N2O'!AE$46 ->  | AF26: ='Summary N2O'!AF$46 ->  | AG26: ='Summary N2O'!AG$46 -> 
B27: CH4 | C27: ='Summary CH4'!C44 ->  | D27: ='Summary CH4'!D44 ->  | E27: ='Summary CH4'!E44 ->  | F27: ='Summary CH4'!F44 ->  | G27: ='Summary CH4'!G44 ->  | H27: ='Summary CH4'!H44 ->  | I27: ='Summary CH4'!I44 ->  | J27: ='Summary CH4'!J44 ->  | K27: ='Summary CH4'!K44 ->  | L27: ='Summary CH4'!L44 ->  | M27: ='Summary CH4'!M44 ->  | N27: ='Summary CH4'!N44 ->  | O27: ='Summary CH4'!O44 ->  | P27: ='Summary CH4'!P44 ->  | Q27: ='Summary CH4'!Q44 ->  | R27: ='Summary CH4'!R44 ->  | S27: ='Summary CH4'!S44 ->  | T27: ='Summary CH4'!T44 ->  | U27: ='Summary CH4'!U44 ->  | V27: ='Summary CH4'!V44 ->  | W27: ='Summary CH4'!W44 ->  | X27: ='Summary CH4'!X44 ->  | Y27: ='Summary CH4'!Y44 ->  | Z27: ='Summary CH4'!Z44 ->  | AA27: ='Summary CH4'!AA44 ->  | AB27: ='Summary CH4'!AB44 ->  | AC27: ='Summary CH4'!AC44 ->  | AD27: ='Summary CH4'!AD44 ->  | AE27: ='Summary CH4'!AE44 ->  | AF27: ='Summary CH4'!AF44 ->  | AG27: ='Summary CH4'!AG44 -> 
B28: Industrial | C28: =SUM(C29:C30) ->  | M28: =SUM(M29:M30) ->  | S28: =SUM(S29:S30) -> 
B29: N2O | C29: ='Summary N2O'!C$52 ->  | D29: ='Summary N2O'!D$52 ->  | E29: ='Summary N2O'!E$52 ->  | F29: ='Summary N2O'!F$52 ->  | G29: ='Summary N2O'!G$52 ->  | H29: ='Summary N2O'!H$52 ->  | I29: ='Summary N2O'!I$52 ->  | J29: ='Summary N2O'!J$52 ->  | K29: ='Summary N2O'!K$52 ->  | L29: ='Summary N2O'!L$52 ->  | M29: ='Summary N2O'!M$52 ->  | N29: ='Summary N2O'!N$52 ->  | O29: ='Summary N2O'!O$52 ->  | P29: ='Summary N2O'!P$52 ->  | Q29: ='Summary N2O'!Q$52 ->  | R29: ='Summary N2O'!R$52 ->  | S29: ='Summary N2O'!S$52 ->  | T29: ='Summary N2O'!T$52 ->  | U29: ='Summary N2O'!U$52 ->  | V29: ='Summary N2O'!V$52 ->  | W29: ='Summary N2O'!W$52 ->  | X29: ='Summary N2O'!X$52 ->  | Y29: ='Summary N2O'!Y$52 ->  | Z29: ='Summary N2O'!Z$52 ->  | AA29: ='Summary N2O'!AA$52 ->  | AB29: ='Summary N2O'!AB$52 ->  | AC29: ='Summary N2O'!AC$52 ->  | AD29: ='Summary N2O'!AD$52 ->  | AE29: ='Summary N2O'!AE$52 ->  | AF29: ='Summary N2O'!AF$52 ->  | AG29: ='Summary N2O'!AG$52 -> 
B30: CH4 | C30: ='Summary CH4'!C50 ->  | D30: ='Summary CH4'!D50 ->  | E30: ='Summary CH4'!E50 ->  | F30: ='Summary CH4'!F50 ->  | G30: ='Summary CH4'!G50 ->  | H30: ='Summary CH4'!H50 ->  | I30: ='Summary CH4'!I50 ->  | J30: ='Summary CH4'!J50 ->  | K30: ='Summary CH4'!K50 ->  | L30: ='Summary CH4'!L50 ->  | M30: ='Summary CH4'!M50 ->  | N30: ='Summary CH4'!N50 ->  | O30: ='Summary CH4'!O50 ->  | P30: ='Summary CH4'!P50 ->  | Q30: ='Summary CH4'!Q50 ->  | R30: ='Summary CH4'!R50 ->  | S30: ='Summary CH4'!S50 ->  | T30: ='Summary CH4'!T50 ->  | U30: ='Summary CH4'!U50 ->  | V30: ='Summary CH4'!V50 ->  | W30: ='Summary CH4'!W50 ->  | X30: ='Summary CH4'!X50 ->  | Y30: ='Summary CH4'!Y50 ->  | Z30: ='Summary CH4'!Z50 ->  | AA30: ='Summary CH4'!AA50 ->  | AB30: ='Summary CH4'!AB50 ->  | AC30: ='Summary CH4'!AC50 ->  | AD30: ='Summary CH4'!AD50 ->  | AE30: ='Summary CH4'!AE50 ->  | AF30: ='Summary CH4'!AF50 ->  | AG30: ='Summary CH4'!AG50 -> 
B31: Electric Power | C31: =SUM(C32:C33) ->  | M31: =SUM(M32:M33) ->  | S31: =SUM(S32:S33) -> 
B32: N2O | C32: ='Summary N2O'!C$58 ->  | D32: ='Summary N2O'!D$58 ->  | E32: ='Summary N2O'!E$58 ->  | F32: ='Summary N2O'!F$58 ->  | G32: ='Summary N2O'!G$58 ->  | H32: ='Summary N2O'!H$58 ->  | I32: ='Summary N2O'!I$58 ->  | J32: ='Summary N2O'!J$58 ->  | K32: ='Summary N2O'!K$58 ->  | L32: ='Summary N2O'!L$58 ->  | M32: ='Summary N2O'!M$58 ->  | N32: ='Summary N2O'!N$58 ->  | O32: ='Summary N2O'!O$58 ->  | P32: ='Summary N2O'!P$58 ->  | Q32: ='Summary N2O'!Q$58 ->  | R32: ='Summary N2O'!R$58 ->  | S32: ='Summary N2O'!S$58 ->  | T32: ='Summary N2O'!T$58 ->  | U32: ='Summary N2O'!U$58 ->  | V32: ='Summary N2O'!V$58 ->  | W32: ='Summary N2O'!W$58 ->  | X32: ='Summary N2O'!X$58 ->  | Y32: ='Summary N2O'!Y$58 ->  | Z32: ='Summary N2O'!Z$58 ->  | AA32: ='Summary N2O'!AA$58 ->  | AB32: ='Summary N2O'!AB$58 ->  | AC32: ='Summary N2O'!AC$58 ->  | AD32: ='Summary N2O'!AD$58 ->  | AE32: ='Summary N2O'!AE$58 ->  | AF32: ='Summary N2O'!AF$58 ->  | AG32: ='Summary N2O'!AG$58 -> 
B33: CH4 | C33: ='Summary CH4'!C56 ->  | D33: ='Summary CH4'!D56 ->  | E33: ='Summary CH4'!E56 ->  | F33: ='Summary CH4'!F56 ->  | G33: ='Summary CH4'!G56 ->  | H33: ='Summary CH4'!H56 ->  | I33: ='Summary CH4'!I56 ->  | J33: ='Summary CH4'!J56 ->  | K33: ='Summary CH4'!K56 ->  | L33: ='Summary CH4'!L56 ->  | M33: ='Summary CH4'!M56 ->  | N33: ='Summary CH4'!N56 ->  | O33: ='Summary CH4'!O56 ->  | P33: ='Summary CH4'!P56 ->  | Q33: ='Summary CH4'!Q56 ->  | R33: ='Summary CH4'!R56 ->  | S33: ='Summary CH4'!S56 ->  | T33: ='Summary CH4'!T56 ->  | U33: ='Summary CH4'!U56 ->  | V33: ='Summary CH4'!V56 ->  | W33: ='Summary CH4'!W56 ->  | X33: ='Summary CH4'!X56 ->  | Y33: ='Summary CH4'!Y56 ->  | Z33: ='Summary CH4'!Z56 ->  | AA33: ='Summary CH4'!AA56 ->  | AB33: ='Summary CH4'!AB56 ->  | AC33: ='Summary CH4'!AC56 ->  | AD33: ='Summary CH4'!AD56 ->  | AE33: ='Summary CH4'!AE56 ->  | AF33: ='Summary CH4'!AF56 ->  | AG33: ='Summary CH4'!AG56 -> 
B34: TOTAL | C34: =SUM(C22,C25,C28,C31) ->  | D34: =SUM(D22,D25,D28,D31) ->  | M34: =SUM(M22,M25,M28,M31) ->  | S34: =SUM(S22,S25,S28,S31) -> 
D38: Total Non-CO2 Emissions by Sector for | J38: =Constants!G2 -> Select a State . . .

Sheet Tracker (hidden)
A1: Sector | B1: Sum | C1: Not included? | D1: Text of missing sector | E1: "and"? | F1: Punctuation | G1: Text used
A2: Residential | B2: =SUM('Total Summary'!C22:R22) ->  | C2: =IF(ISERROR(B2),TRUE,IF(B2=0,TRUE,FALSE)) -> TRUE | D2: =IF(C2=TRUE," "&A2,"") -> Residential | E2: =IF(AND($C$9=A2,$C$8>1)," and","") ->  | F2: =IF(C2=TRUE,IF($C$9=A2,".",","),"") -> , | G2: =E2&D2&F2 -> Residential,
A3: Commercial | B3: =SUM('Total Summary'!C25:R25) ->  | C3: =IF(ISERROR(B3),TRUE,IF(B3=0,TRUE,FALSE)) -> TRUE | D3: =IF(C3=TRUE," "&A3,"") -> Commercial | E3: =IF(AND($C$9=A3,$C$8>1)," and","") ->  | F3: =IF(C3=TRUE,IF($C$9=A3,".",","),"") -> , | G3: =E3&D3&F3 -> Commercial,
A4: Industrial | B4: =SUM('Total Summary'!C28:R28) ->  | C4: =IF(ISERROR(B4),TRUE,IF(B4=0,TRUE,FALSE)) -> TRUE | D4: =IF(C4=TRUE," "&A4,"") -> Industrial | E4: =IF(AND($C$9=A4,$C$8>1)," and","") ->  | F4: =IF(C4=TRUE,IF($C$9=A4,".",","),"") -> , | G4: =E4&D4&F4 -> Industrial,
A5: Electric Power | B5: =SUM('Total Summary'!C31:R31) ->  | C5: =IF(ISERROR(B5),TRUE,IF(B5=0,TRUE,FALSE)) -> TRUE | D5: =IF(C5=TRUE," "&A5,"") -> Electric Power | E5: =IF(AND($C$9=A5,$C$8>1)," and","") -> and | F5: =IF(C5=TRUE,IF($C$9=A5,".",","),"") -> . | G5: =E5&D5&F5 -> and Electric Power.
B8: Count | C8: =COUNTIF(C2:C7,TRUE) -> 4
B9: Last | C9: =IF(C7=TRUE,A7,IF(C6=TRUE,A6,IF(C5=TRUE,A5,IF(C4=TRUE,A4,IF(C3=TRUE,A3,IF(C2=TRUE,A2,)))))) -> Electric Power
A11: Part A | B11: =IF(C8>1,"Emissions were not calculated for the following sectors:","Emissions were not calculated for the following sector:") -> Emissions were not calculated for the following sectors:
